Workbook

Sheet Farm1
A1: YEARDUM | B1: 1 | C1: 2 | D1: 3 | E1: 4 | F1: 5 | G1: 6 | H1: 7 | I1: 8 | J1: MULT | M1: 1 | N1: 2 | O1: 3 | P1: 4 | Q1: 5 | R1: 6 | S1: 7 | T1: 8 | X1: 1 | Y1: 2 | Z1: 3 | AA1: 4 | AB1: 5 | AC1: 6 | AD1: 7 | AE1: 8
A2: FMERCODE | B2: 1 | C2: 1 | D2: 1 | E2: 1 | F2: 1 | G2: 1 | H2: 1 | I2: 1 | J2: 500 | K2: =J2/10 -> 50
A3: PROD | B3: =B7:I10^K2 -> 6.291245285e+44 | C3: 6.400622474e+42 | D3: 3.297939762e+47 | E3: 1.569888644e+43 | F3: 7.388687411e+43 | G3: 5.114781597e+32 | H3: 1.056992361e+32 | I3: 1.193220052e+43
A4: AREA | B4: 7.888609052e+19 | C4: 7.888609052e+19 | D4: 7.888609052e+19 | E4: 7.888609052e+19 | F4: 7.888609052e+19 | G4: 7.888609052e+19 | H4: 4.065611775e+17 | I4: 4.187193159e+16 | J4: =AG15 -> 1.199620544e-06 | L4: AREA | M4: =MMULT(B4:I6,B26:I33) -> 1.253902637e-25 | N4: 1.232475292e-23 | O4: 2.39198094e-28 | P4: 5.02494816e-24 | Q4: 1.067660413e-24 | R4: 1.542315914e-13 | S4: 3.846396555e-15 | T4: 3.509154203e-27 | U4: =SUM(N4:T4) -> 1.58077988e-13 | W4: AREA | X4: =MMULT(M4:T6,M26:T33) -> 1.253902637e-25 | Y4: 2.464950584e-23 | Z4: 7.175942821e-28 | AA4: 2.009979264e-23 | AB4: 5.338302065e-24 | AC4: 9.253895483e-13 | AD4: 4.481802536e-12 | AE4: 3.970474478e-23
A5: LABOR | B5: 2.194288877e+110 | C5: 9.861757523e+106 | D5: 2.024891624e+107 | E5: 1.54948026e+105 | F5: 1.170577337e+108 | G5: 3.127919532e+104 | H5: 4.689043461e+104 | I5: 9.461557455e+96 | J5: =AG21 -> 0.9999988004 | L5: LABOR | M5: 3.487845056e+65 | N5: 1.540749757e+64 | O5: 6.139868434e+59 | P5: 9.870001073e+61 | Q5: 1.584283205e+64 | R5: 6.115450822e+71 | S5: 4.436213198e+72 | T5: 7.929432162e+53 | U5: =SUM(N5:T5) -> 5.047758312e+72 | W5: LABOR | X5: 3.487845056e+65 | Y5: 3.429783683e+67 | Z5: 6.662644265e+62 | AA5: 1.399663248e+67 | AB5: 2.989734292e+66 | AC5: 4.318902574e+77 | AD5: 2.089919579e+78 | AE5: 1.851317388e+67
A6: NPK | B6: 7.094226535e+115 | C6: 3.371896697e+123 | D6: 9.234226978e+127 | E6: 2.79148317e+126 | F6: 2.592321479e+126 | G6: 6.599143217e+115 | H6: 7.779554967e+126 | I6: 2.487478439e+117 | L6: NPK | M6: 1.127634707e+71 | N6: 5.268076207e+80 | O6: 2.79999868e+80 | P6: 1.778140877e+83 | Q6: 3.508500679e+82 | R6: 1.290210167e+83 | S6: 7.360086275e+94 | T6: 2.084677035e+74 | U6: 7.360086275e+94 | W6: NPK | X6: 1.127634707e+71 | Y6: 5.268076318e+80 | Z6: 2.800100922e+80 | AA6: 6.06011931e+84 | AB6: 1.322690228e+84 | AC6: 1.910725697e+95 | AD6: 9.982002256e+95 | AE6: 8.842375817e+84
A7: PROD | B7: 7.87 | C7: 7.18 | D7: 8.92 | E7: 7.31 | F7: 7.54 | G7: 4.51 | H7: 4.37 | I7: 7.27
A8: AREA | B8: 2.5 | C8: 2.5 | D8: 2.5 | E8: 2.5 | F8: 2.5 | G8: 2.5 | H8: 2.25 | I8: 2.15
A9: LABOR | B9: 161 | C9: 138 | D9: 140 | E9: 127 | F9: 145 | G9: 123 | H9: 124 | I9: 87
A10: NPK | B10: 207.5 | C10: 295.5 | D10: 362.5 | E10: 338 | F10: 337.5 | G10: 207.2 | H10: 345 | I10: 222.8
B11: INTERESSANTE
W12: AREA | Y12: =Y4-X4 -> 2.452411557e-23 | Z12: -2.464878824e-23 | AA12: 2.009907505e-23 | AB12: -1.476149058e-23 | AC12: 9.253895483e-13 | AD12: 3.556412988e-12 | AE12: -4.481802536e-12 | AF12: =SUM(Y12:AE12) -> 3.95794614e-23 | AG12: =AF12/U4 -> 2.503793344e-10
B13: 1 | C13: 2 | D13: 3 | E13: 4 | F13: 5 | G13: 6 | H13: 7 | I13: 8 | M13: 1 | N13: 2 | O13: 3 | P13: 4 | Q13: 5 | R13: 6 | S13: 7 | T13: 8 | W13: LABOR | Y13: 3.394905233e+67 | Z13: -3.429717057e+67 | AA13: 1.399596622e+67 | AB13: -1.100689819e+67 | AC13: 4.318902574e+77 | AD13: 1.658029321e+78 | AE13: -2.089919579e+78 | AF13: =SUM(Y13:AE13) -> 1.816431343e+67 | AG13: =AF13/U5 -> 3.598491114e-06
A14: 1 | B14: =B3 -> 6.291245285e+44 | C14: =-B14 -> -6.291245285e+44 | D14: 0 | E14: 0 | F14: 0 | G14: 0 | H14: 0 | I14: 0 | L14: 1 | M14: =MMULT(B14:I21,B26:I33) -> 1 | N14: -98.29114763 | O14: 0 | P14: 0 | Q14: 0 | R14: 0 | S14: 0 | T14: 0 | W14: NPK | Y14: 5.268076317e+80 | Z14: -2.467975396e+80 | AA14: 6.0598393e+84 | AB14: -4.737429082e+84 | AC14: 1.910725697e+95 | AD14: 8.071276559e+95 | AE14: -9.982002256e+95 | AF14: 8.842321165e+84 | AG14: =AF14/U6 -> 1.201388249e-10
A15: 2 | B15: 0 | C15: =C3 -> 6.400622474e+42 | D15: =-C15 -> -6.400622474e+42 | E15: 0 | F15: 0 | G15: 0 | H15: 0 | I15: 0 | L15: 2 | M15: 0 | N15: 1 | O15: -1.940794234e-05 | P15: 0 | Q15: 0 | R15: 0 | S15: 0 | T15: 0 | AG15: =AVERAGE(AG12:AG14) -> 1.199620544e-06
A16: 3 | B16: 0 | C16: 0 | D16: =D3 -> 3.297939762e+47 | E16: =-D16 -> -3.297939762e+47 | F16: 0 | G16: 0 | H16: 0 | I16: 0 | L16: 3 | M16: 0 | N16: 0 | O16: 1 | P16: -21007.47575 | Q16: 0 | R16: 0 | S16: 0 | T16: 0
A17: 4 | B17: 0 | C17: 0 | D17: 0 | E17: =E3 -> 1.569888644e+43 | F17: =-E17 -> -1.569888644e+43 | G17: 0 | H17: 0 | I17: 0 | L17: 4 | M17: 0 | N17: 0 | O17: 0 | P17: 1 | Q17: -0.2124719259 | R17: 0 | S17: 0 | T17: 0
A18: 5 | B18: 0 | C18: 0 | D18: 0 | E18: 0 | F18: =F3 -> 7.388687411e+43 | G18: =-F18 -> -7.388687411e+43 | H18: 0 | I18: 0 | L18: 5 | M18: 0 | N18: 0 | O18: 0 | P18: 0 | Q18: 1 | R18: -1.444575349e+11 | S18: 0 | T18: 0 | W18: AREA | Y18: =N4-Y12 -> -1.219936265e-23 | Z18: 2.464902744e-23 | AA18: -1.507412689e-23 | AB18: 1.582915099e-23 | AC18: -7.711579569e-13 | AD18: -3.552566591e-12 | AE18: 4.481802536e-12 | AF18: 1.580779879e-13 | AG18: =AF18/U4 -> 0.9999999997
A19: 6 | B19: 0 | C19: 0 | D19: 0 | E19: 0 | F19: 0 | G19: =G3 -> 5.114781597e+32 | H19: =-G19 -> -5.114781597e+32 | I19: 0 | L19: 6 | M19: 0 | N19: 0 | O19: 0 | P19: 0 | Q19: 0 | R19: 1 | S19: -4.838995802 | T19: 0 | W19: LABOR | Y19: -3.393364483e+67 | Z19: 3.429717118e+67 | AA19: -1.399586752e+67 | AB19: 1.102274102e+67 | AC19: -4.318896458e+77 | AD19: -1.658024885e+78 | AE19: 2.089919579e+78 | AF19: 5.047740148e+72 | AG19: =AF19/U5 -> 0.9999964015
A20: 7 | B20: 0 | C20: 0 | D20: 0 | E20: 0 | F20: 0 | G20: 0 | H20: =H3 -> 1.056992361e+32 | I20: =-H20 -> -1.056992361e+32 | L20: 7 | M20: 0 | N20: 0 | O20: 0 | P20: 0 | Q20: 0 | R20: 0 | S20: 1 | T20: -8.858318792e-12 | W20: NPK | Y20: -1.097088745e+73 | Z20: 5.267974075e+80 | AA20: -5.882025212e+84 | AB20: 4.772514089e+84 | AC20: -1.910725697e+95 | AD20: -7.335267931e+95 | AE20: 9.982002256e+95 | AF20: 7.360086274e+94 | AG20: =AF20/U6 -> 0.9999999999
A21: 8 | B21: 0 | C21: 0 | D21: 0 | E21: 0 | F21: 0 | G21: 0 | H21: 0 | I21: =I3 -> 1.193220052e+43 | L21: 8 | M21: 0 | N21: 0 | O21: 0 | P21: 0 | Q21: 0 | R21: 0 | S21: 0 | T21: 1 | AG21: =AVERAGE(AG18:AG20) -> 0.9999988004
B25: 1 | C25: 2 | D25: 3 | E25: 4 | F25: 5 | G25: 6 | H25: 7 | I25: 8 | M25: 1 | N25: 2 | O25: 3 | P25: 4 | Q25: 5 | R25: 6 | S25: 7 | T25: 8
A26: 1 | B26: =1/B3 -> 1.58951043e-45 | C26: 0 | D26: 0 | E26: 0 | F26: 0 | G26: 0 | H26: 0 | I26: 0 | L26: 1 | M26: =MINVERSE(M14:T21) -> 1 | N26: 98.29114763 | O26: 0.001907628926 | P26: 40.0744684 | Q26: 8.51469948 | R26: 1.230012497e+12 | S26: 5.952025312e+12 | T26: 52.72493767
A27: 2 | B27: 0 | C27: =1/C3 -> 1.562348043e-43 | D27: 0 | E27: 0 | F27: 0 | G27: 0 | H27: 0 | I27: 0 | L27: 2 | M27: 0 | N27: 1 | O27: 1.940794234e-05 | P27: 0.4077118781 | Q27: 0.08662732795 | R27: 1.251397025e+10 | S27: 6.055504952e+10 | T27: 0.5364159331
A28: 3 | B28: 0 | C28: 0 | D28: =1/D3 -> 3.032196075e-48 | E28: 0 | F28: 0 | G28: 0 | H28: 0 | I28: 0 | L28: 3 | M28: 0 | N28: 0 | O28: 1 | P28: 21007.47575 | Q28: 4463.49883 | R28: 6.447860381e+14 | S28: 3120116931956465 | T28: 27638.99045
A29: 4 | B29: 0 | C29: 0 | D29: 0 | E29: =1/E3 -> 6.369878551e-44 | F29: 0 | G29: 0 | H29: 0 | I29: 0 | L29: 4 | M29: 0 | N29: 0 | O29: 0 | P29: 1 | Q29: 0.2124719259 | R29: 3.069317065e+10 | S29: 1.485241239e+11 | T29: 1.315674038
A30: 5 | B30: 0 | C30: 0 | D30: 0 | E30: 0 | F30: =1/F3 -> 1.353420363e-44 | G30: 0 | H30: 0 | I30: 0 | L30: 5 | M30: 0 | N30: 0 | O30: 0 | P30: 0 | Q30: 1 | R30: 1.444575349e+11 | S30: 6.990294051e+11 | T30: 6.192225315
A31: 6 | B31: 0 | C31: 0 | D31: 0 | E31: 0 | F31: 0 | G31: =1/G3 -> 1.955117694e-33 | H31: 0 | I31: 0 | L31: 6 | M31: 0 | N31: 0 | O31: 0 | P31: 0 | Q31: 0 | R31: 1 | S31: 4.838995802 | T31: 4.286536745e-11
A32: 7 | B32: 0 | C32: 0 | D32: 0 | E32: 0 | F32: 0 | G32: 0 | H32: =1/H3 -> 9.460806314e-33 | I32: 0 | L32: 7 | M32: 0 | N32: 0 | O32: 0 | P32: 0 | Q32: 0 | R32: 0 | S32: 1 | T32: 8.858318792e-12
A33: 8 | B33: 0 | C33: 0 | D33: 0 | E33: 0 | F33: 0 | G33: 0 | H33: 0 | I33: =1/I3 -> 8.380683836e-44 | L33: 8 | M33: 0 | N33: 0 | O33: 0 | P33: 0 | Q33: 0 | R33: 0 | S33: 0 | T33: 1
A37: INF | B37: POST
A38: 1 | B38: 500
A39: N | B39: πI | C39: πII
A40: 0.1 | B40: 0.9901978024 | C40: 0.009802197607
A41: 0.2 | B41: 0.980024375 | C41: 0.01997562502
A42: 0.3 | B42: 0.9694824767 | C42: 0.03051752332
A43: 0.4 | B43: 0.9585759563 | C43: 0.04142404366
A44: 0.5 | B44: 0.9473097811 | C44: 0.0526902189
A45: 0.6 | B45: 0.9356900589 | C45: 0.06430994115
A46: 0.7 | B46: 0.9237240546 | C46: 0.07627594543
A47: 0.8 | B47: 0.9114201999 | C47: 0.08857980012
A48: 0.9 | B48: 0.8987880956 | C48: 0.1012119044
A49: 1 | B49: 0.8858385066 | C49: 0.1141614934
A50: 1.1 | B50: 0.8725833491 | C50: 0.1274166509
A51: 1.2 | B51: 0.85903567 | C51: 0.14096433
A52: 1.3 | B52: 0.8452096167 | C52: 0.1547903833
A53: 1.4 | B53: 0.8311204006 | C53: 0.1688795994
A54: 1.5 | B54: 0.8167842497 | C54: 0.1832157503
A55: 1.6 | B55: 0.8022183544 | C55: 0.1977816456
A56: 1.7 | B56: 0.7874408041 | C56: 0.2125591959
A57: 1.8 | B57: 0.7724705159 | C57: 0.2275294841
A58: 1.9 | B58: 0.7573271557 | C58: 0.2426728443
A59: 2 | B59: 0.7420310515 | C59: 0.2579689485
A60: 2.1 | B60: 0.7266031005 | C60: 0.2733968995
A61: 2.2 | B61: 0.7110646704 | C61: 0.2889353296
A62: 2.3 | B62: 0.6954374952 | C62: 0.3045625048
A63: 2.4 | B63: 0.679743567 | C63: 0.320256433
A64: 2.5 | B64: 0.6640050253 | C64: 0.3359949747
A65: 2.6 | B65: 0.6482440434 | C65: 0.3517559566
A66: 2.7 | B66: 0.6324827153 | C66: 0.3675172847
A67: 2.8 | B67: 0.6167429423 | C67: 0.3832570577
A68: 2.9 | B68: 0.6010463216 | C68: 0.3989536784
A69: 3 | B69: 0.5854140384 | C69: 0.4145859616
A70: 3.1 | B70: 0.5698667618 | C70: 0.4301332382
A71: 3.2 | B71: 0.5544245461 | C71: 0.4455754539
A72: 3.3 | B72: 0.5391067394 | C72: 0.4608932606
A73: 3.4 | B73: 0.5239318982 | C73: 0.4760681018
A74: 3.5 | B74: 0.508917712 | C74: 0.491082288
A75: 3.6 | B75: 0.494080935 | C75: 0.505919065
A76: 3.7 | B76: 0.4794373287 | C76: 0.5205626713
A77: 3.8 | B77: 0.4650016132 | C77: 0.5349983868
A78: 3.9 | B78: 0.4507874296 | C78: 0.5492125704
A79: 4 | B79: 0.4368073107 | C79: 0.5631926893
A80: 4.1 | B80: 0.4230726636 | C80: 0.5769273364
A81: 4.2 | B81: 0.4095937599 | C81: 0.5904062401
A82: 4.3 | B82: 0.3963797362 | C82: 0.6036202638
A83: 4.4 | B83: 0.3834386033 | C83: 0.6165613967
A84: 4.5 | B84: 0.3707772624 | C84: 0.6292227376
A85: 4.6 | B85: 0.3584015296 | C85: 0.6415984704
A86: 4.7 | B86: 0.3463161666 | C86: 0.6536838334
A87: 4.8 | B87: 0.3345249169 | C87: 0.6654750831
A88: 4.9 | B88: 0.3230305474 | C88: 0.6769694526
A89: 5 | B89: 0.311834894 | C89: 0.688165106
A90: 5.1 | B90: 0.3009389103 | C90: 0.6990610897
A91: 5.2 | B91: 0.2903427192 | C91: 0.7096572808
A92: 5.3 | B92: 0.2800456663 | C92: 0.7199543337
A93: 5.4 | B93: 0.2700463741 | C93: 0.7299536259
A94: 5.5 | B94: 0.2603427973 | C94: 0.7396572027
A95: 5.6 | B95: 0.2509322779 | C95: 0.7490677221
A96: 5.7 | B96: 0.2418115992 | C96: 0.7581884008
A97: 5.8 | B97: 0.2329770395 | C97: 0.7670229605
A98: 5.9 | B98: 0.2244244241 | C98: 0.7755755759
A99: 6 | B99: 0.2161491757 | C99: 0.7838508243
A100: 6.1 | B100: 0.2081463625 | C100: 0.7918536375
A101: 6.2 | B101: 0.2004107448 | C101: 0.7995892552
A102: 6.3 | B102: 0.1929368182 | C102: 0.8070631818
A103: 6.4 | B103: 0.1857188552 | C103: 0.8142811448
A104: 6.5 | B104: 0.1787509441 | C104: 0.8212490559
A105: 6.6 | B105: 0.1720270249 | C105: 0.8279729751
A106: 6.7 | B106: 0.1655409231 | C106: 0.8344590769
A107: 6.8 | B107: 0.1592863803 | C107: 0.8407136197
A108: 6.9 | B108: 0.1532570834 | C108: 0.8467429166
A109: 7 | B109: 0.1474466899 | C109: 0.8525533101
A110: 7.1 | B110: 0.1418488519 | C110: 0.8581511481
A111: 7.2 | B111: 0.1364572376 | C111: 0.8635427624
A112: 7.3 | B112: 0.1312655503 | C112: 0.8687344497
A113: 7.4 | B113: 0.1262675458 | C113: 0.8737324542
A114: 7.5 | B114: 0.1214570472 | C114: 0.8785429528
A115: 7.6 | B115: 0.1168279588 | C115: 0.8831720412
A116: 7.7 | B116: 0.1123742778 | C116: 0.8876257222
A117: 7.8 | B117: 0.1080901039 | C117: 0.8919098961
A118: 7.9 | B118: 0.1039696486 | C118: 0.8960303514
A119: 8 | B119: 0.1000072421 | C119: 0.8999927579
A120: 8.1 | B120: 0.09619733965 | C120: 0.9038026603
A121: 8.2 | B121: 0.09253452647 | C121: 0.9074654735
A122: 8.3 | B122: 0.08901352157 | C122: 0.9109864784
A123: 8.4 | B123: 0.08562918085 | C123: 0.9143708192
A124: 8.5 | B124: 0.08237649924 | C124: 0.9176235008
A125: 8.6 | B125: 0.07925061209 | C125: 0.9207493879
A126: 8.7 | B126: 0.0762467959 | C126: 0.9237532041
A127: 8.8 | B127: 0.07336046844 | C127: 0.9266395316
A128: 8.9 | B128: 0.07058718834 | C128: 0.9294128117
A129: 9 | B129: 0.06792265416 | C129: 0.9320773458
A130: 9.1 | B130: 0.06536270313 | C130: 0.9346372969
A131: 9.2 | B131: 0.06290330947 | C131: 0.9370966905
A132: 9.3 | B132: 0.06054058238 | C132: 0.9394594176
A133: 9.4 | B133: 0.05827076385 | C133: 0.9417292361
A134: 9.5 | B134: 0.05609022613 | C134: 0.9439097739
A135: 9.6 | B135: 0.05399546909 | C135: 0.9460045309
A136: 9.7 | B136: 0.05198311743 | C136: 0.9480168826
A137: 9.8 | B137: 0.05004991768 | C137: 0.9499500823
A138: 9.9 | B138: 0.04819273519 | C138: 0.9518072648
A139: 10 | B139: 0.04640855099 | C139: 0.953591449
A140: 10.1 | B140: 0.04469445864 | C140: 0.9553055414
A141: 10.2 | B141: 0.043047661 | C141: 0.956952339
A142: 10.3 | B142: 0.04146546699 | C142: 0.958534533
A143: 10.4 | B143: 0.03994528841 | C143: 0.9600547116
A144: 10.5 | B144: 0.03848463665 | C144: 0.9615153633
A145: 10.6 | B145: 0.03708111955 | C145: 0.9629188804
A146: 10.7 | B146: 0.03573243821 | C146: 0.9642675618
A147: 10.8 | B147: 0.03443638385 | C147: 0.9655636161
A148: 10.9 | B148: 0.03319083476 | C148: 0.9668091652
A149: 11 | B149: 0.03199375324 | C149: 0.9680062468
A150: 11.1 | B150: 0.03084318268 | C150: 0.9691568173
A151: 11.2 | B151: 0.02973724458 | C151: 0.9702627554
A152: 11.3 | B152: 0.02867413581 | C152: 0.9713258642
A153: 11.4 | B153: 0.02765212577 | C153: 0.9723478742
A154: 11.5 | B154: 0.02666955371 | C154: 0.9733304463
A155: 11.6 | B155: 0.02572482611 | C155: 0.9742751739
A156: 11.7 | B156: 0.02481641415 | C156: 0.9751835858
A157: 11.8 | B157: 0.02394285121 | C157: 0.9760571488
A158: 11.9 | B158: 0.02310273048 | C158: 0.9768972695
A159: 12 | B159: 0.02229470264 | C159: 0.9777052974
A160: 12.1 | B160: 0.0215174736 | C160: 0.9784825264
A161: 12.2 | B161: 0.02076980232 | C161: 0.9792301977
A162: 12.3 | B162: 0.02005049875 | C162: 0.9799495012
A163: 12.4 | B163: 0.01935842174 | C163: 0.9806415783
A164: 12.5 | B164: 0.01869247712 | C164: 0.9813075229
A165: 12.6 | B165: 0.0180516158 | C165: 0.9819483842
A166: 12.7 | B166: 0.01743483194 | C166: 0.9825651681
A167: 12.8 | B167: 0.01684116121 | C167: 0.9831588388
A168: 12.9 | B168: 0.01626967907 | C168: 0.9837303209
A169: 13 | B169: 0.01571949918 | C169: 0.9842805008
A170: 13.1 | B170: 0.01518977182 | C170: 0.9848102282
A171: 13.2 | B171: 0.01467968237 | C171: 0.9853203176
A172: 13.3 | B172: 0.01418844987 | C172: 0.9858115501
A173: 13.4 | B173: 0.01371532565 | C173: 0.9862846743
A174: 13.5 | B174: 0.01325959196 | C174: 0.986740408
A175: 13.6 | B175: 0.01282056069 | C175: 0.9871794393
A176: 13.7 | B176: 0.01239757215 | C176: 0.9876024278
A177: 13.8 | B177: 0.01198999391 | C177: 0.9880100061
A178: 13.9 | B178: 0.01159721959 | C178: 0.9884027804
A179: 14 | B179: 0.01121866784 | C179: 0.9887813322
A180: 14.1 | B180: 0.01085378127 | C180: 0.9891462187
A181: 14.2 | B181: 0.01050202543 | C181: 0.9894979746
A182: 14.3 | B182: 0.01016288786 | C182: 0.9898371121
A183: 14.4 | B183: 0.009835877185 | C183: 0.9901641228
A184: 14.5 | B184: 0.009520522198 | C184: 0.9904794778
A185: 14.6 | B185: 0.009216371034 | C185: 0.990783629
A186: 14.7 | B186: 0.008922990345 | C186: 0.9910770097
A187: 14.8 | B187: 0.008639964529 | C187: 0.9913600355
A188: 14.9 | B188: 0.00836689498 | C188: 0.991633105
A189: 15 | B189: 0.00810339937 | C189: 0.9918966006
A190: 15.1 | B190: 0.00784911097 | C190: 0.992150889
A191: 15.2 | B191: 0.007603677987 | C191: 0.992396322
A192: 15.3 | B192: 0.007366762941 | C192: 0.9926332371
A193: 15.4 | B193: 0.007138042058 | C193: 0.9928619579
A194: 15.5 | B194: 0.006917204696 | C194: 0.9930827953
A195: 15.6 | B195: 0.006703952793 | C195: 0.9932960472
A196: 15.7 | B196: 0.006498000335 | C196: 0.9935019997
A197: 15.8 | B197: 0.006299072855 | C197: 0.9937009271
A198: 15.9 | B198: 0.006106906941 | C198: 0.9938930931
A199: 16 | B199: 0.005921249779 | C199: 0.9940787502
A200: 16.1 | B200: 0.005741858703 | C200: 0.9942581413
A201: 16.2 | B201: 0.005568500772 | C201: 0.9944314992
A202: 16.3 | B202: 0.005400952362 | C202: 0.9945990476
A203: 16.4 | B203: 0.005238998776 | C203: 0.9947610012
A204: 16.5 | B204: 0.005082433872 | C204: 0.9949175661
A205: 16.6 | B205: 0.004931059703 | C205: 0.9950689403
A206: 16.7 | B206: 0.004784686177 | C206: 0.9952153138
... 333 more rows

Sheet Farm2
A1: YEARDUM | B1: 1 | C1: 2 | D1: 3 | E1: 4 | F1: 5 | G1: 6 | H1: 7 | I1: 8 | J1: MULT | M1: 1 | N1: 2 | O1: 3 | P1: 4 | Q1: 5 | R1: 6 | S1: 7 | T1: 8 | X1: 1 | Y1: 2 | Z1: 3 | AA1: 4 | AB1: 5 | AC1: 6 | AD1: 7 | AE1: 8
A2: FMERCODE | B2: 1 | C2: 1 | D2: 1 | E2: 1 | F2: 1 | G2: 1 | H2: 1 | I2: 1 | J2: 500 | K2: =J2/10 -> 50
A3: PROD | B3: =B7:I10^K2 -> 5.584926856e+50 | C3: 2.82674807e+50 | D3: 1.50054508e+56 | E3: 2.833253819e+63 | F3: 4.089555022e+61 | G3: 1.043473977e+61 | H3: 2.883489274e+54 | I3: 4.115448953e+57
A4: AREA | B4: 9.753934409e+28 | C4: 9.753934409e+28 | D4: 9.753934409e+28 | E4: 9.753934409e+28 | F4: 9.753934409e+28 | G4: 2.626917916e+31 | H4: 2.626917916e+31 | I4: 5.029946738e+28 | J4: =AG15 -> 9968.983903 | L4: AREA | M4: =MMULT(B4:I6,B26:I33) -> 1.746474871e-22 | N4: 3.450584972e-22 | O4: 6.500260833e-28 | P4: 3.4426617e-35 | Q4: 2.385084528e-33 | R4: 2.517473339e-30 | S4: 9.110205264e-24 | T4: 1.222210941e-29 | U4: =SUM(N4:T4) -> 3.541693672e-22 | W4: AREA | X4: =MMULT(M4:T6,M26:T33) -> 1.746474871e-22 | Y4: 6.901169943e-22 | Z4: 1.95007825e-27 | AA4: 1.37706468e-34 | AB4: 1.192542264e-32 | AC4: 2.564211134e-30 | AD4: 1.838954475e-23 | AE4: 1.289685648e-26
A5: LABOR | B5: 1.74137037e+113 | C5: 8.888886578e+108 | D5: 2.283423257e+113 | E5: 8.223649008e+120 | F5: 1.065276666e+112 | G5: 2.34148466e+119 | H5: 1.606938044e+110 | I5: 1.558052359e+106 | J5: =AG21 -> -9967.983903 | L5: LABOR | M5: 3.11798241e+62 | N5: 3.144562712e+58 | O5: 1.521729196e+57 | P5: 2.902545812e+57 | Q5: 2.604871825e+50 | R5: 2.243932013e+58 | S5: 5.572894128e+55 | T5: 3.785862435e+48 | U5: =SUM(N5:T5) -> 5.836495146e+58 | W5: LABOR | X5: 3.11798241e+62 | Y5: 6.160645432e+62 | Z5: 2.682280306e+57 | AA5: 2.902545954e+57 | AB5: 2.010891008e+59 | AC5: 8.105422921e+59 | AD5: 2.933181671e+66 | AE5: 2.055133713e+63
A6: NPK | B6: 1.282137996e+124 | C6: 4.935839378e+115 | D6: 4.705340991e+128 | E6: 1.63721152e+131 | F6: 5.641310511e+138 | G6: 3.426925229e+118 | H6: 1.039383147e+134 | I6: 3.330014073e+111 | L6: NPK | M6: 2.295711348e+73 | N6: 1.746119306e+65 | O6: 3.135754503e+72 | P6: 5.778555767e+67 | Q6: 1.379443602e+77 | R6: 3.284150162e+57 | S6: 3.604602092e+79 | T6: 8.091496484e+53 | U6: 3.618396842e+79 | W6: NPK | X6: 2.295711348e+73 | Y6: 4.535734947e+73 | Z6: 3.135839948e+72 | AA6: 5.795163772e+67 | AB6: 1.379443642e+77 | AC6: 5.40627826e+77 | AD6: 1.95645417e+84 | AE6: 1.370789597e+81
A7: PROD | B7: 10.35 | C7: 10.21 | D7: 13.29 | E7: 18.58 | F7: 17.07 | G7: 16.61 | H7: 12.28 | I7: 14.2
A8: AREA | B8: 3.8 | C8: 3.8 | D8: 3.8 | E8: 3.8 | F8: 3.8 | G8: 4.25 | H8: 4.25 | I8: 3.75
A9: LABOR | B9: 184 | C9: 151 | D9: 185 | E9: 262 | F9: 174 | G9: 244 | H9: 160 | I9: 133
A10: NPK | B10: 303.5 | C10: 206 | D10: 374.5 | E10: 421 | F10: 595.7 | G10: 234.8 | H10: 479 | I10: 170
W12: AREA | Y12: =Y4-X4 -> 5.154695072e-22 | Z12: -6.901150442e-22 | AA12: -1.950078112e-27 | AB12: 1.178771617e-32 | AC12: 2.552285711e-30 | AD12: 1.838954219e-23 | AE12: -1.83766479e-23 | AF12: =SUM(Y12:AE12) -> -1.746345902e-22 | AG12: =AF12/U4 -> -0.4930821421
B13: 1 | C13: 2 | D13: 3 | E13: 4 | F13: 5 | G13: 6 | H13: 7 | I13: 8 | M13: 1 | N13: 2 | O13: 3 | P13: 4 | Q13: 5 | R13: 6 | S13: 7 | T13: 8 | W13: LABOR | Y13: 3.042663022e+62 | Z13: -6.16061861e+62 | AA13: 2.202656479e+56 | AB13: 1.981865548e+59 | AC13: 6.094531913e+59 | AD13: 2.93318086e+66 | AE13: -2.931126537e+66 | AF13: =SUM(Y13:AE13) -> 1.743335472e+63 | AG13: =AF13/U5 -> 29869.5609
A14: 1 | B14: =B3 -> 5.584926856e+50 | C14: =-B14 -> -5.584926856e+50 | D14: 0 | E14: 0 | F14: 0 | G14: 0 | H14: 0 | I14: 0 | L14: 1 | M14: =MMULT(B14:I21,B26:I33) -> 1 | N14: -1.975742697 | O14: 0 | P14: 0 | Q14: 0 | R14: 0 | S14: 0 | T14: 0 | W14: NPK | Y14: 2.240023599e+73 | Z14: -4.222150952e+73 | AA14: -3.135781996e+72 | AB14: 1.379443642e+77 | AC14: 4.026834618e+77 | AD14: 1.956453629e+84 | AE14: -1.95508338e+84 | AF14: 1.370789574e+81 | AG14: =AF14/U6 -> 37.88389263
A15: 2 | B15: 0 | C15: =C3 -> 2.82674807e+50 | D15: =-C15 -> -2.82674807e+50 | E15: 0 | F15: 0 | G15: 0 | H15: 0 | I15: 0 | L15: 2 | M15: 0 | N15: 1 | O15: -1.883814161e-06 | P15: 0 | Q15: 0 | R15: 0 | S15: 0 | T15: 0 | AG15: =AVERAGE(AG12:AG14) -> 9968.983903
A16: 3 | B16: 0 | C16: 0 | D16: =D3 -> 1.50054508e+56 | E16: =-D16 -> -1.50054508e+56 | F16: 0 | G16: 0 | H16: 0 | I16: 0 | L16: 3 | M16: 0 | N16: 0 | O16: 1 | P16: -5.296190089e-08 | Q16: 0 | R16: 0 | S16: 0 | T16: 0
A17: 4 | B17: 0 | C17: 0 | D17: 0 | E17: =E3 -> 2.833253819e+63 | F17: =-E17 -> -2.833253819e+63 | G17: 0 | H17: 0 | I17: 0 | L17: 4 | M17: 0 | N17: 0 | O17: 0 | P17: 1 | Q17: -69.28024696 | R17: 0 | S17: 0 | T17: 0
A18: 5 | B18: 0 | C18: 0 | D18: 0 | E18: 0 | F18: =F3 -> 4.089555022e+61 | G18: =-F18 -> -4.089555022e+61 | H18: 0 | I18: 0 | L18: 5 | M18: 0 | N18: 0 | O18: 0 | P18: 0 | Q18: 1 | R18: -3.919172988 | S18: 0 | T18: 0 | W18: AREA | Y18: =N4-Y12 -> -1.704110101e-22 | Z18: 6.901156943e-22 | AA18: 1.950078147e-27 | AB18: -9.402631643e-33 | AC18: -3.481237164e-32 | AD18: -9.279336924e-24 | AE18: 1.837666012e-23 | AF18: 5.288039574e-22 | AG18: =AF18/U4 -> 1.493082142
A19: 6 | B19: 0 | C19: 0 | D19: 0 | E19: 0 | F19: 0 | G19: =G3 -> 1.043473977e+61 | H19: =-G19 -> -1.043473977e+61 | I19: 0 | L19: 6 | M19: 0 | N19: 0 | O19: 0 | P19: 0 | Q19: 0 | R19: 1 | S19: -3618789.173 | T19: 0 | W19: LABOR | Y19: -3.042348566e+62 | Z19: 6.160633827e+62 | AA19: 2.682280164e+57 | AB19: -1.981865546e+59 | AC19: -5.870138712e+59 | AD19: -2.93318086e+66 | AE19: 2.931126537e+66 | AF19: -1.743277107e+63 | AG19: =AF19/U5 -> -29868.5609
A20: 7 | B20: 0 | C20: 0 | D20: 0 | E20: 0 | F20: 0 | G20: 0 | H20: =H3 -> 2.883489274e+54 | I20: =-H20 -> -2.883489274e+54 | L20: 7 | M20: 0 | N20: 0 | O20: 0 | P20: 0 | Q20: 0 | R20: 0 | S20: 1 | T20: -0.0007006499915 | W20: NPK | Y20: -2.240023582e+73 | Z20: 4.535726402e+73 | AA20: 3.135839782e+72 | AB20: -3.956952137e+69 | AC20: -4.026834618e+77 | AD20: -1.956417583e+84 | AE20: 1.95508338e+84 | AF20: -1.334605606e+81 | AG20: =AF20/U6 -> -36.88389263
A21: 8 | B21: 0 | C21: 0 | D21: 0 | E21: 0 | F21: 0 | G21: 0 | H21: 0 | I21: =I3 -> 4.115448953e+57 | L21: 8 | M21: 0 | N21: 0 | O21: 0 | P21: 0 | Q21: 0 | R21: 0 | S21: 0 | T21: 1 | AG21: =AVERAGE(AG18:AG20) -> -9967.983903
B25: 1 | C25: 2 | D25: 3 | E25: 4 | F25: 5 | G25: 6 | H25: 7 | I25: 8 | M25: 1 | N25: 2 | O25: 3 | P25: 4 | Q25: 5 | R25: 6 | S25: 7 | T25: 8
A26: 1 | B26: =1/B3 -> 1.790533745e-51 | C26: 0 | D26: 0 | E26: 0 | F26: 0 | G26: 0 | H26: 0 | I26: 0 | L26: 1 | M26: =MINVERSE(M14:T21) -> 1 | N26: 1.975742697 | O26: 3.721932071e-06 | P26: 1.971205974e-13 | Q26: 1.365656367e-11 | R26: 5.352243545e-11 | S26: 0.0001936864099 | T26: 1.357063815e-07
A27: 2 | B27: 0 | C27: =1/C3 -> 3.537633971e-51 | D27: 0 | E27: 0 | F27: 0 | G27: 0 | H27: 0 | I27: 0 | L27: 2 | M27: 0 | N27: 1 | O27: 1.883814161e-06 | P27: 9.977037888e-14 | Q27: 6.912116488e-12 | R27: 2.708978023e-11 | S27: 9.80322034e-05 | T27: 6.868626249e-08
A28: 3 | B28: 0 | C28: 0 | D28: =1/D3 -> 6.66424497e-57 | E28: 0 | F28: 0 | G28: 0 | H28: 0 | I28: 0 | L28: 3 | M28: 0 | N28: 0 | O28: 1 | P28: 5.296190089e-08 | Q28: 3.669213573e-06 | R28: 1.438028272e-05 | S28: 52.03921143 | T28: 0.03646127305
A29: 4 | B29: 0 | C29: 0 | D29: 0 | E29: =1/E3 -> 3.529510816e-64 | F29: 0 | G29: 0 | H29: 0 | I29: 0 | L29: 4 | M29: 0 | N29: 0 | O29: 0 | P29: 1 | Q29: 69.28024696 | R29: 271.5212725 | S29: 982578241.2 | T29: 688443.4364
A30: 5 | B30: 0 | C30: 0 | D30: 0 | E30: 0 | F30: =1/F3 -> 2.44525381e-62 | G30: 0 | H30: 0 | I30: 0 | L30: 5 | M30: 0 | N30: 0 | O30: 0 | P30: 0 | Q30: 1 | R30: 3.919172988 | S30: 14182660.78 | T30: 9937.081153
A31: 6 | B31: 0 | C31: 0 | D31: 0 | E31: 0 | F31: 0 | G31: =1/G3 -> 9.583372681e-62 | H31: 0 | I31: 0 | L31: 6 | M31: 0 | N31: 0 | O31: 0 | P31: 0 | Q31: 0 | R31: 1 | S31: 3618789.173 | T31: 2535.504604
A32: 7 | B32: 0 | C32: 0 | D32: 0 | E32: 0 | F32: 0 | G32: 0 | H32: =1/H3 -> 3.46802053e-55 | I32: 0 | L32: 7 | M32: 0 | N32: 0 | O32: 0 | P32: 0 | Q32: 0 | R32: 0 | S32: 1 | T32: 0.0007006499915
A33: 8 | B33: 0 | C33: 0 | D33: 0 | E33: 0 | F33: 0 | G33: 0 | H33: 0 | I33: =1/I3 -> 2.429868555e-58 | L33: 8 | M33: 0 | N33: 0 | O33: 0 | P33: 0 | Q33: 0 | R33: 0 | S33: 0 | T33: 1
A37: INF | B37: POST
A38: 1 | B38: 500
A39: N | B39: PI-I | C39: PI-II
A40: 0.1 | B40: 0.9964123213 | C40: 0.00358767874
A41: 0.2 | B41: 0.9927402349 | C41: 0.007259765083
A42: 0.3 | B42: 0.988993953 | C42: 0.01100604701
A43: 0.4 | B43: 0.9851835025 | C43: 0.01481649751
A44: 0.5 | B44: 0.9813186699 | C44: 0.01868133009
A45: 0.6 | B45: 0.9774089555 | C45: 0.02259104453
A46: 0.7 | B46: 0.9734635374 | C46: 0.02653646263
A47: 0.8 | B47: 0.9694912462 | C47: 0.03050875383
A48: 0.9 | B48: 0.9655005489 | C48: 0.03449945112
A49: 1 | B49: 0.9614995423 | C49: 0.03850045766
A50: 1.1 | B50: 0.9574959551 | C50: 0.04250404492
A51: 1.2 | B51: 0.9534971566 | C51: 0.04650284341
A52: 1.3 | B52: 0.9495101732 | C52: 0.05048982683
A53: 1.4 | B53: 0.945541709 | C53: 0.05445829098
A54: 1.5 | B54: 0.9415981715 | C54: 0.05840182847
A55: 1.6 | B55: 0.9376856996 | C55: 0.06231430037
A56: 1.7 | B56: 0.933810194 | C56: 0.06618980595
A57: 1.8 | B57: 0.9299773487 | C57: 0.07002265133
A58: 1.9 | B58: 0.9261926819 | C58: 0.07380731811
A59: 2 | B59: 0.9224615673 | C59: 0.07753843266
A60: 2.1 | B60: 0.9187892633 | C60: 0.08121073668
A61: 2.2 | B61: 0.9151809404 | C61: 0.0848190596
A62: 2.3 | B62: 0.9116417068 | C62: 0.08835829321
A63: 2.4 | B63: 0.9081766312 | C63: 0.09182336878
A64: 2.5 | B64: 0.9047907631 | C64: 0.09520923686
A65: 2.6 | B65: 0.9014891502 | C65: 0.09851084982
A66: 2.7 | B66: 0.8982768528 | C66: 0.1017231472
A67: 2.8 | B67: 0.8951589561 | C67: 0.1048410439
A68: 2.9 | B68: 0.8921405797 | C68: 0.1078594203
A69: 3 | B69: 0.8892268841 | C69: 0.1107731159
A70: 3.1 | B70: 0.8864230756 | C70: 0.1135769244
A71: 3.2 | B71: 0.883734409 | C71: 0.116265591
A72: 3.3 | B72: 0.8811661888 | C72: 0.1188338112
A73: 3.4 | B73: 0.8787237679 | C73: 0.1212762321
A74: 3.5 | B74: 0.876412546 | C74: 0.123587454
A75: 3.6 | B75: 0.8742379663 | C75: 0.1257620337
A76: 3.7 | B76: 0.8722055116 | C76: 0.1277944884
A77: 3.8 | B77: 0.8703206995 | C77: 0.1296793005
A78: 3.9 | B78: 0.8685890771 | C78: 0.1314109229
A79: 4 | B79: 0.8670162155 | C79: 0.1329837845
A80: 4.1 | B80: 0.8656077041 | C80: 0.1343922959
A81: 4.2 | B81: 0.8643691448 | C81: 0.1356308552
A82: 4.3 | B82: 0.8633061464 | C82: 0.1366938536
A83: 4.4 | B83: 0.8624243189 | C83: 0.1375756811
A84: 4.5 | B84: 0.8617292685 | C84: 0.1382707315
A85: 4.6 | B85: 0.8612265928 | C85: 0.1387734072
A86: 4.7 | B86: 0.8609218763 | C86: 0.1390781237
A87: 4.8 | B87: 0.8608206865 | C87: 0.1391793135
A88: 4.9 | B88: 0.8609285705 | C88: 0.1390714295
A89: 5 | B89: 0.8612510521 | C89: 0.1387489479
A90: 5.1 | B90: 0.8617936298 | C90: 0.1382063702
A91: 5.2 | B91: 0.8625617744 | C91: 0.1374382256
A92: 5.3 | B92: 0.8635609286 | C92: 0.1364390714
A93: 5.4 | B93: 0.864796506 | C93: 0.135203494
A94: 5.5 | B94: 0.8662738911 | C94: 0.1337261089
A95: 5.6 | B95: 0.86799844 | C95: 0.13200156
A96: 5.7 | B96: 0.8699754812 | C96: 0.1300245188
A97: 5.8 | B97: 0.8722103174 | C97: 0.1277896826
A98: 5.9 | B98: 0.8747082276 | C98: 0.1252917724
A99: 6 | B99: 0.8774744694 | C99: 0.1225255306
A100: 6.1 | B100: 0.880514282 | C100: 0.119485718
A101: 6.2 | B101: 0.8838328896 | C101: 0.1161671104
A102: 6.3 | B102: 0.8874355054 | C102: 0.1125644946
A103: 6.4 | B103: 0.8913273353 | C103: 0.1086726647
A104: 6.5 | B104: 0.8955135825 | C104: 0.1044864175
A105: 6.6 | B105: 0.8999994524 | C105: 0.1000005476
A106: 6.7 | B106: 0.9047901573 | C106: 0.09520984267
A107: 6.8 | B107: 0.9098909222 | C107: 0.09010907783
A108: 6.9 | B108: 0.9153069895 | C108: 0.08469301052
A109: 7 | B109: 0.9210436254 | C109: 0.07895637458
A110: 7.1 | B110: 0.9271061256 | C110: 0.07289387441
A111: 7.2 | B111: 0.9334998211 | C111: 0.06650017892
A112: 7.3 | B112: 0.9402300847 | C112: 0.05976991534
A113: 7.4 | B113: 0.9473023371 | C113: 0.05269766288
A114: 7.5 | B114: 0.9547220537 | C114: 0.04527794632
A115: 7.6 | B115: 0.9624947705 | C115: 0.03750522946
A116: 7.7 | B116: 0.9706260915 | C116: 0.02937390851
A117: 7.8 | B117: 0.9791216946 | C117: 0.02087830542
A118: 7.9 | B118: 0.9879873389 | C118: 0.01201266108
A119: 8 | B119: 0.9972288714 | C119: 0.002771128591
A120: 8.1 | B120: 1.006852234 | C120: -0.006852233627
A121: 8.2 | B121: 1.016863469 | C121: -0.01686346869
A122: 8.3 | B122: 1.027268728 | C122: -0.02726872817
A123: 8.4 | B123: 1.038074279 | C123: -0.03807427902
A124: 8.5 | B124: 1.049286511 | C124: -0.04928651053
A125: 8.6 | B125: 1.060911941 | C125: -0.0609119413
A126: 8.7 | B126: 1.072957226 | C126: -0.07295722621
A127: 8.8 | B127: 1.085429163 | C127: -0.08542916347
A128: 8.9 | B128: 1.098334702 | C128: -0.09833470159
A129: 9 | B129: 1.111680946 | C129: -0.1116809464
A130: 9.1 | B130: 1.125475168 | C130: -0.1254751682
A131: 9.2 | B131: 1.139724809 | C131: -0.1397248087
A132: 9.3 | B132: 1.154437488 | C132: -0.1544374882
A133: 9.4 | B133: 1.169621012 | C133: -0.1696210124
A134: 9.5 | B134: 1.18528338 | C134: -0.1852833801
A135: 9.6 | B135: 1.20143279 | C135: -0.2014327899
A136: 9.7 | B136: 1.218077647 | C136: -0.2180776475
A137: 9.8 | B137: 1.235226573 | C137: -0.2352265728
A138: 9.9 | B138: 1.252888408 | C138: -0.2528884075
A139: 10 | B139: 1.271072222 | C139: -0.2710722221
A140: 10.1 | B140: 1.289787323 | C140: -0.2897873233
A141: 10.2 | B141: 1.309043262 | C141: -0.3090432615
A142: 10.3 | B142: 1.328849838 | C142: -0.3288498384
A143: 10.4 | B143: 1.349217114 | C143: -0.349217114
A144: 10.5 | B144: 1.370155415 | C144: -0.370155415
A145: 10.6 | B145: 1.391675342 | C145: -0.3916753417
A146: 10.7 | B146: 1.413787776 | C146: -0.4137877764
A147: 10.8 | B147: 1.436503891 | C147: -0.4365038909
A148: 10.9 | B148: 1.459835155 | C148: -0.4598351546
A149: 11 | B149: 1.483793342 | C149: -0.4837933424
A150: 11.1 | B150: 1.508390543 | C150: -0.5083905433
A151: 11.2 | B151: 1.533639168 | C151: -0.5336391681
A152: 11.3 | B152: 1.559551958 | C152: -0.5595519581
A153: 11.4 | B153: 1.586141994 | C153: -0.586141994
A154: 11.5 | B154: 1.613422704 | C154: -0.6134227039
A155: 11.6 | B155: 1.641407872 | C155: -0.6414078725
A156: 11.7 | B156: 1.67011165 | C156: -0.6701116501
A157: 11.8 | B157: 1.699548562 | C157: -0.6995485619
A158: 11.9 | B158: 1.729733517 | C158: -0.7297335166
A159: 12 | B159: 1.760681817 | C159: -0.7606818168
A160: 12.1 | B160: 1.792409168 | C160: -0.7924091679
A161: 12.2 | B161: 1.824931688 | C161: -0.8249316885
A162: 12.3 | B162: 1.85826592 | C162: -0.8582659199
A163: 12.4 | B163: 1.892428837 | C163: -0.8924288369
A164: 12.5 | B164: 1.927437858 | C164: -0.9274378577
A165: 12.6 | B165: 1.963310855 | C165: -0.9633108551
A166: 12.7 | B166: 2.000066167 | C166: -1.000066167
A167: 12.8 | B167: 2.037722607 | C167: -1.037722607
A168: 12.9 | B168: 2.076299479 | C168: -1.076299479
A169: 13 | B169: 2.115816581 | C169: -1.115816581
A170: 13.1 | B170: 2.156294229 | C170: -1.156294229
A171: 13.2 | B171: 2.197753255 | C171: -1.197753255
A172: 13.3 | B172: 2.240215034 | C172: -1.240215034
A173: 13.4 | B173: 2.283701483 | C173: -1.283701483
A174: 13.5 | B174: 2.328235084 | C174: -1.328235084
A175: 13.6 | B175: 2.373838893 | C175: -1.373838893
A176: 13.7 | B176: 2.420536554 | C176: -1.420536554
A177: 13.8 | B177: 2.468352312 | C177: -1.468352312
A178: 13.9 | B178: 2.51731103 | C178: -1.51731103
A179: 14 | B179: 2.5674382 | C179: -1.5674382
A180: 14.1 | B180: 2.618759962 | C180: -1.618759962
A181: 14.2 | B181: 2.671303114 | C181: -1.671303114
A182: 14.3 | B182: 2.725095132 | C182: -1.725095132
A183: 14.4 | B183: 2.780164186 | C183: -1.780164186
A184: 14.5 | B184: 2.836539151 | C184: -1.836539151
A185: 14.6 | B185: 2.894249631 | C185: -1.894249631
A186: 14.7 | B186: 2.953325971 | C186: -1.953325971
A187: 14.8 | B187: 3.013799276 | C187: -2.013799276
A188: 14.9 | B188: 3.075701429 | C188: -2.075701429
A189: 15 | B189: 3.13906511 | C189: -2.13906511
A190: 15.1 | B190: 3.203923814 | C190: -2.203923814
A191: 15.2 | B191: 3.270311871 | C191: -2.270311871
A192: 15.3 | B192: 3.338264465 | C192: -2.338264465
A193: 15.4 | B193: 3.407817653 | C193: -2.407817653
A194: 15.5 | B194: 3.479008389 | C194: -2.479008389
A195: 15.6 | B195: 3.551874542 | C195: -2.551874542
A196: 15.7 | B196: 3.62645492 | C196: -2.62645492
A197: 15.8 | B197: 3.702789291 | C197: -2.702789291
A198: 15.9 | B198: 3.780918405 | C198: -2.780918405
A199: 16 | B199: 3.86088402 | C199: -2.86088402
A200: 16.1 | B200: 3.942728923 | C200: -2.942728923
A201: 16.2 | B201: 4.026496954 | C201: -3.026496954
A202: 16.3 | B202: 4.112233036 | C202: -3.112233036
A203: 16.4 | B203: 4.199983194 | C203: -3.199983194
A204: 16.5 | B204: 4.289794587 | C204: -3.289794587
A205: 16.6 | B205: 4.38171553 | C205: -3.38171553
A206: 16.7 | B206: 4.475795525 | C206: -3.475795525
A207: 16.8 | B207: 4.572085289 | C207: -3.572085289
... 332 more rows

Sheet Farm3
A1: YEARDUM | B1: 1 | C1: 2 | D1: 3 | E1: 4 | F1: 5 | G1: 6 | H1: 7 | I1: 8 | J1: MULT | M1: 1 | N1: 2 | O1: 3 | P1: 4 | Q1: 5 | R1: 6 | S1: 7 | T1: 8 | X1: 1 | Y1: 2 | Z1: 3 | AA1: 4 | AB1: 5 | AC1: 6 | AD1: 7 | AE1: 8
A2: FMERCODE | B2: 1 | C2: 1 | D2: 1 | E2: 1 | F2: 1 | G2: 1 | H2: 1 | I2: 1 | J2: 500 | K2: =J2/10 -> 50
A3: PROD | B3: =B7:I10^K2 -> 9.04746818e+49 | C3: 8.610431842e+50 | D3: 7.106683346e+50 | E3: 3.297939762e+47 | F3: 2.207449195e+43 | G3: 2.322991636e+50 | H3: 5.495300924e+36 | I3: 9.347725675e+51
A4: AREA | B4: 3.749262535e+26 | C4: 4.714360388e+31 | D4: 4.714360388e+31 | E4: 4.714360388e+31 | F4: 4.714360388e+31 | G4: 2.279825291e+22 | H4: 4.714360388e+31 | I4: 3.246516786e+27 | J4: =AG15 -> 0 | L4: AREA | M4: =MMULT(B4:I6,B26:I33) -> 4.143990849e-24 | N4: 5.475172993e-20 | O4: 6.633699798e-20 | P4: 1.429486506e-16 | Q4: 2.135659747e-12 | R4: 9.814177784e-29 | S4: 8.578893956e-06 | T4: 3.473055264e-25 | U4: =SUM(N4:T4) -> 8.578896092e-06 | W4: AREA | X4: =MMULT(M4:T6,M26:T33) -> 4.143990849e-24 | Y4: 5.475216536e-20 | Z4: 1.326745235e-19 | AA4: 4.288470887e-16 | AB4: 8.542655972e-12 | AC4: 8.117755894e-19 | AD4: 4.289453801e-05 | AE4: 2.521700455e-20
A5: LABOR | B5: 3.330014073e+111 | C5: 2.322024177e+108 | D5: 6.811762746e+114 | E5: 6.654113565e+113 | F5: 4.187193159e+116 | G5: 5.988913902e+103 | H5: 4.067993218e+110 | I5: 2.322024177e+108 | J5: =AG21 -> 0.9995605781 | L5: LABOR | M5: 3.680603244e+61 | N5: 2.696756934e+57 | O5: 9.585009511e+63 | P5: 2.017657703e+66 | Q5: 1.896846899e+73 | R5: 2.578103945e+53 | S5: 7.402675985e+73 | T5: 2.484052547e+56 | U5: =SUM(N5:T5) -> 9.299523087e+73 | W5: LABOR | X5: 3.680603244e+61 | Y5: 3.870114947e+60 | Z5: 9.589698528e+63 | AA5: 2.268236226e+67 | AB5: 1.930734458e+73 | AC5: 1.834702354e+66 | AD5: 7.75572139e+79 | AE5: 4.559400289e+64
A6: NPK | B6: 1.174970706e+120 | C6: 2.339637134e+132 | D6: 4.242805874e+122 | E6: 7.836007386e+122 | F6: 2.614366805e+123 | G6: 8.383553231e+127 | H6: 8.717390687e+119 | I6: 3.898039007e+119 | L6: NPK | M6: 1.298673488e+70 | N6: 2.717212304e+81 | O6: 5.970163109e+71 | P6: 2.376031084e+75 | Q6: 1.184338381e+80 | R6: 3.6089468e+77 | S6: 1.586335454e+83 | T6: 4.17004001e+67 | U6: 1.614695548e+83 | W6: NPK | X6: 1.298673488e+70 | Y6: 2.717212304e+81 | Z6: 3.292164601e+81 | AA6: 7.094238537e+84 | AB6: 1.059882666e+89 | AC6: 1.007201635e+82 | AD6: 4.257675796e+95 | AE6: 2.502984207e+80
A7: PROD | B7: 9.98 | C7: 10.44 | D7: 10.4 | E7: 8.92 | F7: 7.36 | G7: 10.17 | H7: 5.43 | I7: 10.95
A8: AREA | B8: 3.4 | C8: 4.3 | D8: 4.3 | E8: 4.3 | F8: 4.3 | G8: 2.8 | H8: 4.3 | I8: 3.55
A9: LABOR | B9: 170 | C9: 147 | D9: 198 | E9: 189 | F9: 215 | G9: 119 | H9: 163 | I9: 147
A10: NPK | B10: 252 | C10: 444 | D10: 283.5 | E10: 287 | F10: 294 | G10: 361.8 | H10: 250.5 | I10: 246.5
W12: AREA | Y12: =Y4-X4 -> 5.474802137e-20 | Z12: 7.792235817e-20 | AA12: 4.287144142e-16 | AB12: 8.542227125e-12 | AC12: -8.54265516e-12 | AD12: 4.289453801e-05 | AE12: -4.289453801e-05 | AF12: =SUM(Y12:AE12) -> 0 | AG12: =AF12/U4 -> 0
B13: 1 | C13: 2 | D13: 3 | E13: 4 | F13: 5 | G13: 6 | H13: 7 | I13: 8 | M13: 1 | N13: 2 | O13: 3 | P13: 4 | Q13: 5 | R13: 6 | S13: 7 | T13: 8 | W13: LABOR | Y13: -3.293591749e+61 | Z13: 9.585828413e+63 | AA13: 2.267277256e+67 | AB13: 1.93073219e+73 | AC13: -1.930734274e+73 | AD13: 7.75572139e+79 | AE13: -7.75572139e+79 | AF13: =SUM(Y13:AE13) -> 0 | AG13: =AF13/U5 -> 0
A14: 1 | B14: =B3 -> 9.04746818e+49 | C14: =-B14 -> -9.04746818e+49 | D14: 0 | E14: 0 | F14: 0 | G14: 0 | H14: 0 | I14: 0 | L14: 1 | M14: =MMULT(B14:I21,B26:I33) -> 1 | N14: -0.1050756611 | O14: 0 | P14: 0 | Q14: 0 | R14: 0 | S14: 0 | T14: 0 | W14: NPK | Y14: 2.717212304e+81 | Z14: 5.749522975e+80 | AA14: 7.090946373e+84 | AB14: 1.059811724e+89 | AC14: -1.059882565e+89 | AD14: 4.257675796e+95 | AE14: -4.257675796e+95 | AF14: 0 | AG14: =AF14/U6 -> 0
A15: 2 | B15: 0 | C15: =C3 -> 8.610431842e+50 | D15: =-C15 -> -8.610431842e+50 | E15: 0 | F15: 0 | G15: 0 | H15: 0 | I15: 0 | L15: 2 | M15: 0 | N15: 1 | O15: -1.211596384 | P15: 0 | Q15: 0 | R15: 0 | S15: 0 | T15: 0 | AG15: =AVERAGE(AG12:AG14) -> 0
A16: 3 | B16: 0 | C16: 0 | D16: =D3 -> 7.106683346e+50 | E16: =-D16 -> -7.106683346e+50 | F16: 0 | G16: 0 | H16: 0 | I16: 0 | L16: 3 | M16: 0 | N16: 0 | O16: 1 | P16: -2154.885735 | Q16: 0 | R16: 0 | S16: 0 | T16: 0
A17: 4 | B17: 0 | C17: 0 | D17: 0 | E17: =E3 -> 3.297939762e+47 | F17: =-E17 -> -3.297939762e+47 | G17: 0 | H17: 0 | I17: 0 | L17: 4 | M17: 0 | N17: 0 | O17: 0 | P17: 1 | Q17: -14940.04831 | R17: 0 | S17: 0 | T17: 0
A18: 5 | B18: 0 | C18: 0 | D18: 0 | E18: 0 | F18: =F3 -> 2.207449195e+43 | G18: =-F18 -> -2.207449195e+43 | H18: 0 | I18: 0 | L18: 5 | M18: 0 | N18: 0 | O18: 0 | P18: 0 | Q18: 1 | R18: -9.502613613e-08 | S18: 0 | T18: 0 | W18: AREA | Y18: =N4-Y12 -> 3.708558271e-24 | Z18: -1.158536019e-20 | AA18: -2.857657636e-16 | AB18: -6.406567378e-12 | AC18: 8.54265516e-12 | AD18: -3.431564406e-05 | AE18: 4.289453801e-05 | AF18: 8.578896092e-06 | AG18: =AF18/U4 -> 1
A19: 6 | B19: 0 | C19: 0 | D19: 0 | E19: 0 | F19: 0 | G19: =G3 -> 2.322991636e+50 | H19: =-G19 -> -2.322991636e+50 | I19: 0 | L19: 6 | M19: 0 | N19: 0 | O19: 0 | P19: 0 | Q19: 0 | R19: 1 | S19: -4.227232809e+13 | T19: 0 | W19: LABOR | Y19: 3.293861425e+61 | Z19: -8.18902327e+59 | AA19: -2.065511486e+67 | AB19: -3.388529057e+71 | AC19: 1.930734274e+73 | AD19: -7.755713987e+79 | AE19: 7.75572139e+79 | AF19: 9.299523082e+73 | AG19: =AF19/U5 -> 0.9999999994
A20: 7 | B20: 0 | C20: 0 | D20: 0 | E20: 0 | F20: 0 | G20: 0 | H20: =H3 -> 5.495300924e+36 | I20: =-H20 -> -5.495300924e+36 | L20: 7 | M20: 0 | N20: 0 | O20: 0 | P20: 0 | Q20: 0 | R20: 0 | S20: 1 | T20: -5.878757159e-16 | W20: NPK | Y20: 1.162226451e+70 | Z20: -5.749522969e+80 | AA20: -7.090946371e+84 | AB20: -1.059811723e+89 | AC20: 1.059882565e+89 | AD20: -4.257675796e+95 | AE20: 4.257675796e+95 | AF20: 1.612566952e+83 | AG20: =AF20/U6 -> 0.9986817349
A21: 8 | B21: 0 | C21: 0 | D21: 0 | E21: 0 | F21: 0 | G21: 0 | H21: 0 | I21: =I3 -> 9.347725675e+51 | L21: 8 | M21: 0 | N21: 0 | O21: 0 | P21: 0 | Q21: 0 | R21: 0 | S21: 0 | T21: 1 | AG21: =AVERAGE(AG18:AG20) -> 0.9995605781
B25: 1 | C25: 2 | D25: 3 | E25: 4 | F25: 5 | G25: 6 | H25: 7 | I25: 8 | M25: 1 | N25: 2 | O25: 3 | P25: 4 | Q25: 5 | R25: 6 | S25: 7 | T25: 8
A26: 1 | B26: =1/B3 -> 1.105281588e-50 | C26: 0 | D26: 0 | E26: 0 | F26: 0 | G26: 0 | H26: 0 | I26: 0 | L26: 1 | M26: =MINVERSE(M14:T21) -> 1 | N26: 0.1050756611 | O26: 0.127309291 | P26: 274.336975 | Q26: 4098607.661 | R26: 0.3894748496 | S26: 1.646400862e+13 | T26: 0.009678790857
A27: 2 | B27: 0 | C27: =1/C3 -> 1.161381936e-51 | D27: 0 | E27: 0 | F27: 0 | G27: 0 | H27: 0 | I27: 0 | L27: 2 | M27: 0 | N27: 1 | O27: 1.211596384 | P27: 2610.851763 | Q27: 39006251.48 | R27: 3.706613364 | S27: 1.566871762e+14 | T27: 0.09211258589
A28: 3 | B28: 0 | C28: 0 | D28: =1/D3 -> 1.407126153e-51 | E28: 0 | F28: 0 | G28: 0 | H28: 0 | I28: 0 | L28: 3 | M28: 0 | N28: 0 | O28: 1 | P28: 2154.885735 | Q28: 32194096.99 | R28: 3.059280643 | S28: 1.293229151e+14 | T28: 0.07602580128
A29: 4 | B29: 0 | C29: 0 | D29: 0 | E29: =1/E3 -> 3.032196075e-48 | F29: 0 | G29: 0 | H29: 0 | I29: 0 | L29: 4 | M29: 0 | N29: 0 | O29: 0 | P29: 1 | Q29: 14940.04831 | R29: 0.001419695065 | S29: 6.001381558e+10 | T29: 3.52806648e-05
A30: 5 | B30: 0 | C30: 0 | D30: 0 | E30: 0 | F30: =1/F3 -> 4.530115585e-44 | G30: 0 | H30: 0 | I30: 0 | L30: 5 | M30: 0 | N30: 0 | O30: 0 | P30: 0 | Q30: 1 | R30: 9.502613613e-08 | S30: 4016976.004 | T30: 2.361482644e-09
A31: 6 | B31: 0 | C31: 0 | D31: 0 | E31: 0 | F31: 0 | G31: =1/G3 -> 4.304793803e-51 | H31: 0 | I31: 0 | L31: 6 | M31: 0 | N31: 0 | O31: 0 | P31: 0 | Q31: 0 | R31: 1 | S31: 4.227232809e+13 | T31: 0.02485087514
A32: 7 | B32: 0 | C32: 0 | D32: 0 | E32: 0 | F32: 0 | G32: 0 | H32: =1/H3 -> 1.81973656e-37 | I32: 0 | L32: 7 | M32: 0 | N32: 0 | O32: 0 | P32: 0 | Q32: 0 | R32: 0 | S32: 1 | T32: 5.878757159e-16
A33: 8 | B33: 0 | C33: 0 | D33: 0 | E33: 0 | F33: 0 | G33: 0 | H33: 0 | I33: =1/I3 -> 1.069778933e-52 | L33: 8 | M33: 0 | N33: 0 | O33: 0 | P33: 0 | Q33: 0 | R33: 0 | S33: 0 | T33: 1
A37: INF | B37: POST
A38: 1 | B38: 500
A39: N | B39: PI-I | C39: PI-II
A40: 0.1 | B40: 0.9775272598 | C40: 0.02247274016
A41: 0.2 | B41: 0.9549734667 | C41: 0.04502653327
A42: 0.3 | B42: 0.9323671815 | C42: 0.06763281853
A43: 0.4 | B43: 0.9097377931 | C43: 0.09026220692
A44: 0.5 | B44: 0.8871153326 | C44: 0.1128846674
A45: 0.6 | B45: 0.8645302762 | C45: 0.1354697238
A46: 0.7 | B46: 0.8420133408 | C46: 0.1579866592
A47: 0.8 | B47: 0.8195952753 | C47: 0.1804047247
A48: 0.9 | B48: 0.7973066503 | C48: 0.2026933497
A49: 1 | B49: 0.7751776493 | C49: 0.2248223507
A50: 1.1 | B50: 0.7532378662 | C50: 0.2467621338
A51: 1.2 | B51: 0.7315161088 | C51: 0.2684838912
A52: 1.3 | B52: 0.7100402151 | C52: 0.2899597849
A53: 1.4 | B53: 0.6888368808 | C53: 0.3111631192
A54: 1.5 | B54: 0.6679315033 | C54: 0.3320684967
A55: 1.6 | B55: 0.6473480423 | C55: 0.3526519577
A56: 1.7 | B56: 0.6271088987 | C56: 0.3728911013
A57: 1.8 | B57: 0.6072348126 | C57: 0.3927651874
A58: 1.9 | B58: 0.5877447813 | C58: 0.4122552187
A59: 2 | B59: 0.5686559971 | C59: 0.4313440029
A60: 2.1 | B60: 0.5499838053 | C60: 0.4500161947
A61: 2.2 | B61: 0.5317416802 | C61: 0.4682583198
A62: 2.3 | B62: 0.5139412209 | C62: 0.4860587791
A63: 2.4 | B63: 0.4965921632 | C63: 0.5034078368
A64: 2.5 | B64: 0.4797024082 | C64: 0.5202975918
A65: 2.6 | B65: 0.463278065 | C65: 0.536721935
A66: 2.7 | B66: 0.4473235068 | C66: 0.5526764932
A67: 2.8 | B67: 0.4318414378 | C67: 0.5681585622
A68: 2.9 | B68: 0.4168329699 | C68: 0.5831670301
A69: 3 | B69: 0.4022977083 | C69: 0.5977022917
A70: 3.1 | B70: 0.3882338421 | C70: 0.6117661579
A71: 3.2 | B71: 0.3746382406 | C71: 0.6253617594
A72: 3.3 | B72: 0.3615065529 | C72: 0.6384934471
A73: 3.4 | B73: 0.3488333095 | C73: 0.6511666905
A74: 3.5 | B74: 0.336612024 | C74: 0.663387976
A75: 3.6 | B75: 0.3248352951 | C75: 0.6751647049
A76: 3.7 | B76: 0.3134949072 | C76: 0.6865050928
A77: 3.8 | B77: 0.3025819275 | C77: 0.6974180725
A78: 3.9 | B78: 0.2920868017 | C78: 0.7079131983
A79: 4 | B79: 0.2819994445 | C79: 0.7180005555
A80: 4.1 | B80: 0.2723093267 | C80: 0.7276906733
A81: 4.2 | B81: 0.2630055574 | C81: 0.7369944426
A82: 4.3 | B82: 0.2540769609 | C82: 0.7459230391
A83: 4.4 | B83: 0.2455121493 | C83: 0.7544878507
A84: 4.5 | B84: 0.2372995886 | C84: 0.7627004114
A85: 4.6 | B85: 0.2294276609 | C85: 0.7705723391
A86: 4.7 | B86: 0.22188472 | C86: 0.77811528
A87: 4.8 | B87: 0.2146591427 | C87: 0.7853408573
A88: 4.9 | B88: 0.2077393747 | C88: 0.7922606253
A89: 5 | B89: 0.2011139713 | C89: 0.7988860287
A90: 5.1 | B90: 0.1947716344 | C90: 0.8052283656
A91: 5.2 | B91: 0.1887012435 | C91: 0.8112987565
A92: 5.3 | B92: 0.182891884 | C92: 0.817108116
A93: 5.4 | B93: 0.1773328708 | C93: 0.8226671292
A94: 5.5 | B94: 0.1720137679 | C94: 0.8279862321
A95: 5.6 | B95: 0.1669244057 | C95: 0.8330755943
A96: 5.7 | B96: 0.1620548938 | C96: 0.8379451062
A97: 5.8 | B97: 0.157395632 | C97: 0.842604368
A98: 5.9 | B98: 0.152937318 | C98: 0.847062682
A99: 6 | B99: 0.1486709532 | C99: 0.8513290468
A100: 6.1 | B100: 0.1445878462 | C100: 0.8554121538
A101: 6.2 | B101: 0.1406796141 | C101: 0.8593203859
A102: 6.3 | B102: 0.1369381825 | C102: 0.8630618175
A103: 6.4 | B103: 0.1333557841 | C103: 0.8666442159
A104: 6.5 | B104: 0.1299249554 | C104: 0.8700750446
A105: 6.6 | B105: 0.1266385329 | C105: 0.8733614671
A106: 6.7 | B106: 0.123489648 | C106: 0.876510352
A107: 6.8 | B107: 0.1204717214 | C107: 0.8795282786
A108: 6.9 | B108: 0.1175784561 | C108: 0.8824215439
A109: 7 | B109: 0.1148038308 | C109: 0.8851961692
A110: 7.1 | B110: 0.112142092 | C110: 0.887857908
A111: 7.2 | B111: 0.1095877464 | C111: 0.8904122536
A112: 7.3 | B112: 0.1071355526 | C112: 0.8928644474
A113: 7.4 | B113: 0.1047805126 | C113: 0.8952194874
A114: 7.5 | B114: 0.1025178637 | C114: 0.8974821363
A115: 7.6 | B115: 0.1003430695 | C115: 0.8996569305
A116: 7.7 | B116: 0.0982518117 | C116: 0.9017481883
A117: 7.8 | B117: 0.09623998165 | C117: 0.9037600184
A118: 7.9 | B118: 0.09430367167 | C118: 0.9056963283
A119: 8 | B119: 0.09243916691 | C119: 0.9075608331
A120: 8.1 | B120: 0.09064293722 | C120: 0.9093570628
A121: 8.2 | B121: 0.0889116291 | C121: 0.9110883709
A122: 8.3 | B122: 0.08724205795 | C122: 0.9127579421
A123: 8.4 | B123: 0.08563120048 | C123: 0.9143687995
A124: 8.5 | B124: 0.08407618732 | C124: 0.9159238127
A125: 8.6 | B125: 0.08257429591 | C125: 0.9174257041
A126: 8.7 | B126: 0.08112294357 | C126: 0.9188770564
A127: 8.8 | B127: 0.07971968082 | C127: 0.9202803192
A128: 8.9 | B128: 0.07836218499 | C128: 0.921637815
A129: 9 | B129: 0.077048254 | C129: 0.922951746
A130: 9.1 | B130: 0.07577580044 | C130: 0.9242241996
A131: 9.2 | B131: 0.07454284586 | C131: 0.9254571541
A132: 9.3 | B132: 0.07334751531 | C132: 0.9266524847
A133: 9.4 | B133: 0.07218803207 | C133: 0.9278119679
A134: 9.5 | B134: 0.07106271273 | C134: 0.9289372873
A135: 9.6 | B135: 0.06996996229 | C135: 0.9300300377
A136: 9.7 | B136: 0.06890826973 | C136: 0.9310917303
A137: 9.8 | B137: 0.06787620352 | C137: 0.9321237965
A138: 9.9 | B138: 0.06687240759 | C138: 0.9331275924
A139: 10 | B139: 0.06589559731 | C139: 0.9341044027
A140: 10.1 | B140: 0.06494455572 | C140: 0.9350554443
A141: 10.2 | B141: 0.06401813001 | C141: 0.93598187
A142: 10.3 | B142: 0.06311522807 | C142: 0.9368847719
A143: 10.4 | B143: 0.06223481528 | C143: 0.9377651847
A144: 10.5 | B144: 0.06137591144 | C144: 0.9386240886
A145: 10.6 | B145: 0.06053758784 | C145: 0.9394624122
A146: 10.7 | B146: 0.05971896453 | C146: 0.9402810355
A147: 10.8 | B147: 0.05891920765 | C147: 0.9410807924
A148: 10.9 | B148: 0.058137527 | C148: 0.941862473
A149: 11 | B149: 0.05737317365 | C149: 0.9426268264
A150: 11.1 | B150: 0.0566254377 | C150: 0.9433745623
A151: 11.2 | B151: 0.05589364622 | C151: 0.9441063538
A152: 11.3 | B152: 0.05517716116 | C152: 0.9448228388
A153: 11.4 | B153: 0.05447537756 | C153: 0.9455246224
A154: 11.5 | B154: 0.05378772166 | C154: 0.9462122783
A155: 11.6 | B155: 0.05311364926 | C155: 0.9468863507
A156: 11.7 | B156: 0.05245264411 | C156: 0.9475473559
A157: 11.8 | B157: 0.05180421636 | C157: 0.9481957836
A158: 11.9 | B158: 0.05116790115 | C158: 0.9488320989
A159: 12 | B159: 0.05054325725 | C159: 0.9494567428
A160: 12.1 | B160: 0.04992986577 | C160: 0.9500701342
A161: 12.2 | B161: 0.04932732893 | C161: 0.9506726711
A162: 12.3 | B162: 0.04873526895 | C162: 0.951264731
A163: 12.4 | B163: 0.04815332694 | C163: 0.9518466731
A164: 12.5 | B164: 0.04758116184 | C164: 0.9524188382
A165: 12.6 | B165: 0.04701844953 | C165: 0.9529815505
A166: 12.7 | B166: 0.04646488185 | C166: 0.9535351181
A167: 12.8 | B167: 0.04592016576 | C167: 0.9540798342
A168: 12.9 | B168: 0.04538402252 | C168: 0.9546159775
A169: 13 | B169: 0.04485618689 | C169: 0.9551438131
A170: 13.1 | B170: 0.04433640646 | C170: 0.9556635935
A171: 13.2 | B171: 0.0438244409 | C171: 0.9561755591
A172: 13.3 | B172: 0.04332006133 | C172: 0.9566799387
A173: 13.4 | B173: 0.04282304971 | C173: 0.9571769503
A174: 13.5 | B174: 0.04233319825 | C174: 0.9576668017
A175: 13.6 | B175: 0.04185030887 | C175: 0.9581496911
A176: 13.7 | B176: 0.04137419268 | C176: 0.9586258073
A177: 13.8 | B177: 0.04090466945 | C177: 0.9590953306
A178: 13.9 | B178: 0.04044156721 | C178: 0.9595584328
A179: 14 | B179: 0.03998472176 | C179: 0.9600152782
A180: 14.1 | B180: 0.03953397629 | C180: 0.9604660237
A181: 14.2 | B181: 0.03908918096 | C181: 0.960910819
A182: 14.3 | B182: 0.03865019256 | C182: 0.9613498074
A183: 14.4 | B183: 0.03821687413 | C183: 0.9617831259
A184: 14.5 | B184: 0.03778909465 | C184: 0.9622109053
A185: 14.6 | B185: 0.03736672872 | C185: 0.9626332713
A186: 14.7 | B186: 0.03694965626 | C186: 0.9630503437
A187: 14.8 | B187: 0.03653776225 | C187: 0.9634622378
A188: 14.9 | B188: 0.03613093644 | C188: 0.9638690636
A189: 15 | B189: 0.03572907313 | C189: 0.9642709269
A190: 15.1 | B190: 0.03533207091 | C190: 0.9646679291
A191: 15.2 | B191: 0.03493983244 | C191: 0.9650601676
A192: 15.3 | B192: 0.03455226425 | C192: 0.9654477357
A193: 15.4 | B193: 0.03416927654 | C193: 0.9658307235
A194: 15.5 | B194: 0.03379078297 | C194: 0.966209217
A195: 15.6 | B195: 0.03341670052 | C195: 0.9665832995
A196: 15.7 | B196: 0.03304694929 | C196: 0.9669530507
A197: 15.8 | B197: 0.03268145235 | C197: 0.9673185476
A198: 15.9 | B198: 0.0323201356 | C198: 0.9676798644
A199: 16 | B199: 0.03196292759 | C199: 0.9680370724
A200: 16.1 | B200: 0.03160975944 | C200: 0.9683902406
A201: 16.2 | B201: 0.03126056468 | C201: 0.9687394353
A202: 16.3 | B202: 0.03091527912 | C202: 0.9690847209
A203: 16.4 | B203: 0.03057384076 | C203: 0.9694261592
A204: 16.5 | B204: 0.03023618967 | C204: 0.9697638103
A205: 16.6 | B205: 0.02990226789 | C205: 0.9700977321
A206: 16.7 | B206: 0.02957201931 | C206: 0.9704279807
A207: 16.8 | B207: 0.02924538964 | C207: 0.9707546104
... 332 more rows

Sheet Farm4
A1: YEARDUM | B1: 1 | C1: 2 | D1: 3 | E1: 4 | F1: 5 | G1: 6 | H1: 7 | I1: 8 | J1: MULT | M1: 1 | N1: 2 | O1: 3 | P1: 4 | Q1: 5 | R1: 6 | S1: 7 | T1: 8 | X1: 1 | Y1: 2 | Z1: 3 | AA1: 4 | AB1: 5 | AC1: 6 | AD1: 7 | AE1: 8
A2: FMERCODE | B2: 1 | C2: 1 | D2: 1 | E2: 1 | F2: 1 | G2: 1 | H2: 1 | I2: 1 | J2: 500 | K2: =J2/10 -> 50
A3: PROD | B3: =B7:I10^K2 -> 1.575275569e+34 | C3: 5.987105036e+24 | D3: 2.09238865e+38 | E3: 2.636277361e+34 | F3: 2.929158926e+32 | G3: 1.056992361e+32 | H3: 7.079735881e+30 | I3: 4.062916246e+29
A4: AREA | B4: 20248916.24 | C4: 20248916.24 | D4: 20248916.24 | E4: 20248916.24 | F4: 20248916.24 | G4: 20248916.24 | H4: 20248916.24 | I4: 20248916.24 | J4: =AG15 -> 5.812673212 | L4: AREA | M4: =MMULT(B4:I6,B26:I33) -> 1.285420573e-27 | N4: 3.382088024e-18 | O4: 9.6774164e-32 | P4: 7.680874759e-28 | Q4: 6.912877298e-26 | R4: 1.915710746e-25 | S4: 2.860123115e-24 | T4: 4.983837966e-23 | U4: =SUM(N4:T4) -> 3.382140984e-18 | W4: AREA | X4: =MMULT(M4:T6,M26:T33) -> 1.285420573e-27 | Y4: 6.764176048e-18 | Z4: 2.90322492e-31 | AA4: 3.072349904e-27 | AB4: 3.456438649e-25 | AC4: 1.149426448e-24 | AD4: 2.00208618e-23 | AE4: 3.987070373e-22
A5: LABOR | B5: 4.221294339e+91 | C5: 1.675458239e+97 | D5: 4.165700008e+86 | E5: 5.663216564e+93 | F5: 2.894582863e+93 | G5: 1.636681989e+96 | H5: 2.037035976e+90 | I5: 4.165700008e+86 | J5: =AG21 -> -4.812673212 | L5: LABOR | M5: 2.679718026e+57 | N5: 2.798444706e+72 | O5: 1.990882529e+48 | P5: 2.148186928e+59 | Q5: 9.881959074e+60 | R5: 1.548433129e+64 | S5: 2.877276795e+59 | T5: 1.025298026e+57 | U5: =SUM(N5:T5) -> 2.798444722e+72 | W5: LABOR | X5: 2.679718026e+57 | Y5: 2.798451757e+72 | Z5: 8.007415163e+58 | AA5: 6.357558605e+62 | AB5: 5.722865447e+64 | AC5: 1.740775532e+65 | AD5: 2.598948144e+66 | AE5: 4.528733874e+67
A6: NPK | B6: 1.675458239e+97 | C6: 1.018509702e+86 | D6: 1.018509702e+86 | E6: 3.655252947e+92 | F6: 1.558730851e+92 | G6: 2.071554045e+103 | H6: 2.441326086e+106 | I6: 9.938803035e+100 | L6: NPK | M6: 1.063596917e+63 | N6: 1.701172263e+61 | O6: 4.867688906e+47 | P6: 1.38652063e+58 | Q6: 5.321428063e+59 | R6: 1.959857159e+71 | S6: 3.448329326e+75 | T6: 2.446223952e+71 | U6: 3.448769934e+75 | W6: NPK | X6: 1.063596917e+63 | Y6: 2.798444706e+72 | Z6: 8.007394988e+58 | AA6: 6.355533058e+62 | AB6: 5.720107449e+64 | AC6: 1.959858744e+71 | AD6: 3.451255361e+75 | AE6: 6.013925546e+76
A7: PROD | B7: 4.83 | C7: 3.13 | D7: 5.84 | E7: 4.88 | F7: 4.46 | G7: 4.37 | H7: 4.14 | I7: 3.91
A8: AREA | B8: 1.4 | C8: 1.4 | D8: 1.4 | E8: 1.4 | F8: 1.4 | G8: 1.4 | H8: 1.4 | I8: 1.4
A9: LABOR | B9: 68 | C9: 88 | D9: 54 | E9: 75 | F9: 74 | G9: 84 | H9: 64 | I9: 54
A10: NPK | B10: 88 | C10: 52.5 | D10: 52.5 | E10: 71 | F10: 69.8 | G10: 116.5 | H10: 134.2 | I10: 104.7
W12: AREA | Y12: =Y4-X4 -> 6.764176047e-18 | Z12: -6.764176048e-18 | AA12: 3.072059581e-27 | AB12: 3.42571515e-25 | AC12: 8.037825827e-25 | AD12: 1.887143536e-23 | AE12: 3.786861755e-22 | AF12: =SUM(Y12:AE12) -> 3.987057518e-22 | AG12: =AF12/U4 -> 0.0001178856097
B13: 1 | C13: 2 | D13: 3 | E13: 4 | F13: 5 | G13: 6 | H13: 7 | I13: 8 | M13: 1 | N13: 2 | O13: 3 | P13: 4 | Q13: 5 | R13: 6 | S13: 7 | T13: 8 | W13: LABOR | Y13: 2.798451757e+72 | Z13: -2.798451757e+72 | AA13: 6.356757864e+62 | AB13: 5.659289861e+64 | AC13: 1.168488988e+65 | AD13: 2.424870591e+66 | AE13: 4.268839059e+67 | AF13: =SUM(Y13:AE13) -> 4.528733873e+67 | AG13: =AF13/U5 -> 1.618303852e-05
A14: 1 | B14: =B3 -> 1.575275569e+34 | C14: =-B14 -> -1.575275569e+34 | D14: 0 | E14: 0 | F14: 0 | G14: 0 | H14: 0 | I14: 0 | L14: 1 | M14: =MMULT(B14:I21,B26:I33) -> 1 | N14: -2631113968 | O14: 0 | P14: 0 | Q14: 0 | R14: 0 | S14: 0 | T14: 0 | W14: NPK | Y14: 2.798444705e+72 | Z14: -2.798444706e+72 | AA14: 6.354732319e+62 | AB14: 5.656552118e+64 | AC14: 1.959858172e+71 | AD14: 3.451059376e+75 | AE14: 5.66880001e+76 | AF14: 6.013925546e+76 | AG14: =AF14/U6 -> 17.43788557
A15: 2 | B15: 0 | C15: =C3 -> 5.987105036e+24 | D15: =-C15 -> -5.987105036e+24 | E15: 0 | F15: 0 | G15: 0 | H15: 0 | I15: 0 | L15: 2 | M15: 0 | N15: 1 | O15: -2.861373309e-14 | P15: 0 | Q15: 0 | R15: 0 | S15: 0 | T15: 0 | AG15: =AVERAGE(AG12:AG14) -> 5.812673212
A16: 3 | B16: 0 | C16: 0 | D16: =D3 -> 2.09238865e+38 | E16: =-D16 -> -2.09238865e+38 | F16: 0 | G16: 0 | H16: 0 | I16: 0 | L16: 3 | M16: 0 | N16: 0 | O16: 1 | P16: -7936.906341 | Q16: 0 | R16: 0 | S16: 0 | T16: 0
A17: 4 | B17: 0 | C17: 0 | D17: 0 | E17: =E3 -> 2.636277361e+34 | F17: =-E17 -> -2.636277361e+34 | G17: 0 | H17: 0 | I17: 0 | L17: 4 | M17: 0 | N17: 0 | O17: 0 | P17: 1 | Q17: -90.00117193 | R17: 0 | S17: 0 | T17: 0
A18: 5 | B18: 0 | C18: 0 | D18: 0 | E18: 0 | F18: =F3 -> 2.929158926e+32 | G18: =-F18 -> -2.929158926e+32 | H18: 0 | I18: 0 | L18: 5 | M18: 0 | N18: 0 | O18: 0 | P18: 0 | Q18: 1 | R18: -2.771220526 | S18: 0 | T18: 0 | W18: AREA | Y18: =N4-Y12 -> -3.382088023e-18 | Z18: 6.764176048e-18 | AA18: -2.303972105e-27 | AB18: -2.73442742e-25 | AC18: -6.122115081e-25 | AD18: -1.601131224e-23 | AE18: -3.288477958e-22 | AF18: 3.381742278e-18 | AG18: =AF18/U4 -> 0.9998821144
A19: 6 | B19: 0 | C19: 0 | D19: 0 | E19: 0 | F19: 0 | G19: =G3 -> 1.056992361e+32 | H19: =-G19 -> -1.056992361e+32 | I19: 0 | L19: 6 | M19: 0 | N19: 0 | O19: 0 | P19: 0 | Q19: 0 | R19: 1 | S19: -14.92982759 | T19: 0 | W19: LABOR | Y19: -7.050643528e+66 | Z19: 2.798451757e+72 | AA19: -6.354609677e+62 | AB19: -5.658301665e+64 | AC19: -1.013645675e+65 | AD19: -2.424870303e+66 | AE19: -4.268839059e+67 | AF19: 2.798399434e+72 | AG19: =AF19/U5 -> 0.999983817
A20: 7 | B20: 0 | C20: 0 | D20: 0 | E20: 0 | F20: 0 | G20: 0 | H20: =H3 -> 7.079735881e+30 | I20: =-H20 -> -7.079735881e+30 | L20: 7 | M20: 0 | N20: 0 | O20: 0 | P20: 0 | Q20: 0 | R20: 0 | S20: 1 | T20: -17.42525677 | W20: NPK | Y20: -2.798444705e+72 | Z20: 2.798444706e+72 | AA20: -6.354593667e+62 | AB20: -5.656498904e+64 | AC20: -1.013157172e+65 | AD20: -2.73004944e+72 | AE20: -5.668775547e+76 | AF20: -5.669048552e+76 | AG20: =AF20/U6 -> -16.43788557
A21: 8 | B21: 0 | C21: 0 | D21: 0 | E21: 0 | F21: 0 | G21: 0 | H21: 0 | I21: =I3 -> 4.062916246e+29 | L21: 8 | M21: 0 | N21: 0 | O21: 0 | P21: 0 | Q21: 0 | R21: 0 | S21: 0 | T21: 1 | AG21: =AVERAGE(AG18:AG20) -> -4.812673212
B25: 1 | C25: 2 | D25: 3 | E25: 4 | F25: 5 | G25: 6 | H25: 7 | I25: 8 | M25: 1 | N25: 2 | O25: 3 | P25: 4 | Q25: 5 | R25: 6 | S25: 7 | T25: 8
A26: 1 | B26: =1/B3 -> 6.348095658e-35 | C26: 0 | D26: 0 | E26: 0 | F26: 0 | G26: 0 | H26: 0 | I26: 0 | L26: 1 | M26: =MINVERSE(M14:T21) -> 1 | N26: 2631113968 | O26: 7.528599282e-05 | P26: 0.5975378738 | Q26: 53.77910891 | R26: 149.0337705 | S26: 2225.048498 | T26: 38772.0414
A27: 2 | B27: 0 | C27: =1/C3 -> 1.670256316e-25 | D27: 0 | E27: 0 | F27: 0 | G27: 0 | H27: 0 | I27: 0 | L27: 2 | M27: 0 | N27: 1 | O27: 2.861373309e-14 | P27: 2.271045196e-10 | Q27: 2.043967291e-08 | R27: 5.664284112e-08 | S27: 8.456678521e-07 | T27: 1.473597946e-05
A28: 3 | B28: 0 | C28: 0 | D28: =1/D3 -> 4.779226841e-39 | E28: 0 | F28: 0 | G28: 0 | H28: 0 | I28: 0 | L28: 3 | M28: 0 | N28: 0 | O28: 1 | P28: 7936.906341 | Q28: 714330.8722 | R28: 1979568.375 | S28: 29554614.54 | T28: 514996747
A29: 4 | B29: 0 | C29: 0 | D29: 0 | E29: =1/E3 -> 3.793227582e-35 | F29: 0 | G29: 0 | H29: 0 | I29: 0 | L29: 4 | M29: 0 | N29: 0 | O29: 0 | P29: 1 | Q29: 90.00117193 | R29: 249.413095 | S29: 3723.694507 | T29: 64886.3329
A30: 5 | B30: 0 | C30: 0 | D30: 0 | E30: 0 | F30: =1/F3 -> 3.413949278e-33 | G30: 0 | H30: 0 | I30: 0 | L30: 5 | M30: 0 | N30: 0 | O30: 0 | P30: 0 | Q30: 1 | R30: 2.771220526 | S30: 41.37384466 | T30: 720.9498666
A31: 6 | B31: 0 | C31: 0 | D31: 0 | E31: 0 | F31: 0 | G31: =1/G3 -> 9.460806314e-33 | H31: 0 | I31: 0 | L31: 6 | M31: 0 | N31: 0 | O31: 0 | P31: 0 | Q31: 0 | R31: 1 | S31: 14.92982759 | T31: 260.1560792
A32: 7 | B32: 0 | C32: 0 | D32: 0 | E32: 0 | F32: 0 | G32: 0 | H32: =1/H3 -> 1.412482071e-31 | I32: 0 | L32: 7 | M32: 0 | N32: 0 | O32: 0 | P32: 0 | Q32: 0 | R32: 0 | S32: 1 | T32: 17.42525677
A33: 8 | B33: 0 | C33: 0 | D33: 0 | E33: 0 | F33: 0 | G33: 0 | H33: 0 | I33: =1/I3 -> 2.461286277e-30 | L33: 8 | M33: 0 | N33: 0 | O33: 0 | P33: 0 | Q33: 0 | R33: 0 | S33: 0 | T33: 1
A37: INF | B37: POST
A38: 1 | B38: 500
A39: N | B39: πI | C39: πII
A40: 0.1 | B40: 1.012838375 | C40: -0.01283837458
A41: 0.2 | B41: 1.025298747 | C41: -0.02529874667
A42: 0.3 | B42: 1.037368273 | C42: -0.03736827333
A43: 0.4 | B43: 1.049034991 | C43: -0.04903499088
A44: 0.5 | B44: 1.060287826 | C44: -0.06028782591
A45: 0.6 | B45: 1.071116604 | C45: -0.07111660444
A46: 0.7 | B46: 1.08151206 | C46: -0.08151205982
A47: 0.8 | B47: 1.09146584 | C47: -0.09146584002
A48: 0.9 | B48: 1.100970515 | C48: -0.1009705146
A49: 1 | B49: 1.110019581 | C49: -0.1100195815
A50: 1.1 | B50: 1.118607474 | C50: -0.1186074745
A51: 1.2 | B51: 1.12672957 | C51: -0.1267295702
A52: 1.3 | B52: 1.134382195 | C52: -0.1343821952
A53: 1.4 | B53: 1.141562633 | C53: -0.1415626333
A54: 1.5 | B54: 1.148269131 | C54: -0.1482691314
A55: 1.6 | B55: 1.154500905 | C55: -0.1545009051
A56: 1.7 | B56: 1.160258142 | C56: -0.1602581415
A57: 1.8 | B57: 1.165542001 | C57: -0.165542001
A58: 1.9 | B58: 1.170354615 | C58: -0.1703546153
A59: 2 | B59: 1.174699083 | C59: -0.1746990826
A60: 2.1 | B60: 1.178579459 | C60: -0.1785794588
A61: 2.2 | B61: 1.182000744 | C61: -0.1820007441
A62: 2.3 | B62: 1.184968865 | C62: -0.1849688653
A63: 2.4 | B63: 1.187490653 | C63: -0.187490653
A64: 2.5 | B64: 1.189573813 | C64: -0.1895738134
A65: 2.6 | B65: 1.191226895 | C65: -0.1912268953
A66: 2.7 | B66: 1.192459252 | C66: -0.1924592519
A67: 2.8 | B67: 1.193280997 | C67: -0.1932809974
A68: 2.9 | B68: 1.193702959 | C68: -0.1937029594
A69: 3 | B69: 1.193736627 | C69: -0.193736627
A70: 3.1 | B70: 1.193394095 | C70: -0.1933940948
A71: 3.2 | B71: 1.192688004 | C71: -0.192688004
A72: 3.3 | B72: 1.191631481 | C72: -0.1916314813
A73: 3.4 | B73: 1.190238075 | C73: -0.1902380751
A74: 3.5 | B74: 1.188521691 | C74: -0.1885216912
A75: 3.6 | B75: 1.186496528 | C75: -0.1864965277
A76: 3.7 | B76: 1.18417701 | C76: -0.1841770104
A77: 3.8 | B77: 1.181577728 | C77: -0.1815777282
A78: 3.9 | B78: 1.178713371 | C78: -0.178713371
A79: 4 | B79: 1.175598669 | C79: -0.1755986691
A80: 4.1 | B80: 1.172248335 | C80: -0.1722483352
A81: 4.2 | B81: 1.16867701 | C81: -0.1686770095
A82: 4.3 | B82: 1.164899208 | C82: -0.1648992082
A83: 4.4 | B83: 1.160929275 | C83: -0.1609292755
A84: 4.5 | B84: 1.15678134 | C84: -0.1567813398
A85: 4.6 | B85: 1.152469274 | C85: -0.1524692741
A86: 4.7 | B86: 1.14800666 | C86: -0.1480066601
A87: 4.8 | B87: 1.143406757 | C87: -0.1434067569
A88: 4.9 | B88: 1.138682474 | C88: -0.1386824742
A89: 5 | B89: 1.133846349 | C89: -0.1338463485
A90: 5.1 | B90: 1.128910525 | C90: -0.1289105249
A91: 5.2 | B91: 1.123886741 | C91: -0.123886741
A92: 5.3 | B92: 1.118786316 | C92: -0.1187863158
A93: 5.4 | B93: 1.113620141 | C93: -0.1136201413
A94: 5.5 | B94: 1.108398677 | C94: -0.1083986771
A95: 5.6 | B95: 1.103131948 | C95: -0.1031319484
A96: 5.7 | B96: 1.097829546 | C96: -0.09782954602
A97: 5.8 | B97: 1.092500629 | C97: -0.09250062938
A98: 5.9 | B98: 1.087153931 | C98: -0.08715393084
A99: 6 | B99: 1.081797762 | C99: -0.08179776237
A100: 6.1 | B100: 1.076440024 | C100: -0.07644002355
A101: 6.2 | B101: 1.071088211 | C101: -0.07108821091
A102: 6.3 | B102: 1.065749428 | C102: -0.06574942834
A103: 6.4 | B103: 1.060430398 | C103: -0.06043039844
A104: 6.5 | B104: 1.055137474 | C104: -0.05513747444
A105: 6.6 | B105: 1.049876653 | C105: -0.04987665274
A106: 6.7 | B106: 1.044653586 | C106: -0.04465358573
A107: 6.8 | B107: 1.039473595 | C107: -0.03947359488
A108: 6.9 | B108: 1.034341684 | C108: -0.03434168384
A109: 7 | B109: 1.029262552 | C109: -0.02926255156
A110: 7.1 | B110: 1.024240605 | C110: -0.02424060534
A111: 7.2 | B111: 1.019279974 | C111: -0.01927997364
A112: 7.3 | B112: 1.014384519 | C112: -0.01438451859
A113: 7.4 | B113: 1.009557848 | C113: -0.009557848327
A114: 7.5 | B114: 1.004803329 | C114: -0.004803328833
A115: 7.6 | B115: 1.000124095 | C115: -0.0001240954891
A116: 7.7 | B116: 0.9955230642 | C116: 0.004476935817
A117: 7.8 | B117: 0.991002942 | C117: 0.008997057999
A118: 7.9 | B118: 0.9865662375 | C118: 0.01343376251
A119: 8 | B119: 0.9822152705 | C119: 0.0177847295
A120: 8.1 | B120: 0.9779521815 | C120: 0.02204781846
A121: 8.2 | B121: 0.9737789408 | C121: 0.02622105921
A122: 8.3 | B122: 0.9696973566 | C122: 0.03030264341
A123: 8.4 | B123: 0.9657090837 | C123: 0.03429091634
A124: 8.5 | B124: 0.9618156307 | C124: 0.03818436927
A125: 8.6 | B125: 0.958018368 | C125: 0.04198163199
A126: 8.7 | B126: 0.9543185341 | C126: 0.04568146589
A127: 8.8 | B127: 0.9507172427 | C127: 0.04928275728
A128: 8.9 | B128: 0.9472154889 | C128: 0.05278451108
A129: 9 | B129: 0.9438141552 | C129: 0.05618584482
A130: 9.1 | B130: 0.9405140171 | C130: 0.05948598291
A131: 9.2 | B131: 0.9373157488 | C131: 0.06268425124
A132: 9.3 | B132: 0.934219928 | C132: 0.06578007202
A133: 9.4 | B133: 0.9312270412 | C133: 0.06877295885
A134: 9.5 | B134: 0.928337488 | C134: 0.07166251202
A135: 9.6 | B135: 0.9255515859 | C135: 0.0744484141
A136: 9.7 | B136: 0.9228695744 | C136: 0.07713042564
A137: 9.8 | B137: 0.9202916189 | C137: 0.0797083811
A138: 9.9 | B138: 0.917817815 | C138: 0.08218218503
A139: 10 | B139: 0.9154481917 | C139: 0.08455180826
A140: 10.1 | B140: 0.9131827156 | C140: 0.08681728444
A141: 10.2 | B141: 0.9110212934 | C141: 0.08897870658
A142: 10.3 | B142: 0.9089637762 | C142: 0.0910362238
A143: 10.4 | B143: 0.9070099618 | C143: 0.09299003823
A144: 10.5 | B144: 0.905159598 | C144: 0.09484040197
A145: 10.6 | B145: 0.9034123858 | C145: 0.09658761423
A146: 10.7 | B146: 0.9017679814 | C146: 0.09823201856
A147: 10.8 | B147: 0.9002259998 | C147: 0.09977400021
A148: 10.9 | B148: 0.8987860165 | C148: 0.1012139835
A149: 11 | B149: 0.8974475705 | C149: 0.1025524295
A150: 11.1 | B150: 0.8962101665 | C150: 0.1037898335
A151: 11.2 | B151: 0.8950732772 | C151: 0.1049267228
A152: 11.3 | B152: 0.8940363453 | C152: 0.1059636547
A153: 11.4 | B153: 0.8930987861 | C153: 0.1069012139
A154: 11.5 | B154: 0.8922599889 | C154: 0.1077400111
A155: 11.6 | B155: 0.8915193193 | C155: 0.1084806807
A156: 11.7 | B156: 0.8908761211 | C156: 0.1091238789
A157: 11.8 | B157: 0.8903297181 | C157: 0.1096702819
A158: 11.9 | B158: 0.8898794155 | C158: 0.1101205845
A159: 12 | B159: 0.8895245022 | C159: 0.1104754978
A160: 12.1 | B160: 0.8892642516 | C160: 0.1107357484
A161: 12.2 | B161: 0.8890979239 | C161: 0.1109020761
A162: 12.3 | B162: 0.889024767 | C162: 0.110975233
A163: 12.4 | B163: 0.8890440182 | C163: 0.1109559818
A164: 12.5 | B164: 0.8891549057 | C164: 0.1108450943
A165: 12.6 | B165: 0.8893566494 | C165: 0.1106433506
A166: 12.7 | B166: 0.8896484625 | C166: 0.1103515375
A167: 12.8 | B167: 0.8900295527 | C167: 0.1099704473
A168: 12.9 | B168: 0.8904991231 | C168: 0.1095008769
A169: 13 | B169: 0.8910563735 | C169: 0.1089436265
A170: 13.1 | B170: 0.8917005015 | C170: 0.1082994985
A171: 13.2 | B171: 0.892430703 | C171: 0.107569297
A172: 13.3 | B172: 0.8932461737 | C172: 0.1067538263
A173: 13.4 | B173: 0.8941461097 | C173: 0.1058538903
A174: 13.5 | B174: 0.8951297083 | C174: 0.1048702917
A175: 13.6 | B175: 0.8961961691 | C175: 0.1038038309
A176: 13.7 | B176: 0.8973446942 | C176: 0.1026553058
A177: 13.8 | B177: 0.8985744896 | C177: 0.1014255104
A178: 13.9 | B178: 0.8998847653 | C178: 0.1001152347
A179: 14 | B179: 0.9012747363 | C179: 0.09872526374
A180: 14.1 | B180: 0.9027436229 | C180: 0.09725637705
A181: 14.2 | B181: 0.9042906518 | C181: 0.09570934821
A182: 14.3 | B182: 0.9059150558 | C182: 0.0940849442
A183: 14.4 | B183: 0.907616075 | C183: 0.09238392495
A184: 14.5 | B184: 0.9093929571 | C184: 0.09060704289
A185: 14.6 | B185: 0.9112449575 | C185: 0.08875504248
A186: 14.7 | B186: 0.9131713402 | C186: 0.08682865982
A187: 14.8 | B187: 0.9151713777 | C187: 0.08482862231
A188: 14.9 | B188: 0.9172443517 | C188: 0.08275564826
A189: 15 | B189: 0.9193895534 | C189: 0.08061044661
A190: 15.1 | B190: 0.9216062834 | C190: 0.07839371659
A191: 15.2 | B191: 0.9238938525 | C191: 0.0761061475
A192: 15.3 | B192: 0.9262515816 | C192: 0.07374841845
A193: 15.4 | B193: 0.9286788019 | C193: 0.07132119811
A194: 15.5 | B194: 0.9311748555 | C194: 0.06882514455
A195: 15.6 | B195: 0.933739095 | C195: 0.06626090502
A196: 15.7 | B196: 0.9363708842 | C196: 0.06362911582
A197: 15.8 | B197: 0.9390695978 | C197: 0.06093040216
A198: 15.9 | B198: 0.941834622 | C198: 0.05816537799
A199: 16 | B199: 0.944665354 | C199: 0.05533464595
A200: 16.1 | B200: 0.9475612028 | C200: 0.05243879724
A201: 16.2 | B201: 0.9505215884 | C201: 0.04947841155
A202: 16.3 | B202: 0.953545943 | C202: 0.04645405701
A203: 16.4 | B203: 0.9566337099 | C203: 0.04336629015
A204: 16.5 | B204: 0.9597843442 | C204: 0.04021565581
A205: 16.6 | B205: 0.9629973128 | C205: 0.03700268719
A206: 16.7 | B206: 0.9662720942 | C206: 0.03372790579
A207: 16.8 | B207: 0.9696081786 | C207: 0.03039182144
... 332 more rows

Sheet Farm5
A1: YEARDUM | B1: 1 | C1: 2 | D1: 3 | E1: 4 | F1: 5 | G1: 6 | H1: 7 | I1: 8 | J1: MULT | M1: 1 | N1: 2 | O1: 3 | P1: 4 | Q1: 5 | R1: 6 | S1: 7 | T1: 8 | X1: 1 | Y1: 2 | Z1: 3 | AA1: 4 | AB1: 5 | AC1: 6 | AD1: 7 | AE1: 8
A2: FMERCODE | B2: 1 | C2: 1 | D2: 1 | E2: 1 | F2: 1 | G2: 1 | H2: 1 | I2: 1 | J2: 500 | K2: =J2/10 -> 50
A3: PROD | B3: =B7:I10^K2 -> 1.1900676e+47 | C3: 1.464790684e+48 | D3: 4.464315935e+49 | E3: 9.347725675e+51 | F3: 1.427247693e+45 | G3: 3.297939762e+47 | H3: 1.546647583e+48 | I3: 1.407517067e+52
A4: AREA | B4: 6.533186235e+27 | C4: 6.533186235e+27 | D4: 6.533186235e+27 | E4: 6.533186235e+27 | F4: 6.533186235e+27 | G4: 3.749262535e+26 | H4: 3.749262535e+26 | I4: 3.69900307e+24 | J4: =AG15 -> 0.20282269 | L4: AREA | M4: =MMULT(B4:I6,B26:I33) -> 5.489760609e-20 | N4: 4.460150044e-21 | O4: 1.46342381e-22 | P4: 6.989065e-25 | Q4: 4.577471919e-18 | R4: 1.136849914e-21 | S4: 2.424122066e-22 | T4: 2.628034257e-28 | U4: =SUM(N4:T4) -> 4.583458373e-18 | W4: AREA | X4: =MMULT(M4:T6,M26:T33) -> 5.489760609e-20 | Y4: 8.920300088e-21 | Z4: 4.39027143e-22 | AA4: 2.795626e-24 | AB4: 2.28873596e-17 | AC4: 1.001863582e-19 | AD4: 2.160529913e-20 | AE4: 2.37435719e-24
A5: LABOR | B5: 4.97929223e+105 | C5: 1.236458081e+109 | D5: 1.236458081e+109 | E5: 4.067993218e+110 | F5: 1.170577337e+108 | G5: 5.802635026e+112 | H5: 3.259010575e+108 | I5: 4.065611775e+117 | J5: =AG21 -> 0.79717731 | L5: LABOR | M5: 4.184041501e+58 | N5: 8.441192957e+60 | O5: 2.769647352e+59 | P5: 4.351853445e+58 | Q5: 8.201641125e+62 | R5: 1.759472715e+65 | S5: 2.107144905e+60 | T5: 2.888499096e+65 | U5: =SUM(N5:T5) -> 4.65628214e+65 | W5: LABOR | X5: 4.184041501e+58 | Y5: 8.444592277e+60 | Z5: 5.540410059e+59 | AA5: 4.616454073e+58 | AB5: 3.031737534e+65 | AC5: 1.77259315e+65 | AD5: 3.779937585e+64 | AE5: 2.888540631e+65
A6: NPK | B6: 5.964728332e+108 | C6: 3.030458711e+115 | D6: 8.333338113e+114 | E6: 8.371912493e+116 | F6: 1.774478315e+117 | G6: 2.026275602e+108 | H6: 9.57785029e+120 | I6: 6.051710884e+110 | L6: NPK | M6: 5.012092027e+61 | N6: 2.068868094e+67 | O6: 1.866655101e+65 | P6: 8.956095615e+64 | Q6: 1.243286869e+72 | R6: 6.144064927e+60 | S6: 6.192652027e+72 | T6: 4.299564833e+58 | U6: 7.43595986e+72 | W6: NPK | X6: 5.012092027e+61 | Y6: 2.068868501e+67 | Z6: 8.654837999e+65 | AA6: 9.369436063e+64 | AB6: 1.856935912e+72 | AC6: 8.03625199e+69 | AD6: 6.194365609e+72 | AE6: 6.806667445e+68
A7: PROD | B7: 8.74 | C7: 9.19 | D7: 9.84 | E7: 10.95 | F7: 8 | G7: 8.92 | H7: 9.2 | I7: 11.04
A8: AREA | B8: 3.6 | C8: 3.6 | D8: 3.6 | E8: 3.6 | F8: 3.6 | G8: 3.4 | H8: 3.4 | I8: 3.1
A9: LABOR | B9: 130 | C9: 152 | D9: 152 | E9: 163 | F9: 145 | G9: 180 | H9: 148 | I9: 225
A10: NPK | B10: 149.8 | C10: 204 | D10: 198.8 | E10: 218 | F10: 221.3 | G10: 146.6 | H10: 262.8 | I10: 164.3
W12: AREA | Y12: =Y4-X4 -> -4.5977306e-20 | Z12: -8.481272945e-21 | AA12: -4.36231517e-22 | AB12: 2.28873568e-17 | AC12: -2.278717324e-17 | AD12: -7.858105907e-20 | AE12: -2.160292477e-20 | AF12: =SUM(Y12:AE12) -> -5.489523173e-20 | AG12: =AF12/U4 -> -0.01197681472
B13: 1 | C13: 2 | D13: 3 | E13: 4 | F13: 5 | G13: 6 | H13: 7 | I13: 8 | M13: 1 | N13: 2 | O13: 3 | P13: 4 | Q13: 5 | R13: 6 | S13: 7 | T13: 8 | W13: LABOR | Y13: 8.402751862e+60 | Z13: -7.890551272e+60 | AA13: -5.078764651e+59 | AB13: 3.031737072e+65 | AC13: -1.259144384e+65 | AD13: -1.394599391e+65 | AE13: 2.510546873e+65 | AF13: =SUM(Y13:AE13) -> 2.888540213e+65 | AG13: =AF13/U5 -> 0.6203533477
A14: 1 | B14: =B3 -> 1.1900676e+47 | C14: =-B14 -> -1.1900676e+47 | D14: 0 | E14: 0 | F14: 0 | G14: 0 | H14: 0 | I14: 0 | L14: 1 | M14: =MMULT(B14:I21,B26:I33) -> 1 | N14: -0.08124489139 | O14: 0 | P14: 0 | Q14: 0 | R14: 0 | S14: 0 | T14: 0 | W14: NPK | Y14: 2.068863489e+67 | Z14: -1.982320121e+67 | AA14: -7.717894392e+65 | AB14: 1.856935818e+72 | AC14: -1.84889966e+72 | AD14: 6.186329357e+72 | AE14: -6.193684942e+72 | AF14: 6.806666944e+68 | AG14: =AF14/U6 -> 9.153716631e-05
A15: 2 | B15: 0 | C15: =C3 -> 1.464790684e+48 | D15: =-C15 -> -1.464790684e+48 | E15: 0 | F15: 0 | G15: 0 | H15: 0 | I15: 0 | L15: 2 | M15: 0 | N15: 1 | O15: -0.03281108922 | P15: 0 | Q15: 0 | R15: 0 | S15: 0 | T15: 0 | AG15: =AVERAGE(AG12:AG14) -> 0.20282269
A16: 3 | B16: 0 | C16: 0 | D16: =D3 -> 4.464315935e+49 | E16: =-D16 -> -4.464315935e+49 | F16: 0 | G16: 0 | H16: 0 | I16: 0 | L16: 3 | M16: 0 | N16: 0 | O16: 1 | P16: -0.004775831138 | Q16: 0 | R16: 0 | S16: 0 | T16: 0
A17: 4 | B17: 0 | C17: 0 | D17: 0 | E17: =E3 -> 9.347725675e+51 | F17: =-E17 -> -9.347725675e+51 | G17: 0 | H17: 0 | I17: 0 | L17: 4 | M17: 0 | N17: 0 | O17: 0 | P17: 1 | Q17: -6549476.817 | R17: 0 | S17: 0 | T17: 0
A18: 5 | B18: 0 | C18: 0 | D18: 0 | E18: 0 | F18: =F3 -> 1.427247693e+45 | G18: =-F18 -> -1.427247693e+45 | H18: 0 | I18: 0 | L18: 5 | M18: 0 | N18: 0 | O18: 0 | P18: 0 | Q18: 1 | R18: -0.004327694851 | S18: 0 | T18: 0 | W18: AREA | Y18: =N4-Y12 -> 5.043745604e-20 | Z18: 8.627615326e-21 | AA18: 4.369304235e-22 | AB18: -1.830988488e-17 | AC18: 2.278831009e-17 | AD18: 7.882347128e-20 | AE18: 2.160292503e-20 | AF18: 4.638353605e-18 | AG18: =AF18/U4 -> 1.011976815
A19: 6 | B19: 0 | C19: 0 | D19: 0 | E19: 0 | F19: 0 | G19: =G3 -> 3.297939762e+47 | H19: =-G19 -> -3.297939762e+47 | I19: 0 | L19: 6 | M19: 0 | N19: 0 | O19: 0 | P19: 0 | Q19: 0 | R19: 1 | S19: -0.2132314949 | T19: 0 | W19: LABOR | Y19: 3.844109504e+58 | Z19: 8.167516007e+60 | AA19: 5.513949996e+59 | AB19: -3.023535431e+65 | AC19: 3.018617099e+65 | AD19: 1.394620463e+65 | AE19: 3.779522228e+64 | AF19: 1.767741927e+65 | AG19: =AF19/U5 -> 0.3796466523
A20: 7 | B20: 0 | C20: 0 | D20: 0 | E20: 0 | F20: 0 | G20: 0 | H20: =H3 -> 1.546647583e+48 | I20: =-H20 -> -1.546647583e+48 | L20: 7 | M20: 0 | N20: 0 | O20: 0 | P20: 0 | Q20: 0 | R20: 0 | S20: 1 | T20: -0.0001098848191 | W20: NPK | Y20: 4.604885154e+61 | Z20: 2.000986672e+67 | AA20: 8.613503954e+65 | AB20: -6.136489491e+71 | AC20: 1.84889966e+72 | AD20: 6.322669965e+69 | AE20: 6.193684942e+72 | AF20: 7.435279194e+72 | AG20: =AF20/U6 -> 0.9999084628
A21: 8 | B21: 0 | C21: 0 | D21: 0 | E21: 0 | F21: 0 | G21: 0 | H21: 0 | I21: =I3 -> 1.407517067e+52 | L21: 8 | M21: 0 | N21: 0 | O21: 0 | P21: 0 | Q21: 0 | R21: 0 | S21: 0 | T21: 1 | AG21: =AVERAGE(AG18:AG20) -> 0.79717731
B25: 1 | C25: 2 | D25: 3 | E25: 4 | F25: 5 | G25: 6 | H25: 7 | I25: 8 | M25: 1 | N25: 2 | O25: 3 | P25: 4 | Q25: 5 | R25: 6 | S25: 7 | T25: 8
A26: 1 | B26: =1/B3 -> 8.402884001e-48 | C26: 0 | D26: 0 | E26: 0 | F26: 0 | G26: 0 | H26: 0 | I26: 0 | L26: 1 | M26: =MINVERSE(M14:T21) -> 1 | N26: 0.08124489139 | O26: 0.00266573338 | P26: 1.273109248e-05 | Q26: 83.38199505 | R26: 0.3608518307 | S26: 0.07694497528 | T26: 8.45508469e-06
A27: 2 | B27: 0 | C27: =1/C3 -> 6.82691398e-49 | D27: 0 | E27: 0 | F27: 0 | G27: 0 | H27: 0 | I27: 0 | L27: 2 | M27: 0 | N27: 1 | O27: 0.03281108922 | P27: 0.0001567002216 | Q27: 1026.304468 | R27: 4.441532563 | S27: 0.9470746279 | T27: 0.0001040691242
A28: 3 | B28: 0 | C28: 0 | D28: =1/D3 -> 2.239984837e-50 | E28: 0 | F28: 0 | G28: 0 | H28: 0 | I28: 0 | L28: 3 | M28: 0 | N28: 0 | O28: 1 | P28: 0.004775831138 | Q28: 31279.19532 | R28: 135.3668125 | S28: 28.86446779 | T28: 0.003171766822
A29: 4 | B29: 0 | C29: 0 | D29: 0 | E29: =1/E3 -> 1.069778933e-52 | F29: 0 | G29: 0 | H29: 0 | I29: 0 | L29: 4 | M29: 0 | N29: 0 | O29: 0 | P29: 1 | Q29: 6549476.817 | R29: 28344.1371 | S29: 6043.862724 | T29: 0.6641287622
A30: 5 | B30: 0 | C30: 0 | D30: 0 | E30: 0 | F30: =1/F3 -> 7.006492322e-46 | G30: 0 | H30: 0 | I30: 0 | L30: 5 | M30: 0 | N30: 0 | O30: 0 | P30: 0 | Q30: 1 | R30: 0.004327694851 | S30: 0.0009228008424 | T30: 1.014018037e-07
A31: 6 | B31: 0 | C31: 0 | D31: 0 | E31: 0 | F31: 0 | G31: =1/G3 -> 3.032196075e-48 | H31: 0 | I31: 0 | L31: 6 | M31: 0 | N31: 0 | O31: 0 | P31: 0 | Q31: 0 | R31: 1 | S31: 0.2132314949 | T31: 2.343090424e-05
A32: 7 | B32: 0 | C32: 0 | D32: 0 | E32: 0 | F32: 0 | G32: 0 | H32: =1/H3 -> 6.465597017e-49 | I32: 0 | L32: 7 | M32: 0 | N32: 0 | O32: 0 | P32: 0 | Q32: 0 | R32: 0 | S32: 1 | T32: 0.0001098848191
A33: 8 | B33: 0 | C33: 0 | D33: 0 | E33: 0 | F33: 0 | G33: 0 | H33: 0 | I33: =1/I3 -> 7.104709587e-53 | L33: 8 | M33: 0 | N33: 0 | O33: 0 | P33: 0 | Q33: 0 | R33: 0 | S33: 0 | T33: 1
A37: INF | B37: POST
A38: 1 | B38: 500
A39: N | B39: PI-I | C39: PI-II
A40: 0.1 | B40: 0.9821549383 | C40: 0.01784506172
A41: 0.2 | B41: 0.964559023 | C41: 0.03544097696
A42: 0.3 | B42: 0.9472106238 | C42: 0.05278937619
A43: 0.4 | B43: 0.9301081378 | C43: 0.06989186216
A44: 0.5 | B44: 0.913249987 | C44: 0.08675001296
A45: 0.6 | B45: 0.896634615 | C45: 0.103365385
A46: 0.7 | B46: 0.8802604837 | C46: 0.1197395163
A47: 0.8 | B47: 0.8641260711 | C47: 0.1358739289
A48: 0.9 | B48: 0.8482298675 | C48: 0.1517701325
A49: 1 | B49: 0.8325703731 | C49: 0.1674296269
A50: 1.1 | B50: 0.817146095 | C50: 0.182853905
A51: 1.2 | B51: 0.8019555444 | C51: 0.1980444556
A52: 1.3 | B52: 0.786997234 | C52: 0.213002766
A53: 1.4 | B53: 0.772269675 | C53: 0.227730325
A54: 1.5 | B54: 0.757771375 | C54: 0.242228625
A55: 1.6 | B55: 0.7435008354 | C55: 0.2564991646
A56: 1.7 | B56: 0.7294565489 | C56: 0.2705434511
A57: 1.8 | B57: 0.7156369972 | C57: 0.2843630028
A58: 1.9 | B58: 0.7020406493 | C58: 0.2979593507
A59: 2 | B59: 0.6886659591 | C59: 0.3113340409
A60: 2.1 | B60: 0.6755113637 | C60: 0.3244886363
A61: 2.2 | B61: 0.6625752817 | C61: 0.3374247183
A62: 2.3 | B62: 0.6498561117 | C62: 0.3501438883
A63: 2.4 | B63: 0.6373522307 | C63: 0.3626477693
A64: 2.5 | B64: 0.6250619931 | C64: 0.3749380069
A65: 2.6 | B65: 0.6129837292 | C65: 0.3870162708
A66: 2.7 | B66: 0.6011157449 | C66: 0.3988842551
A67: 2.8 | B67: 0.5894563203 | C67: 0.4105436797
A68: 2.9 | B68: 0.5780037094 | C68: 0.4219962906
A69: 3 | B69: 0.5667561397 | C69: 0.4332438603
A70: 3.1 | B70: 0.5557118117 | C70: 0.4442881883
A71: 3.2 | B71: 0.5448688988 | C71: 0.4551311012
A72: 3.3 | B72: 0.5342255473 | C72: 0.4657744527
A73: 3.4 | B73: 0.5237798768 | C73: 0.4762201232
A74: 3.5 | B74: 0.5135299799 | C74: 0.4864700201
A75: 3.6 | B75: 0.5034739233 | C75: 0.4965260767
A76: 3.7 | B76: 0.4936097479 | C76: 0.5063902521
A77: 3.8 | B77: 0.4839354694 | C77: 0.5160645306
A78: 3.9 | B78: 0.4744490795 | C78: 0.5255509205
A79: 4 | B79: 0.4651485462 | C79: 0.5348514538
A80: 4.1 | B80: 0.4560318152 | C80: 0.5439681848
A81: 4.2 | B81: 0.4470968109 | C81: 0.5529031891
A82: 4.3 | B82: 0.4383414372 | C82: 0.5616585628
A83: 4.4 | B83: 0.4297635791 | C83: 0.5702364209
A84: 4.5 | B84: 0.4213611037 | C84: 0.5786388963
A85: 4.6 | B85: 0.4131318615 | C85: 0.5868681385
A86: 4.7 | B86: 0.4050736881 | C86: 0.5949263119
A87: 4.8 | B87: 0.3971844049 | C87: 0.6028155951
A88: 4.9 | B88: 0.3894618215 | C88: 0.6105381785
A89: 5 | B89: 0.381903736 | C89: 0.618096264
A90: 5.1 | B90: 0.3745079375 | C90: 0.6254920625
A91: 5.2 | B91: 0.367272207 | C91: 0.632727793
A92: 5.3 | B92: 0.3601943189 | C92: 0.6398056811
A93: 5.4 | B93: 0.3532720426 | C93: 0.6467279574
A94: 5.5 | B94: 0.3465031439 | C94: 0.6534968561
A95: 5.6 | B95: 0.3398853865 | C95: 0.6601146135
A96: 5.7 | B96: 0.3334165334 | C96: 0.6665834666
A97: 5.8 | B97: 0.3270943482 | C97: 0.6729056518
A98: 5.9 | B98: 0.3209165966 | C98: 0.6790834034
A99: 6 | B99: 0.3148810478 | C99: 0.6851189522
A100: 6.1 | B100: 0.3089854755 | C100: 0.6910145245
A101: 6.2 | B101: 0.3032276596 | C101: 0.6967723404
A102: 6.3 | B102: 0.2976053872 | C102: 0.7023946128
A103: 6.4 | B103: 0.2921164536 | C103: 0.7078835464
A104: 6.5 | B104: 0.2867586641 | C104: 0.7132413359
A105: 6.6 | B105: 0.2815298343 | C105: 0.7184701657
A106: 6.7 | B106: 0.2764277917 | C106: 0.7235722083
A107: 6.8 | B107: 0.2714503766 | C107: 0.7285496234
A108: 6.9 | B108: 0.266595443 | C108: 0.733404557
A109: 7 | B109: 0.2618608596 | C109: 0.7381391404
A110: 7.1 | B110: 0.2572445106 | C110: 0.7427554894
A111: 7.2 | B111: 0.2527442967 | C111: 0.7472557033
A112: 7.3 | B112: 0.2483581356 | C112: 0.7516418644
A113: 7.4 | B113: 0.2440839628 | C113: 0.7559160372
A114: 7.5 | B114: 0.2399197328 | C114: 0.7600802672
A115: 7.6 | B115: 0.2358634189 | C115: 0.7641365811
A116: 7.7 | B116: 0.2319130144 | C116: 0.7680869856
A117: 7.8 | B117: 0.2280665331 | C117: 0.7719334669
A118: 7.9 | B118: 0.2243220095 | C118: 0.7756779905
A119: 8 | B119: 0.2206774995 | C119: 0.7793225005
A120: 8.1 | B120: 0.217131081 | C120: 0.782868919
A121: 8.2 | B121: 0.2136808538 | C121: 0.7863191462
A122: 8.3 | B122: 0.2103249406 | C122: 0.7896750594
A123: 8.4 | B123: 0.2070614866 | C123: 0.7929385134
A124: 8.5 | B124: 0.2038886603 | C124: 0.7961113397
A125: 8.6 | B125: 0.2008046538 | C125: 0.7991953462
A126: 8.7 | B126: 0.1978076826 | C126: 0.8021923174
A127: 8.8 | B127: 0.1948959859 | C127: 0.8051040141
A128: 8.9 | B128: 0.192067827 | C128: 0.807932173
A129: 9 | B129: 0.1893214934 | C129: 0.8106785066
A130: 9.1 | B130: 0.1866552964 | C130: 0.8133447036
A131: 9.2 | B131: 0.184067572 | C131: 0.815932428
A132: 9.3 | B132: 0.1815566801 | C132: 0.8184433199
A133: 9.4 | B133: 0.179121005 | C133: 0.820878995
A134: 9.5 | B134: 0.1767589556 | C134: 0.8232410444
A135: 9.6 | B135: 0.1744689646 | C135: 0.8255310354
A136: 9.7 | B136: 0.1722494894 | C136: 0.8277505106
A137: 9.8 | B137: 0.1700990112 | C137: 0.8299009888
A138: 9.9 | B138: 0.1680160357 | C138: 0.8319839643
A139: 10 | B139: 0.1659990923 | C139: 0.8340009077
A140: 10.1 | B140: 0.1640467344 | C140: 0.8359532656
A141: 10.2 | B141: 0.1621575393 | C141: 0.8378424607
A142: 10.3 | B142: 0.1603301078 | C142: 0.8396698922
A143: 10.4 | B143: 0.1585630642 | C143: 0.8414369358
A144: 10.5 | B144: 0.1568550563 | C144: 0.8431449437
A145: 10.6 | B145: 0.1552047548 | C145: 0.8447952452
A146: 10.7 | B146: 0.1536108536 | C146: 0.8463891464
A147: 10.8 | B147: 0.1520720692 | C147: 0.8479279308
A148: 10.9 | B148: 0.1505871409 | C148: 0.8494128591
A149: 11 | B149: 0.1491548302 | C149: 0.8508451698
A150: 11.1 | B150: 0.1477739208 | C150: 0.8522260792
A151: 11.2 | B151: 0.1464432183 | C151: 0.8535567817
A152: 11.3 | B152: 0.1451615501 | C152: 0.8548384499
A153: 11.4 | B153: 0.1439277651 | C153: 0.8560722349
A154: 11.5 | B154: 0.1427407333 | C154: 0.8572592667
A155: 11.6 | B155: 0.1415993457 | C155: 0.8584006543
A156: 11.7 | B156: 0.1405025142 | C156: 0.8594974858
A157: 11.8 | B157: 0.1394491711 | C157: 0.8605508289
A158: 11.9 | B158: 0.1384382688 | C158: 0.8615617312
A159: 12 | B159: 0.1374687801 | C159: 0.8625312199
A160: 12.1 | B160: 0.1365396971 | C160: 0.8634603029
A161: 12.2 | B161: 0.1356500316 | C161: 0.8643499684
A162: 12.3 | B162: 0.1347988145 | C162: 0.8652011855
A163: 12.4 | B163: 0.1339850959 | C163: 0.8660149041
A164: 12.5 | B164: 0.1332079442 | C164: 0.8667920558
A165: 12.6 | B165: 0.1324664466 | C165: 0.8675335534
A166: 12.7 | B166: 0.1317597083 | C166: 0.8682402917
A167: 12.8 | B167: 0.1310868524 | C167: 0.8689131476
A168: 12.9 | B168: 0.1304470196 | C168: 0.8695529804
A169: 13 | B169: 0.1298393682 | C169: 0.8701606318
A170: 13.1 | B170: 0.1292630733 | C170: 0.8707369267
A171: 13.2 | B171: 0.1287173272 | C171: 0.8712826728
A172: 13.3 | B172: 0.1282013385 | C172: 0.8717986615
A173: 13.4 | B173: 0.1277143324 | C173: 0.8722856676
A174: 13.5 | B174: 0.12725555 | C174: 0.87274445
A175: 13.6 | B175: 0.1268242484 | C175: 0.8731757516
A176: 13.7 | B176: 0.1264197001 | C176: 0.8735802999
A177: 13.8 | B177: 0.1260411931 | C177: 0.8739588069
A178: 13.9 | B178: 0.1256880303 | C178: 0.8743119697
A179: 14 | B179: 0.1253595296 | C179: 0.8746404704
A180: 14.1 | B180: 0.1250550234 | C180: 0.8749449766
A181: 14.2 | B181: 0.1247738584 | C181: 0.8752261416
A182: 14.3 | B182: 0.1245153955 | C182: 0.8754846045
A183: 14.4 | B183: 0.1242790095 | C183: 0.8757209905
A184: 14.5 | B184: 0.1240640885 | C184: 0.8759359115
A185: 14.6 | B185: 0.1238700345 | C185: 0.8761299655
A186: 14.7 | B186: 0.1236962622 | C186: 0.8763037378
A187: 14.8 | B187: 0.1235421993 | C187: 0.8764578007
A188: 14.9 | B188: 0.1234072866 | C188: 0.8765927134
A189: 15 | B189: 0.1232909767 | C189: 0.8767090233
A190: 15.1 | B190: 0.1231927351 | C190: 0.8768072649
A191: 15.2 | B191: 0.1231120388 | C191: 0.8768879612
A192: 15.3 | B192: 0.123048377 | C192: 0.876951623
A193: 15.4 | B193: 0.1230012503 | C193: 0.8769987497
A194: 15.5 | B194: 0.1229701706 | C194: 0.8770298294
A195: 15.6 | B195: 0.1229546611 | C195: 0.8770453389
A196: 15.7 | B196: 0.122954256 | C196: 0.877045744
A197: 15.8 | B197: 0.1229685002 | C197: 0.8770314998
A198: 15.9 | B198: 0.1229969491 | C198: 0.8770030509
A199: 16 | B199: 0.1230391685 | C199: 0.8769608315
A200: 16.1 | B200: 0.1230947343 | C200: 0.8769052657
A201: 16.2 | B201: 0.1231632326 | C201: 0.8768367674
A202: 16.3 | B202: 0.1232442588 | C202: 0.8767557412
A203: 16.4 | B203: 0.1233374184 | C203: 0.8766625816
A204: 16.5 | B204: 0.1234423259 | C204: 0.8765576741
A205: 16.6 | B205: 0.1235586053 | C205: 0.8764413947
A206: 16.7 | B206: 0.1236858894 | C206: 0.8763141106
A207: 16.8 | B207: 0.1238238199 | C207: 0.8761761801
... 332 more rows

Sheet Farm6
A1: YEARDUM | B1: 1 | C1: 2 | D1: 3 | E1: 4 | F1: 5 | G1: 6 | H1: 7 | I1: 8 | J1: MULT | M1: 1 | N1: 2 | O1: 3 | P1: 4 | Q1: 5 | R1: 6 | S1: 7 | T1: 8 | X1: 1 | Y1: 2 | Z1: 3 | AA1: 4 | AB1: 5 | AC1: 6 | AD1: 7 | AE1: 8
A2: FMERCODE | B2: 1 | C2: 1 | D2: 1 | E2: 1 | F2: 1 | G2: 1 | H2: 1 | I2: 1 | J2: 500 | K2: =J2/10 -> 50
A3: PROD | B3: =B7:I10^K2 -> 1.74137037e+13 | C3: 0.2180653753 | D3: 3.330014073e+11 | E3: 46890.43461 | F3: 4531374097 | G3: 232202417.7 | H3: 1.644631822 | I3: 1.74137037e+13
A4: AREA | B4: 8.881784197e-16 | C4: 8.881784197e-16 | D4: 8.881784197e-16 | E4: 8.881784197e-16 | F4: 8.881784197e-16 | G4: 8.881784197e-16 | H4: 8.881784197e-16 | I4: 8.881784197e-16 | J4: =AG15 -> 0.0003492340044 | L4: AREA | M4: =MMULT(B4:I6,B26:I33) -> 5.100456716e-29 | N4: 4.072991498e-15 | O4: 2.66719119e-27 | P4: 1.894156936e-20 | Q4: 1.960064212e-25 | R4: 3.825017966e-24 | S4: 5.400469624e-16 | T4: 5.100456716e-29 | U4: =SUM(N4:T4) -> 4.613057406e-15 | W4: AREA | X4: =MMULT(M4:T6,M26:T33) -> 5.100456716e-29 | Y4: 8.145982995e-15 | Z4: 8.001573569e-27 | AA4: 7.576627745e-20 | AB4: 9.800321059e-25 | AC4: 2.29501078e-23 | AD4: 3.780328737e-15 | AE4: 4.080365372e-28
A5: LABOR | B5: 3.749262535e+76 | C5: 3.330014073e+61 | D5: 7.888609052e+69 | E5: 7.178979877e+73 | F5: 2.570906033e+78 | G5: 5.802635026e+62 | H5: 1.606938044e+60 | I5: 3.574623872e+79 | J5: =AG21 -> 0.9996507707 | L5: LABOR | M5: 2.153052906e+63 | N5: 1.527071443e+62 | O5: 2.368941656e+58 | P5: 1.531011588e+69 | Q5: 5.673568277e+68 | R5: 2.498955473e+54 | S5: 9.770807198e+59 | T5: 2.052764842e+66 | U5: =SUM(N5:T5) -> 2.100421334e+69 | W5: LABOR | X5: 2.153052906e+63 | Y5: 1.719329595e+77 | Z5: 1.125900144e+65 | AA5: 8.01110575e+71 | AB5: 5.756466802e+68 | AC5: 1.123360592e+70 | AD5: 1.58605131e+78 | AE5: 2.202558964e+66
A6: NPK | B6: 1.291114435e+66 | C6: 1.291114435e+66 | D6: 6.834086655e+83 | E6: 3.69900307e+74 | F6: 5.523864291e+72 | G6: 4.299429239e+77 | H6: 3.663537994e+82 | I6: 6.840048788e+88 | L6: NPK | M6: 7.414358585e+52 | N6: 5.920767719e+66 | O6: 2.052269601e+72 | P6: 7.888609052e+69 | Q6: 1.21902632e+63 | R6: 1.851586767e+69 | S6: 2.227573336e+82 | T6: 3.927968976e+75 | U6: 2.227573729e+82 | W6: NPK | X6: 7.414358585e+52 | Y6: 1.184153544e+67 | Z6: 2.052269601e+72 | AA6: 1.457458587e+79 | AB6: 1.508170924e+74 | AC6: 2.943160982e+75 | AD6: 4.378149967e+83 | AE6: 3.928010325e+75
A7: PROD | B7: 1.84 | C7: 0.97 | D7: 1.7 | E7: 1.24 | F7: 1.56 | G7: 1.47 | H7: 1.01 | I7: 1.84
A8: AREA | B8: 0.5 | C8: 0.5 | D8: 0.5 | E8: 0.5 | F8: 0.5 | G8: 0.5 | H8: 0.5 | I8: 0.5
A9: LABOR | B9: 34 | C9: 17 | D9: 25 | E9: 30 | F9: 37 | G9: 18 | H9: 16 | I9: 39
A10: NPK | B10: 21 | C10: 21 | D10: 47.5 | E10: 31 | F10: 28.5 | G10: 35.7 | H10: 44.8 | I10: 59.8
W12: AREA | Y12: =Y4-X4 -> 8.145982995e-15 | Z12: -8.145982995e-15 | AA12: 7.576626945e-20 | AB12: -7.576529742e-20 | AC12: 2.197007569e-23 | AD12: 3.780328714e-15 | AE12: -3.780328737e-15 | AF12: =SUM(Y12:AE12) -> 3.58142851e-28 | AG12: =AF12/U4 -> 7.76367644e-14
B13: 1 | C13: 2 | D13: 3 | E13: 4 | F13: 5 | G13: 6 | H13: 7 | I13: 8 | M13: 1 | N13: 2 | O13: 3 | P13: 4 | Q13: 5 | R13: 6 | S13: 7 | T13: 8 | W13: LABOR | Y13: 1.719329595e+77 | Z13: -1.719329595e+77 | AA13: 8.011104624e+71 | AB13: -8.005349283e+71 | AC13: 1.065795924e+70 | AD13: 1.586051299e+78 | AE13: -1.58605131e+78 | AF13: =SUM(Y13:AE13) -> 2.200245281e+66 | AG13: =AF13/U5 -> 0.001047525677
A14: 1 | B14: =B3 -> 1.74137037e+13 | C14: =-B14 -> -1.74137037e+13 | D14: 0 | E14: 0 | F14: 0 | G14: 0 | H14: 0 | I14: 0 | L14: 1 | M14: =MMULT(B14:I21,B26:I33) -> 1 | N14: -7.985542716e+13 | O14: 0 | P14: 0 | Q14: 0 | R14: 0 | S14: 0 | T14: 0 | W14: NPK | Y14: 1.184153544e+67 | Z14: 2.05225776e+72 | AA14: 1.457458382e+79 | AB14: -1.457443505e+79 | AC14: 2.792343889e+75 | AD14: 4.378149938e+83 | AE14: -4.378149928e+83 | AF14: 3.92801031e+75 | AG14: =AF14/U6 -> 1.763358159e-07
A15: 2 | B15: 0 | C15: =C3 -> 0.2180653753 | D15: =-C15 -> -0.2180653753 | E15: 0 | F15: 0 | G15: 0 | H15: 0 | I15: 0 | L15: 2 | M15: 0 | N15: 1 | O15: -6.548482095e-13 | P15: 0 | Q15: 0 | R15: 0 | S15: 0 | T15: 0 | AG15: =AVERAGE(AG12:AG14) -> 0.0003492340044
A16: 3 | B16: 0 | C16: 0 | D16: =D3 -> 3.330014073e+11 | E16: =-D16 -> -3.330014073e+11 | F16: 0 | G16: 0 | H16: 0 | I16: 0 | L16: 3 | M16: 0 | N16: 0 | O16: 1 | P16: -7101691.636 | Q16: 0 | R16: 0 | S16: 0 | T16: 0
A17: 4 | B17: 0 | C17: 0 | D17: 0 | E17: =E3 -> 46890.43461 | F17: =-E17 -> -46890.43461 | G17: 0 | H17: 0 | I17: 0 | L17: 4 | M17: 0 | N17: 0 | O17: 0 | P17: 1 | Q17: -1.034795045e-05 | R17: 0 | S17: 0 | T17: 0
A18: 5 | B18: 0 | C18: 0 | D18: 0 | E18: 0 | F18: =F3 -> 4531374097 | G18: =-F18 -> -4531374097 | H18: 0 | I18: 0 | L18: 5 | M18: 0 | N18: 0 | O18: 0 | P18: 0 | Q18: 1 | R18: -19.51475846 | S18: 0 | T18: 0 | W18: AREA | Y18: =N4-Y12 -> -4.072991498e-15 | Z18: 8.145982995e-15 | AA18: -5.682470009e-20 | AB18: 7.576549343e-20 | AC18: -1.814505773e-23 | AD18: -3.240281752e-15 | AE18: 3.780328737e-15 | AF18: 4.613057406e-15 | AG18: =AF18/U4 -> 1
A19: 6 | B19: 0 | C19: 0 | D19: 0 | E19: 0 | F19: 0 | G19: =G3 -> 232202417.7 | H19: =-G19 -> -232202417.7 | I19: 0 | L19: 6 | M19: 0 | N19: 0 | O19: 0 | P19: 0 | Q19: 0 | R19: 1 | S19: -141188085.2 | T19: 0 | W19: LABOR | Y19: -1.719329595e+77 | Z19: 1.719329595e+77 | AA19: -7.995794508e+71 | AB19: 8.011022851e+71 | AC19: -1.065795924e+70 | AD19: -1.586051299e+78 | AE19: 1.58605131e+78 | AF19: 2.098221119e+69 | AG19: =AF19/U5 -> 0.9989524885
A20: 7 | B20: 0 | C20: 0 | D20: 0 | E20: 0 | F20: 0 | G20: 0 | H20: =H3 -> 1.644631822 | I20: =-H20 -> -1.644631822 | L20: 7 | M20: 0 | N20: 0 | O20: 0 | P20: 0 | Q20: 0 | R20: 0 | S20: 1 | T20: -9.444468852e-14 | W20: NPK | Y20: -5.920767719e+66 | Z20: 1.184153544e+67 | AA20: -1.457458381e+79 | AB20: 1.457443505e+79 | AC20: -2.792342038e+75 | AD20: -4.155392604e+83 | AE20: 4.378149967e+83 | AF20: 2.227573336e+82 | AG20: =AF20/U6 -> 0.9999998237
A21: 8 | B21: 0 | C21: 0 | D21: 0 | E21: 0 | F21: 0 | G21: 0 | H21: 0 | I21: =I3 -> 1.74137037e+13 | L21: 8 | M21: 0 | N21: 0 | O21: 0 | P21: 0 | Q21: 0 | R21: 0 | S21: 0 | T21: 1 | AG21: =AVERAGE(AG18:AG20) -> 0.9996507707
B25: 1 | C25: 2 | D25: 3 | E25: 4 | F25: 5 | G25: 6 | H25: 7 | I25: 8 | M25: 1 | N25: 2 | O25: 3 | P25: 4 | Q25: 5 | R25: 6 | S25: 7 | T25: 8
A26: 1 | B26: =1/B3 -> 5.742603741e-14 | C26: 0 | D26: 0 | E26: 0 | F26: 0 | G26: 0 | H26: 0 | I26: 0 | L26: 1 | M26: =MINVERSE(M14:T21) -> 1 | N26: 7.985542716e+13 | O26: 52.2931835 | P26: 371370063.9 | Q26: 3842.919019 | R26: 74993.63644 | S26: 1.058820793e+13 | T26: 1
A27: 2 | B27: 0 | C27: =1/C3 -> 4.585780748 | D27: 0 | E27: 0 | F27: 0 | G27: 0 | H27: 0 | I27: 0 | L27: 2 | M27: 0 | N27: 1 | O27: 6.548482095e-13 | P27: 4.650530052e-06 | Q27: 4.812345454e-11 | R27: 9.391175917e-10 | S27: 0.1325922145 | T27: 1.25226304e-14
A28: 3 | B28: 0 | C28: 0 | D28: =1/D3 -> 3.002990312e-12 | E28: 0 | F28: 0 | G28: 0 | H28: 0 | I28: 0 | L28: 3 | M28: 0 | N28: 0 | O28: 1 | P28: 7101691.636 | Q28: 73.48795315 | R28: 1434.099656 | S28: 2.024777843e+11 | T28: 0.01912295127
A29: 4 | B29: 0 | C29: 0 | D29: 0 | E29: =1/E3 -> 2.132631118e-05 | F29: 0 | G29: 0 | H29: 0 | I29: 0 | L29: 4 | M29: 0 | N29: 0 | O29: 0 | P29: 1 | Q29: 1.034795045e-05 | R29: 0.0002019377536 | S29: 28511.20475 | T29: 2.692731852e-09
A30: 5 | B30: 0 | C30: 0 | D30: 0 | E30: 0 | F30: =1/F3 -> 2.206836113e-10 | G30: 0 | H30: 0 | I30: 0 | L30: 5 | M30: 0 | N30: 0 | O30: 0 | P30: 0 | Q30: 1 | R30: 19.51475846 | S30: 2755251380 | T30: 0.0002602188584
A31: 6 | B31: 0 | C31: 0 | D31: 0 | E31: 0 | F31: 0 | G31: =1/G3 -> 4.306587372e-09 | H31: 0 | I31: 0 | L31: 6 | M31: 0 | N31: 0 | O31: 0 | P31: 0 | Q31: 0 | R31: 1 | S31: 141188085.2 | T31: 1.333446473e-05
A32: 7 | B32: 0 | C32: 0 | D32: 0 | E32: 0 | F32: 0 | G32: 0 | H32: =1/H3 -> 0.6080388247 | I32: 0 | L32: 7 | M32: 0 | N32: 0 | O32: 0 | P32: 0 | Q32: 0 | R32: 0 | S32: 1 | T32: 9.444468852e-14
A33: 8 | B33: 0 | C33: 0 | D33: 0 | E33: 0 | F33: 0 | G33: 0 | H33: 0 | I33: =1/I3 -> 5.742603741e-14 | L33: 8 | M33: 0 | N33: 0 | O33: 0 | P33: 0 | Q33: 0 | R33: 0 | S33: 0 | T33: 1
A37: INF | B37: POST
A38: 1 | B38: 500
A39: N | B39: PI-I | C39: PI-II
A40: 0.1 | B40: 0.970469829 | C40: 0.02953017102
A41: 0.2 | B41: 0.9419478915 | C41: 0.05805210848
A42: 0.3 | B42: 0.9143922752 | C42: 0.08560772484
A43: 0.4 | B43: 0.8877630739 | C43: 0.1122369261
A44: 0.5 | B44: 0.8620223023 | C44: 0.1379776977
A45: 0.6 | B45: 0.8371338124 | C45: 0.1628661876
A46: 0.7 | B46: 0.8130632129 | C46: 0.1869367871
A47: 0.8 | B47: 0.7897777914 | C47: 0.2102222086
A48: 0.9 | B48: 0.7672464384 | C48: 0.2327535616
A49: 1 | B49: 0.7454395741 | C49: 0.2545604259
A50: 1.1 | B50: 0.7243290771 | C50: 0.2756709229
A51: 1.2 | B51: 0.7038882155 | C51: 0.2961117845
A52: 1.3 | B52: 0.6840915796 | C52: 0.3159084204
A53: 1.4 | B53: 0.6649150176 | C53: 0.3350849824
A54: 1.5 | B54: 0.6463355722 | C54: 0.3536644278
A55: 1.6 | B55: 0.6283314196 | C55: 0.3716685804
A56: 1.7 | B56: 0.610881811 | C56: 0.389118189
A57: 1.8 | B57: 0.5939670151 | C57: 0.4060329849
A58: 1.9 | B58: 0.577568263 | C58: 0.422431737
A59: 2 | B59: 0.5616676951 | C59: 0.4383323049
A60: 2.1 | B60: 0.5462483093 | C60: 0.4537516907
A61: 2.2 | B61: 0.5312939118 | C61: 0.4687060882
A62: 2.3 | B62: 0.5167890697 | C62: 0.4832109303
A63: 2.4 | B63: 0.5027190647 | C63: 0.4972809353
A64: 2.5 | B64: 0.4890698497 | C64: 0.5109301503
A65: 2.6 | B65: 0.4758280069 | C65: 0.5241719931
A66: 2.7 | B66: 0.4629807076 | C66: 0.5370192924
A67: 2.8 | B67: 0.4505156746 | C67: 0.5494843254
A68: 2.9 | B68: 0.4384211458 | C68: 0.5615788542
A69: 3 | B69: 0.4266858398 | C69: 0.5733141602
A70: 3.1 | B70: 0.4152989246 | C70: 0.5847010754
A71: 3.2 | B71: 0.4042499862 | C71: 0.5957500138
A72: 3.3 | B72: 0.3935290012 | C72: 0.6064709988
A73: 3.4 | B73: 0.3831263095 | C73: 0.6168736905
A74: 3.5 | B74: 0.3730325903 | C74: 0.6269674097
A75: 3.6 | B75: 0.363238839 | C75: 0.636761161
A76: 3.7 | B76: 0.3537363463 | C76: 0.6462636537
A77: 3.8 | B77: 0.3445166786 | C77: 0.6554833214
A78: 3.9 | B78: 0.3355716607 | C78: 0.6644283393
A79: 4 | B79: 0.3268933596 | C79: 0.6731066404
A80: 4.1 | B80: 0.3184740699 | C80: 0.6815259301
A81: 4.2 | B81: 0.3103063008 | C81: 0.6896936992
A82: 4.3 | B82: 0.302382764 | C82: 0.697617236
A83: 4.4 | B83: 0.2946963639 | C83: 0.7053036361
A84: 4.5 | B84: 0.2872401876 | C84: 0.7127598124
A85: 4.6 | B85: 0.280007497 | C85: 0.719992503
A86: 4.7 | B86: 0.2729917216 | C86: 0.7270082784
A87: 4.8 | B87: 0.266186452 | C87: 0.733813548
A88: 4.9 | B88: 0.2595854345 | C88: 0.7404145655
A89: 5 | B89: 0.2531825664 | C89: 0.7468174336
A90: 5.1 | B90: 0.2469718915 | C90: 0.7530281085
A91: 5.2 | B91: 0.2409475969 | C91: 0.7590524031
A92: 5.3 | B92: 0.2351040098 | C92: 0.7648959902
A93: 5.4 | B93: 0.2294355945 | C93: 0.7705644055
A94: 5.5 | B94: 0.2239369505 | C94: 0.7760630495
A95: 5.6 | B95: 0.2186028101 | C95: 0.7813971899
A96: 5.7 | B96: 0.2134280367 | C96: 0.7865719633
A97: 5.8 | B97: 0.2084076231 | C97: 0.7915923769
A98: 5.9 | B98: 0.2035366898 | C98: 0.7964633102
A99: 6 | B99: 0.1988104841 | C99: 0.8011895159
A100: 6.1 | B100: 0.1942243779 | C100: 0.8057756221
A101: 6.2 | B101: 0.189773867 | C101: 0.810226133
A102: 6.3 | B102: 0.1854545694 | C102: 0.8145454306
A103: 6.4 | B103: 0.1812622241 | C103: 0.8187377759
A104: 6.5 | B104: 0.1771926894 | C104: 0.8228073106
A105: 6.6 | B105: 0.173241942 | C105: 0.826758058
A106: 6.7 | B106: 0.1694060746 | C106: 0.8305939254
A107: 6.8 | B107: 0.1656812951 | C107: 0.8343187049
A108: 6.9 | B108: 0.1620639244 | C108: 0.8379360756
A109: 7 | B109: 0.1585503952 | C109: 0.8414496048
A110: 7.1 | B110: 0.1551372496 | C110: 0.8448627504
A111: 7.2 | B111: 0.1518211373 | C111: 0.8481788627
A112: 7.3 | B112: 0.1485988141 | C112: 0.8514011859
A113: 7.4 | B113: 0.1454671394 | C113: 0.8545328606
A114: 7.5 | B114: 0.1424230742 | C114: 0.8575769258
A115: 7.6 | B115: 0.1394636792 | C115: 0.8605363208
A116: 7.7 | B116: 0.1365861124 | C116: 0.8634138876
A117: 7.8 | B117: 0.1337876266 | C117: 0.8662123734
A118: 7.9 | B118: 0.1310655677 | C118: 0.8689344323
A119: 8 | B119: 0.1284173722 | C119: 0.8715826278
A120: 8.1 | B120: 0.1258405644 | C120: 0.8741594356
A121: 8.2 | B121: 0.1233327549 | C121: 0.8766672451
A122: 8.3 | B122: 0.1208916374 | C122: 0.8791083626
A123: 8.4 | B123: 0.1185149871 | C123: 0.8814850129
A124: 8.5 | B124: 0.116200658 | C124: 0.883799342
A125: 8.6 | B125: 0.1139465803 | C125: 0.8860534197
A126: 8.7 | B126: 0.1117507586 | C126: 0.8882492414
A127: 8.8 | B127: 0.1096112695 | C127: 0.8903887305
A128: 8.9 | B128: 0.107526259 | C128: 0.892473741
A129: 9 | B129: 0.1054939406 | C129: 0.8945060594
A130: 9.1 | B130: 0.1035125928 | C130: 0.8964874072
A131: 9.2 | B131: 0.1015805572 | C131: 0.8984194428
A132: 9.3 | B132: 0.09969623636 | C132: 0.9003037636
A133: 9.4 | B133: 0.09785809145 | C133: 0.9021419086
A134: 9.5 | B134: 0.09606464041 | C134: 0.9039353596
A135: 9.6 | B135: 0.0943144559 | C135: 0.9056855441
A136: 9.7 | B136: 0.09260616335 | C136: 0.9073938367
A137: 9.8 | B137: 0.09093843902 | C137: 0.909061561
A138: 9.9 | B138: 0.08931000821 | C138: 0.9106899918
A139: 10 | B139: 0.08771964337 | C139: 0.9122803566
A140: 10.1 | B140: 0.08616616241 | C140: 0.9138338376
A141: 10.2 | B141: 0.084648427 | C141: 0.915351573
A142: 10.3 | B142: 0.08316534086 | C142: 0.9168346591
A143: 10.4 | B143: 0.08171584822 | C143: 0.9182841518
A144: 10.5 | B144: 0.08029893222 | C144: 0.9197010678
A145: 10.6 | B145: 0.07891361346 | C145: 0.9210863865
A146: 10.7 | B146: 0.07755894852 | C146: 0.9224410515
A147: 10.8 | B147: 0.07623402856 | C147: 0.9237659714
A148: 10.9 | B148: 0.07493797798 | C148: 0.925062022
A149: 11 | B149: 0.0736699531 | C149: 0.9263300469
A150: 11.1 | B150: 0.07242914093 | C150: 0.9275708591
A151: 11.2 | B151: 0.07121475794 | C151: 0.9287852421
A152: 11.3 | B152: 0.07002604888 | C152: 0.9299739511
A153: 11.4 | B153: 0.06886228569 | C153: 0.9311377143
A154: 11.5 | B154: 0.06772276639 | C154: 0.9322772336
A155: 11.6 | B155: 0.06660681408 | C155: 0.9333931859
A156: 11.7 | B156: 0.06551377587 | C156: 0.9344862241
A157: 11.8 | B157: 0.06444302199 | C157: 0.935556978
A158: 11.9 | B158: 0.06339394485 | C158: 0.9366060552
A159: 12 | B159: 0.06236595812 | C159: 0.9376340419
A160: 12.1 | B160: 0.06135849593 | C160: 0.9386415041
A161: 12.2 | B161: 0.06037101201 | C161: 0.939628988
A162: 12.3 | B162: 0.05940297893 | C162: 0.9405970211
A163: 12.4 | B163: 0.05845388735 | C163: 0.9415461127
A164: 12.5 | B164: 0.05752324528 | C164: 0.9424767547
A165: 12.6 | B165: 0.05661057743 | C165: 0.9433894226
A166: 12.7 | B166: 0.0557154245 | C166: 0.9442845755
A167: 12.8 | B167: 0.05483734256 | C167: 0.9451626574
A168: 12.9 | B168: 0.05397590245 | C168: 0.9460240975
A169: 13 | B169: 0.05313068921 | C169: 0.9468693108
A170: 13.1 | B170: 0.0523013015 | C170: 0.9476986985
A171: 13.2 | B171: 0.05148735104 | C171: 0.948512649
A172: 13.3 | B172: 0.05068846216 | C172: 0.9493115378
A173: 13.4 | B173: 0.04990427128 | C173: 0.9500957287
A174: 13.5 | B174: 0.0491344264 | C174: 0.9508655736
A175: 13.6 | B175: 0.04837858671 | C175: 0.9516214133
A176: 13.7 | B176: 0.04763642214 | C176: 0.9523635779
A177: 13.8 | B177: 0.04690761292 | C177: 0.9530923871
A178: 13.9 | B178: 0.04619184921 | C178: 0.9538081508
A179: 14 | B179: 0.04548883071 | C179: 0.9545111693
A180: 14.1 | B180: 0.04479826632 | C180: 0.9552017337
A181: 14.2 | B181: 0.04411987377 | C181: 0.9558801262
A182: 14.3 | B182: 0.04345337926 | C182: 0.9565466207
A183: 14.4 | B183: 0.04279851722 | C183: 0.9572014828
A184: 14.5 | B184: 0.04215502991 | C184: 0.9578449701
A185: 14.6 | B185: 0.04152266721 | C185: 0.9584773328
A186: 14.7 | B186: 0.04090118629 | C186: 0.9590988137
A187: 14.8 | B187: 0.04029035136 | C187: 0.9597096486
A188: 14.9 | B188: 0.03968993339 | C188: 0.9603100666
A189: 15 | B189: 0.03909970991 | C189: 0.9609002901
A190: 15.1 | B190: 0.03851946472 | C190: 0.9614805353
A191: 15.2 | B191: 0.03794898771 | C191: 0.9620510123
A192: 15.3 | B192: 0.0373880746 | C192: 0.9626119254
A193: 15.4 | B193: 0.03683652677 | C193: 0.9631634732
A194: 15.5 | B194: 0.03629415105 | C194: 0.963705849
A195: 15.6 | B195: 0.0357607595 | C195: 0.9642392405
A196: 15.7 | B196: 0.03523616928 | C196: 0.9647638307
A197: 15.8 | B197: 0.03472020241 | C197: 0.9652797976
A198: 15.9 | B198: 0.03421268568 | C198: 0.9657873143
A199: 16 | B199: 0.03371345039 | C199: 0.9662865496
A200: 16.1 | B200: 0.03322233231 | C200: 0.9667776677
A201: 16.2 | B201: 0.03273917141 | C201: 0.9672608286
A202: 16.3 | B202: 0.03226381182 | C202: 0.9677361882
A203: 16.4 | B203: 0.03179610164 | C203: 0.9682038984
A204: 16.5 | B204: 0.0313358928 | C204: 0.9686641072
A205: 16.6 | B205: 0.03088304098 | C205: 0.969116959
A206: 16.7 | B206: 0.03043740543 | C206: 0.9695625946
A207: 16.8 | B207: 0.02999884892 | C207: 0.9700011511
... 332 more rows

Sheet Farm7
A1: YEARDUM | B1: 1 | C1: 2 | D1: 3 | E1: 4 | F1: 5 | G1: 6 | H1: 7 | I1: 8 | J1: MULT | M1: 1 | N1: 2 | O1: 3 | P1: 4 | Q1: 5 | R1: 6 | S1: 7 | T1: 8 | X1: 1 | Y1: 2 | Z1: 3 | AA1: 4 | AB1: 5 | AC1: 6 | AD1: 7 | AE1: 8
A2: FMERCODE | B2: 1 | C2: 1 | D2: 1 | E2: 1 | F2: 1 | G2: 1 | H2: 1 | I2: 1 | J2: 500 | K2: =J2/10 -> 50
A3: PROD | B3: =B7:I10^K2 -> 2.207449195e+43 | C3: 4.574437023e+44 | D3: 1.028226505e+44 | E3: 1.427801812e+44 | F3: 8.152572708e+40 | G3: 6.26843096e+55 | H3: 7.401491076e+49 | I3: 7.971073969e+45
A4: AREA | B4: 1.418738762e+12 | C4: 1.418738762e+12 | D4: 1.418738762e+12 | E4: 1.418738762e+12 | F4: 1.418738762e+12 | G4: 5.029946738e+28 | H4: 5.029946738e+28 | I4: 1.418738762e+12 | J4: =AG15 -> 4325253858 | L4: AREA | M4: =MMULT(B4:I6,B26:I33) -> 6.427050575e-32 | N4: 3.10144998e-33 | O4: 1.379792054e-32 | P4: 9.93652445e-33 | Q4: 1.740234417e-29 | R4: 8.024251636e-28 | S4: 6.795855979e-22 | T4: 1.779858984e-34 | U4: =SUM(N4:T4) -> 6.795864178e-22 | W4: AREA | X4: =MMULT(M4:T6,M26:T33) -> 6.427050575e-32 | Y4: 6.202899961e-33 | Z4: 4.139376162e-32 | AA4: 3.97460978e-32 | AB4: 8.701172086e-29 | AC4: 8.024251636e-28 | AD4: 1.359171196e-21 | AE4: 1.262049947e-17
A5: LABOR | B5: 8.955083012e+97 | C5: 1.675458239e+97 | D5: 4.90560549e+95 | E5: 1.636681989e+96 | F5: 2.65550686e+98 | G5: 1.637279277e+116 | H5: 2.890384588e+107 | I5: 9.461557455e+96 | J5: =AG21 -> -4325253857 | L5: LABOR | M5: 4.056756112e+54 | N5: 3.66265451e+52 | O5: 4.770938567e+51 | P5: 1.146294937e+52 | Q5: 3.257262407e+57 | R5: 2.61194434e+60 | S5: 3.905138245e+57 | T5: 1.186986533e+51 | U5: =SUM(N5:T5) -> 2.619106794e+60 | W5: LABOR | X5: 4.056756112e+54 | Y5: 2.323901542e+53 | Z5: 1.038642483e+54 | AA5: 7.594377185e+53 | AB5: 4.587304578e+57 | AC5: 2.61194434e+60 | AD5: 2.212093837e+66 | AE5: 2.054025952e+70
A6: NPK | B6: 1.906837481e+119 | C6: 8.371912493e+116 | D6: 3.147197309e+124 | E6: 3.318945458e+112 | F6: 1.024618247e+119 | G6: 1.639264961e+137 | H6: 7.987388995e+130 | I6: 3.69900307e+124 | L6: NPK | M6: 8.638194192e+75 | N6: 1.830151437e+72 | O6: 3.060801577e+80 | P6: 2.32451411e+68 | Q6: 1.256803568e+78 | R6: 2.615112094e+81 | S6: 1.079159444e+81 | T6: 4.640532862e+78 | U6: 4.006249034e+81 | W6: NPK | X6: 8.638194192e+75 | Y6: 4.186765243e+74 | Z6: 3.060820204e+80 | AA6: 2.204239016e+80 | AB6: 3.860409248e+83 | AC6: 2.615112094e+81 | AD6: 2.21477773e+87 | AE6: 2.056518063e+91
A7: PROD | B7: 7.36 | C7: 7.82 | D7: 7.59 | E7: 7.64 | F7: 6.58 | G7: 13.06 | H7: 9.94 | I7: 8.28
A8: AREA | B8: 1.75 | C8: 1.75 | D8: 1.75 | E8: 1.75 | F8: 1.75 | G8: 3.75 | H8: 3.75 | I8: 1.75
A9: LABOR | B9: 91 | C9: 88 | D9: 82 | E9: 84 | F9: 93 | G9: 211 | H9: 141 | I9: 87
A10: NPK | B10: 243 | C10: 218 | D10: 309 | E10: 178 | F10: 240 | G10: 555 | H10: 415 | I10: 310
W12: AREA | Y12: =Y4-X4 -> -5.806760579e-32 | Z12: 3.519086166e-32 | AA12: -1.647663814e-33 | AB12: 8.697197477e-29 | AC12: 7.154134427e-28 | AD12: 1.359170393e-21 | AE12: 1.26191403e-17 | AF12: =SUM(Y12:AE12) -> 1.262049947e-17 | AG12: =AF12/U4 -> 18570.853
B13: 1 | C13: 2 | D13: 3 | E13: 4 | F13: 5 | G13: 6 | H13: 7 | I13: 8 | M13: 1 | N13: 2 | O13: 3 | P13: 4 | Q13: 5 | R13: 6 | S13: 7 | T13: 8 | W13: LABOR | Y13: -3.824365958e+54 | Z13: 8.062523289e+53 | AA13: -2.792047647e+53 | AB13: 4.586545141e+57 | AC13: 2.607357035e+60 | AD13: 2.212091225e+66 | AE13: 2.053804742e+70 | AF13: =SUM(Y13:AE13) -> 2.054025952e+70 | AG13: =AF13/U5 -> 7842467348
A14: 1 | B14: =B3 -> 2.207449195e+43 | C14: =-B14 -> -2.207449195e+43 | D14: 0 | E14: 0 | F14: 0 | G14: 0 | H14: 0 | I14: 0 | L14: 1 | M14: =MMULT(B14:I21,B26:I33) -> 1 | N14: -0.04825619379 | O14: 0 | P14: 0 | Q14: 0 | R14: 0 | S14: 0 | T14: 0 | W14: NPK | Y14: -8.219517668e+75 | Z14: 3.060816017e+80 | AA14: -8.565811875e+79 | AB14: 3.858205009e+83 | AC14: -3.834258127e+83 | AD14: 2.214775115e+87 | AE14: 2.056296586e+91 | AF14: 2.056518063e+91 | AG14: =AF14/U6 -> 5133275655
A15: 2 | B15: 0 | C15: =C3 -> 4.574437023e+44 | D15: =-C15 -> -4.574437023e+44 | E15: 0 | F15: 0 | G15: 0 | H15: 0 | I15: 0 | L15: 2 | M15: 0 | N15: 1 | O15: -4.448861219 | P15: 0 | Q15: 0 | R15: 0 | S15: 0 | T15: 0 | AG15: =AVERAGE(AG12:AG14) -> 4325253858
A16: 3 | B16: 0 | C16: 0 | D16: =D3 -> 1.028226505e+44 | E16: =-D16 -> -1.028226505e+44 | F16: 0 | G16: 0 | H16: 0 | I16: 0 | L16: 3 | M16: 0 | N16: 0 | O16: 1 | P16: -0.7201465194 | Q16: 0 | R16: 0 | S16: 0 | T16: 0
A17: 4 | B17: 0 | C17: 0 | D17: 0 | E17: =E3 -> 1.427801812e+44 | F17: =-E17 -> -1.427801812e+44 | G17: 0 | H17: 0 | I17: 0 | L17: 4 | M17: 0 | N17: 0 | O17: 0 | P17: 1 | Q17: -1751.351215 | R17: 0 | S17: 0 | T17: 0
A18: 5 | B18: 0 | C18: 0 | D18: 0 | E18: 0 | F18: =F3 -> 8.152572708e+40 | G18: =-F18 -> -8.152572708e+40 | H18: 0 | I18: 0 | L18: 5 | M18: 0 | N18: 0 | O18: 0 | P18: 0 | Q18: 1 | R18: -1.300576294e-15 | S18: 0 | T18: 0 | W18: AREA | Y18: =N4-Y12 -> 6.116905577e-32 | Z18: -2.139294112e-32 | AA18: 1.158418826e-32 | AB18: -6.956963059e-29 | AC18: 8.701172086e-29 | AD18: -6.795847955e-22 | AE18: -1.26191403e-17 | AF18: -1.261981988e-17 | AG18: =AF18/U4 -> -18569.853
A19: 6 | B19: 0 | C19: 0 | D19: 0 | E19: 0 | F19: 0 | G19: =G3 -> 6.26843096e+55 | H19: =-G19 -> -6.26843096e+55 | I19: 0 | L19: 6 | M19: 0 | N19: 0 | O19: 0 | P19: 0 | Q19: 0 | R19: 1 | S19: -846914.6143 | T19: 0 | W19: LABOR | Y19: 3.860992503e+54 | Z19: -8.014813904e+53 | AA19: 2.90667714e+53 | AB19: -1.329282734e+57 | AC19: 4.587304578e+57 | AD19: -2.212091221e+66 | AE19: -2.053804742e+70 | AF19: -2.054025951e+70 | AG19: =AF19/U5 -> -7842467347
A20: 7 | B20: 0 | C20: 0 | D20: 0 | E20: 0 | F20: 0 | G20: 0 | H20: =H3 -> 7.401491076e+49 | I20: =-H20 -> -7.401491076e+49 | L20: 7 | M20: 0 | N20: 0 | O20: 0 | P20: 0 | Q20: 0 | R20: 0 | S20: 1 | T20: -9285.437703 | W20: NPK | Y20: 8.221347819e+75 | Z20: -1.443957228e+75 | AA20: 8.565811875e+79 | AB20: -3.858192441e+83 | AC20: 3.860409248e+83 | AD20: -2.214774035e+87 | AE20: -2.056296586e+91 | AF20: -2.056518063e+91 | AG20: =AF20/U6 -> -5133275654
A21: 8 | B21: 0 | C21: 0 | D21: 0 | E21: 0 | F21: 0 | G21: 0 | H21: 0 | I21: =I3 -> 7.971073969e+45 | L21: 8 | M21: 0 | N21: 0 | O21: 0 | P21: 0 | Q21: 0 | R21: 0 | S21: 0 | T21: 1 | AG21: =AVERAGE(AG18:AG20) -> -4325253857
B25: 1 | C25: 2 | D25: 3 | E25: 4 | F25: 5 | G25: 6 | H25: 7 | I25: 8 | M25: 1 | N25: 2 | O25: 3 | P25: 4 | Q25: 5 | R25: 6 | S25: 7 | T25: 8
A26: 1 | B26: =1/B3 -> 4.530115585e-44 | C26: 0 | D26: 0 | E26: 0 | F26: 0 | G26: 0 | H26: 0 | I26: 0 | L26: 1 | M26: =MINVERSE(M14:T21) -> 1 | N26: 0.04825619379 | O26: 0.2146851091 | P26: 0.1546047341 | Q26: 270.7671889 | R26: 3.521533871e-13 | S26: 2.9824385e-07 | T26: 0.00276932469
A27: 2 | B27: 0 | C27: =1/C3 -> 2.186061356e-45 | D27: 0 | E27: 0 | F27: 0 | G27: 0 | H27: 0 | I27: 0 | L27: 2 | M27: 0 | N27: 1 | O27: 4.448861219 | P27: 3.203831922 | Q27: 5611.03493 | R27: 7.297579015e-12 | S27: 6.180426317e-06 | T27: 0.05738796354
A28: 3 | B28: 0 | C28: 0 | D28: =1/D3 -> 9.725483586e-45 | E28: 0 | F28: 0 | G28: 0 | H28: 0 | I28: 0 | L28: 3 | M28: 0 | N28: 0 | O28: 1 | P28: 0.7201465194 | Q28: 1261.229482 | R28: 1.640325166e-12 | S28: 1.389215355e-06 | T28: 0.01289947263
A29: 4 | B29: 0 | C29: 0 | D29: 0 | E29: =1/E3 -> 7.003773154e-45 | F29: 0 | G29: 0 | H29: 0 | I29: 0 | L29: 4 | M29: 0 | N29: 0 | O29: 0 | P29: 1 | Q29: 1751.351215 | R29: 2.277765873e-12 | S29: 1.929073206e-06 | T29: 0.01791228908
A30: 5 | B30: 0 | C30: 0 | D30: 0 | E30: 0 | F30: =1/F3 -> 1.226606663e-41 | G30: 0 | H30: 0 | I30: 0 | L30: 5 | M30: 0 | N30: 0 | O30: 0 | P30: 0 | Q30: 1 | R30: 1.300576294e-15 | S30: 1.10147707e-09 | T30: 1.022769672e-05
A31: 6 | B31: 0 | C31: 0 | D31: 0 | E31: 0 | F31: 0 | G31: =1/G3 -> 1.595295547e-56 | H31: 0 | I31: 0 | L31: 6 | M31: 0 | N31: 0 | O31: 0 | P31: 0 | Q31: 0 | R31: 1 | S31: 846914.6143 | T31: 7863972891
A32: 7 | B32: 0 | C32: 0 | D32: 0 | E32: 0 | F32: 0 | G32: 0 | H32: =1/H3 -> 1.351079113e-50 | I32: 0 | L32: 7 | M32: 0 | N32: 0 | O32: 0 | P32: 0 | Q32: 0 | R32: 0 | S32: 1 | T32: 9285.437703
A33: 8 | B33: 0 | C33: 0 | D33: 0 | E33: 0 | F33: 0 | G33: 0 | H33: 0 | I33: =1/I3 -> 1.254536094e-46 | L33: 8 | M33: 0 | N33: 0 | O33: 0 | P33: 0 | Q33: 0 | R33: 0 | S33: 0 | T33: 1
A37: INF | B37: POST
A38: 1 | B38: 500
A39: N | B39: PI-I | C39: PI-II
A40: 0.1 | B40: 1.001395668 | C40: -0.001395667782
A41: 0.2 | B41: 1.003718302 | C41: -0.003718301752
A42: 0.3 | B42: 1.00701088 | C42: -0.007010880071
A43: 0.4 | B43: 1.011317971 | C43: -0.0113179708
A44: 0.5 | B44: 1.016685796 | C44: -0.0166857958
A45: 0.6 | B45: 1.023162297 | C45: -0.02316229745
A46: 0.7 | B46: 1.030797208 | C46: -0.03079720811
A47: 0.8 | B47: 1.039642123 | C47: -0.03964212272
A48: 0.9 | B48: 1.049750575 | C48: -0.04975057466
A49: 1 | B49: 1.061178115 | C49: -0.06117811496
A50: 1.1 | B50: 1.073982395 | C50: -0.07398239539
A51: 1.2 | B51: 1.088223256 | C51: -0.08822325556
A52: 1.3 | B52: 1.103962814 | C52: -0.1039628143
A53: 1.4 | B53: 1.121265566 | C53: -0.1212655662
A54: 1.5 | B54: 1.140198482 | C54: -0.1401984824
A55: 1.6 | B55: 1.160831119 | C55: -0.1608311187
A56: 1.7 | B56: 1.183235728 | C56: -0.1832357277
A57: 1.8 | B57: 1.20748738 | C57: -0.2074873797
A58: 1.9 | B58: 1.233664089 | C58: -0.2336640891
A59: 2 | B59: 1.26184695 | C59: -0.2618469501
A60: 2.1 | B60: 1.29212028 | C60: -0.2921202796
A61: 2.2 | B61: 1.32457177 | C61: -0.3245717704
A62: 2.3 | B62: 1.359292654 | C62: -0.3592926535
A63: 2.4 | B63: 1.396377871 | C63: -0.3963778709
A64: 2.5 | B64: 1.43592626 | C64: -0.4359262604
A65: 2.6 | B65: 1.478040752 | C65: -0.4780407518
A66: 2.7 | B66: 1.522828576 | C66: -0.5228285759
A67: 2.8 | B67: 1.570401488 | C67: -0.5704014876
A68: 2.9 | B68: 1.620876003 | C68: -0.620876003
A69: 3 | B69: 1.674373652 | C69: -0.6743736517
A70: 3.1 | B70: 1.731021245 | C70: -0.7310212451
A71: 3.2 | B71: 1.790951162 | C71: -0.7909511619
A72: 3.3 | B72: 1.854301651 | C72: -0.8543016506
A73: 3.4 | B73: 1.921217151 | C73: -0.9212171507
A74: 3.5 | B74: 1.991848634 | C74: -0.9918486335
A75: 3.6 | B75: 2.066353963 | C75: -1.066353963
A76: 3.7 | B76: 2.144898276 | C76: -1.144898276
A77: 3.8 | B77: 2.227654387 | C77: -1.227654387
A78: 3.9 | B78: 2.314803216 | C78: -1.314803216
A79: 4 | B79: 2.406534231 | C79: -1.406534231
A80: 4.1 | B80: 2.503045931 | C80: -1.503045931
A81: 4.2 | B81: 2.604546339 | C81: -1.604546339
A82: 4.3 | B82: 2.711253529 | C82: -1.711253529
A83: 4.4 | B83: 2.823396179 | C83: -1.823396179
A84: 4.5 | B84: 2.941214151 | C84: -1.941214151
A85: 4.6 | B85: 3.064959104 | C85: -2.064959104
A86: 4.7 | B86: 3.194895129 | C86: -2.194895129
A87: 4.8 | B87: 3.331299425 | C87: -2.331299425
A88: 4.9 | B88: 3.474463002 | C88: -2.474463002
A89: 5 | B89: 3.62469142 | C89: -2.62469142
A90: 5.1 | B90: 3.782305561 | C90: -2.782305561
A91: 5.2 | B91: 3.947642441 | C91: -2.947642441
A92: 5.3 | B92: 4.121056059 | C92: -3.121056059
A93: 5.4 | B93: 4.302918286 | C93: -3.302918286
A94: 5.5 | B94: 4.49361979 | C94: -3.49361979
A95: 5.6 | B95: 4.693571018 | C95: -3.693571018
A96: 5.7 | B96: 4.903203208 | C96: -3.903203208
A97: 5.8 | B97: 5.122969458 | C97: -4.122969458
A98: 5.9 | B98: 5.353345841 | C98: -4.353345841
A99: 6 | B99: 5.594832573 | C99: -4.594832573
A100: 6.1 | B100: 5.847955236 | C100: -4.847955236
A101: 6.2 | B101: 6.113266055 | C101: -5.113266055
A102: 6.3 | B102: 6.391345237 | C102: -5.391345237
A103: 6.4 | B103: 6.682802373 | C103: -5.682802373
A104: 6.5 | B104: 6.988277905 | C104: -5.988277905
A105: 6.6 | B105: 7.308444659 | C105: -6.308444659
A106: 6.7 | B106: 7.644009455 | C106: -6.644009455
A107: 6.8 | B107: 7.995714789 | C107: -6.995714789
A108: 6.9 | B108: 8.364340598 | C108: -7.364340598
A109: 7 | B109: 8.750706104 | C109: -7.750706104
A110: 7.1 | B110: 9.155671749 | C110: -8.155671749
A111: 7.2 | B111: 9.580141222 | C111: -8.580141222
A112: 7.3 | B112: 10.02506358 | C112: -9.02506358
A113: 7.4 | B113: 10.49143547 | C113: -9.491435472
A114: 7.5 | B114: 10.98030347 | C114: -9.980303471
A115: 7.6 | B115: 11.49276651 | C115: -10.49276651
A116: 7.7 | B116: 12.02997846 | C116: -11.02997846
A117: 7.8 | B117: 12.59315077 | C117: -11.59315077
A118: 7.9 | B118: 13.18355534 | C118: -12.18355534
A119: 8 | B119: 13.8025274 | C119: -12.8025274
A120: 8.1 | B120: 14.45146865 | C120: -13.45146865
A121: 8.2 | B121: 15.13185048 | C121: -14.13185048
A122: 8.3 | B122: 15.84521735 | C122: -14.84521735
A123: 8.4 | B123: 16.59319036 | C123: -15.59319036
A124: 8.5 | B124: 17.377471 | C124: -16.377471
A125: 8.6 | B125: 18.19984501 | C125: -17.19984501
A126: 8.7 | B126: 19.06218652 | C126: -18.06218652
A127: 8.8 | B127: 19.96646233 | C127: -18.96646233
A128: 8.9 | B128: 20.91473642 | C128: -19.91473642
A129: 9 | B129: 21.90917468 | C129: -20.90917468
A130: 9.1 | B130: 22.95204983 | C130: -21.95204983
A131: 9.2 | B131: 24.04574665 | C131: -23.04574665
A132: 9.3 | B132: 25.1927674 | C132: -24.1927674
A133: 9.4 | B133: 26.39573752 | C133: -25.39573752
A134: 9.5 | B134: 27.65741163 | C134: -26.65741163
A135: 9.6 | B135: 28.98067978 | C135: -27.98067978
A136: 9.7 | B136: 30.36857403 | C136: -29.36857403
A137: 9.8 | B137: 31.82427534 | C137: -30.82427534
A138: 9.9 | B138: 33.35112081 | C138: -32.35112081
A139: 10 | B139: 34.95261121 | C139: -33.95261121
A140: 10.1 | B140: 36.63241895 | C140: -35.63241895
A141: 10.2 | B141: 38.39439639 | C141: -37.39439639
A142: 10.3 | B142: 40.24258457 | C142: -39.24258457
A143: 10.4 | B143: 42.18122235 | C143: -41.18122235
A144: 10.5 | B144: 44.21475596 | C144: -43.21475596
A145: 10.6 | B145: 46.34784909 | C145: -45.34784909
A146: 10.7 | B146: 48.58539341 | C146: -47.58539341
A147: 10.8 | B147: 50.93251959 | C147: -49.93251959
A148: 10.9 | B148: 53.39460885 | C148: -52.39460885
A149: 11 | B149: 55.97730513 | C149: -54.97730513
A150: 11.1 | B150: 58.68652778 | C150: -57.68652778
A151: 11.2 | B151: 61.52848484 | C151: -60.52848484
A152: 11.3 | B152: 64.50968706 | C152: -63.50968706
A153: 11.4 | B153: 67.63696248 | C153: -66.63696248
A154: 11.5 | B154: 70.91747181 | C154: -69.91747181
A155: 11.6 | B155: 74.35872443 | C155: -73.35872443
A156: 11.7 | B156: 77.96859531 | C156: -76.96859531
A157: 11.8 | B157: 81.7553426 | C157: -80.7553426
A158: 11.9 | B158: 85.72762616 | C158: -84.72762616
A159: 12 | B159: 89.89452693 | C159: -88.89452693
A160: 12.1 | B160: 94.26556726 | C160: -93.26556726
A161: 12.2 | B161: 98.85073217 | C161: -97.85073217
A162: 12.3 | B162: 103.6604917 | C162: -102.6604917
A163: 12.4 | B163: 108.7058242 | C163: -107.7058242
A164: 12.5 | B164: 113.998241 | C164: -112.998241
A165: 12.6 | B165: 119.549812 | C165: -118.549812
A166: 12.7 | B166: 125.3731923 | C166: -124.3731923
A167: 12.8 | B167: 131.481651 | C167: -130.481651
A168: 12.9 | B168: 137.8891 | C168: -136.8891
A169: 13 | B169: 144.6101258 | C169: -143.6101258
A170: 13.1 | B170: 151.6600211 | C170: -150.6600211
A171: 13.2 | B171: 159.0548193 | C171: -158.0548193
A172: 13.3 | B172: 166.8113301 | C172: -165.8113301
A173: 13.4 | B173: 174.9471763 | C173: -173.9471763
A174: 13.5 | B174: 183.4808339 | C174: -182.4808339
A175: 13.6 | B175: 192.4316719 | C175: -191.4316719
A176: 13.7 | B176: 201.8199962 | C176: -200.8199962
A177: 13.8 | B177: 211.667094 | C177: -210.667094
A178: 13.9 | B178: 221.9952811 | C178: -220.9952811
A179: 14 | B179: 232.8279513 | C179: -231.8279513
A180: 14.1 | B180: 244.1896283 | C180: -243.1896283
A181: 14.2 | B181: 256.1060194 | C181: -255.1060194
A182: 14.3 | B182: 268.6040731 | C182: -267.6040731
A183: 14.4 | B183: 281.7120376 | C183: -280.7120376
A184: 14.5 | B184: 295.4595242 | C184: -294.4595242
A185: 14.6 | B185: 309.8775717 | C185: -308.8775717
A186: 14.7 | B186: 324.9987155 | C186: -323.9987155
A187: 14.8 | B187: 340.857059 | C187: -339.857059
A188: 14.9 | B188: 357.4883486 | C188: -356.4883486
A189: 15 | B189: 374.9300528 | C189: -373.9300528
A190: 15.1 | B190: 393.2214443 | C190: -392.2214443
A191: 15.2 | B191: 412.4036865 | C191: -411.4036865
A192: 15.3 | B192: 432.519924 | C192: -431.519924
A193: 15.4 | B193: 453.6153774 | C193: -452.6153774
A194: 15.5 | B194: 475.7374427 | C194: -474.7374427
A195: 15.6 | B195: 498.9357952 | C195: -497.9357952
A196: 15.7 | B196: 523.2624986 | C196: -522.2624986
A197: 15.8 | B197: 548.7721193 | C197: -547.7721193
A198: 15.9 | B198: 575.5218458 | C198: -574.5218458
A199: 16 | B199: 603.5716142 | C199: -602.5716142
A200: 16.1 | B200: 632.9842396 | C200: -631.9842396
A201: 16.2 | B201: 663.8255534 | C201: -662.8255534
A202: 16.3 | B202: 696.1645473 | C202: -695.1645473
A203: 16.4 | B203: 730.0735249 | C203: -729.0735249
A204: 16.5 | B204: 765.6282588 | C204: -764.6282588
A205: 16.6 | B205: 802.9081573 | C205: -801.9081573
A206: 16.7 | B206: 841.996437 | C206: -840.996437
A207: 16.8 | B207: 882.9803053 | C207: -881.9803053
... 332 more rows

Sheet Farm8
A1: YEARDUM | B1: 1 | C1: 2 | D1: 3 | E1: 4 | F1: 5 | G1: 6 | H1: 7 | I1: 8 | J1: MULT | M1: 1 | N1: 2 | O1: 3 | P1: 4 | Q1: 5 | R1: 6 | S1: 7 | T1: 8 | X1: 1 | Y1: 2 | Z1: 3 | AA1: 4 | AB1: 5 | AC1: 6 | AD1: 7 | AE1: 8
A2: FMERCODE | B2: 1 | C2: 1 | D2: 1 | E2: 1 | F2: 1 | G2: 1 | H2: 1 | I2: 1 | J2: 500 | K2: =J2/10 -> 50
A3: PROD | B3: =B7:I10^K2 -> 1.608020925e+41 | C3: 2.09238865e+38 | D3: 7.953711478e+32 | E3: 1.376214929e+40 | F3: 2.09238865e+38 | G3: 3.581579587e+34 | H3: 3.73412155e+31 | I3: 1.103823084e+41
A4: AREA | B4: 3.330014073e+11 | C4: 3.330014073e+11 | D4: 3.330014073e+11 | E4: 3.330014073e+11 | F4: 3.330014073e+11 | G4: 3.330014073e+11 | H4: 3.330014073e+11 | I4: 3.330014073e+11 | J4: =AG15 -> 1.090544018e-07 | L4: AREA | M4: =MMULT(B4:I6,B26:I33) -> 2.070877326e-30 | N4: 1.591489264e-27 | O4: 4.186742356e-22 | P4: 2.419690416e-29 | Q4: 1.591489264e-27 | R4: 9.297612945e-24 | S4: 8.917797743e-21 | T4: 3.016800539e-30 | U4: =SUM(N4:T4) -> 9.345772802e-21 | W4: AREA | X4: =MMULT(M4:T6,M26:T33) -> 2.070877326e-30 | Y4: 3.182978528e-27 | Z4: 1.256022707e-21 | AA4: 9.678761664e-29 | AB4: 7.95744632e-27 | AC4: 5.578567767e-23 | AD4: 6.24245842e-20 | AE4: 2.413440431e-29
A5: LABOR | B5: 7.002329885e+102 | C5: 4.90560549e+95 | D5: 2.691588029e+100 | E5: 7.002329885e+102 | F5: 1e+100 | G5: 2.947815732e+97 | H5: 5.845233616e+107 | I5: 1e+100 | J5: =AG21 -> 0.9999998909 | L5: LABOR | M5: 4.354626098e+61 | N5: 2.344500143e+57 | O5: 3.38406546e+67 | P5: 5.088107779e+62 | Q5: 4.779226841e+61 | R5: 8.230490654e+62 | S5: 1.565357083e+76 | T5: 9.05942279e+58 | U5: =SUM(N5:T5) -> 1.565357086e+76 | W5: LABOR | X5: 4.354626098e+61 | Y5: 3.346572528e+64 | Z5: 8.837693289e+69 | AA5: 1.019577382e+63 | AB5: 6.710787758e+64 | AC5: 3.920506379e+68 | AD5: 1.565394686e+76 | AE5: 5.295571563e+66
A6: NPK | B6: 2.887184112e+109 | C6: 9.419888085e+109 | D6: 1.388130005e+114 | E6: 3.174903782e+114 | F6: 6.909632836e+111 | G6: 6.604521165e+123 | H6: 1.354052753e+116 | I6: 4.371105721e+115 | L6: NPK | M6: 1.795489143e+68 | N6: 4.501978198e+71 | O6: 1.745260698e+81 | P6: 2.306982518e+74 | Q6: 3.302270272e+73 | R6: 1.844024684e+89 | S6: 3.626161428e+84 | T6: 3.959969479e+74 | U6: 1.844060963e+89 | W6: NPK | X6: 1.795489143e+68 | Y6: 5.881828978e+71 | Z6: 1.745415432e+81 | AA6: 3.315729805e+74 | AB6: 2.184138444e+76 | AC6: 1.844024685e+89 | AD6: 1.768694783e+92 | AE6: 5.983315122e+82
A7: PROD | B7: 6.67 | C7: 5.84 | D7: 4.55 | E7: 6.35 | F7: 5.84 | G7: 4.91 | H7: 4.28 | I7: 6.62
A8: AREA | B8: 1.7 | C8: 1.7 | D8: 1.7 | E8: 1.7 | F8: 1.7 | G8: 1.7 | H8: 1.7 | I8: 1.7
A9: LABOR | B9: 114 | C9: 82 | D9: 102 | E9: 114 | F9: 100 | G9: 89 | H9: 143 | I9: 100
A10: NPK | B10: 154.6 | C10: 158.3 | D10: 191.8 | E10: 195 | F10: 172.5 | G10: 299.5 | H10: 210.2 | I10: 205.5
W12: AREA | Y12: =Y4-X4 -> 3.180907651e-27 | Z12: 1.256019524e-21 | AA12: -1.25602261e-21 | AB12: 7.860658704e-27 | AC12: 5.577772022e-23 | AD12: 6.236879852e-20 | AE12: -6.242458418e-20 | AF12: =SUM(Y12:AE12) -> 2.206352567e-29 | AG12: =AF12/U4 -> 2.3608027e-09
B13: 1 | C13: 2 | D13: 3 | E13: 4 | F13: 5 | G13: 6 | H13: 7 | I13: 8 | M13: 1 | N13: 2 | O13: 3 | P13: 4 | Q13: 5 | R13: 6 | S13: 7 | T13: 8 | W13: LABOR | Y13: 3.342217902e+64 | Z13: 8.837659823e+69 | AA13: -8.837692269e+69 | AB13: 6.60883002e+64 | AC13: 3.9198353e+68 | AD13: 1.565394647e+76 | AE13: -1.565394686e+76 | AF13: =SUM(Y13:AE13) -> 5.295529342e+66 | AG13: =AF13/U5 -> 3.382952931e-10
A14: 1 | B14: =B3 -> 1.608020925e+41 | C14: =-B14 -> -1.608020925e+41 | D14: 0 | E14: 0 | F14: 0 | G14: 0 | H14: 0 | I14: 0 | L14: 1 | M14: =MMULT(B14:I21,B26:I33) -> 1 | N14: -768.5096765 | O14: 0 | P14: 0 | Q14: 0 | R14: 0 | S14: 0 | T14: 0 | W14: NPK | Y14: 5.880033489e+71 | Z14: 1.745415431e+81 | AA14: -1.7454151e+81 | AB14: 2.150981146e+76 | AC14: 1.844024685e+89 | AD14: 1.766850758e+92 | AE14: -1.768694782e+92 | AF14: 5.983315943e+82 | AG14: =AF14/U6 -> 3.244641074e-07
A15: 2 | B15: 0 | C15: =C3 -> 2.09238865e+38 | D15: =-C15 -> -2.09238865e+38 | E15: 0 | F15: 0 | G15: 0 | H15: 0 | I15: 0 | L15: 2 | M15: 0 | N15: 1 | O15: -263070.7257 | P15: 0 | Q15: 0 | R15: 0 | S15: 0 | T15: 0 | AG15: =AVERAGE(AG12:AG14) -> 1.090544018e-07
A16: 3 | B16: 0 | C16: 0 | D16: =D3 -> 7.953711478e+32 | E16: =-D16 -> -7.953711478e+32 | F16: 0 | G16: 0 | H16: 0 | I16: 0 | L16: 3 | M16: 0 | N16: 0 | O16: 1 | P16: -5.779410841e-08 | Q16: 0 | R16: 0 | S16: 0 | T16: 0
A17: 4 | B17: 0 | C17: 0 | D17: 0 | E17: =E3 -> 1.376214929e+40 | F17: =-E17 -> -1.376214929e+40 | G17: 0 | H17: 0 | I17: 0 | L17: 4 | M17: 0 | N17: 0 | O17: 0 | P17: 1 | Q17: -65.77243327 | R17: 0 | S17: 0 | T17: 0
A18: 5 | B18: 0 | C18: 0 | D18: 0 | E18: 0 | F18: =F3 -> 2.09238865e+38 | G18: =-F18 -> -2.09238865e+38 | H18: 0 | I18: 0 | L18: 5 | M18: 0 | N18: 0 | O18: 0 | P18: 0 | Q18: 1 | R18: -5842.083359 | S18: 0 | T18: 0 | W18: AREA | Y18: =N4-Y12 -> -1.589418387e-27 | Z18: -8.373452882e-22 | AA18: 1.256022634e-21 | AB18: -6.26916944e-27 | AC18: -4.648010728e-23 | AD18: -5.345100078e-20 | AE18: 6.242458418e-20 | AF18: 9.34577278e-21 | AG18: =AF18/U4 -> 0.9999999976
A19: 6 | B19: 0 | C19: 0 | D19: 0 | E19: 0 | F19: 0 | G19: =G3 -> 3.581579587e+34 | H19: =-G19 -> -3.581579587e+34 | I19: 0 | L19: 6 | M19: 0 | N19: 0 | O19: 0 | P19: 0 | Q19: 0 | R19: 1 | S19: -959.1491704 | T19: 0 | W19: LABOR | Y19: -3.342217668e+64 | Z19: -8.803819169e+69 | AA19: 8.837692778e+69 | AB19: -6.604050793e+64 | AC19: -3.91982707e+68 | AD19: -3.756429935e+71 | AE19: 1.565394686e+76 | AF19: 1.565357085e+76 | AG19: =AF19/U5 -> 0.9999999997
A20: 7 | B20: 0 | C20: 0 | D20: 0 | E20: 0 | F20: 0 | G20: 0 | H20: =H3 -> 3.73412155e+31 | I20: =-H20 -> -3.73412155e+31 | L20: 7 | M20: 0 | N20: 0 | O20: 0 | P20: 0 | Q20: 0 | R20: 0 | S20: 1 | T20: -3.382898587e-10 | W20: NPK | Y20: -1.378055291e+71 | Z20: -1.547331136e+77 | AA20: 1.745415331e+81 | AB20: -2.147678875e+76 | AC20: -1.275773267e+80 | AD20: -1.766850722e+92 | AE20: 1.768694782e+92 | AF20: 1.844060364e+89 | AG20: =AF20/U6 -> 0.9999996755
A21: 8 | B21: 0 | C21: 0 | D21: 0 | E21: 0 | F21: 0 | G21: 0 | H21: 0 | I21: =I3 -> 1.103823084e+41 | L21: 8 | M21: 0 | N21: 0 | O21: 0 | P21: 0 | Q21: 0 | R21: 0 | S21: 0 | T21: 1 | AG21: =AVERAGE(AG18:AG20) -> 0.9999998909
B25: 1 | C25: 2 | D25: 3 | E25: 4 | F25: 5 | G25: 6 | H25: 7 | I25: 8 | M25: 1 | N25: 2 | O25: 3 | P25: 4 | Q25: 5 | R25: 6 | S25: 7 | T25: 8
A26: 1 | B26: =1/B3 -> 6.218824547e-42 | C26: 0 | D26: 0 | E26: 0 | F26: 0 | G26: 0 | H26: 0 | I26: 0 | L26: 1 | M26: =MINVERSE(M14:T21) -> 1 | N26: 768.5096765 | O26: 202172398.3 | P26: 11.6843735 | Q26: 768.5096765 | R26: 4489697.592 | S26: 4306289721 | T26: 1.456774141
A27: 2 | B27: 0 | C27: =1/C3 -> 4.779226841e-39 | D27: 0 | E27: 0 | F27: 0 | G27: 0 | H27: 0 | I27: 0 | L27: 2 | M27: 0 | N27: 1 | O27: 263070.7257 | P27: 0.01520393804 | Q27: 1 | R27: 5842.083359 | S27: 5603429.407 | T27: 0.001895583342
A28: 3 | B28: 0 | C28: 0 | D28: =1/D3 -> 1.257274673e-33 | E28: 0 | F28: 0 | G28: 0 | H28: 0 | I28: 0 | L28: 3 | M28: 0 | N28: 0 | O28: 1 | P28: 5.779410841e-08 | Q28: 3.801259139e-06 | R28: 0.02220727275 | S28: 21.30008724 | T28: 7.205603503e-09
A29: 4 | B29: 0 | C29: 0 | D29: 0 | E29: =1/E3 -> 7.266306877e-41 | F29: 0 | G29: 0 | H29: 0 | I29: 0 | L29: 4 | M29: 0 | N29: 0 | O29: 0 | P29: 1 | Q29: 65.77243327 | R29: 384248.0378 | S29: 368551186.7 | T29: 0.1246771289
A30: 5 | B30: 0 | C30: 0 | D30: 0 | E30: 0 | F30: =1/F3 -> 4.779226841e-39 | G30: 0 | H30: 0 | I30: 0 | L30: 5 | M30: 0 | N30: 0 | O30: 0 | P30: 0 | Q30: 1 | R30: 5842.083359 | S30: 5603429.407 | T30: 0.001895583342
A31: 6 | B31: 0 | C31: 0 | D31: 0 | E31: 0 | F31: 0 | G31: =1/G3 -> 2.79206416e-35 | H31: 0 | I31: 0 | L31: 6 | M31: 0 | N31: 0 | O31: 0 | P31: 0 | Q31: 0 | R31: 1 | S31: 959.1491704 | T31: 3.244704373e-07
A32: 7 | B32: 0 | C32: 0 | D32: 0 | E32: 0 | F32: 0 | G32: 0 | H32: =1/H3 -> 2.678006022e-32 | I32: 0 | L32: 7 | M32: 0 | N32: 0 | O32: 0 | P32: 0 | Q32: 0 | R32: 0 | S32: 1 | T32: 3.382898587e-10
A33: 8 | B33: 0 | C33: 0 | D33: 0 | E33: 0 | F33: 0 | G33: 0 | H33: 0 | I33: =1/I3 -> 9.05942279e-42 | L33: 8 | M33: 0 | N33: 0 | O33: 0 | P33: 0 | Q33: 0 | R33: 0 | S33: 0 | T33: 1
A37: INF | B37: POST
A38: 1 | B38: 500
A39: N | B39: PI-I | C39: PI-II
A40: 0.1 | B40: 0.9800829986 | C40: 0.01991700137
A41: 0.2 | B41: 0.9601874985 | C41: 0.03981250149
A42: 0.3 | B42: 0.9403210726 | C42: 0.05967892738
A43: 0.4 | B43: 0.9204919262 | C43: 0.07950807379
A44: 0.5 | B44: 0.9007088822 | C44: 0.09929111781
A45: 0.6 | B45: 0.8809813606 | C45: 0.1190186394
A46: 0.7 | B46: 0.8613193517 | C46: 0.1386806483
A47: 0.8 | B47: 0.8417333834 | C47: 0.1582666166
A48: 0.9 | B48: 0.8222344821 | C48: 0.1777655179
A49: 1 | B49: 0.8028341271 | C49: 0.1971658729
A50: 1.1 | B50: 0.7835442 | C50: 0.2164558
A51: 1.2 | B51: 0.7643769275 | C51: 0.2356230725
A52: 1.3 | B52: 0.7453448196 | C52: 0.2546551804
A53: 1.4 | B53: 0.7264606031 | C53: 0.2735393969
A54: 1.5 | B54: 0.7077371506 | C54: 0.2922628494
A55: 1.6 | B55: 0.6891874062 | C55: 0.3108125938
A56: 1.7 | B56: 0.6708243091 | C56: 0.3291756909
A57: 1.8 | B57: 0.6526607145 | C57: 0.3473392855
A58: 1.9 | B58: 0.6347093148 | C58: 0.3652906852
A59: 2 | B59: 0.6169825599 | C59: 0.3830174401
A60: 2.1 | B60: 0.5994925791 | C60: 0.4005074209
A61: 2.2 | B61: 0.5822511051 | C61: 0.4177488949
A62: 2.3 | B62: 0.5652694011 | C62: 0.4347305989
A63: 2.4 | B63: 0.5485581914 | C63: 0.4514418086
A64: 2.5 | B64: 0.532127598 | C64: 0.467872402
A65: 2.6 | B65: 0.5159870814 | C65: 0.4840129186
A66: 2.7 | B66: 0.500145389 | C66: 0.499854611
A67: 2.8 | B67: 0.4846105101 | C67: 0.5153894899
A68: 2.9 | B68: 0.4693896379 | C68: 0.5306103621
A69: 3 | B69: 0.4544891398 | C69: 0.5455108602
A70: 3.1 | B70: 0.4399145355 | C70: 0.5600854645
A71: 3.2 | B71: 0.425670483 | C71: 0.574329517
A72: 3.3 | B72: 0.4117607726 | C72: 0.5882392274
A73: 3.4 | B73: 0.3981883283 | C73: 0.6018116717
A74: 3.5 | B74: 0.3849552175 | C74: 0.6150447825
A75: 3.6 | B75: 0.3720626662 | C75: 0.6279373338
A76: 3.7 | B76: 0.3595110817 | C76: 0.6404889183
A77: 3.8 | B77: 0.3473000807 | C77: 0.6526999193
A78: 3.9 | B78: 0.3354285227 | C78: 0.6645714773
A79: 4 | B79: 0.323894547 | C79: 0.676105453
A80: 4.1 | B80: 0.3126956148 | C80: 0.6873043852
A81: 4.2 | B81: 0.3018285528 | C81: 0.6981714472
A82: 4.3 | B82: 0.2912896 | C82: 0.7087104
A83: 4.4 | B83: 0.2810744556 | C83: 0.7189255444
A84: 4.5 | B84: 0.2711783279 | C84: 0.7288216721
A85: 4.6 | B85: 0.2615959835 | C85: 0.7384040165
A86: 4.7 | B86: 0.2523217956 | C86: 0.7476782044
A87: 4.8 | B87: 0.2433497929 | C87: 0.7566502071
A88: 4.9 | B88: 0.2346737056 | C88: 0.7653262944
A89: 5 | B89: 0.2262870108 | C89: 0.7737129892
A90: 5.1 | B90: 0.2181829758 | C90: 0.7818170242
A91: 5.2 | B91: 0.2103546991 | C91: 0.7896453009
A92: 5.3 | B92: 0.2027951488 | C92: 0.7972048512
A93: 5.4 | B93: 0.1954971993 | C93: 0.8045028007
A94: 5.5 | B94: 0.1884536641 | C94: 0.8115463359
A95: 5.6 | B95: 0.1816573275 | C95: 0.8183426725
A96: 5.7 | B96: 0.175100972 | C96: 0.824899028
A97: 5.8 | B97: 0.1687774046 | C97: 0.8312225954
A98: 5.9 | B98: 0.1626794795 | C98: 0.8373205205
A99: 6 | B99: 0.1568001188 | C99: 0.8431998812
A100: 6.1 | B100: 0.1511323306 | C100: 0.8488676694
A101: 6.2 | B101: 0.1456692249 | C101: 0.8543307751
A102: 6.3 | B102: 0.1404040276 | C102: 0.8595959724
A103: 6.4 | B103: 0.1353300922 | C103: 0.8646699078
A104: 6.5 | B104: 0.1304409097 | C104: 0.8695590903
A105: 6.6 | B105: 0.1257301167 | C105: 0.8742698833
A106: 6.7 | B106: 0.1211915025 | C106: 0.8788084975
A107: 6.8 | B107: 0.1168190138 | C107: 0.8831809862
A108: 6.9 | B108: 0.1126067588 | C108: 0.8873932412
A109: 7 | B109: 0.1085490103 | C109: 0.8914509897
A110: 7.1 | B110: 0.1046402066 | C110: 0.8953597934
A111: 7.2 | B111: 0.1008749532 | C111: 0.8991250468
A112: 7.3 | B112: 0.09724802207 | C112: 0.9027519779
A113: 7.4 | B113: 0.09375435096 | C113: 0.906245649
A114: 7.5 | B114: 0.09038904223 | C114: 0.9096109578
A115: 7.6 | B115: 0.0871473607 | C115: 0.9128526393
A116: 7.7 | B116: 0.0840247313 | C116: 0.9159752687
A117: 7.8 | B117: 0.08101673621 | C117: 0.9189832638
A118: 7.9 | B118: 0.07811911177 | C118: 0.9218808882
A119: 8 | B119: 0.07532774505 | C119: 0.924672255
A120: 8.1 | B120: 0.07263867023 | C120: 0.9273613298
A121: 8.2 | B121: 0.07004806486 | C121: 0.9299519351
A122: 8.3 | B122: 0.06755224589 | C122: 0.9324477541
A123: 8.4 | B123: 0.06514766572 | C123: 0.9348523343
A124: 8.5 | B124: 0.06283090813 | C124: 0.9371690919
A125: 8.6 | B125: 0.0605986842 | C125: 0.9394013158
A126: 8.7 | B126: 0.05844782825 | C126: 0.9415521718
A127: 8.8 | B127: 0.05637529372 | C127: 0.9436247063
A128: 8.9 | B128: 0.05437814921 | C128: 0.9456218508
A129: 9 | B129: 0.05245357447 | C129: 0.9475464255
A130: 9.1 | B130: 0.05059885647 | C130: 0.9494011435
A131: 9.2 | B131: 0.04881138558 | C131: 0.9511886144
A132: 9.3 | B132: 0.04708865183 | C132: 0.9529113482
A133: 9.4 | B133: 0.04542824118 | C133: 0.9545717588
A134: 9.5 | B134: 0.04382783202 | C134: 0.956172168
A135: 9.6 | B135: 0.04228519165 | C135: 0.9577148083
A136: 9.7 | B136: 0.04079817295 | C136: 0.9592018271
A137: 9.8 | B137: 0.03936471103 | C137: 0.960635289
A138: 9.9 | B138: 0.03798282018 | C138: 0.9620171798
A139: 10 | B139: 0.03665059072 | C139: 0.9633494093
A140: 10.1 | B140: 0.03536618608 | C140: 0.9646338139
A141: 10.2 | B141: 0.03412783995 | C141: 0.9658721601
A142: 10.3 | B142: 0.03293385354 | C142: 0.9670661465
A143: 10.4 | B143: 0.03178259291 | C143: 0.9682174071
A144: 10.5 | B144: 0.03067248644 | C144: 0.9693275136
A145: 10.6 | B145: 0.02960202238 | C145: 0.9703979776
A146: 10.7 | B146: 0.02856974648 | C146: 0.9714302535
A147: 10.8 | B147: 0.02757425972 | C147: 0.9724257403
A148: 10.9 | B148: 0.02661421616 | C148: 0.9733857838
A149: 11 | B149: 0.02568832081 | C149: 0.9743116792
A150: 11.1 | B150: 0.02479532766 | C150: 0.9752046723
A151: 11.2 | B151: 0.0239340377 | C151: 0.9760659623
A152: 11.3 | B152: 0.02310329714 | C152: 0.9768967029
A153: 11.4 | B153: 0.02230199558 | C153: 0.9776980044
A154: 11.5 | B154: 0.02152906431 | C154: 0.9784709357
A155: 11.6 | B155: 0.0207834747 | C155: 0.9792165253
A156: 11.7 | B156: 0.02006423662 | C156: 0.9799357634
A157: 11.8 | B157: 0.01937039693 | C157: 0.9806296031
A158: 11.9 | B158: 0.01870103805 | C158: 0.981298962
A159: 12 | B159: 0.01805527655 | C159: 0.9819447235
A160: 12.1 | B160: 0.01743226185 | C160: 0.9825677381
A161: 12.2 | B161: 0.01683117496 | C161: 0.983168825
A162: 12.3 | B162: 0.0162512272 | C162: 0.9837487728
A163: 12.4 | B163: 0.01569165908 | C163: 0.9843083409
A164: 12.5 | B164: 0.01515173916 | C164: 0.9848482608
A165: 12.6 | B165: 0.01463076298 | C165: 0.985369237
A166: 12.7 | B166: 0.01412805201 | C166: 0.985871948
A167: 12.8 | B167: 0.01364295265 | C167: 0.9863570473
A168: 12.9 | B168: 0.01317483533 | C168: 0.9868251647
A169: 13 | B169: 0.01272309352 | C169: 0.9872769065
A170: 13.1 | B170: 0.01228714291 | C170: 0.9877128571
A171: 13.2 | B171: 0.01186642054 | C171: 0.9881335795
A172: 13.3 | B172: 0.01146038402 | C172: 0.988539616
A173: 13.4 | B173: 0.01106851071 | C173: 0.9889314893
A174: 13.5 | B174: 0.01069029701 | C174: 0.989309703
A175: 13.6 | B175: 0.01032525762 | C175: 0.9896747424
A176: 13.7 | B176: 0.00997292489 | C176: 0.9900270751
A177: 13.8 | B177: 0.009632848106 | C177: 0.9903671519
A178: 13.9 | B178: 0.009304592902 | C178: 0.9906954071
A179: 14 | B179: 0.008987740625 | C179: 0.9910122594
A180: 14.1 | B180: 0.008681887759 | C180: 0.9913181122
A181: 14.2 | B181: 0.00838664536 | C181: 0.9916133546
A182: 14.3 | B182: 0.008101638514 | C182: 0.9918983615
A183: 14.4 | B183: 0.007826505818 | C183: 0.9921734942
A184: 14.5 | B184: 0.007560898878 | C184: 0.9924391011
A185: 14.6 | B185: 0.007304481834 | C185: 0.9926955182
A186: 14.7 | B186: 0.007056930892 | C186: 0.9929430691
A187: 14.8 | B187: 0.00681793388 | C187: 0.9931820661
A188: 14.9 | B188: 0.006587189827 | C188: 0.9934128102
A189: 15 | B189: 0.006364408542 | C189: 0.9936355915
A190: 15.1 | B190: 0.006149310228 | C190: 0.9938506898
A191: 15.2 | B191: 0.005941625096 | C191: 0.9940583749
A192: 15.3 | B192: 0.005741093 | C192: 0.994258907
A193: 15.4 | B193: 0.005547463085 | C193: 0.9944525369
A194: 15.5 | B194: 0.005360493452 | C194: 0.9946395065
A195: 15.6 | B195: 0.005179950824 | C195: 0.9948200492
A196: 15.7 | B196: 0.005005610238 | C196: 0.9949943898
A197: 15.8 | B197: 0.004837254744 | C197: 0.9951627453
A198: 15.9 | B198: 0.004674675109 | C198: 0.9953253249
A199: 16 | B199: 0.00451766954 | C199: 0.9954823305
A200: 16.1 | B200: 0.004366043415 | C200: 0.9956339566
A201: 16.2 | B201: 0.004219609023 | C201: 0.995780391
A202: 16.3 | B202: 0.004078185313 | C202: 0.9959218147
A203: 16.4 | B203: 0.003941597656 | C203: 0.9960584023
A204: 16.5 | B204: 0.003809677611 | C204: 0.9961903224
A205: 16.6 | B205: 0.003682262702 | C205: 0.9963177373
A206: 16.7 | B206: 0.003559196204 | C206: 0.9964408038
A207: 16.8 | B207: 0.003440326937 | C207: 0.9965596731
... 332 more rows

Sheet Farm9
A1: YEARDUM | B1: 1 | C1: 2 | D1: 3 | E1: 4 | F1: 5 | G1: 6 | H1: 7 | I1: 8 | J1: MULT | M1: 1 | N1: 2 | O1: 3 | P1: 4 | Q1: 5 | R1: 6 | S1: 7 | T1: 8 | X1: 1 | Y1: 2 | Z1: 3 | AA1: 4 | AB1: 5 | AC1: 6 | AD1: 7 | AE1: 8
A2: FMERCODE | B2: 1 | C2: 1 | D2: 1 | E2: 1 | F2: 1 | G2: 1 | H2: 1 | I2: 1 | J2: 500 | K2: =J2/10 -> 50
A3: PROD | B3: =B7:I10^K2 -> 1.546647583e+48 | C3: 5.751943082e+49 | D3: 5.751943082e+49 | E3: 4.36136217e+47 | F3: 1.843336298e+46 | G3: 4.574437023e+44 | H3: 4.574437023e+44 | I3: 7.092598457e+46
A4: AREA | B4: 7.178979877e+23 | C4: 7.178979877e+23 | D4: 7.178979877e+23 | E4: 7.178979877e+23 | F4: 7.178979877e+23 | G4: 7.178979877e+23 | H4: 7.178979877e+23 | I4: 7.178979877e+23 | J4: =AG15 -> 0.2436348685 | L4: AREA | M4: =MMULT(B4:I6,B26:I33) -> 4.641639088e-25 | N4: 1.248096474e-26 | O4: 1.248096474e-26 | P4: 1.646040755e-24 | Q4: 3.894557866e-23 | R4: 1.569369048e-21 | S4: 1.569369048e-21 | T4: 1.012179094e-23 | U4: =SUM(N4:T4) -> 3.189476469e-21 | W4: AREA | X4: =MMULT(M4:T6,M26:T33) -> 4.641639088e-25 | Y4: 2.496192947e-26 | Z4: 3.744289421e-26 | AA4: 6.584163018e-24 | AB4: 1.947278933e-22 | AC4: 9.416214289e-21 | AD4: 1.098558334e-20 | AE4: 8.097432748e-23
A5: LABOR | B5: 1.637279277e+116 | C5: 1.606938044e+110 | D5: 2.890384588e+107 | E5: 1.637279277e+116 | F5: 4.752754903e+106 | G5: 1.125899907e+115 | H5: 2.180653753e+99 | I5: 8.955083012e+97 | J5: =AG21 -> 0.7563651315 | L5: LABOR | M5: 1.058598801e+68 | N5: 2.793730782e+60 | O5: 5.0250577e+57 | P5: 3.754054841e+68 | Q5: 2.578343902e+60 | R5: 2.461286277e+70 | S5: 4.7670429e+54 | T5: 1.262595517e+51 | U5: =SUM(N5:T5) -> 2.498826826e+70 | W5: LABOR | X5: 1.058598801e+68 | Y5: 2.84648311e+66 | Z5: 2.846483115e+66 | AA5: 7.508113373e+68 | AB5: 1.776431228e+70 | AC5: 7.404518057e+71 | AD5: 7.404518057e+71 | AE5: 4.775612457e+69
A6: NPK | B6: 1.141999984e+111 | C6: 3.818660267e+112 | D6: 1.432273837e+120 | E6: 1.326033471e+113 | F6: 1.291114435e+116 | G6: 6.654113565e+113 | H6: 1.801654793e+118 | I6: 5.976161776e+111 | L6: NPK | M6: 7.383711688e+62 | N6: 6.638904823e+62 | O6: 2.490069558e+70 | P6: 3.040411274e+65 | Q6: 7.004226178e+69 | R6: 1.454630052e+69 | S6: 3.938527919e+73 | T6: 8.42591303e+64 | U6: 3.941863913e+73 | W6: NPK | X6: 7.383711688e+62 | Y6: 6.837446423e+62 | Z6: 2.490069626e+70 | AA6: 3.284006127e+72 | AB6: 7.770709675e+73 | AC6: 3.131322561e+75 | AD6: 3.170707841e+75 | AE6: 2.044977378e+73
A7: PROD | B7: 9.2 | C7: 9.89 | D7: 9.89 | E7: 8.97 | F7: 8.42 | G7: 7.82 | H7: 7.82 | I7: 8.65
A8: AREA | B8: 3 | C8: 3 | D8: 3 | E8: 3 | F8: 3 | G8: 3 | H8: 3 | I8: 3
A9: LABOR | B9: 211 | C9: 160 | D9: 141 | E9: 211 | F9: 136 | G9: 200 | H9: 97 | I9: 91
A10: NPK | B10: 166.4 | C10: 178.5 | D10: 253 | E10: 183 | F10: 210 | G10: 189 | H10: 231.8 | I10: 172
W12: AREA | Y12: =Y4-X4 -> -4.392019793e-25 | Z12: 1.248096474e-26 | AA12: 6.546720124e-24 | AB12: 1.881437303e-22 | AC12: 9.221486396e-21 | AD12: 1.569369048e-21 | AE12: -1.090460901e-20 | AF12: =SUM(Y12:AE12) -> 8.051016357e-23 | AG12: =AF12/U4 -> 0.02524243849
B13: 1 | C13: 2 | D13: 3 | E13: 4 | F13: 5 | G13: 6 | H13: 7 | I13: 8 | M13: 1 | N13: 2 | O13: 3 | P13: 4 | Q13: 5 | R13: 6 | S13: 7 | T13: 8 | W13: LABOR | Y13: -1.03013397e+68 | Z13: 5.025057742e+57 | AA13: 7.479648541e+68 | AB13: 1.701350095e+70 | AC13: 7.226874935e+71 | AD13: 0 | AE13: -7.356761933e+71 | AF13: =SUM(Y13:AE13) -> 4.669752576e+69 | AG13: =AF13/U5 -> 0.1868777992
A14: 1 | B14: =B3 -> 1.546647583e+48 | C14: =-B14 -> -1.546647583e+48 | D14: 0 | E14: 0 | F14: 0 | G14: 0 | H14: 0 | I14: 0 | L14: 1 | M14: =MMULT(B14:I21,B26:I33) -> 1 | N14: -0.02688913227 | O14: 0 | P14: 0 | Q14: 0 | R14: 0 | S14: 0 | T14: 0 | W14: NPK | Y14: -5.462652649e+61 | Z14: 2.490069558e+70 | AA14: 3.259105431e+72 | AB14: 7.442309062e+73 | AC14: 3.053615465e+75 | AD14: 3.938527919e+73 | AE14: -3.150258067e+75 | AF14: 2.044977378e+73 | AG14: =AF14/U6 -> 0.5187843677
A15: 2 | B15: 0 | C15: =C3 -> 5.751943082e+49 | D15: =-C15 -> -5.751943082e+49 | E15: 0 | F15: 0 | G15: 0 | H15: 0 | I15: 0 | L15: 2 | M15: 0 | N15: 1 | O15: -1 | P15: 0 | Q15: 0 | R15: 0 | S15: 0 | T15: 0 | AG15: =AVERAGE(AG12:AG14) -> 0.2436348685
A16: 3 | B16: 0 | C16: 0 | D16: =D3 -> 5.751943082e+49 | E16: =-D16 -> -5.751943082e+49 | F16: 0 | G16: 0 | H16: 0 | I16: 0 | L16: 3 | M16: 0 | N16: 0 | O16: 1 | P16: -131.8840963 | Q16: 0 | R16: 0 | S16: 0 | T16: 0
A17: 4 | B17: 0 | C17: 0 | D17: 0 | E17: =E3 -> 4.36136217e+47 | F17: =-E17 -> -4.36136217e+47 | G17: 0 | H17: 0 | I17: 0 | L17: 4 | M17: 0 | N17: 0 | O17: 0 | P17: 1 | Q17: -23.66015455 | R17: 0 | S17: 0 | T17: 0
A18: 5 | B18: 0 | C18: 0 | D18: 0 | E18: 0 | F18: =F3 -> 1.843336298e+46 | G18: =-F18 -> -1.843336298e+46 | H18: 0 | I18: 0 | L18: 5 | M18: 0 | N18: 0 | O18: 0 | P18: 0 | Q18: 1 | R18: -40.29646246 | S18: 0 | T18: 0 | W18: AREA | Y18: =N4-Y12 -> 4.51682944e-25 | Z18: 0 | AA18: -4.90067937e-24 | AB18: -1.491981516e-22 | AC18: -7.652117347e-21 | AD18: 0 | AE18: 1.09147308e-20 | AF18: 3.108966305e-21 | AG18: =AF18/U4 -> 0.9747575615
A19: 6 | B19: 0 | C19: 0 | D19: 0 | E19: 0 | F19: 0 | G19: =G3 -> 4.574437023e+44 | H19: =-G19 -> -4.574437023e+44 | I19: 0 | L19: 6 | M19: 0 | N19: 0 | O19: 0 | P19: 0 | Q19: 0 | R19: 1 | S19: -1 | T19: 0 | W19: LABOR | Y19: 1.030133997e+68 | Z19: -4.212299115e+49 | AA19: -3.725593701e+68 | AB19: -1.701350094e+70 | AC19: -6.980746307e+71 | AD19: 4.7670429e+54 | AE19: 7.356761933e+71 | AF19: 2.031851568e+70 | AG19: =AF19/U5 -> 0.8131222008
A20: 7 | B20: 0 | C20: 0 | D20: 0 | E20: 0 | F20: 0 | G20: 0 | H20: =H3 -> 4.574437023e+44 | I20: =-H20 -> -4.574437023e+44 | L20: 7 | M20: 0 | N20: 0 | O20: 0 | P20: 0 | Q20: 0 | R20: 0 | S20: 1 | T20: -0.006449592559 | W20: NPK | Y20: 7.185170088e+62 | Z20: 0 | AA20: -3.259105127e+72 | AB20: -7.44160864e+73 | AC20: -3.05361401e+75 | AD20: -1.945901538e+59 | AE20: 3.150258067e+75 | AF20: 1.896886535e+73 | AG20: =AF20/U6 -> 0.4812156323
A21: 8 | B21: 0 | C21: 0 | D21: 0 | E21: 0 | F21: 0 | G21: 0 | H21: 0 | I21: =I3 -> 7.092598457e+46 | L21: 8 | M21: 0 | N21: 0 | O21: 0 | P21: 0 | Q21: 0 | R21: 0 | S21: 0 | T21: 1 | AG21: =AVERAGE(AG18:AG20) -> 0.7563651315
B25: 1 | C25: 2 | D25: 3 | E25: 4 | F25: 5 | G25: 6 | H25: 7 | I25: 8 | M25: 1 | N25: 2 | O25: 3 | P25: 4 | Q25: 5 | R25: 6 | S25: 7 | T25: 8
A26: 1 | B26: =1/B3 -> 6.465597017e-49 | C26: 0 | D26: 0 | E26: 0 | F26: 0 | G26: 0 | H26: 0 | I26: 0 | L26: 1 | M26: =MINVERSE(M14:T21) -> 1 | N26: 0.02688913227 | O26: 0.02688913227 | P26: 3.546248908 | Q26: 83.90479725 | R26: 3381.066512 | S26: 3381.066512 | T26: 21.80650142
A27: 2 | B27: 0 | C27: =1/C3 -> 1.738542934e-50 | D27: 0 | E27: 0 | F27: 0 | G27: 0 | H27: 0 | I27: 0 | L27: 2 | M27: 0 | N27: 1 | O27: 1 | P27: 131.8840963 | Q27: 3120.398101 | R27: 125741.0049 | S27: 125741.0049 | T27: 810.9782496
A28: 3 | B28: 0 | C28: 0 | D28: =1/D3 -> 1.738542934e-50 | E28: 0 | F28: 0 | G28: 0 | H28: 0 | I28: 0 | L28: 3 | M28: 0 | N28: 0 | O28: 1 | P28: 131.8840963 | Q28: 3120.398101 | R28: 125741.0049 | S28: 125741.0049 | T28: 810.9782496
A29: 4 | B29: 0 | C29: 0 | D29: 0 | E29: =1/E3 -> 2.292861636e-48 | F29: 0 | G29: 0 | H29: 0 | I29: 0 | L29: 4 | M29: 0 | N29: 0 | O29: 0 | P29: 1 | Q29: 23.66015455 | R29: 953.4205297 | S29: 953.4205297 | T29: 6.149173954
A30: 5 | B30: 0 | C30: 0 | D30: 0 | E30: 0 | F30: =1/F3 -> 5.424946068e-47 | G30: 0 | H30: 0 | I30: 0 | L30: 5 | M30: 0 | N30: 0 | O30: 0 | P30: 0 | Q30: 1 | R30: 40.29646246 | S30: 40.29646246 | T30: 0.2598957644
A31: 6 | B31: 0 | C31: 0 | D31: 0 | E31: 0 | F31: 0 | G31: =1/G3 -> 2.186061356e-45 | H31: 0 | I31: 0 | L31: 6 | M31: 0 | N31: 0 | O31: 0 | P31: 0 | Q31: 0 | R31: 1 | S31: 1 | T31: 0.006449592559
A32: 7 | B32: 0 | C32: 0 | D32: 0 | E32: 0 | F32: 0 | G32: 0 | H32: =1/H3 -> 2.186061356e-45 | I32: 0 | L32: 7 | M32: 0 | N32: 0 | O32: 0 | P32: 0 | Q32: 0 | R32: 0 | S32: 1 | T32: 0.006449592559
A33: 8 | B33: 0 | C33: 0 | D33: 0 | E33: 0 | F33: 0 | G33: 0 | H33: 0 | I33: =1/I3 -> 1.409920505e-47 | L33: 8 | M33: 0 | N33: 0 | O33: 0 | P33: 0 | Q33: 0 | R33: 0 | S33: 0 | T33: 1
A37: INF | B37: POST
A38: 1 | B38: 500
A39: N | B39: PI-I | C39: PI-II
A40: 0.1 | B40: 1.001941117 | C40: -0.001941116771
A41: 0.2 | B41: 1.003842435 | C41: -0.00384243485
A42: 0.3 | B42: 1.005700903 | C42: -0.005700902939
A43: 0.4 | B43: 1.007513416 | C43: -0.007513416307
A44: 0.5 | B44: 1.009276837 | C44: -0.009276837304
A45: 0.6 | B45: 1.010988017 | C45: -0.01098801664
A46: 0.7 | B46: 1.012643815 | C46: -0.01264381514
A47: 0.8 | B47: 1.014241126 | C47: -0.0142411258
A48: 0.9 | B48: 1.015776896 | C48: -0.01577689573
A49: 1 | B49: 1.017248148 | C49: -0.01724814779
A50: 1.1 | B50: 1.018652002 | C50: -0.01865200168
A51: 1.2 | B51: 1.019985694 | C51: -0.01998569406
A52: 1.3 | B52: 1.021246598 | C52: -0.02124659761
A53: 1.4 | B53: 1.022432239 | C53: -0.02243223876
A54: 1.5 | B54: 1.023540314 | C54: -0.02354031373
A55: 1.6 | B55: 1.024568703 | C55: -0.02456870298
A56: 1.7 | B56: 1.025515484 | C56: -0.02551548364
A57: 1.8 | B57: 1.02637894 | C57: -0.02637894001
A58: 1.9 | B58: 1.027157572 | C58: -0.02715757191
A59: 2 | B59: 1.027850101 | C59: -0.02785010098
A60: 2.1 | B60: 1.028455475 | C60: -0.02845547481
A61: 2.2 | B61: 1.028972869 | C61: -0.02897286893
A62: 2.3 | B62: 1.029401687 | C62: -0.02940168683
A63: 2.4 | B63: 1.029741558 | C63: -0.02974155797
A64: 2.5 | B64: 1.029992334 | C64: -0.02999233402
A65: 2.6 | B65: 1.030154083 | C65: -0.03015408328
A66: 2.7 | B66: 1.030227084 | C66: -0.0302270837
A67: 2.8 | B67: 1.030211814 | C67: -0.03021181437
A68: 2.9 | B68: 1.030108946 | C68: -0.03010894594
A69: 3 | B69: 1.02991933 | C69: -0.02991932995
A70: 3.1 | B70: 1.029643987 | C70: -0.02964398728
A71: 3.2 | B71: 1.029284096 | C71: -0.02928409604
A72: 3.3 | B72: 1.028840979 | C72: -0.02884097891
A73: 3.4 | B73: 1.02831609 | C73: -0.02831609019
A74: 3.5 | B74: 1.027711003 | C74: -0.0277110027
A75: 3.6 | B75: 1.027027395 | C75: -0.02702739461
A76: 3.7 | B76: 1.026267037 | C76: -0.02626703654
A77: 3.8 | B77: 1.025431779 | C77: -0.0254317787
A78: 3.9 | B78: 1.024523539 | C78: -0.02452353857
A79: 4 | B79: 1.023544289 | C79: -0.02354428889
A80: 4.1 | B80: 1.022496046 | C80: -0.02249604622
A81: 4.2 | B81: 1.02138086 | C81: -0.02138086006
A82: 4.3 | B82: 1.020200803 | C82: -0.02020080259
A83: 4.4 | B83: 1.018957959 | C83: -0.0189579591
A84: 4.5 | B84: 1.017654419 | C84: -0.01765441902
A85: 4.6 | B85: 1.016292268 | C85: -0.01629226775
A86: 4.7 | B86: 1.014873579 | C86: -0.01487357912
A87: 4.8 | B87: 1.013400409 | C87: -0.01340040856
A88: 4.9 | B88: 1.011874787 | C88: -0.01187478695
A89: 5 | B89: 1.010298715 | C89: -0.01029871518
A90: 5.1 | B90: 1.008674159 | C90: -0.008674159266
A91: 5.2 | B91: 1.007003046 | C91: -0.007003046162
A92: 5.3 | B92: 1.00528726 | C92: -0.005287260119
A93: 5.4 | B93: 1.00352864 | C93: -0.003528639604
A94: 5.5 | B94: 1.001728975 | C94: -0.00172897474
A95: 5.6 | B95: 0.9998900052 | C95: 0.0001099947705
A96: 5.7 | B96: 0.9980134187 | C96: 0.001986581276
A97: 5.8 | B97: 0.9961008496 | C97: 0.003899150391
A98: 5.9 | B98: 0.9941538782 | C98: 0.005846121834
A99: 6 | B99: 0.9921740301 | C99: 0.007825969922
A100: 6.1 | B100: 0.9901627762 | C100: 0.009837223755
A101: 6.2 | B101: 0.9881215329 | C101: 0.01187846712
A102: 6.3 | B102: 0.9860516618 | C102: 0.01394833817
A103: 6.4 | B103: 0.9839544712 | C103: 0.01604552881
A104: 6.5 | B104: 0.981831216 | C104: 0.01816878401
A105: 6.6 | B105: 0.9796830992 | C105: 0.02031690082
A106: 6.7 | B106: 0.9775112726 | C106: 0.02248872737
A107: 6.8 | B107: 0.9753168384 | C107: 0.02468316161
A108: 6.9 | B108: 0.9731008499 | C108: 0.02689915007
A109: 7 | B109: 0.9708643135 | C109: 0.0291356865
A110: 7.1 | B110: 0.9686081896 | C110: 0.03139181038
A111: 7.2 | B111: 0.9663333946 | C111: 0.03366660545
A112: 7.3 | B112: 0.9640408018 | C112: 0.03595919819
A113: 7.4 | B113: 0.9617312438 | C113: 0.03826875625
A114: 7.5 | B114: 0.9594055131 | C114: 0.0405944869
A115: 7.6 | B115: 0.9570643646 | C115: 0.04293563542
A116: 7.7 | B116: 0.9547085164 | C116: 0.04529148356
A117: 7.8 | B117: 0.9523386521 | C117: 0.04766134794
A118: 7.9 | B118: 0.9499554214 | C118: 0.05004457855
A119: 8 | B119: 0.9475594428 | C119: 0.05244055719
A120: 8.1 | B120: 0.945151304 | C120: 0.054848696
A121: 8.2 | B121: 0.942731564 | C121: 0.05726843597
A122: 8.3 | B122: 0.9403007544 | C122: 0.05969924556
A123: 8.4 | B123: 0.9378593808 | C123: 0.06214061925
A124: 8.5 | B124: 0.9354079238 | C124: 0.06459207624
A125: 8.6 | B125: 0.9329468409 | C125: 0.06705315914
A126: 8.7 | B126: 0.9304765673 | C126: 0.06952343268
A127: 8.8 | B127: 0.9279975175 | C127: 0.07200248251
A128: 8.9 | B128: 0.925510086 | C128: 0.07448991403
A129: 9 | B129: 0.9230146487 | C129: 0.07698535127
A130: 9.1 | B130: 0.9205115642 | C130: 0.07948843578
A131: 9.2 | B131: 0.9180011744 | C131: 0.08199882562
A132: 9.3 | B132: 0.9154838056 | C132: 0.08451619437
A133: 9.4 | B133: 0.9129597698 | C133: 0.08704023017
A134: 9.5 | B134: 0.9104293652 | C134: 0.08957063481
A135: 9.6 | B135: 0.9078928771 | C135: 0.09210712292
A136: 9.7 | B136: 0.9053505789 | C136: 0.09464942106
A137: 9.8 | B137: 0.9028027329 | C137: 0.09719726705
A138: 9.9 | B138: 0.9002495908 | C138: 0.09975040916
A139: 10 | B139: 0.8976913946 | C139: 0.1023086054
A140: 10.1 | B140: 0.895128377 | C140: 0.104871623
A141: 10.2 | B141: 0.8925607626 | C141: 0.1074392374
A142: 10.3 | B142: 0.8899887676 | C142: 0.1100112324
A143: 10.4 | B143: 0.8874126013 | C143: 0.1125873987
A144: 10.5 | B144: 0.8848324661 | C144: 0.1151675339
A145: 10.6 | B145: 0.8822485578 | C145: 0.1177514422
A146: 10.7 | B146: 0.8796610666 | C146: 0.1203389334
A147: 10.8 | B147: 0.8770701773 | C147: 0.1229298227
A148: 10.9 | B148: 0.8744760696 | C148: 0.1255239304
A149: 11 | B149: 0.8718789185 | C149: 0.1281210815
A150: 11.1 | B150: 0.8692788949 | C150: 0.1307211051
A151: 11.2 | B151: 0.8666761655 | C151: 0.1333238345
A152: 11.3 | B152: 0.8640708936 | C152: 0.1359291064
A153: 11.4 | B153: 0.861463239 | C153: 0.138536761
A154: 11.5 | B154: 0.8588533586 | C154: 0.1411466414
A155: 11.6 | B155: 0.8562414063 | C155: 0.1437585937
A156: 11.7 | B156: 0.8536275334 | C156: 0.1463724666
A157: 11.8 | B157: 0.8510118889 | C157: 0.1489881111
A158: 11.9 | B158: 0.8483946196 | C158: 0.1516053804
A159: 12 | B159: 0.8457758701 | C159: 0.1542241299
A160: 12.1 | B160: 0.8431557834 | C160: 0.1568442166
A161: 12.2 | B161: 0.8405345006 | C161: 0.1594654994
A162: 12.3 | B162: 0.8379121613 | C162: 0.1620878387
A163: 12.4 | B163: 0.8352889038 | C163: 0.1647110962
A164: 12.5 | B164: 0.8326648648 | C164: 0.1673351352
A165: 12.6 | B165: 0.8300401801 | C165: 0.1699598199
A166: 12.7 | B166: 0.8274149839 | C166: 0.1725850161
A167: 12.8 | B167: 0.8247894099 | C167: 0.1752105901
A168: 12.9 | B168: 0.8221635903 | C168: 0.1778364097
A169: 13 | B169: 0.8195376568 | C169: 0.1804623432
A170: 13.1 | B170: 0.81691174 | C170: 0.18308826
A171: 13.2 | B171: 0.8142859697 | C171: 0.1857140303
A172: 13.3 | B172: 0.811660475 | C172: 0.188339525
A173: 13.4 | B173: 0.8090353843 | C173: 0.1909646157
A174: 13.5 | B174: 0.8064108252 | C174: 0.1935891748
A175: 13.6 | B175: 0.8037869246 | C175: 0.1962130754
A176: 13.7 | B176: 0.8011638088 | C176: 0.1988361912
A177: 13.8 | B177: 0.7985416035 | C177: 0.2014583965
A178: 13.9 | B178: 0.7959204337 | C178: 0.2040795663
A179: 14 | B179: 0.7933004237 | C179: 0.2066995763
A180: 14.1 | B180: 0.7906816973 | C180: 0.2093183027
A181: 14.2 | B181: 0.7880643774 | C181: 0.2119356226
A182: 14.3 | B182: 0.7854485868 | C182: 0.2145514132
A183: 14.4 | B183: 0.782834447 | C183: 0.217165553
A184: 14.5 | B184: 0.7802220793 | C184: 0.2197779207
A185: 14.6 | B185: 0.7776116042 | C185: 0.2223883958
A186: 14.7 | B186: 0.7750031414 | C186: 0.2249968586
A187: 14.8 | B187: 0.7723968102 | C187: 0.2276031898
A188: 14.9 | B188: 0.7697927289 | C188: 0.2302072711
A189: 15 | B189: 0.7671910151 | C189: 0.2328089849
A190: 15.1 | B190: 0.7645917859 | C190: 0.2354082141
A191: 15.2 | B191: 0.7619951573 | C191: 0.2380048427
A192: 15.3 | B192: 0.7594012448 | C192: 0.2405987552
A193: 15.4 | B193: 0.7568101628 | C193: 0.2431898372
A194: 15.5 | B194: 0.7542220251 | C194: 0.2457779749
A195: 15.6 | B195: 0.7516369445 | C195: 0.2483630555
A196: 15.7 | B196: 0.7490550329 | C196: 0.2509449671
A197: 15.8 | B197: 0.7464764016 | C197: 0.2535235984
A198: 15.9 | B198: 0.7439011605 | C198: 0.2560988395
A199: 16 | B199: 0.7413294188 | C199: 0.2586705812
A200: 16.1 | B200: 0.7387612847 | C200: 0.2612387153
A201: 16.2 | B201: 0.7361968655 | C201: 0.2638031345
A202: 16.3 | B202: 0.7336362672 | C202: 0.2663637328
A203: 16.4 | B203: 0.7310795951 | C203: 0.2689204049
A204: 16.5 | B204: 0.7285269531 | C204: 0.2714730469
A205: 16.6 | B205: 0.7259784441 | C205: 0.2740215559
A206: 16.7 | B206: 0.7234341701 | C206: 0.2765658299
A207: 16.8 | B207: 0.7208942318 | C207: 0.2791057682
... 332 more rows

Sheet Farm10
A1: YEARDUM | B1: 1 | C1: 2 | D1: 3 | E1: 4 | F1: 5 | G1: 6 | H1: 7 | I1: 8 | J1: MULT | M1: 1 | N1: 2 | O1: 3 | P1: 4 | Q1: 5 | R1: 6 | S1: 7 | T1: 8 | X1: 1 | Y1: 2 | Z1: 3 | AA1: 4 | AB1: 5 | AC1: 6 | AD1: 7 | AE1: 8
A2: FMERCODE | B2: 1 | C2: 1 | D2: 1 | E2: 1 | F2: 1 | G2: 1 | H2: 1 | I2: 1 | J2: 500 | K2: =J2/10 -> 50
A3: PROD | B3: =B7:I10^K2 -> 2.5164349e+48 | C3: 4.204247106e+46 | D3: 1.996113726e+54 | E3: 3.159678143e+52 | F3: 6.219318291e+37 | G3: 1.676036163e+51 | H3: 5.307897922e+46 | I3: 8.901884806e+54
A4: AREA | B4: 3.749262535e+26 | C4: 3.749262535e+26 | D4: 3.749262535e+26 | E4: 8.23242323e+24 | F4: 3.69988485e+21 | G4: 3.69988485e+21 | H4: 3.69988485e+21 | I4: 3.69988485e+21 | J4: =AG15 -> -3.010448091e-05 | L4: AREA | M4: =MMULT(B4:I6,B26:I33) -> 1.489910403e-22 | N4: 8.917797743e-21 | O4: 1.878281025e-28 | P4: 2.6054626e-28 | Q4: 5.949019936e-17 | R4: 2.207520895e-30 | S4: 6.970527514e-26 | T4: 4.156293786e-34 | U4: =SUM(N4:T4) -> 5.949911723e-17 | W4: AREA | X4: =MMULT(M4:T6,M26:T33) -> 1.489910403e-22 | Y4: 1.783559549e-20 | Z4: 5.634843076e-28 | AA4: 3.58584366e-26 | AB4: 1.821767002e-11 | AC4: 6.760108215e-25 | AD4: 2.134596972e-20 | AE4: 1.272793355e-28
A5: LABOR | B5: 1.462384028e+114 | C5: 1.236458081e+109 | D5: 1.418738762e+112 | E5: 2.322024177e+108 | F5: 4.115448953e+107 | G5: 1.068308196e+106 | H5: 4.391890959e+112 | I5: 1.016984434e+116 | J5: =AG21 -> 1.000030104 | L5: LABOR | M5: 5.811332645e+65 | N5: 2.940973853e+62 | O5: 7.107504665e+57 | P5: 7.34892629e+55 | Q5: 6.617202658e+69 | R5: 6.374016382e+54 | S5: 8.274256634e+65 | T5: 1.142437198e+61 | U5: =SUM(N5:T5) -> 6.618030389e+69 | W5: LABOR | X5: 5.811332645e+65 | Y5: 3.478378783e+67 | Z5: 7.397292858e+59 | AA5: 4.673216814e+61 | AB5: 2.374193513e+76 | AC5: 8.809992035e+62 | AD5: 2.864609412e+67 | AE5: 1.159517912e+61
A6: NPK | B6: 1.677184685e+120 | C6: 1.430447205e+125 | D6: 3.884380598e+122 | E6: 1.432273837e+120 | F6: 4.242805874e+122 | G6: 1.340869277e+123 | H6: 9.803918421e+125 | I6: 1.956147923e+125 | L6: NPK | M6: 6.664923796e+71 | N6: 3.402386133e+78 | O6: 1.945971589e+68 | P6: 4.532973841e+67 | Q6: 6.821978994e+84 | R6: 8.000240728e+71 | S6: 1.847043512e+79 | T6: 2.197453646e+70 | U6: 6.822000867e+84 | W6: NPK | X6: 6.664923796e+71 | Y6: 3.402426026e+78 | Z6: 7.185704599e+70 | AA6: 4.539584779e+72 | AB6: 2.313124074e+87 | AC6: 8.663382158e+73 | AD6: 2.120600804e+79 | AE6: 1.484189114e+71
A7: PROD | B7: 9.29 | C7: 8.56 | D7: 12.19 | E7: 11.22 | F7: 5.7 | G7: 10.58 | H7: 8.6 | I7: 12.56
A8: AREA | B8: 3.4 | C8: 3.4 | D8: 3.4 | E8: 3.15 | F8: 2.7 | G8: 2.7 | H8: 2.7 | I8: 2.7
A9: LABOR | B9: 192 | C9: 152 | D9: 175 | E9: 147 | F9: 142 | G9: 132 | H9: 179 | I9: 209
A10: NPK | B10: 253.8 | C10: 318.5 | D10: 283 | E10: 253 | F10: 283.5 | G10: 290.1 | H10: 331 | I10: 320.5
W12: AREA | Y12: =Y4-X4 -> 1.768660445e-20 | Z12: -1.783559492e-20 | AA12: 3.529495229e-26 | AB12: 1.821767002e-11 | AC12: -1.821767002e-11 | AD12: 2.134529371e-20 | AE12: -2.13459696e-20 | AF12: =SUM(Y12:AE12) -> -1.489900136e-22 | AG12: =AF12/U4 -> -2.504070994e-06
B13: 1 | C13: 2 | D13: 3 | E13: 4 | F13: 5 | G13: 6 | H13: 7 | I13: 8 | M13: 1 | N13: 2 | O13: 3 | P13: 4 | Q13: 5 | R13: 6 | S13: 7 | T13: 8 | W13: LABOR | Y13: 3.420265456e+67 | Z13: -3.478378709e+67 | AA13: 4.599243885e+61 | AB13: 2.374193513e+76 | AC13: -2.374193513e+76 | AD13: 2.864521312e+67 | AE13: -2.864608252e+67 | AF13: =SUM(Y13:AE13) -> -5.811250902e+65 | AG13: =AF13/U5 -> -8.780937167e-05
A14: 1 | B14: =B3 -> 2.5164349e+48 | C14: =-B14 -> -2.5164349e+48 | D14: 0 | E14: 0 | F14: 0 | G14: 0 | H14: 0 | I14: 0 | L14: 1 | M14: =MMULT(B14:I21,B26:I33) -> 1 | N14: -59.85459077 | O14: 0 | P14: 0 | Q14: 0 | R14: 0 | S14: 0 | T14: 0 | W14: NPK | Y14: 3.402425359e+78 | Z14: -3.402425954e+78 | AA14: 4.467727733e+72 | AB14: 2.313124074e+87 | AC14: -2.313124074e+87 | AD14: 2.120592141e+79 | AE14: -2.120600789e+79 | AF14: -3.516082643e+71 | AG14: =AF14/U6 -> -5.154034295e-14
A15: 2 | B15: 0 | C15: =C3 -> 4.204247106e+46 | D15: =-C15 -> -4.204247106e+46 | E15: 0 | F15: 0 | G15: 0 | H15: 0 | I15: 0 | L15: 2 | M15: 0 | N15: 1 | O15: -2.10621622e-08 | P15: 0 | Q15: 0 | R15: 0 | S15: 0 | T15: 0 | AG15: =AVERAGE(AG12:AG14) -> -3.010448091e-05
A16: 3 | B16: 0 | C16: 0 | D16: =D3 -> 1.996113726e+54 | E16: =-D16 -> -1.996113726e+54 | F16: 0 | G16: 0 | H16: 0 | I16: 0 | L16: 3 | M16: 0 | N16: 0 | O16: 1 | P16: -63.17459042 | Q16: 0 | R16: 0 | S16: 0 | T16: 0
A17: 4 | B17: 0 | C17: 0 | D17: 0 | E17: =E3 -> 3.159678143e+52 | F17: =-E17 -> -3.159678143e+52 | G17: 0 | H17: 0 | I17: 0 | L17: 4 | M17: 0 | N17: 0 | O17: 0 | P17: 1 | Q17: -5.08042521e+14 | R17: 0 | S17: 0 | T17: 0
A18: 5 | B18: 0 | C18: 0 | D18: 0 | E18: 0 | F18: =F3 -> 6.219318291e+37 | G18: =-F18 -> -6.219318291e+37 | H18: 0 | I18: 0 | L18: 5 | M18: 0 | N18: 0 | O18: 0 | P18: 0 | Q18: 1 | R18: -3.71073037e-14 | S18: 0 | T18: 0 | W18: AREA | Y18: =N4-Y12 -> -8.768806703e-21 | Z18: 1.783559511e-20 | AA18: -3.503440603e-26 | AB18: -1.821761053e-11 | AC18: 1.821767002e-11 | AD18: -2.134522401e-20 | AE18: 2.13459696e-20 | AF18: 5.949926622e-17 | AG18: =AF18/U4 -> 1.000002504
A19: 6 | B19: 0 | C19: 0 | D19: 0 | E19: 0 | F19: 0 | G19: =G3 -> 1.676036163e+51 | H19: =-G19 -> -1.676036163e+51 | I19: 0 | L19: 6 | M19: 0 | N19: 0 | O19: 0 | P19: 0 | Q19: 0 | R19: 1 | S19: -31576.2697 | T19: 0 | W19: LABOR | Y19: -3.420236046e+67 | Z19: 3.478378709e+67 | AA19: -4.599236536e+61 | AB19: -2.374192851e+76 | AC19: 2.374193513e+76 | AD19: -2.781778746e+67 | AE19: 2.864609395e+67 | AF19: 6.618611513e+69 | AG19: =AF19/U5 -> 1.000087809
A20: 7 | B20: 0 | C20: 0 | D20: 0 | E20: 0 | F20: 0 | G20: 0 | H20: =H3 -> 5.307897922e+46 | I20: =-H20 -> -5.307897922e+46 | L20: 7 | M20: 0 | N20: 0 | O20: 0 | P20: 0 | Q20: 0 | R20: 0 | S20: 1 | T20: -5.962667499e-09 | W20: NPK | Y20: -3.922613625e+73 | Z20: 3.402425954e+78 | AA20: -4.467682403e+72 | AB20: -2.306302095e+87 | AC20: 2.313124074e+87 | AD20: -2.735486281e+78 | AE20: 2.120600791e+79 | AF20: 6.822000867e+84 | AG20: =AF20/U6 -> 1
A21: 8 | B21: 0 | C21: 0 | D21: 0 | E21: 0 | F21: 0 | G21: 0 | H21: 0 | I21: =I3 -> 8.901884806e+54 | L21: 8 | M21: 0 | N21: 0 | O21: 0 | P21: 0 | Q21: 0 | R21: 0 | S21: 0 | T21: 1 | AG21: =AVERAGE(AG18:AG20) -> 1.000030104
B25: 1 | C25: 2 | D25: 3 | E25: 4 | F25: 5 | G25: 6 | H25: 7 | I25: 8 | M25: 1 | N25: 2 | O25: 3 | P25: 4 | Q25: 5 | R25: 6 | S25: 7 | T25: 8
A26: 1 | B26: =1/B3 -> 3.973875899e-49 | C26: 0 | D26: 0 | E26: 0 | F26: 0 | G26: 0 | H26: 0 | I26: 0 | L26: 1 | M26: =MINVERSE(M14:T21) -> 1 | N26: 59.85459077 | O26: 1.260667099e-06 | P26: 7.964212764e-05 | Q26: 4.04615873e+10 | R26: 0.001501420408 | S26: 47.40925574 | T26: 2.826856283e-07
A27: 2 | B27: 0 | C27: =1/C3 -> 2.378547157e-47 | D27: 0 | E27: 0 | F27: 0 | G27: 0 | H27: 0 | I27: 0 | L27: 2 | M27: 0 | N27: 1 | O27: 2.10621622e-08 | P27: 1.33059347e-06 | Q27: 675998061 | R27: 2.508446535e-05 | S27: 0.7920738431 | T27: 4.722872961e-09
A28: 3 | B28: 0 | C28: 0 | D28: =1/D3 -> 5.009734602e-55 | E28: 0 | F28: 0 | G28: 0 | H28: 0 | I28: 0 | L28: 3 | M28: 0 | N28: 0 | O28: 1 | P28: 63.17459042 | Q28: 3.209537818e+16 | R28: 1190.972945 | S28: 37606482.92 | T28: 0.2242349535
A29: 4 | B29: 0 | C29: 0 | D29: 0 | E29: =1/E3 -> 3.164879316e-53 | F29: 0 | G29: 0 | H29: 0 | I29: 0 | L29: 4 | M29: 0 | N29: 0 | O29: 0 | P29: 1 | Q29: 5.08042521e+14 | R29: 18.85208812 | S29: 595278.6188 | T29: 0.003549448473
A30: 5 | B30: 0 | C30: 0 | D30: 0 | E30: 0 | F30: =1/F3 -> 1.607893266e-38 | G30: 0 | H30: 0 | I30: 0 | L30: 5 | M30: 0 | N30: 0 | O30: 0 | P30: 0 | Q30: 1 | R30: 3.71073037e-14 | S30: 1.171710229e-09 | T30: 6.986518503e-18
A31: 6 | B31: 0 | C31: 0 | D31: 0 | E31: 0 | F31: 0 | G31: =1/G3 -> 5.966458374e-52 | H31: 0 | I31: 0 | L31: 6 | M31: 0 | N31: 0 | O31: 0 | P31: 0 | Q31: 0 | R31: 1 | S31: 31576.2697 | T31: 0.0001882787971
A32: 7 | B32: 0 | C32: 0 | D32: 0 | E32: 0 | F32: 0 | G32: 0 | H32: =1/H3 -> 1.883984988e-47 | I32: 0 | L32: 7 | M32: 0 | N32: 0 | O32: 0 | P32: 0 | Q32: 0 | R32: 0 | S32: 1 | T32: 5.962667499e-09
A33: 8 | B33: 0 | C33: 0 | D33: 0 | E33: 0 | F33: 0 | G33: 0 | H33: 0 | I33: =1/I3 -> 1.123357605e-55 | L33: 8 | M33: 0 | N33: 0 | O33: 0 | P33: 0 | Q33: 0 | R33: 0 | S33: 0 | T33: 1
A37: INF | B37: POST
A38: 1 | B38: 500
A39: N | B39: PI-I | C39: PI-II
A40: 0.1 | B40: 0.9691569256 | C40: 0.03084307439
A41: 0.2 | B41: 0.9385856547 | C41: 0.0614143453
A42: 0.3 | B42: 0.9083058159 | C42: 0.09169418409
A43: 0.4 | B43: 0.8783371568 | C43: 0.1216628432
A44: 0.5 | B44: 0.8486994464 | C44: 0.1513005536
A45: 0.6 | B45: 0.8194123751 | C45: 0.1805876249
A46: 0.7 | B46: 0.7904954532 | C46: 0.2095045468
A47: 0.8 | B47: 0.7619679088 | C47: 0.2380320912
A48: 0.9 | B48: 0.7338485856 | C48: 0.2661514144
A49: 1 | B49: 0.7061558436 | C49: 0.2938441564
A50: 1.1 | B50: 0.6789074603 | C50: 0.3210925397
A51: 1.2 | B51: 0.6521205372 | C51: 0.3478794628
A52: 1.3 | B52: 0.6258114098 | C52: 0.3741885902
A53: 1.4 | B53: 0.5999955629 | C53: 0.4000044371
A54: 1.5 | B54: 0.5746875529 | C54: 0.4253124471
A55: 1.6 | B55: 0.5499009361 | C55: 0.4500990639
A56: 1.7 | B56: 0.5256482055 | C56: 0.4743517945
A57: 1.8 | B57: 0.5019407347 | C57: 0.4980592653
A58: 1.9 | B58: 0.4787887317 | C58: 0.5212112683
A59: 2 | B59: 0.4562012005 | C59: 0.5437987995
A60: 2.1 | B60: 0.4341859117 | C60: 0.5658140883
A61: 2.2 | B61: 0.4127493834 | C61: 0.5872506166
A62: 2.3 | B62: 0.3918968697 | C62: 0.6081031303
A63: 2.4 | B63: 0.3716323588 | C63: 0.6283676412
A64: 2.5 | B64: 0.3519585798 | C64: 0.6480414202
A65: 2.6 | B65: 0.3328770173 | C65: 0.6671229827
A66: 2.7 | B66: 0.3143879338 | C66: 0.6856120662
A67: 2.8 | B67: 0.2964903994 | C67: 0.7035096006
A68: 2.9 | B68: 0.2791823284 | C68: 0.7208176716
A69: 3 | B69: 0.2624605212 | C69: 0.7375394788
A70: 3.1 | B70: 0.2463207119 | C70: 0.7536792881
A71: 3.2 | B71: 0.2307576206 | C71: 0.7692423794
A72: 3.3 | B72: 0.2157650093 | C72: 0.7842349907
A73: 3.4 | B73: 0.2013357408 | C73: 0.7986642592
A74: 3.5 | B74: 0.1874618409 | C74: 0.8125381591
A75: 3.6 | B75: 0.1741345612 | C75: 0.8258654388
A76: 3.7 | B76: 0.1613444443 | C76: 0.8386555557
A77: 3.8 | B77: 0.1490813885 | C77: 0.8509186115
A78: 3.9 | B78: 0.1373347131 | C78: 0.8626652869
A79: 4 | B79: 0.1260932231 | C79: 0.8739067769
A80: 4.1 | B80: 0.1153452727 | C80: 0.8846547273
A81: 4.2 | B81: 0.1050788273 | C81: 0.8949211727
A82: 4.3 | B82: 0.09528152425 | C82: 0.9047184757
A83: 4.4 | B83: 0.08594073066 | C83: 0.9140592693
A84: 4.5 | B84: 0.07704359955 | C84: 0.9229564005
A85: 4.6 | B85: 0.06857712292 | C85: 0.9314228771
A86: 4.7 | B86: 0.06052818225 | C86: 0.9394718177
A87: 4.8 | B87: 0.05288359593 | C87: 0.9471164041
A88: 4.9 | B88: 0.04563016376 | C88: 0.9543698362
A89: 5 | B89: 0.03875470838 | C89: 0.9612452916
A90: 5.1 | B90: 0.03224411349 | C90: 0.9677558865
A91: 5.2 | B91: 0.02608535912 | C91: 0.9739146409
A92: 5.3 | B92: 0.02026555372 | C92: 0.9797344463
A93: 5.4 | B93: 0.01477196332 | C93: 0.9852280367
A94: 5.5 | B94: 0.009592037727 | C94: 0.9904079623
A95: 5.6 | B95: 0.004713433932 | C95: 0.9952865661
A96: 5.7 | B96: 0.0001240367579 | C96: 0.9998759632
A97: 5.8 | B97: -0.004188023064 | C97: 1.004188023
A98: 5.9 | B98: -0.008234353298 | C98: 1.008234353
A99: 6 | B99: -0.01202628694 | C99: 1.012026287
A100: 6.1 | B100: -0.01557487114 | C100: 1.015574871
A101: 6.2 | B101: -0.01889085821 | C101: 1.018890858
A102: 6.3 | B102: -0.02198469851 | C102: 1.021984699
A103: 6.4 | B103: -0.02486653509 | C103: 1.024866535
A104: 6.5 | B104: -0.02754620003 | C104: 1.0275462
A105: 6.6 | B105: -0.03003321221 | C105: 1.030033212
A106: 6.7 | B106: -0.03233677648 | C106: 1.032336776
A107: 6.8 | B107: -0.03446578403 | C107: 1.034465784
A108: 6.9 | B108: -0.03642881393 | C108: 1.036428814
A109: 7 | B109: -0.0382341356 | C109: 1.038234136
A110: 7.1 | B110: -0.03988971224 | C110: 1.039889712
A111: 7.2 | B111: -0.04140320497 | C111: 1.041403205
A112: 7.3 | B112: -0.04278197772 | C112: 1.042781978
A113: 7.4 | B113: -0.04403310269 | C113: 1.044033103
A114: 7.5 | B114: -0.04516336631 | C114: 1.045163366
A115: 7.6 | B115: -0.04617927566 | C115: 1.046179276
A116: 7.7 | B116: -0.04708706521 | C116: 1.047087065
A117: 7.8 | B117: -0.04789270389 | C117: 1.047892704
A118: 7.9 | B118: -0.04860190241 | C118: 1.048601902
A119: 8 | B119: -0.04922012067 | C119: 1.049220121
A120: 8.1 | B120: -0.04975257541 | C120: 1.049752575
A121: 8.2 | B121: -0.05020424787 | C121: 1.050204248
A122: 8.3 | B122: -0.05057989149 | C122: 1.050579891
A123: 8.4 | B123: -0.05088403967 | C123: 1.05088404
A124: 8.5 | B124: -0.05112101345 | C124: 1.051121013
A125: 8.6 | B125: -0.05129492913 | C125: 1.051294929
A126: 8.7 | B126: -0.05140970589 | C126: 1.051409706
A127: 8.8 | B127: -0.0514690732 | C127: 1.051469073
A128: 8.9 | B128: -0.05147657815 | C128: 1.051476578
A129: 9 | B129: -0.05143559271 | C129: 1.051435593
A130: 9.1 | B130: -0.0513493207 | C130: 1.051349321
A131: 9.2 | B131: -0.05122080474 | C131: 1.051220805
A132: 9.3 | B132: -0.05105293294 | C132: 1.051052933
A133: 9.4 | B133: -0.05084844542 | C133: 1.050848445
A134: 9.5 | B134: -0.05060994069 | C134: 1.050609941
A135: 9.6 | B135: -0.0503398818 | C135: 1.050339882
A136: 9.7 | B136: -0.05004060228 | C136: 1.050040602
A137: 9.8 | B137: -0.04971431198 | C137: 1.049714312
A138: 9.9 | B138: -0.04936310257 | C138: 1.049363103
A139: 10 | B139: -0.04898895301 | C139: 1.048988953
A140: 10.1 | B140: -0.04859373468 | C140: 1.048593735
A141: 10.2 | B141: -0.0481792164 | C141: 1.048179216
A142: 10.3 | B142: -0.04774706926 | C142: 1.047747069
A143: 10.4 | B143: -0.04729887126 | C143: 1.047298871
A144: 10.5 | B144: -0.04683611169 | C144: 1.046836112
A145: 10.6 | B145: -0.04636019548 | C145: 1.046360195
A146: 10.7 | B146: -0.04587244724 | C146: 1.045872447
A147: 10.8 | B147: -0.04537411522 | C147: 1.045374115
A148: 10.9 | B148: -0.04486637504 | C148: 1.044866375
A149: 11 | B149: -0.04435033328 | C149: 1.044350333
A150: 11.1 | B150: -0.04382703097 | C150: 1.043827031
A151: 11.2 | B151: -0.04329744683 | C151: 1.043297447
A152: 11.3 | B152: -0.04276250047 | C152: 1.0427625
A153: 11.4 | B153: -0.04222305532 | C153: 1.042223055
A154: 11.5 | B154: -0.04167992158 | C154: 1.041679922
A155: 11.6 | B155: -0.0411338589 | C155: 1.041133859
A156: 11.7 | B156: -0.04058557902 | C156: 1.040585579
A157: 11.8 | B157: -0.04003574824 | C157: 1.040035748
A158: 11.9 | B158: -0.03948498983 | C158: 1.03948499
A159: 12 | B159: -0.03893388625 | C159: 1.038933886
A160: 12.1 | B160: -0.03838298133 | C160: 1.038382981
A161: 12.2 | B161: -0.03783278232 | C161: 1.037832782
A162: 12.3 | B162: -0.03728376182 | C162: 1.037283762
A163: 12.4 | B163: -0.03673635968 | C163: 1.03673636
A164: 12.5 | B164: -0.03619098473 | C164: 1.036190985
A165: 12.6 | B165: -0.03564801648 | C165: 1.035648016
A166: 12.7 | B166: -0.03510780672 | C166: 1.035107807
A167: 12.8 | B167: -0.03457068102 | C167: 1.034570681
A168: 12.9 | B168: -0.03403694023 | C168: 1.03403694
A169: 13 | B169: -0.03350686175 | C169: 1.033506862
A170: 13.1 | B170: -0.03298070096 | C170: 1.032980701
A171: 13.2 | B171: -0.03245869234 | C171: 1.032458692
A172: 13.3 | B172: -0.03194105075 | C172: 1.031941051
A173: 13.4 | B173: -0.03142797244 | C173: 1.031427972
A174: 13.5 | B174: -0.03091963623 | C174: 1.030919636
A175: 13.6 | B175: -0.03041620439 | C175: 1.030416204
A176: 13.7 | B176: -0.0299178237 | C176: 1.029917824
A177: 13.8 | B177: -0.02942462628 | C177: 1.029424626
A178: 13.9 | B178: -0.02893673049 | C178: 1.02893673
A179: 14 | B179: -0.02845424174 | C179: 1.028454242
A180: 14.1 | B180: -0.02797725323 | C180: 1.027977253
A181: 14.2 | B181: -0.02750584671 | C181: 1.027505847
A182: 14.3 | B182: -0.02704009318 | C182: 1.027040093
A183: 14.4 | B183: -0.02658005352 | C183: 1.026580054
A184: 14.5 | B184: -0.02612577913 | C184: 1.026125779
A185: 14.6 | B185: -0.0256773125 | C185: 1.025677313
A186: 14.7 | B186: -0.02523468781 | C186: 1.025234688
A187: 14.8 | B187: -0.02479793141 | C187: 1.024797931
A188: 14.9 | B188: -0.02436706234 | C188: 1.024367062
A189: 15 | B189: -0.0239420928 | C189: 1.023942093
A190: 15.1 | B190: -0.02352302863 | C190: 1.023523029
A191: 15.2 | B191: -0.02310986966 | C191: 1.02310987
A192: 15.3 | B192: -0.0227026102 | C192: 1.02270261
A193: 15.4 | B193: -0.02230123935 | C193: 1.022301239
A194: 15.5 | B194: -0.0219057414 | C194: 1.021905741
A195: 15.6 | B195: -0.02151609613 | C195: 1.021516096
A196: 15.7 | B196: -0.02113227917 | C196: 1.021132279
A197: 15.8 | B197: -0.0207542623 | C197: 1.020754262
A198: 15.9 | B198: -0.02038201369 | C198: 1.020382014
A199: 16 | B199: -0.02001549823 | C199: 1.020015498
A200: 16.1 | B200: -0.01965467775 | C200: 1.019654678
A201: 16.2 | B201: -0.01929951125 | C201: 1.019299511
A202: 16.3 | B202: -0.01894995517 | C202: 1.018949955
A203: 16.4 | B203: -0.01860596357 | C203: 1.018605964
A204: 16.5 | B204: -0.01826748833 | C204: 1.018267488
A205: 16.6 | B205: -0.01793447939 | C205: 1.017934479
A206: 16.7 | B206: -0.01760688484 | C206: 1.017606885
A207: 16.8 | B207: -0.01728465118 | C207: 1.017284651
... 332 more rows

Sheet Farm11
A1: YEARDUM | B1: 1 | C1: 2 | D1: 3 | E1: 4 | F1: 5 | G1: 6 | H1: 7 | I1: 8 | J1: MULT | M1: 1 | N1: 2 | O1: 3 | P1: 4 | Q1: 5 | R1: 6 | S1: 7 | T1: 8 | X1: 1 | Y1: 2 | Z1: 3 | AA1: 4 | AB1: 5 | AC1: 6 | AD1: 7 | AE1: 8
A2: FMERCODE | B2: 1 | C2: 1 | D2: 1 | E2: 1 | F2: 1 | G2: 1 | H2: 1 | I2: 1 | J2: 500 | K2: =J2/10 -> 50
A3: PROD | B3: =B7:I10^K2 -> 8.993000526e-05 | C3: 117.3908529 | D3: 9861757.523 | E3: 1.392128038e+24 | F3: 6.811762746e+14 | G3: 1.2676506e+30 | H3: 1.89611839e+14 | I3: 1.445235758e+29
A4: AREA | B4: 1.042640222e-13 | C4: 1.042640222e-13 | D4: 8.082812775e-12 | E4: 3285374701 | F4: 3285374701 | G4: 3285374701 | H4: 3285374701 | I4: 3285374701 | J4: =AG15 -> -0.08790552516 | L4: AREA | M4: =MMULT(B4:I6,B26:I33) -> 1.159390816e-09 | N4: 8.881784197e-16 | O4: 8.196117939e-19 | P4: 2.359965902e-15 | Q4: 4.823090327e-06 | R4: 2.59170366e-21 | S4: 1.732684371e-05 | T4: 2.27324482e-20 | U4: =SUM(N4:T4) -> 2.214993404e-05 | W4: AREA | X4: =MMULT(M4:T6,M26:T33) -> 1.159390816e-09 | Y4: 1.776356839e-15 | Z4: 8.407569137e-19 | AA4: 2.359965902e-15 | AB4: 9.646180653e-06 | AC4: 7.775110981e-21 | AD4: 6.930737486e-05 | AE4: 1.13662241e-19
A5: LABOR | B5: 6.533186235e+77 | C5: 3.23447651e+84 | D5: 8.427465706e+75 | E5: 1.483883064e+88 | F5: 8.881784197e+84 | G5: 1.847105709e+89 | H5: 3.488193609e+88 | I5: 6.219318291e+87 | J5: =AG21 -> 1.087905525 | L5: LABOR | M5: 7.26474575e+81 | N5: 2.755305401e+82 | O5: 8.545602228e+68 | P5: 1.065909904e+64 | Q5: 1.303889247e+70 | R5: 1.457109481e+59 | S5: 1.83964969e+74 | T5: 4.303324392e+58 | U5: =SUM(N5:T5) -> 2.755305419e+82 | W5: LABOR | X5: 7.26474575e+81 | Y5: 2.755305957e+82 | Z5: 3.27981819e+77 | AA5: 1.066142245e+64 | AB5: 2.18019145e+73 | AC5: 1.574262796e+59 | AD5: 1.236438901e+75 | AE5: 1.665214625e+60
A6: NPK | B6: 1.626681975e+80 | C6: 6.400622474e+92 | D6: 1.639264961e+87 | E6: 4.714360388e+81 | F6: 8.403551148e+81 | G6: 1.054131069e+99 | H6: 5.213841877e+95 | I6: 5.751943082e+99 | L6: NPK | M6: 1.808831179e+84 | N6: 5.452403077e+90 | O6: 1.662244238e+80 | P6: 3.386441663e+57 | Q6: 1.233682302e+67 | R6: 8.315627895e+68 | S6: 2.749744902e+81 | T6: 3.979934103e+70 | U6: 5.45240308e+90 | W6: NPK | X6: 1.808831179e+84 | Y6: 5.452403077e+90 | Z6: 6.490363256e+85 | AA6: 4.5977372e+68 | AB6: 9.39645009e+77 | AC6: 8.315632944e+68 | AD6: 5.562169002e+84 | AE6: 4.709678775e+70
A7: PROD | B7: 0.83 | C7: 1.1 | D7: 1.38 | E7: 3.04 | F7: 1.98 | G7: 4 | H7: 1.93 | I7: 3.83
A8: AREA | B8: 0.55 | C8: 0.55 | D8: 0.6 | E8: 1.55 | F8: 1.55 | G8: 1.55 | H8: 1.55 | I8: 1.55
A9: LABOR | B9: 36 | C9: 49 | D9: 33 | E9: 58 | F9: 50 | G9: 61 | H9: 59 | I9: 57
A10: NPK | B10: 40.2 | C10: 71.8 | D10: 55.5 | E10: 43 | F10: 43.5 | G10: 95.6 | H10: 82.1 | I10: 98.9
W12: AREA | Y12: =Y4-X4 -> -1.15938904e-09 | Z12: -1.775516082e-15 | AA12: 2.359125145e-15 | AB12: 9.646180651e-06 | AC12: -9.646180653e-06 | AD12: 6.930737486e-05 | AE12: -6.930737486e-05 | AF12: =SUM(Y12:AE12) -> -1.159390816e-09 | AG12: =AF12/U4 -> -5.234285636e-05
B13: 1 | C13: 2 | D13: 3 | E13: 4 | F13: 5 | G13: 6 | H13: 7 | I13: 8 | M13: 1 | N13: 2 | O13: 3 | P13: 4 | Q13: 5 | R13: 6 | S13: 7 | T13: 8 | W13: LABOR | Y13: 2.028831382e+82 | Z13: -2.755273159e+82 | AA13: -3.27981819e+77 | AB13: 2.180191449e+73 | AC13: -2.18019145e+73 | AD13: 1.236438901e+75 | AE13: -1.236438901e+75 | AF13: =SUM(Y13:AE13) -> -7.26474575e+81 | AG13: =AF13/U5 -> -0.2636639009
A14: 1 | B14: =B3 -> 8.993000526e-05 | C14: =-B14 -> -8.993000526e-05 | D14: 0 | E14: 0 | F14: 0 | G14: 0 | H14: 0 | I14: 0 | L14: 1 | M14: =MMULT(B14:I21,B26:I33) -> 1 | N14: -7.660733614e-07 | O14: 0 | P14: 0 | Q14: 0 | R14: 0 | S14: 0 | T14: 0 | W14: NPK | Y14: 5.452401268e+90 | Z14: -5.452338173e+90 | AA14: -6.490363256e+85 | AB14: 9.396450086e+77 | AC14: -9.396450082e+77 | AD14: 5.562169002e+84 | AE14: -5.562169002e+84 | AF14: -1.80883118e+84 | AG14: =AF14/U6 -> -3.317493504e-07
A15: 2 | B15: 0 | C15: =C3 -> 117.3908529 | D15: =-C15 -> -117.3908529 | E15: 0 | F15: 0 | G15: 0 | H15: 0 | I15: 0 | L15: 2 | M15: 0 | N15: 1 | O15: -1.190364421e-05 | P15: 0 | Q15: 0 | R15: 0 | S15: 0 | T15: 0 | AG15: =AVERAGE(AG12:AG14) -> -0.08790552516
A16: 3 | B16: 0 | C16: 0 | D16: =D3 -> 9861757.523 | E16: =-D16 -> -9861757.523 | F16: 0 | G16: 0 | H16: 0 | I16: 0 | L16: 3 | M16: 0 | N16: 0 | O16: 1 | P16: -7.083944331e-18 | Q16: 0 | R16: 0 | S16: 0 | T16: 0
A17: 4 | B17: 0 | C17: 0 | D17: 0 | E17: =E3 -> 1.392128038e+24 | F17: =-E17 -> -1.392128038e+24 | G17: 0 | H17: 0 | I17: 0 | L17: 4 | M17: 0 | N17: 0 | O17: 0 | P17: 1 | Q17: -2043711870 | R17: 0 | S17: 0 | T17: 0
A18: 5 | B18: 0 | C18: 0 | D18: 0 | E18: 0 | F18: =F3 -> 6.811762746e+14 | G18: =-F18 -> -6.811762746e+14 | H18: 0 | I18: 0 | L18: 5 | M18: 0 | N18: 0 | O18: 0 | P18: 0 | Q18: 1 | R18: -5.373533326e-16 | S18: 0 | T18: 0 | W18: AREA | Y18: =N4-Y12 -> 1.159389928e-09 | Z18: 1.776335694e-15 | AA18: 8.407569137e-19 | AB18: -4.823090324e-06 | AC18: 9.646180653e-06 | AD18: -5.198053114e-05 | AE18: 6.930737486e-05 | AF18: 2.215109343e-05 | AG18: =AF18/U4 -> 1.000052343
A19: 6 | B19: 0 | C19: 0 | D19: 0 | E19: 0 | F19: 0 | G19: =G3 -> 1.2676506e+30 | H19: =-G19 -> -1.2676506e+30 | I19: 0 | L19: 6 | M19: 0 | N19: 0 | O19: 0 | P19: 0 | Q19: 0 | R19: 1 | S19: -6685503430809312 | T19: 0 | W19: LABOR | Y19: 7.264740185e+81 | Z19: 2.755273159e+82 | AA19: 3.27981819e+77 | AB19: -2.17888756e+73 | AC19: 2.18019145e+73 | AD19: -1.052473932e+75 | AE19: 1.236438901e+75 | AF19: 3.481779994e+82 | AG19: =AF19/U5 -> 1.263663901
A20: 7 | B20: 0 | C20: 0 | D20: 0 | E20: 0 | F20: 0 | G20: 0 | H20: =H3 -> 1.89611839e+14 | I20: =-H20 -> -1.89611839e+14 | L20: 7 | M20: 0 | N20: 0 | O20: 0 | P20: 0 | Q20: 0 | R20: 0 | S20: 1 | T20: -1.311978602e-15 | W20: NPK | Y20: 1.808829794e+84 | Z20: 5.452338173e+90 | AA20: 6.490363256e+85 | AB20: -9.396450085e+77 | AC20: 9.39645009e+77 | AD20: -5.559419258e+84 | AE20: 5.562169002e+84 | AF20: 5.452404889e+90 | AG20: =AF20/U6 -> 1.000000332
A21: 8 | B21: 0 | C21: 0 | D21: 0 | E21: 0 | F21: 0 | G21: 0 | H21: 0 | I21: =I3 -> 1.445235758e+29 | L21: 8 | M21: 0 | N21: 0 | O21: 0 | P21: 0 | Q21: 0 | R21: 0 | S21: 0 | T21: 1 | AG21: =AVERAGE(AG18:AG20) -> 1.087905525
B25: 1 | C25: 2 | D25: 3 | E25: 4 | F25: 5 | G25: 6 | H25: 7 | I25: 8 | M25: 1 | N25: 2 | O25: 3 | P25: 4 | Q25: 5 | R25: 6 | S25: 7 | T25: 8
A26: 1 | B26: =1/B3 -> 11119.75916 | C26: 0 | D26: 0 | E26: 0 | F26: 0 | G26: 0 | H26: 0 | I26: 0 | L26: 1 | M26: =MINVERSE(M14:T21) -> 1 | N26: 7.660733614e-07 | O26: 9.119064736e-12 | P26: 6.459894694e-29 | Q26: 1.320216346e-19 | R26: 7.094226535e-35 | S26: 4.742847584e-19 | T26: 6.222514544e-34
A27: 2 | B27: 0 | C27: =1/C3 -> 0.00851855128 | D27: 0 | E27: 0 | F27: 0 | G27: 0 | H27: 0 | I27: 0 | L27: 2 | M27: 0 | N27: 1 | O27: 1.190364421e-05 | P27: 8.432475295e-23 | Q27: 1.723354985e-13 | R27: 9.260505447e-29 | S27: 6.191114094e-13 | T27: 8.122609215e-28
A28: 3 | B28: 0 | C28: 0 | D28: =1/D3 -> 1.014018037e-07 | E28: 0 | F28: 0 | G28: 0 | H28: 0 | I28: 0 | L28: 3 | M28: 0 | N28: 0 | O28: 1 | P28: 7.083944331e-18 | Q28: 1.447754112e-08 | R28: 7.779554967e-24 | S28: 5.201024142e-08 | T28: 6.823632384e-23
A29: 4 | B29: 0 | C29: 0 | D29: 0 | E29: =1/E3 -> 7.183247321e-25 | F29: 0 | G29: 0 | H29: 0 | I29: 0 | L29: 4 | M29: 0 | N29: 0 | O29: 0 | P29: 1 | Q29: 2043711870 | R29: 1.098195384e-06 | S29: 7341989009 | T29: 9.632532478e-06
A30: 5 | B30: 0 | C30: 0 | D30: 0 | E30: 0 | F30: =1/F3 -> 1.468048782e-15 | G30: 0 | H30: 0 | I30: 0 | L30: 5 | M30: 0 | N30: 0 | O30: 0 | P30: 0 | Q30: 1 | R30: 5.373533326e-16 | S30: 3.592477549 | T30: 4.713253673e-15
A31: 6 | B31: 0 | C31: 0 | D31: 0 | E31: 0 | F31: 0 | G31: =1/G3 -> 7.888609052e-31 | H31: 0 | I31: 0 | L31: 6 | M31: 0 | N31: 0 | O31: 0 | P31: 0 | Q31: 0 | R31: 1 | S31: 6685503430809312 | T31: 8.771237446
A32: 7 | B32: 0 | C32: 0 | D32: 0 | E32: 0 | F32: 0 | G32: 0 | H32: =1/H3 -> 5.273932288e-15 | I32: 0 | L32: 7 | M32: 0 | N32: 0 | O32: 0 | P32: 0 | Q32: 0 | R32: 0 | S32: 1 | T32: 1.311978602e-15
A33: 8 | B33: 0 | C33: 0 | D33: 0 | E33: 0 | F33: 0 | G33: 0 | H33: 0 | I33: =1/I3 -> 6.919286312e-30 | L33: 8 | M33: 0 | N33: 0 | O33: 0 | P33: 0 | Q33: 0 | R33: 0 | S33: 0 | T33: 1
A37: INF | B37: POST
A38: 1 | B38: 500
A39: N | B39: PI-I | C39: PI-II
A40: 0.1 | B40: 0.9258359062 | C40: 0.07416409382
A41: 0.2 | B41: 0.8554625187 | C41: 0.1445374813
A42: 0.3 | B42: 0.7886400866 | C42: 0.2113599134
A43: 0.4 | B43: 0.7251530967 | C43: 0.2748469033
A44: 0.5 | B44: 0.6648075462 | C44: 0.3351924538
A45: 0.6 | B45: 0.6074284536 | C45: 0.3925715464
A46: 0.7 | B46: 0.5528575932 | C46: 0.4471424068
A47: 0.8 | B47: 0.500951441 | C47: 0.499048559
A48: 0.9 | B48: 0.4515793179 | C48: 0.5484206821
A49: 1 | B49: 0.4046217217 | C49: 0.5953782783
A50: 1.1 | B50: 0.359968836 | C50: 0.640031164
A51: 1.2 | B51: 0.3175192054 | C51: 0.6824807946
A52: 1.3 | B52: 0.2771785683 | C52: 0.7228214317
A53: 1.4 | B53: 0.2388588357 | C53: 0.7611411643
A54: 1.5 | B54: 0.2024772051 | C54: 0.7975227949
A55: 1.6 | B55: 0.1679554007 | C55: 0.8320445993
A56: 1.7 | B56: 0.1352190265 | C56: 0.8647809735
A57: 1.8 | B57: 0.104197023 | C57: 0.895802977
A58: 1.9 | B58: 0.07482121691 | C58: 0.9251787831
A59: 2 | B59: 0.04702595164 | C59: 0.9529740484
A60: 2.1 | B60: 0.02074779057 | C60: 0.9792522094
A61: 2.2 | B61: -0.004074718212 | C61: 1.004074718
A62: 2.3 | B62: -0.02750122395 | C62: 1.027501224
A63: 2.4 | B63: -0.04958971066 | C63: 1.049589711
A64: 2.5 | B64: -0.07039659756 | C64: 1.070396598
A65: 2.6 | B65: -0.08997680943 | C65: 1.089976809
A66: 2.7 | B66: -0.1083838229 | C66: 1.108383823
A67: 2.8 | B67: -0.1256696942 | C67: 1.125669694
A68: 2.9 | B68: -0.1418850727 | C68: 1.141885073
A69: 3 | B69: -0.1570792049 | C69: 1.157079205
A70: 3.1 | B70: -0.1712999307 | C70: 1.171299931
A71: 3.2 | B71: -0.1845936767 | C71: 1.184593677
A72: 3.3 | B72: -0.1970054474 | C72: 1.197005447
A73: 3.4 | B73: -0.2085788157 | C73: 1.208578816
A74: 3.5 | B74: -0.2193559155 | C74: 1.219355916
A75: 3.6 | B75: -0.2293774367 | C75: 1.229377437
A76: 3.7 | B76: -0.2386826226 | C76: 1.238682623
A77: 3.8 | B77: -0.2473092716 | C77: 1.247309272
A78: 3.9 | B78: -0.2552937419 | C78: 1.255293742
A79: 4 | B79: -0.2626709615 | C79: 1.262670962
A80: 4.1 | B80: -0.2694744406 | C80: 1.269474441
A81: 4.2 | B81: -0.2757362888 | C81: 1.275736289
A82: 4.3 | B82: -0.2814872359 | C82: 1.281487236
A83: 4.4 | B83: -0.2867566555 | C83: 1.286756655
A84: 4.5 | B84: -0.2915725924 | C84: 1.291572592
A85: 4.6 | B85: -0.2959617922 | C85: 1.295961792
A86: 4.7 | B86: -0.2999497335 | C86: 1.299949733
A87: 4.8 | B87: -0.303560662 | C87: 1.303560662
A88: 4.9 | B88: -0.3068176272 | C88: 1.306817627
A89: 5 | B89: -0.3097425189 | C89: 1.309742519
A90: 5.1 | B90: -0.3123561064 | C90: 1.312356106
A91: 5.2 | B91: -0.3146780778 | C91: 1.314678078
A92: 5.3 | B92: -0.3167270792 | C92: 1.316727079
A93: 5.4 | B93: -0.3185207555 | C93: 1.318520756
A94: 5.5 | B94: -0.3200757906 | C94: 1.320075791
A95: 5.6 | B95: -0.3214079466 | C95: 1.321407947
A96: 5.7 | B96: -0.3225321042 | C96: 1.322532104
A97: 5.8 | B97: -0.3234623015 | C97: 1.323462301
A98: 5.9 | B98: -0.3242117724 | C98: 1.324211772
A99: 6 | B99: -0.3247929844 | C99: 1.324792984
A100: 6.1 | B100: -0.3252176752 | C100: 1.325217675
A101: 6.2 | B101: -0.3254968886 | C101: 1.325496889
A102: 6.3 | B102: -0.3256410091 | C102: 1.325641009
A103: 6.4 | B103: -0.3256597955 | C103: 1.325659796
A104: 6.5 | B104: -0.3255624137 | C104: 1.325562414
A105: 6.6 | B105: -0.3253574676 | C105: 1.325357468
A106: 6.7 | B106: -0.3250530294 | C106: 1.325053029
A107: 6.8 | B107: -0.3246566686 | C107: 1.324656669
A108: 6.9 | B108: -0.3241754792 | C108: 1.324175479
A109: 7 | B109: -0.323616107 | C109: 1.323616107
A110: 7.1 | B110: -0.3229847742 | C110: 1.322984774
A111: 7.2 | B111: -0.3222873039 | C111: 1.322287304
A112: 7.3 | B112: -0.321529143 | C112: 1.321529143
A113: 7.4 | B113: -0.320715384 | C113: 1.320715384
A114: 7.5 | B114: -0.3198507861 | C114: 1.319850786
A115: 7.6 | B115: -0.3189397945 | C115: 1.318939794
A116: 7.7 | B116: -0.3179865595 | C116: 1.317986559
A117: 7.8 | B117: -0.316994954 | C117: 1.316994954
A118: 7.9 | B118: -0.3159685905 | C118: 1.315968591
A119: 8 | B119: -0.3149108367 | C119: 1.314910837
A120: 8.1 | B120: -0.3138248308 | C120: 1.313824831
A121: 8.2 | B121: -0.3127134953 | C121: 1.312713495
A122: 8.3 | B122: -0.311579551 | C122: 1.311579551
A123: 8.4 | B123: -0.3104255287 | C123: 1.310425529
A124: 8.5 | B124: -0.3092537822 | C124: 1.309253782
A125: 8.6 | B125: -0.3080664983 | C125: 1.308066498
A126: 8.7 | B126: -0.3068657084 | C126: 1.306865708
A127: 8.8 | B127: -0.3056532979 | C127: 1.305653298
A128: 8.9 | B128: -0.3044310153 | C128: 1.304431015
A129: 9 | B129: -0.3032004816 | C129: 1.303200482
A130: 9.1 | B130: -0.3019631981 | C130: 1.301963198
A131: 9.2 | B131: -0.3007205542 | C131: 1.300720554
A132: 9.3 | B132: -0.299473835 | C132: 1.299473835
A133: 9.4 | B133: -0.2982242276 | C133: 1.298224228
A134: 9.5 | B134: -0.2969728278 | C134: 1.296972828
A135: 9.6 | B135: -0.2957206464 | C135: 1.295720646
A136: 9.7 | B136: -0.2944686142 | C136: 1.294468614
A137: 9.8 | B137: -0.2932175877 | C137: 1.293217588
A138: 9.9 | B138: -0.2919683541 | C138: 1.291968354
A139: 10 | B139: -0.2907216358 | C139: 1.290721636
A140: 10.1 | B140: -0.2894780948 | C140: 1.289478095
A141: 10.2 | B141: -0.2882383366 | C141: 1.288238337
A142: 10.3 | B142: -0.2870029144 | C142: 1.287002914
A143: 10.4 | B143: -0.2857723324 | C143: 1.285772332
A144: 10.5 | B144: -0.2845470492 | C144: 1.284547049
A145: 10.6 | B145: -0.2833274808 | C145: 1.283327481
A146: 10.7 | B146: -0.2821140041 | C146: 1.282114004
A147: 10.8 | B147: -0.2809069587 | C147: 1.280906959
A148: 10.9 | B148: -0.2797066503 | C148: 1.27970665
A149: 11 | B149: -0.2785133529 | C149: 1.278513353
A150: 11.1 | B150: -0.2773273107 | C150: 1.277327311
A151: 11.2 | B151: -0.2761487406 | C151: 1.276148741
A152: 11.3 | B152: -0.2749778339 | C152: 1.274977834
A153: 11.4 | B153: -0.2738147584 | C153: 1.273814758
A154: 11.5 | B154: -0.2726596598 | C154: 1.27265966
A155: 11.6 | B155: -0.2715126636 | C155: 1.271512664
A156: 11.7 | B156: -0.2703738765 | C156: 1.270373877
A157: 11.8 | B157: -0.2692433876 | C157: 1.269243388
A158: 11.9 | B158: -0.2681212701 | C158: 1.26812127
A159: 12 | B159: -0.267007582 | C159: 1.267007582
A160: 12.1 | B160: -0.2659023679 | C160: 1.265902368
A161: 12.2 | B161: -0.2648056594 | C161: 1.264805659
A162: 12.3 | B162: -0.2637174766 | C162: 1.263717477
A163: 12.4 | B163: -0.2626378288 | C163: 1.262637829
A164: 12.5 | B164: -0.2615667153 | C164: 1.261566715
A165: 12.6 | B165: -0.2605041263 | C165: 1.260504126
A166: 12.7 | B166: -0.2594500437 | C166: 1.259450044
A167: 12.8 | B167: -0.2584044419 | C167: 1.258404442
A168: 12.9 | B168: -0.257367288 | C168: 1.257367288
A169: 13 | B169: -0.2563385429 | C169: 1.256338543
A170: 13.1 | B170: -0.2553181618 | C170: 1.255318162
A171: 13.2 | B171: -0.2543060942 | C171: 1.254306094
A172: 13.3 | B172: -0.2533022854 | C172: 1.253302285
A173: 13.4 | B173: -0.2523066758 | C173: 1.252306676
A174: 13.5 | B174: -0.2513192023 | C174: 1.251319202
A175: 13.6 | B175: -0.250339798 | C175: 1.250339798
A176: 13.7 | B176: -0.249368393 | C176: 1.249368393
A177: 13.8 | B177: -0.2484049146 | C177: 1.248404915
A178: 13.9 | B178: -0.2474492876 | C178: 1.247449288
A179: 14 | B179: -0.2465014345 | C179: 1.246501434
A180: 14.1 | B180: -0.245561276 | C180: 1.245561276
A181: 14.2 | B181: -0.2446287312 | C181: 1.244628731
A182: 14.3 | B182: -0.2437037177 | C182: 1.243703718
A183: 14.4 | B183: -0.2427861518 | C183: 1.242786152
A184: 14.5 | B184: -0.2418759488 | C184: 1.241875949
A185: 14.6 | B185: -0.2409730234 | C185: 1.240973023
A186: 14.7 | B186: -0.2400772895 | C186: 1.240077289
A187: 14.8 | B187: -0.2391886604 | C187: 1.23918866
A188: 14.9 | B188: -0.2383070493 | C188: 1.238307049
A189: 15 | B189: -0.2374323689 | C189: 1.237432369
A190: 15.1 | B190: -0.2365645322 | C190: 1.236564532
A191: 15.2 | B191: -0.2357034519 | C191: 1.235703452
A192: 15.3 | B192: -0.2348490409 | C192: 1.234849041
A193: 15.4 | B193: -0.2340012125 | C193: 1.234001212
A194: 15.5 | B194: -0.2331598801 | C194: 1.23315988
A195: 15.6 | B195: -0.2323249578 | C195: 1.232324958
A196: 15.7 | B196: -0.2314963598 | C196: 1.23149636
A197: 15.8 | B197: -0.2306740012 | C197: 1.230674001
A198: 15.9 | B198: -0.2298577974 | C198: 1.229857797
A199: 16 | B199: -0.2290476647 | C199: 1.229047665
A200: 16.1 | B200: -0.22824352 | C200: 1.22824352
A201: 16.2 | B201: -0.227445281 | C201: 1.227445281
A202: 16.3 | B202: -0.2266528661 | C202: 1.226652866
A203: 16.4 | B203: -0.2258661946 | C203: 1.225866195
A204: 16.5 | B204: -0.2250851868 | C204: 1.225085187
A205: 16.6 | B205: -0.2243097635 | C205: 1.224309764
A206: 16.7 | B206: -0.2235398469 | C206: 1.223539847
A207: 16.8 | B207: -0.2227753599 | C207: 1.22277536
... 332 more rows

Sheet Farm12
A1: YEARDUM | B1: 1 | C1: 2 | D1: 3 | E1: 4 | F1: 5 | G1: 6 | H1: 7 | I1: 8 | J1: MULT | M1: 1 | N1: 2 | O1: 3 | P1: 4 | Q1: 5 | R1: 6 | S1: 7 | T1: 8 | X1: 1 | Y1: 2 | Z1: 3 | AA1: 4 | AB1: 5 | AC1: 6 | AD1: 7 | AE1: 8
A2: FMERCODE | B2: 1 | C2: 1 | D2: 1 | E2: 1 | F2: 1 | G2: 1 | H2: 1 | I2: 1 | J2: 500 | K2: =J2/10 -> 50
A3: PROD | B3: =B7:I10^K2 -> 0.01546647583 | C3: 0.01546647583 | D3: 0.01546647583 | E3: 338442.9836 | F3: 4.024668684e-06 | G3: 2566.215284 | H3: 58452336.16 | I3: 3.330014073e+11
A4: AREA | B4: 1.125899907e-35 | C4: 1.125899907e-35 | D4: 1.125899907e-35 | E4: 1.125899907e-35 | F4: 1.125899907e-35 | G4: 7.888609052e-31 | H4: 7.888609052e-31 | I4: 7.888609052e-31 | J4: =AG15 -> -8.668497852e-05 | L4: AREA | M4: =MMULT(B4:I6,B26:I33) -> 7.279615079e-34 | N4: 7.279615079e-34 | O4: 7.279615079e-34 | P4: 3.326704826e-41 | Q4: 2.797497124e-30 | R4: 3.074024654e-34 | S4: 1.349579772e-38 | T4: 2.368941656e-42 | U4: =SUM(N4:T4) -> 2.799260463e-30 | W4: AREA | X4: =MMULT(M4:T6,M26:T33) -> 7.279615079e-34 | Y4: 1.455923016e-33 | Z4: 2.183884524e-33 | AA4: 1.33068193e-40 | AB4: 1.398748562e-29 | AC4: 3.074244024e-34 | AD4: 2.699255854e-38 | AE4: 7.106994021e-42
A5: LABOR | B5: 4.97929223e+55 | C5: 5.606184658e+70 | D5: 6.376215002e+58 | E5: 1.173908529e+52 | F5: 5.802635026e+62 | G5: 3.330014073e+61 | H5: 3.69988485e+71 | I5: 1.125899907e+65 | J5: =AG21 -> 1.000086685 | L5: LABOR | M5: 3.219409699e+57 | N5: 3.62473308e+72 | O5: 4.12260367e+60 | P5: 3.468556258e+46 | Q5: 1.441767132e+68 | R5: 1.297636287e+58 | S5: 6.329746753e+63 | T5: 3.381066512e+53 | U5: =SUM(N5:T5) -> 3.624877263e+72 | W5: LABOR | X5: 3.219409699e+57 | Y5: 3.62473308e+72 | Z5: 3.62473308e+72 | AA5: 1.656463549e+65 | AB5: 1.392955584e+76 | AC5: 2.184612006e+67 | AD5: 7.288850373e+63 | AE5: 1.279425358e+60
A6: NPK | B6: 1.842740098e+61 | C6: 1.842740098e+61 | D6: 2.570906033e+78 | E6: 5.279393596e+69 | F6: 1.202808098e+71 | G6: 1.670703804e+53 | H6: 1.515650247e+68 | I6: 1.93228563e+74 | L6: NPK | M6: 1.191441488e+63 | N6: 1.191441488e+63 | O6: 1.662244238e+80 | P6: 1.559906351e+64 | Q6: 2.988589106e+76 | R6: 6.510380535e+49 | S6: 2.592967786e+60 | T6: 5.802635026e+62 | U6: 1.662543096e+80 | W6: NPK | X6: 1.191441488e+63 | Y6: 2.382882977e+63 | Z6: 1.662244238e+80 | AA6: 7.596275186e+72 | AB6: 6.387870306e+83 | AC6: 1.001827935e+75 | AD6: 4.398294965e+70 | AE6: 7.72098655e+66
A7: PROD | B7: 0.92 | C7: 0.92 | D7: 0.92 | E7: 1.29 | F7: 0.78 | G7: 1.17 | H7: 1.43 | I7: 1.7
A8: AREA | B8: 0.2 | C8: 0.2 | D8: 0.2 | E8: 0.2 | F8: 0.2 | G8: 0.25 | H8: 0.25 | I8: 0.25
A9: LABOR | B9: 13 | C9: 26 | D9: 15 | E9: 11 | F9: 18 | G9: 17 | H9: 27 | I9: 20
A10: NPK | B10: 16.8 | C10: 16.8 | D10: 37 | E10: 24.8 | F10: 26.4 | G10: 11.6 | H10: 23.1 | I10: 30.6
W12: AREA | Y12: =Y4-X4 -> 7.279615079e-34 | Z12: 7.279615079e-34 | AA12: -2.183884391e-33 | AB12: 1.398748562e-29 | AC12: -1.398717819e-29 | AD12: -3.073974098e-34 | AE12: -2.698545154e-38 | AF12: =SUM(Y12:AE12) -> -7.279615008e-34 | AG12: =AF12/U4 -> -0.0002600549361
B13: 1 | C13: 2 | D13: 3 | E13: 4 | F13: 5 | G13: 6 | H13: 7 | I13: 8 | M13: 1 | N13: 2 | O13: 3 | P13: 4 | Q13: 5 | R13: 6 | S13: 7 | T13: 8 | W13: LABOR | Y13: 3.62473308e+72 | Z13: 4.122486565e+60 | AA13: -3.624732914e+72 | AB13: 1.392955584e+76 | AC13: -1.392955581e+76 | AD13: -2.18388312e+67 | AE13: -7.287570948e+63 | AF13: =SUM(Y13:AE13) -> 1.461734084e+60 | AG13: =AF13/U5 -> 4.032506421e-13
A14: 1 | B14: =B3 -> 0.01546647583 | C14: =-B14 -> -0.01546647583 | D14: 0 | E14: 0 | F14: 0 | G14: 0 | H14: 0 | I14: 0 | L14: 1 | M14: =MMULT(B14:I21,B26:I33) -> 1 | N14: -1 | O14: 0 | P14: 0 | Q14: 0 | R14: 0 | S14: 0 | T14: 0 | W14: NPK | Y14: 1.191441488e+63 | Z14: 1.662244238e+80 | AA14: -1.662244162e+80 | AB14: 6.387870306e+83 | AC14: -6.387870296e+83 | AD14: -1.001783952e+75 | AE14: -4.397522867e+70 | AF14: 2.46666897e+67 | AG14: =AF14/U6 -> 1.483672198e-13
A15: 2 | B15: 0 | C15: =C3 -> 0.01546647583 | D15: =-C15 -> -0.01546647583 | E15: 0 | F15: 0 | G15: 0 | H15: 0 | I15: 0 | L15: 2 | M15: 0 | N15: 1 | O15: -1 | P15: 0 | Q15: 0 | R15: 0 | S15: 0 | T15: 0 | AG15: =AVERAGE(AG12:AG14) -> -8.668497852e-05
A16: 3 | B16: 0 | C16: 0 | D16: =D3 -> 0.01546647583 | E16: =-D16 -> -0.01546647583 | F16: 0 | G16: 0 | H16: 0 | I16: 0 | L16: 3 | M16: 0 | N16: 0 | O16: 1 | P16: -4.569891114e-08 | Q16: 0 | R16: 0 | S16: 0 | T16: 0
A17: 4 | B17: 0 | C17: 0 | D17: 0 | E17: =E3 -> 338442.9836 | F17: =-E17 -> -338442.9836 | G17: 0 | H17: 0 | I17: 0 | L17: 4 | M17: 0 | N17: 0 | O17: 0 | P17: 1 | Q17: -8.409213531e+10 | R17: 0 | S17: 0 | T17: 0
A18: 5 | B18: 0 | C18: 0 | D18: 0 | E18: 0 | F18: =F3 -> 4.024668684e-06 | G18: =-F18 -> -4.024668684e-06 | H18: 0 | I18: 0 | L18: 5 | M18: 0 | N18: 0 | O18: 0 | P18: 0 | Q18: 1 | R18: -1.568328545e-09 | S18: 0 | T18: 0 | W18: AREA | Y18: =N4-Y12 -> 0 | Z18: 0 | AA18: 2.183884424e-33 | AB18: -1.118998849e-29 | AC18: 1.39874856e-29 | AD18: 3.074109056e-34 | AE18: 2.698782049e-38 | AF18: 2.799988424e-30 | AG18: =AF18/U4 -> 1.000260055
A19: 6 | B19: 0 | C19: 0 | D19: 0 | E19: 0 | F19: 0 | G19: =G3 -> 2566.215284 | H19: =-G19 -> -2566.215284 | I19: 0 | L19: 6 | M19: 0 | N19: 0 | O19: 0 | P19: 0 | Q19: 0 | R19: 1 | S19: -4.390269839e-05 | T19: 0 | W19: LABOR | Y19: 0 | Z19: 1.171049667e+56 | AA19: 3.624732914e+72 | AB19: -1.392955569e+76 | AC19: 1.392955581e+76 | AD19: 2.184516095e+67 | AE19: 7.287570948e+63 | AF19: 3.624877263e+72 | AG19: =AF19/U5 -> 1
A20: 7 | B20: 0 | C20: 0 | D20: 0 | E20: 0 | F20: 0 | G20: 0 | H20: =H3 -> 58452336.16 | I20: =-H20 -> -58452336.16 | L20: 7 | M20: 0 | N20: 0 | O20: 0 | P20: 0 | Q20: 0 | R20: 0 | S20: 1 | T20: -0.0001755317992 | W20: NPK | Y20: 0 | Z20: 0 | AA20: 1.662244162e+80 | AB20: -6.387870008e+83 | AC20: 6.387870296e+83 | AD20: 1.001783952e+75 | AE20: 4.397522925e+70 | AF20: 1.662543096e+80 | AG20: =AF20/U6 -> 1
A21: 8 | B21: 0 | C21: 0 | D21: 0 | E21: 0 | F21: 0 | G21: 0 | H21: 0 | I21: =I3 -> 3.330014073e+11 | L21: 8 | M21: 0 | N21: 0 | O21: 0 | P21: 0 | Q21: 0 | R21: 0 | S21: 0 | T21: 1 | AG21: =AVERAGE(AG18:AG20) -> 1.000086685
B25: 1 | C25: 2 | D25: 3 | E25: 4 | F25: 5 | G25: 6 | H25: 7 | I25: 8 | M25: 1 | N25: 2 | O25: 3 | P25: 4 | Q25: 5 | R25: 6 | S25: 7 | T25: 8
A26: 1 | B26: =1/B3 -> 64.65597017 | C26: 0 | D26: 0 | E26: 0 | F26: 0 | G26: 0 | H26: 0 | I26: 0 | L26: 1 | M26: =MINVERSE(M14:T21) -> 1 | N26: 1 | O26: 1 | P26: 4.569891114e-08 | Q26: 3842.919019 | R26: 6.026959595e-06 | S26: 2.645997893e-10 | T26: 4.644567708e-14
A27: 2 | B27: 0 | C27: =1/C3 -> 64.65597017 | D27: 0 | E27: 0 | F27: 0 | G27: 0 | H27: 0 | I27: 0 | L27: 2 | M27: 0 | N27: 1 | O27: 1 | P27: 4.569891114e-08 | Q27: 3842.919019 | R27: 6.026959595e-06 | S27: 2.645997893e-10 | T27: 4.644567708e-14
A28: 3 | B28: 0 | C28: 0 | D28: =1/D3 -> 64.65597017 | E28: 0 | F28: 0 | G28: 0 | H28: 0 | I28: 0 | L28: 3 | M28: 0 | N28: 0 | O28: 1 | P28: 4.569891114e-08 | Q28: 3842.919019 | R28: 6.026959595e-06 | S28: 2.645997893e-10 | T28: 4.644567708e-14
A29: 4 | B29: 0 | C29: 0 | D29: 0 | E29: =1/E3 -> 2.954707435e-06 | F29: 0 | G29: 0 | H29: 0 | I29: 0 | L29: 4 | M29: 0 | N29: 0 | O29: 0 | P29: 1 | Q29: 8.409213531e+10 | R29: 131.8840963 | S29: 0.0057900677 | T29: 1.016341001e-06
A30: 5 | B30: 0 | C30: 0 | D30: 0 | E30: 0 | F30: =1/F3 -> 248467.6574 | G30: 0 | H30: 0 | I30: 0 | L30: 5 | M30: 0 | N30: 0 | O30: 0 | P30: 0 | Q30: 1 | R30: 1.568328545e-09 | S30: 6.88538551e-14 | T30: 1.208604107e-17
A31: 6 | B31: 0 | C31: 0 | D31: 0 | E31: 0 | F31: 0 | G31: =1/G3 -> 0.0003896789198 | H31: 0 | I31: 0 | L31: 6 | M31: 0 | N31: 0 | O31: 0 | P31: 0 | Q31: 0 | R31: 1 | S31: 4.390269839e-05 | T31: 7.706319637e-09
A32: 7 | B32: 0 | C32: 0 | D32: 0 | E32: 0 | F32: 0 | G32: 0 | H32: =1/H3 -> 1.710795608e-08 | I32: 0 | L32: 7 | M32: 0 | N32: 0 | O32: 0 | P32: 0 | Q32: 0 | R32: 0 | S32: 1 | T32: 0.0001755317992
A33: 8 | B33: 0 | C33: 0 | D33: 0 | E33: 0 | F33: 0 | G33: 0 | H33: 0 | I33: =1/I3 -> 3.002990312e-12 | L33: 8 | M33: 0 | N33: 0 | O33: 0 | P33: 0 | Q33: 0 | R33: 0 | S33: 0 | T33: 1
A37: INF | B37: POST
A38: 1 | B38: 500
A39: N | B39: PI-I | C39: PI-II
A40: 0.1 | B40: 0.9516867067 | C40: 0.04831329333
A41: 0.2 | B41: 0.9051159505 | C41: 0.09488404954
A42: 0.3 | B42: 0.8602547437 | C42: 0.1397452563
A43: 0.4 | B43: 0.8170697371 | C43: 0.1829302629
A44: 0.5 | B44: 0.775527167 | C44: 0.224472833
A45: 0.6 | B45: 0.7355928094 | C45: 0.2644071906
A46: 0.7 | B46: 0.6972319419 | C46: 0.3027680581
A47: 0.8 | B47: 0.6604093146 | C47: 0.3395906854
A48: 0.9 | B48: 0.6250891312 | C48: 0.3749108688
A49: 1 | B49: 0.5912350412 | C49: 0.4087649588
A50: 1.1 | B50: 0.558810144 | C50: 0.441189856
A51: 1.2 | B51: 0.5277770055 | C51: 0.4722229945
A52: 1.3 | B52: 0.4980976882 | C52: 0.5019023118
A53: 1.4 | B53: 0.4697337938 | C53: 0.5302662062
A54: 1.5 | B54: 0.4426465189 | C54: 0.5573534811
A55: 1.6 | B55: 0.4167967217 | C55: 0.5832032783
A56: 1.7 | B56: 0.3921450009 | C56: 0.6078549991
A57: 1.8 | B57: 0.3686517826 | C57: 0.6313482174
A58: 1.9 | B58: 0.3462774157 | C58: 0.6537225843
A59: 2 | B59: 0.3249822731 | C59: 0.6750177269
A60: 2.1 | B60: 0.3047268556 | C60: 0.6952731444
A61: 2.2 | B61: 0.2854718992 | C61: 0.7145281008
A62: 2.3 | B62: 0.2671784805 | C62: 0.7328215195
A63: 2.4 | B63: 0.2498081204 | C63: 0.7501918796
A64: 2.5 | B64: 0.2333228843 | C64: 0.7666771157
A65: 2.6 | B65: 0.217685476 | C65: 0.782314524
A66: 2.7 | B66: 0.2028593249 | C66: 0.7971406751
A67: 2.8 | B67: 0.1888086653 | C67: 0.8111913347
A68: 2.9 | B68: 0.1754986075 | C68: 0.8245013925
A69: 3 | B69: 0.162895199 | C69: 0.837104801
A70: 3.1 | B70: 0.1509654763 | C70: 0.8490345237
A71: 3.2 | B71: 0.1396775081 | C71: 0.8603224919
A72: 3.3 | B72: 0.1290004283 | C72: 0.8709995717
A73: 3.4 | B73: 0.1189044599 | C73: 0.8810955401
A74: 3.5 | B74: 0.1093609315 | C74: 0.8906390685
A75: 3.6 | B75: 0.1003422849 | C75: 0.8996577151
A76: 3.7 | B76: 0.09182207551 | C76: 0.9081779245
A77: 3.8 | B77: 0.08377496685 | C77: 0.9162250332
A78: 3.9 | B78: 0.07617671853 | C78: 0.9238232815
A79: 4 | B79: 0.06900416953 | C79: 0.9309958305
A80: 4.1 | B80: 0.06223521689 | C80: 0.9377647831
A81: 4.2 | B81: 0.05584879082 | C81: 0.9441512092
A82: 4.3 | B82: 0.04982482667 | C82: 0.9501751733
A83: 4.4 | B83: 0.04414423459 | C83: 0.9558557654
A84: 4.5 | B84: 0.03878886711 | C84: 0.9612111329
A85: 4.6 | B85: 0.03374148551 | C85: 0.9662585145
A86: 4.7 | B86: 0.02898572516 | C86: 0.9710142748
A87: 4.8 | B87: 0.02450606034 | C87: 0.9754939397
A88: 4.9 | B88: 0.02028776888 | C88: 0.9797122311
A89: 5 | B89: 0.01631689687 | C89: 0.9836831031
A90: 5.1 | B90: 0.01258022376 | C90: 0.9874197762
A91: 5.2 | B91: 0.009065227987 | C91: 0.990934772
A92: 5.3 | B92: 0.005760053412 | C92: 0.9942399466
A93: 5.4 | B93: 0.002653476534 | C93: 0.9973465235
A94: 5.5 | B94: -0.0002651252321 | C94: 1.000265125
A95: 5.6 | B95: -0.003005804239 | C95: 1.003005804
A96: 5.7 | B96: -0.005578072158 | C96: 1.005578072
A97: 5.8 | B97: -0.007990928357 | C97: 1.007990928
A98: 5.9 | B98: -0.0102528871 | C98: 1.010252887
A99: 6 | B99: -0.01237200352 | C99: 1.012372004
A100: 6.1 | B100: -0.01435589845 | C100: 1.014355898
A101: 6.2 | B101: -0.01621178201 | C101: 1.016211782
A102: 6.3 | B102: -0.01794647607 | C102: 1.017946476
A103: 6.4 | B103: -0.01956643557 | C103: 1.019566436
A104: 6.5 | B104: -0.02107776875 | C104: 1.021077769
A105: 6.6 | B105: -0.02248625633 | C105: 1.022486256
A106: 6.7 | B106: -0.0237973696 | C106: 1.02379737
A107: 6.8 | B107: -0.02501628763 | C107: 1.025016288
A108: 6.9 | B108: -0.02614791345 | C108: 1.026147913
A109: 7 | B109: -0.02719688938 | C109: 1.027196889
A110: 7.1 | B110: -0.02816761148 | C110: 1.028167611
A111: 7.2 | B111: -0.02906424323 | C111: 1.029064243
A112: 7.3 | B112: -0.02989072838 | C112: 1.029890728
A113: 7.4 | B113: -0.03065080311 | C113: 1.030650803
A114: 7.5 | B114: -0.03134800748 | C114: 1.031348007
A115: 7.6 | B115: -0.03198569623 | C115: 1.031985696
A116: 7.7 | B116: -0.03256704895 | C116: 1.032567049
A117: 7.8 | B117: -0.03309507969 | C117: 1.03309508
A118: 7.9 | B118: -0.03357264603 | C118: 1.033572646
A119: 8 | B119: -0.03400245755 | C119: 1.034002458
A120: 8.1 | B120: -0.03438708392 | C120: 1.034387084
A121: 8.2 | B121: -0.03472896246 | C121: 1.034728962
A122: 8.3 | B122: -0.03503040528 | C122: 1.035030405
A123: 8.4 | B123: -0.03529360603 | C123: 1.035293606
A124: 8.5 | B124: -0.03552064625 | C124: 1.035520646
A125: 8.6 | B125: -0.03571350134 | C125: 1.035713501
A126: 8.7 | B126: -0.03587404625 | C126: 1.035874046
A127: 8.8 | B127: -0.0360040608 | C127: 1.036004061
A128: 8.9 | B128: -0.03610523468 | C128: 1.036105235
A129: 9 | B129: -0.03617917226 | C129: 1.036179172
A130: 9.1 | B130: -0.03622739703 | C130: 1.036227397
A131: 9.2 | B131: -0.03625135582 | C131: 1.036251356
A132: 9.3 | B132: -0.03625242285 | C132: 1.036252423
A133: 9.4 | B133: -0.03623190346 | C133: 1.036231903
A134: 9.5 | B134: -0.0361910377 | C134: 1.036191038
A135: 9.6 | B135: -0.03613100369 | C135: 1.036131004
A136: 9.7 | B136: -0.03605292082 | C136: 1.036052921
A137: 9.8 | B137: -0.03595785274 | C137: 1.035957853
A138: 9.9 | B138: -0.03584681022 | C138: 1.03584681
A139: 10 | B139: -0.03572075385 | C139: 1.035720754
A140: 10.1 | B140: -0.03558059656 | C140: 1.035580597
A141: 10.2 | B141: -0.03542720608 | C141: 1.035427206
A142: 10.3 | B142: -0.03526140715 | C142: 1.035261407
A143: 10.4 | B143: -0.03508398375 | C143: 1.035083984
A144: 10.5 | B144: -0.0348956811 | C144: 1.034895681
A145: 10.6 | B145: -0.03469720761 | C145: 1.034697208
A146: 10.7 | B146: -0.0344892367 | C146: 1.034489237
A147: 10.8 | B147: -0.03427240855 | C147: 1.034272409
A148: 10.9 | B148: -0.03404733173 | C148: 1.034047332
A149: 11 | B149: -0.03381458478 | C149: 1.033814585
A150: 11.1 | B150: -0.03357471768 | C150: 1.033574718
A151: 11.2 | B151: -0.03332825322 | C151: 1.033328253
A152: 11.3 | B152: -0.03307568838 | C152: 1.033075688
A153: 11.4 | B153: -0.03281749553 | C153: 1.032817496
A154: 11.5 | B154: -0.03255412367 | C154: 1.032554124
A155: 11.6 | B155: -0.03228599956 | C155: 1.032286
A156: 11.7 | B156: -0.03201352876 | C156: 1.032013529
A157: 11.8 | B157: -0.03173709669 | C157: 1.031737097
A158: 11.9 | B158: -0.03145706956 | C158: 1.03145707
A159: 12 | B159: -0.03117379532 | C159: 1.031173795
A160: 12.1 | B160: -0.03088760454 | C160: 1.030887605
A161: 12.2 | B161: -0.03059881118 | C161: 1.030598811
A162: 12.3 | B162: -0.03030771345 | C162: 1.030307713
A163: 12.4 | B163: -0.0300145945 | C163: 1.030014595
A164: 12.5 | B164: -0.02971972319 | C164: 1.029719723
A165: 12.6 | B165: -0.02942335469 | C165: 1.029423355
A166: 12.7 | B166: -0.02912573118 | C166: 1.029125731
A167: 12.8 | B167: -0.02882708245 | C167: 1.028827082
A168: 12.9 | B168: -0.02852762646 | C168: 1.028527626
A169: 13 | B169: -0.02822756991 | C169: 1.02822757
A170: 13.1 | B170: -0.02792710875 | C170: 1.027927109
A171: 13.2 | B171: -0.02762642869 | C171: 1.027626429
A172: 13.3 | B172: -0.02732570568 | C172: 1.027325706
A173: 13.4 | B173: -0.02702510634 | C173: 1.027025106
A174: 13.5 | B174: -0.02672478842 | C174: 1.026724788
A175: 13.6 | B175: -0.02642490117 | C175: 1.026424901
A176: 13.7 | B176: -0.02612558578 | C176: 1.026125586
A177: 13.8 | B177: -0.0258269757 | C177: 1.025826976
A178: 13.9 | B178: -0.02552919703 | C178: 1.025529197
A179: 14 | B179: -0.02523236884 | C179: 1.025232369
A180: 14.1 | B180: -0.02493660351 | C180: 1.024936604
A181: 14.2 | B181: -0.024642007 | C181: 1.024642007
A182: 14.3 | B182: -0.02434867917 | C182: 1.024348679
A183: 14.4 | B183: -0.02405671406 | C183: 1.024056714
A184: 14.5 | B184: -0.02376620013 | C184: 1.0237662
A185: 14.6 | B185: -0.02347722054 | C185: 1.023477221
A186: 14.7 | B186: -0.02318985338 | C186: 1.023189853
A187: 14.8 | B187: -0.02290417189 | C187: 1.022904172
A188: 14.9 | B188: -0.02262024469 | C188: 1.022620245
A189: 15 | B189: -0.02233813601 | C189: 1.022338136
A190: 15.1 | B190: -0.02205790583 | C190: 1.022057906
A191: 15.2 | B191: -0.02177961014 | C191: 1.02177961
A192: 15.3 | B192: -0.02150330108 | C192: 1.021503301
A193: 15.4 | B193: -0.02122902713 | C193: 1.021229027
A194: 15.5 | B194: -0.02095683327 | C194: 1.020956833
A195: 15.6 | B195: -0.02068676112 | C195: 1.020686761
A196: 15.7 | B196: -0.02041884915 | C196: 1.020418849
A197: 15.8 | B197: -0.02015313277 | C197: 1.020153133
A198: 15.9 | B198: -0.01988964447 | C198: 1.019889644
A199: 16 | B199: -0.01962841399 | C199: 1.019628414
A200: 16.1 | B200: -0.01936946841 | C200: 1.019369468
A201: 16.2 | B201: -0.01911283231 | C201: 1.019112832
A202: 16.3 | B202: -0.01885852784 | C202: 1.018858528
A203: 16.4 | B203: -0.01860657485 | C203: 1.018606575
A204: 16.5 | B204: -0.01835699102 | C204: 1.018356991
A205: 16.6 | B205: -0.01810979194 | C205: 1.018109792
A206: 16.7 | B206: -0.01786499118 | C206: 1.017864991
A207: 16.8 | B207: -0.01762260044 | C207: 1.0176226
... 332 more rows

Sheet Farm13
A1: YEARDUM | B1: 1 | C1: 2 | D1: 3 | E1: 4 | F1: 5 | G1: 6 | H1: 7 | I1: 8 | J1: MULT | M1: 1 | N1: 2 | O1: 3 | P1: 4 | Q1: 5 | R1: 6 | S1: 7 | T1: 8 | X1: 1 | Y1: 2 | Z1: 3 | AA1: 4 | AB1: 5 | AC1: 6 | AD1: 7 | AE1: 8
A2: FMERCODE | B2: 1 | C2: 1 | D2: 1 | E2: 1 | F2: 1 | G2: 1 | H2: 1 | I2: 1 | J2: 500 | K2: =J2/10 -> 50
A3: PROD | B3: =B7:I10^K2 -> 4.062916246e+29 | C3: 5.523864291e+22 | D3: 7.669363041e+29 | E3: 7.779554967e+26 | F3: 1.392128038e+24 | G3: 1.597357839e+27 | H3: 1.302096654e+28 | I3: 6.150594332e+33
A4: AREA | B4: 70064.92322 | C4: 70064.92322 | D4: 70064.92322 | E4: 70064.92322 | F4: 70064.92322 | G4: 70064.92322 | H4: 70064.92322 | I4: 70064.92322 | J4: =AG15 -> -1.456290072e-09 | L4: AREA | M4: =MMULT(B4:I6,B26:I33) -> 1.72449834e-25 | N4: 1.268404137e-18 | O4: 9.135689996e-26 | P4: 9.006289372e-23 | Q4: 5.03293672e-20 | R4: 4.386301021e-23 | S4: 5.380931056e-24 | T4: 1.139156957e-29 | U4: =SUM(N4:T4) -> 1.318872903e-18 | W4: AREA | X4: =MMULT(M4:T6,M26:T33) -> 1.72449834e-25 | Y4: 2.536808275e-18 | Z4: 2.740706999e-25 | AA4: 3.602515749e-22 | AB4: 2.51646836e-19 | AC4: 2.631780612e-22 | AD4: 3.766651739e-23 | AE4: 9.113255654e-29
A5: LABOR | B5: 1.427247693e+95 | C5: 1.427247693e+95 | D5: 4.90560549e+95 | E5: 1.845648267e+102 | F5: 2.957646637e+96 | G5: 9.461557455e+96 | H5: 4.165700008e+86 | I5: 1.098195384e+94 | J5: =AG21 -> 1.000000001 | L5: LABOR | M5: 3.512865159e+65 | N5: 2.58378486e+72 | O5: 6.396366247e+65 | P5: 2.372434253e+75 | Q5: 2.124550728e+72 | R5: 5.923254778e+69 | S5: 3.199224878e+58 | T5: 1.785511001e+60 | U5: =SUM(N5:T5) -> 2.377148512e+75 | W5: LABOR | X5: 3.512865159e+65 | Y5: 5.167569721e+72 | Z5: 1.011831209e+66 | AA5: 2.37243525e+75 | AB5: 1.325777479e+78 | AC5: 1.155446461e+75 | AD5: 1.417453503e+74 | AE5: 3.000785573e+68
A6: NPK | B6: 9.488482853e+90 | C6: 2.567177215e+92 | D6: 2.062371764e+93 | E6: 2.656139889e+95 | F6: 2.322024177e+108 | G6: 1.169428093e+92 | H6: 3.953345406e+106 | I6: 4.268252238e+105 | L6: NPK | M6: 2.335387263e+61 | N6: 4.647429915e+69 | O6: 2.689104367e+63 | P6: 3.414256857e+68 | Q6: 1.667967395e+84 | R6: 7.321015144e+64 | S6: 3.036138212e+78 | T6: 6.939576905e+71 | U6: 1.667970431e+84 | W6: NPK | X6: 2.335387263e+61 | Y6: 4.81920247e+69 | Z6: 3.036207774e+63 | AA6: 3.444188877e+68 | AB6: 1.667967395e+84 | AC6: 1.453665622e+81 | AD6: 1.813657707e+80 | AE6: 3.846499632e+74
A7: PROD | B7: 3.91 | C7: 2.85 | D7: 3.96 | E7: 3.45 | F7: 3.04 | G7: 3.5 | H7: 3.65 | I7: 4.74
A8: AREA | B8: 1.25 | C8: 1.25 | D8: 1.25 | E8: 1.25 | F8: 1.25 | G8: 1.25 | H8: 1.25 | I8: 1.25
A9: LABOR | B9: 80 | C9: 80 | D9: 82 | E9: 111 | F9: 85 | G9: 87 | H9: 54 | I9: 76
A10: NPK | B10: 66 | C10: 70.5 | D10: 73.5 | E10: 81 | F10: 147 | G10: 69.4 | H10: 135.5 | I10: 129.6
W12: AREA | Y12: =Y4-X4 -> 2.536808102e-18 | Z12: -2.536808001e-18 | AA12: 3.599775042e-22 | AB12: 2.512865844e-19 | AC12: -2.513836579e-19 | AD12: -2.255115439e-22 | AE12: -3.766642626e-23 | AF12: =SUM(Y12:AE12) -> -1.723587016e-25 | AG12: =AF12/U4 -> -1.30686362e-07
B13: 1 | C13: 2 | D13: 3 | E13: 4 | F13: 5 | G13: 6 | H13: 7 | I13: 8 | M13: 1 | N13: 2 | O13: 3 | P13: 4 | Q13: 5 | R13: 6 | S13: 7 | T13: 8 | W13: LABOR | Y13: 5.16756937e+72 | Z13: -5.167568709e+72 | AA13: 2.372435249e+75 | AB13: 1.323405044e+78 | AC13: -1.324622033e+78 | AD13: -1.013701111e+75 | AE13: -1.417450502e+74 | AF13: =SUM(Y13:AE13) -> 2.997272443e+68 | AG13: =AF13/U5 -> 1.260868821e-07
A14: 1 | B14: =B3 -> 4.062916246e+29 | C14: =-B14 -> -4.062916246e+29 | D14: 0 | E14: 0 | F14: 0 | G14: 0 | H14: 0 | I14: 0 | L14: 1 | M14: =MMULT(B14:I21,B26:I33) -> 1 | N14: -7355206.486 | O14: 0 | P14: 0 | Q14: 0 | R14: 0 | S14: 0 | T14: 0 | W14: NPK | Y14: 4.819202447e+69 | Z14: -4.819199434e+69 | AA14: 3.444158515e+68 | AB14: 1.667967395e+84 | AC14: -1.66651373e+84 | AD14: -1.272299851e+81 | AE14: -1.813653861e+80 | AF14: 3.846499937e+74 | AG14: =AF14/U6 -> 2.306095999e-10
A15: 2 | B15: 0 | C15: =C3 -> 5.523864291e+22 | D15: =-C15 -> -5.523864291e+22 | E15: 0 | F15: 0 | G15: 0 | H15: 0 | I15: 0 | L15: 2 | M15: 0 | N15: 1 | O15: -7.202507251e-08 | P15: 0 | Q15: 0 | R15: 0 | S15: 0 | T15: 0 | AG15: =AVERAGE(AG12:AG14) -> -1.456290072e-09
A16: 3 | B16: 0 | C16: 0 | D16: =D3 -> 7.669363041e+29 | E16: =-D16 -> -7.669363041e+29 | F16: 0 | G16: 0 | H16: 0 | I16: 0 | L16: 3 | M16: 0 | N16: 0 | O16: 1 | P16: -985.8357033 | Q16: 0 | R16: 0 | S16: 0 | T16: 0
A17: 4 | B17: 0 | C17: 0 | D17: 0 | E17: =E3 -> 7.779554967e+26 | F17: =-E17 -> -7.779554967e+26 | G17: 0 | H17: 0 | I17: 0 | L17: 4 | M17: 0 | N17: 0 | O17: 0 | P17: 1 | Q17: -558.8246737 | R17: 0 | S17: 0 | T17: 0
A18: 5 | B18: 0 | C18: 0 | D18: 0 | E18: 0 | F18: =F3 -> 1.392128038e+24 | G18: =-F18 -> -1.392128038e+24 | H18: 0 | I18: 0 | L18: 5 | M18: 0 | N18: 0 | O18: 0 | P18: 0 | Q18: 1 | R18: -0.0008715192073 | S18: 0 | T18: 0 | W18: AREA | Y18: =N4-Y12 -> -1.268403965e-18 | Z18: 2.536808092e-18 | AA18: -2.699146105e-22 | AB18: -2.009572172e-19 | AC18: 2.514275209e-19 | AD18: 2.308924749e-22 | AE18: 3.766643765e-23 | AF18: 1.318873075e-18 | AG18: =AF18/U4 -> 1.000000131
A19: 6 | B19: 0 | C19: 0 | D19: 0 | E19: 0 | F19: 0 | G19: =G3 -> 1.597357839e+27 | H19: =-G19 -> -1.597357839e+27 | I19: 0 | L19: 6 | M19: 0 | N19: 0 | O19: 0 | P19: 0 | Q19: 0 | R19: 1 | S19: -0.1226758271 | T19: 0 | W19: LABOR | Y19: -2.583784509e+72 | Z19: 5.167569349e+72 | AA19: -9.964875001e+68 | AB19: -1.323402919e+78 | AC19: 1.324622039e+78 | AD19: 1.013701111e+75 | AE19: 1.417450502e+74 | AF19: 2.377148213e+75 | AG19: =AF19/U5 -> 0.9999998739
A20: 7 | B20: 0 | C20: 0 | D20: 0 | E20: 0 | F20: 0 | G20: 0 | H20: =H3 -> 1.302096654e+28 | I20: =-H20 -> -1.302096654e+28 | L20: 7 | M20: 0 | N20: 0 | O20: 0 | P20: 0 | Q20: 0 | R20: 0 | S20: 1 | T20: -2.117025743e-06 | W20: NPK | Y20: -1.717725321e+68 | Z20: 4.819202123e+69 | AA20: -2.990165818e+66 | AB20: -1.919548203e+71 | AC20: 1.66651373e+84 | AD20: 1.27533599e+81 | AE20: 1.813653868e+80 | AF20: 1.667970431e+84 | AG20: =AF20/U6 -> 0.9999999998
A21: 8 | B21: 0 | C21: 0 | D21: 0 | E21: 0 | F21: 0 | G21: 0 | H21: 0 | I21: =I3 -> 6.150594332e+33 | L21: 8 | M21: 0 | N21: 0 | O21: 0 | P21: 0 | Q21: 0 | R21: 0 | S21: 0 | T21: 1 | AG21: =AVERAGE(AG18:AG20) -> 1.000000001
B25: 1 | C25: 2 | D25: 3 | E25: 4 | F25: 5 | G25: 6 | H25: 7 | I25: 8 | M25: 1 | N25: 2 | O25: 3 | P25: 4 | Q25: 5 | R25: 6 | S25: 7 | T25: 8
A26: 1 | B26: =1/B3 -> 2.461286277e-30 | C26: 0 | D26: 0 | E26: 0 | F26: 0 | G26: 0 | H26: 0 | I26: 0 | L26: 1 | M26: =MINVERSE(M14:T21) -> 1 | N26: 7355206.486 | O26: 0.5297592804 | P26: 522.2556128 | Q26: 291849.3224 | R26: 254.3522901 | S26: 31.20287756 | T26: 6.605729506e-05
A27: 2 | B27: 0 | C27: =1/C3 -> 1.810326879e-23 | D27: 0 | E27: 0 | F27: 0 | G27: 0 | H27: 0 | I27: 0 | L27: 2 | M27: 0 | N27: 1 | O27: 7.202507251e-08 | P27: 7.100488801e-05 | Q27: 0.03967928337 | R27: 3.458125759e-05 | S27: 4.242284377e-06 | T27: 8.981025236e-12
A28: 3 | B28: 0 | C28: 0 | D28: =1/D3 -> 1.303889247e-30 | E28: 0 | F28: 0 | G28: 0 | H28: 0 | I28: 0 | L28: 3 | M28: 0 | N28: 0 | O28: 1 | P28: 985.8357033 | Q28: 550909.3152 | R28: 480.1280497 | S28: 58.9001056 | T28: 0.0001246930398
A29: 4 | B29: 0 | C29: 0 | D29: 0 | E29: =1/E3 -> 1.285420573e-27 | F29: 0 | G29: 0 | H29: 0 | I29: 0 | L29: 4 | M29: 0 | N29: 0 | O29: 0 | P29: 1 | Q29: 558.8246737 | R29: 0.4870264367 | S29: 0.05974637093 | T29: 1.264846053e-07
A30: 5 | B30: 0 | C30: 0 | D30: 0 | E30: 0 | F30: =1/F3 -> 7.183247321e-25 | G30: 0 | H30: 0 | I30: 0 | L30: 5 | M30: 0 | N30: 0 | O30: 0 | P30: 0 | Q30: 1 | R30: 0.0008715192073 | S30: 0.0001069143396 | T30: 2.263404092e-10
A31: 6 | B31: 0 | C31: 0 | D31: 0 | E31: 0 | F31: 0 | G31: =1/G3 -> 6.260338011e-28 | H31: 0 | I31: 0 | L31: 6 | M31: 0 | N31: 0 | O31: 0 | P31: 0 | Q31: 0 | R31: 1 | S31: 0.1226758271 | T31: 2.59707884e-07
A32: 7 | B32: 0 | C32: 0 | D32: 0 | E32: 0 | F32: 0 | G32: 0 | H32: =1/H3 -> 7.679921434e-29 | I32: 0 | L32: 7 | M32: 0 | N32: 0 | O32: 0 | P32: 0 | Q32: 0 | R32: 0 | S32: 1 | T32: 2.117025743e-06
A33: 8 | B33: 0 | C33: 0 | D33: 0 | E33: 0 | F33: 0 | G33: 0 | H33: 0 | I33: =1/I3 -> 1.625859138e-34 | L33: 8 | M33: 0 | N33: 0 | O33: 0 | P33: 0 | Q33: 0 | R33: 0 | S33: 0 | T33: 1
A37: INF | B37: POST
A38: 1 | B38: 500
A39: N | B39: PI-I | C39: PI-II
A40: 0.1 | B40: 0.9688605449 | C40: 0.03113945509
A41: 0.2 | B41: 0.938502628 | C41: 0.06149737195
A42: 0.3 | B42: 0.9089124699 | C42: 0.09108753013
A43: 0.4 | B43: 0.8800763162 | C43: 0.1199236838
A44: 0.5 | B44: 0.8519804413 | C44: 0.1480195587
A45: 0.6 | B45: 0.8246111554 | C45: 0.1753888446
A46: 0.7 | B46: 0.7979548164 | C46: 0.2020451836
A47: 0.8 | B47: 0.7719978438 | C47: 0.2280021562
A48: 0.9 | B48: 0.746726736 | C48: 0.253273264
A49: 1 | B49: 0.7221280886 | C49: 0.2778719114
A50: 1.1 | B50: 0.6981886134 | C50: 0.3018113866
A51: 1.2 | B51: 0.6748951577 | C51: 0.3251048423
A52: 1.3 | B52: 0.652234723 | C52: 0.347765277
A53: 1.4 | B53: 0.6301944817 | C53: 0.3698055183
A54: 1.5 | B54: 0.6087617928 | C54: 0.3912382072
A55: 1.6 | B55: 0.5879242144 | C55: 0.4120757856
A56: 1.7 | B56: 0.5676695142 | C56: 0.4323304858
A57: 1.8 | B57: 0.5479856767 | C57: 0.4520143233
A58: 1.9 | B58: 0.5288609071 | C58: 0.4711390929
A59: 2 | B59: 0.510283633 | C59: 0.489716367
A60: 2.1 | B60: 0.4922425022 | C60: 0.5077574978
A61: 2.2 | B61: 0.4747263786 | C61: 0.5252736214
A62: 2.3 | B62: 0.4577243352 | C62: 0.5422756648
A63: 2.4 | B63: 0.4412256451 | C63: 0.5587743549
A64: 2.5 | B64: 0.4252197709 | C64: 0.5747802291
A65: 2.6 | B65: 0.4096963526 | C65: 0.5903036474
A66: 2.7 | B66: 0.3946451952 | C66: 0.6053548048
A67: 2.8 | B67: 0.3800562549 | C67: 0.6199437451
A68: 2.9 | B68: 0.3659196263 | C68: 0.6340803737
A69: 3 | B69: 0.3522255294 | C69: 0.6477744706
A70: 3.1 | B70: 0.3389642971 | C70: 0.6610357029
A71: 3.2 | B71: 0.326126364 | C71: 0.673873636
A72: 3.3 | B72: 0.3137022564 | C72: 0.6862977436
A73: 3.4 | B73: 0.3016825834 | C73: 0.6983174166
A74: 3.5 | B74: 0.2900580294 | C74: 0.7099419706
A75: 3.6 | B75: 0.2788193484 | C75: 0.7211806516
A76: 3.7 | B76: 0.2679573601 | C76: 0.7320426399
A77: 3.8 | B77: 0.2574629464 | C77: 0.7425370536
A78: 3.9 | B78: 0.247327051 | C78: 0.752672949
A79: 4 | B79: 0.2375406789 | C79: 0.7624593211
A80: 4.1 | B80: 0.2280948983 | C80: 0.7719051017
A81: 4.2 | B81: 0.2189808427 | C81: 0.7810191573
A82: 4.3 | B82: 0.2101897148 | C82: 0.7898102852
A83: 4.4 | B83: 0.2017127909 | C83: 0.7982872091
A84: 4.5 | B84: 0.1935414257 | C84: 0.8064585743
A85: 4.6 | B85: 0.1856670582 | C85: 0.8143329418
A86: 4.7 | B86: 0.1780812177 | C86: 0.8219187823
A87: 4.8 | B87: 0.17077553 | C87: 0.82922447
A88: 4.9 | B88: 0.1637417237 | C88: 0.8362582763
A89: 5 | B89: 0.1569716368 | C89: 0.8430283632
A90: 5.1 | B90: 0.1504572232 | C90: 0.8495427768
A91: 5.2 | B91: 0.1441905583 | C91: 0.8558094417
A92: 5.3 | B92: 0.1381638451 | C92: 0.8618361549
A93: 5.4 | B93: 0.1323694202 | C93: 0.8676305798
A94: 5.5 | B94: 0.1267997579 | C94: 0.8732002421
A95: 5.6 | B95: 0.1214474761 | C95: 0.8785525239
A96: 5.7 | B96: 0.1163053395 | C96: 0.8836946605
A97: 5.8 | B97: 0.111366264 | C97: 0.888633736
A98: 5.9 | B98: 0.1066233199 | C98: 0.8933766801
A99: 6 | B99: 0.1020697344 | C99: 0.8979302656
A100: 6.1 | B100: 0.09769889424 | C100: 0.9023011058
A101: 6.2 | B101: 0.09350434702 | C101: 0.906495653
A102: 6.3 | B102: 0.08947980298 | C102: 0.910520197
A103: 6.4 | B103: 0.08561913562 | C103: 0.9143808644
A104: 6.5 | B104: 0.0819163821 | C104: 0.9180836179
A105: 6.6 | B105: 0.07836574335 | C105: 0.9216342567
A106: 6.7 | B106: 0.07496158357 | C106: 0.9250384164
A107: 6.8 | B107: 0.07169842953 | C107: 0.9283015705
A108: 6.9 | B108: 0.06857096946 | C108: 0.9314290305
A109: 7 | B109: 0.06557405164 | C109: 0.9344259484
A110: 7.1 | B110: 0.06270268268 | C110: 0.9372973173
A111: 7.2 | B111: 0.05995202562 | C111: 0.9400479744
A112: 7.3 | B112: 0.05731739768 | C112: 0.9426826023
A113: 7.4 | B113: 0.05479426789 | C113: 0.9452057321
A114: 7.5 | B114: 0.05237825454 | C114: 0.9476217455
A115: 7.6 | B115: 0.05006512238 | C115: 0.9499348776
A116: 7.7 | B116: 0.04785077977 | C116: 0.9521492202
A117: 7.8 | B117: 0.04573127568 | C117: 0.9542687243
A118: 7.9 | B118: 0.04370279661 | C118: 0.9562972034
A119: 8 | B119: 0.04176166336 | C119: 0.9582383366
A120: 8.1 | B120: 0.03990432783 | C120: 0.9600956722
A121: 8.2 | B121: 0.03812736971 | C121: 0.9618726303
A122: 8.3 | B122: 0.03642749313 | C122: 0.9635725069
A123: 8.4 | B123: 0.03480152338 | C123: 0.9651984766
A124: 8.5 | B124: 0.03324640346 | C124: 0.9667535965
A125: 8.6 | B125: 0.03175919079 | C125: 0.9682408092
A126: 8.7 | B126: 0.03033705383 | C126: 0.9696629462
A127: 8.8 | B127: 0.02897726877 | C127: 0.9710227312
A128: 8.9 | B128: 0.02767721622 | C128: 0.9723227838
A129: 9 | B129: 0.02643437795 | C129: 0.973565622
A130: 9.1 | B130: 0.02524633368 | C130: 0.9747536663
A131: 9.2 | B131: 0.02411075789 | C131: 0.9758892421
A132: 9.3 | B132: 0.02302541667 | C132: 0.9769745833
A133: 9.4 | B133: 0.02198816473 | C133: 0.9780118353
A134: 9.5 | B134: 0.02099694229 | C134: 0.9790030577
A135: 9.6 | B135: 0.02004977221 | C135: 0.9799502278
A136: 9.7 | B136: 0.01914475707 | C136: 0.9808552429
A137: 9.8 | B137: 0.01828007636 | C137: 0.9817199236
A138: 9.9 | B138: 0.01745398373 | C138: 0.9825460163
A139: 10 | B139: 0.01666480432 | C139: 0.9833351957
A140: 10.1 | B140: 0.01591093211 | C140: 0.9840890679
A141: 10.2 | B141: 0.01519082745 | C141: 0.9848091726
A142: 10.3 | B142: 0.01450301453 | C142: 0.9854969855
A143: 10.4 | B143: 0.01384607901 | C143: 0.986153921
A144: 10.5 | B144: 0.01321866568 | C144: 0.9867813343
A145: 10.6 | B145: 0.01261947622 | C145: 0.9873805238
A146: 10.7 | B146: 0.01204726699 | C146: 0.987952733
A147: 10.8 | B147: 0.01150084693 | C147: 0.9884991531
A148: 10.9 | B148: 0.01097907551 | C148: 0.9890209245
A149: 11 | B149: 0.01048086072 | C149: 0.9895191393
A150: 11.1 | B150: 0.01000515718 | C150: 0.9899948428
A151: 11.2 | B151: 0.009550964263 | C151: 0.9904490357
A152: 11.3 | B152: 0.009117324334 | C152: 0.9908826757
A153: 11.4 | B153: 0.008703320994 | C153: 0.991296679
A154: 11.5 | B154: 0.008308077426 | C154: 0.9916919226
A155: 11.6 | B155: 0.007930754781 | C155: 0.9920692452
A156: 11.7 | B156: 0.007570550631 | C156: 0.9924294494
A157: 11.8 | B157: 0.007226697473 | C157: 0.9927733025
A158: 11.9 | B158: 0.006898461287 | C158: 0.9931015387
A159: 12 | B159: 0.006585140154 | C159: 0.9934148598
A160: 12.1 | B160: 0.006286062918 | C160: 0.9937139371
A161: 12.2 | B161: 0.006000587902 | C161: 0.9939994121
A162: 12.3 | B162: 0.005728101673 | C162: 0.9942718983
A163: 12.4 | B163: 0.005468017854 | C163: 0.9945319821
A164: 12.5 | B164: 0.005219775981 | C164: 0.994780224
A165: 12.6 | B165: 0.004982840405 | C165: 0.9950171596
A166: 12.7 | B166: 0.004756699236 | C166: 0.9952433008
A167: 12.8 | B167: 0.004540863333 | C167: 0.9954591367
A168: 12.9 | B168: 0.004334865325 | C168: 0.9956651347
A169: 13 | B169: 0.004138258681 | C169: 0.9958617413
A170: 13.1 | B170: 0.00395061681 | C170: 0.9960493832
A171: 13.2 | B171: 0.003771532203 | C171: 0.9962284678
A172: 13.3 | B172: 0.003600615603 | C172: 0.9963993844
A173: 13.4 | B173: 0.003437495217 | C173: 0.9965625048
A174: 13.5 | B174: 0.003281815951 | C174: 0.996718184
A175: 13.6 | B175: 0.003133238685 | C175: 0.9968667613
A176: 13.7 | B176: 0.002991439574 | C176: 0.9970085604
A177: 13.8 | B177: 0.002856109376 | C177: 0.9971438906
A178: 13.9 | B178: 0.002726952812 | C178: 0.9972730472
A179: 14 | B179: 0.002603687953 | C179: 0.997396312
A180: 14.1 | B180: 0.002486045626 | C180: 0.9975139544
A181: 14.2 | B181: 0.002373768854 | C181: 0.9976262311
A182: 14.3 | B182: 0.002266612312 | C182: 0.9977333877
A183: 14.4 | B183: 0.002164341815 | C183: 0.9978356582
A184: 14.5 | B184: 0.002066733816 | C184: 0.9979332662
A185: 14.6 | B185: 0.001973574937 | C185: 0.9980264251
A186: 14.7 | B186: 0.001884661513 | C186: 0.9981153385
A187: 14.8 | B187: 0.001799799156 | C187: 0.9982002008
A188: 14.9 | B188: 0.001718802343 | C188: 0.9982811977
A189: 15 | B189: 0.001641494016 | C189: 0.998358506
A190: 15.1 | B190: 0.001567705202 | C190: 0.9984322948
A191: 15.2 | B191: 0.00149727465 | C191: 0.9985027254
A192: 15.3 | B192: 0.00143004848 | C192: 0.9985699515
A193: 15.4 | B193: 0.001365879857 | C193: 0.9986341201
A194: 15.5 | B194: 0.001304628663 | C194: 0.9986953713
A195: 15.6 | B195: 0.001246161204 | C195: 0.9987538388
A196: 15.7 | B196: 0.001190349908 | C196: 0.9988096501
A197: 15.8 | B197: 0.001137073058 | C197: 0.9988629269
A198: 15.9 | B198: 0.001086214516 | C198: 0.9989137855
A199: 16 | B199: 0.001037663478 | C199: 0.9989623365
A200: 16.1 | B200: 0.0009913142256 | C200: 0.9990086858
A201: 16.2 | B201: 0.0009470658964 | C201: 0.9990529341
A202: 16.3 | B202: 0.0009048222629 | C202: 0.9990951777
A203: 16.4 | B203: 0.00086449152 | C203: 0.9991355085
A204: 16.5 | B204: 0.0008259860834 | C204: 0.9991740139
A205: 16.6 | B205: 0.0007892223967 | C205: 0.9992107776
A206: 16.7 | B206: 0.0007541207468 | C206: 0.9992458793
A207: 16.8 | B207: 0.0007206050878 | C207: 0.9992793949
... 332 more rows

Sheet Farm14
A1: YEARDUM | B1: 1 | C1: 2 | D1: 3 | E1: 4 | F1: 5 | G1: 6 | H1: 7 | I1: 8 | J1: MULT | M1: 1 | N1: 2 | O1: 3 | P1: 4 | Q1: 5 | R1: 6 | S1: 7 | T1: 8 | X1: 1 | Y1: 2 | Z1: 3 | AA1: 4 | AB1: 5 | AC1: 6 | AD1: 7 | AE1: 8
A2: FMERCODE | B2: 1 | C2: 1 | D2: 1 | E2: 1 | F2: 1 | G2: 1 | H2: 1 | I2: 1 | J2: 500 | K2: =J2/10 -> 50
A3: PROD | B3: =B7:I10^K2 -> 4.053345627e+43 | C3: 9.268884548e+39 | D3: 1.883835202e+40 | E3: 6.840048788e+38 | F3: 1.488619151e+36 | G3: 6.312002784e+35 | H3: 1.612596979e+35 | I3: 2.636277361e+34
A4: AREA | B4: 7.178979877e+23 | C4: 7.178979877e+23 | D4: 7.178979877e+23 | E4: 5.802635026e+12 | F4: 5.802635026e+12 | G4: 1.606938044e+10 | H4: 20248916.24 | I4: 20248916.24 | J4: =AG15 -> 9434738138 | L4: AREA | M4: =MMULT(B4:I6,B26:I33) -> 1.771124532e-20 | N4: 7.745246841e-17 | O4: 3.810832217e-17 | P4: 8.483324031e-27 | Q4: 3.897998372e-24 | R4: 2.545844955e-26 | S4: 1.255671225e-28 | T4: 7.680874759e-28 | U4: =SUM(N4:T4) -> 1.155607945e-16 | W4: AREA | X4: =MMULT(M4:T6,M26:T33) -> 1.771124532e-20 | Y4: 1.549049368e-16 | Z4: 1.143249665e-16 | AA4: 3.148652926e-15 | AB4: 1.446772979e-12 | AC4: 3.412061174e-12 | AD4: 1.33554384e-11 | AE4: 8.169451345e-11
A5: LABOR | B5: 3.285374701e+109 | C5: 3.127919532e+104 | D5: 1.298857935e+99 | E5: 7.002329885e+102 | F5: 8.993000526e+95 | G5: 2.947815732e+97 | H5: 9.268884548e+89 | I5: 1.798465043e+92 | J5: =AG21 -> -9434738137 | L5: LABOR | M5: 8.105340633e+65 | N5: 3.374645046e+64 | O5: 6.894753501e+58 | P5: 1.023725137e+64 | Q5: 6.041169443e+59 | R5: 4.670174955e+61 | S5: 5.74779977e+54 | T5: 6.821987206e+57 | U5: =SUM(N5:T5) -> 4.403108347e+64 | W5: LABOR | X5: 8.105340633e+65 | Y5: 3.544553784e+69 | Z5: 1.743998614e+69 | AA5: 4.803191881e+70 | AB5: 2.207016267e+73 | AC5: 5.205014625e+73 | AD5: 2.037338977e+74 | AE5: 1.246229524e+75
A6: NPK | B6: 3.286157879e+106 | C6: 5.66826079e+109 | D6: 1.693611901e+104 | E6: 1.845648267e+102 | F6: 2.819881023e+99 | G6: 4.97929223e+105 | H6: 2.439994796e+100 | I6: 1.764731943e+104 | L6: NPK | M6: 8.107272811e+62 | N6: 6.115364541e+69 | O6: 8.990233855e+63 | P6: 2.698296934e+63 | Q6: 1.894293125e+63 | R6: 7.888609052e+69 | S6: 1.513084067e+65 | T6: 6.694029882e+69 | U6: 2.069816837e+70 | W6: NPK | X6: 8.107272811e+62 | Y6: 6.118909906e+69 | Z6: 3.010647577e+69 | AA6: 8.291701192e+70 | AB6: 3.809949688e+73 | AC6: 8.986152561e+73 | AD6: 3.517346289e+74 | AE6: 2.151548897e+75
A7: PROD | B7: 7.45 | C7: 6.3 | D7: 6.39 | E7: 5.98 | F7: 5.29 | G7: 5.2 | H7: 5.06 | I7: 4.88
A8: AREA | B8: 3 | C8: 3 | D8: 3 | E8: 1.8 | F8: 1.8 | G8: 1.6 | H8: 1.4 | I8: 1.4
A9: LABOR | B9: 155 | C9: 123 | D9: 96 | E9: 114 | F9: 83 | G9: 89 | H9: 63 | I9: 70
A10: NPK | B10: 135 | C10: 156.7 | D10: 121.5 | E10: 111 | F10: 97.5 | G10: 130 | H10: 101.8 | I10: 121.6
W12: AREA | Y12: =Y4-X4 -> 1.548872256e-16 | Z12: -4.057997033e-17 | AA12: 3.03432796e-15 | AB12: 1.443624326e-12 | AC12: 1.965288195e-12 | AD12: 9.94337723e-12 | AE12: 6.833907504e-11 | AF12: =SUM(Y12:AE12) -> 8.169451343e-11 | AG12: =AF12/U4 -> 706939.7002
B13: 1 | C13: 2 | D13: 3 | E13: 4 | F13: 5 | G13: 6 | H13: 7 | I13: 8 | M13: 1 | N13: 2 | O13: 3 | P13: 4 | Q13: 5 | R13: 6 | S13: 7 | T13: 8 | W13: LABOR | Y13: 3.54374325e+69 | Z13: -1.80055517e+69 | AA13: 4.62879202e+70 | AB13: 2.202213075e+73 | AC13: 2.997998358e+73 | AD13: 1.516837514e+74 | AE13: 1.042495626e+75 | AF13: =SUM(Y13:AE13) -> 1.246229523e+75 | AG13: =AF13/U5 -> 2.830340353e+10
A14: 1 | B14: =B3 -> 4.053345627e+43 | C14: =-B14 -> -4.053345627e+43 | D14: 0 | E14: 0 | F14: 0 | G14: 0 | H14: 0 | I14: 0 | L14: 1 | M14: =MMULT(B14:I21,B26:I33) -> 1 | N14: -4373.067337 | O14: 0 | P14: 0 | Q14: 0 | R14: 0 | S14: 0 | T14: 0 | W14: NPK | Y14: 6.118909096e+69 | Z14: -3.10826233e+69 | AA14: 7.990636434e+70 | AB14: 3.801657987e+73 | AC14: 5.176202873e+73 | AD14: 2.618731032e+74 | AE14: 1.799814268e+75 | AF14: 2.151548897e+75 | AG14: =AF14/U6 -> 103948.7581
A15: 2 | B15: 0 | C15: =C3 -> 9.268884548e+39 | D15: =-C15 -> -9.268884548e+39 | E15: 0 | F15: 0 | G15: 0 | H15: 0 | I15: 0 | L15: 2 | M15: 0 | N15: 1 | O15: -0.4920220484 | P15: 0 | Q15: 0 | R15: 0 | S15: 0 | T15: 0 | AG15: =AVERAGE(AG12:AG14) -> 9434738138
A16: 3 | B16: 0 | C16: 0 | D16: =D3 -> 1.883835202e+40 | E16: =-D16 -> -1.883835202e+40 | F16: 0 | G16: 0 | H16: 0 | I16: 0 | L16: 3 | M16: 0 | N16: 0 | O16: 1 | P16: -27.54125387 | Q16: 0 | R16: 0 | S16: 0 | T16: 0
A17: 4 | B17: 0 | C17: 0 | D17: 0 | E17: =E3 -> 6.840048788e+38 | F17: =-E17 -> -6.840048788e+38 | G17: 0 | H17: 0 | I17: 0 | L17: 4 | M17: 0 | N17: 0 | O17: 0 | P17: 1 | Q17: -459.4895064 | R17: 0 | S17: 0 | T17: 0
A18: 5 | B18: 0 | C18: 0 | D18: 0 | E18: 0 | F18: =F3 -> 1.488619151e+36 | G18: =-F18 -> -1.488619151e+36 | H18: 0 | I18: 0 | L18: 5 | M18: 0 | N18: 0 | O18: 0 | P18: 0 | Q18: 1 | R18: -2.358394319 | S18: 0 | T18: 0 | W18: AREA | Y18: =N4-Y12 -> -7.743475717e-17 | Z18: 7.86882925e-17 | AA18: -3.03432796e-15 | AB18: -1.443624326e-12 | AC18: -1.965288195e-12 | AD18: -9.94337723e-12 | AE18: -6.833907504e-11 | AF18: -8.169439787e-11 | AG18: =AF18/U4 -> -706938.7002
A19: 6 | B19: 0 | C19: 0 | D19: 0 | E19: 0 | F19: 0 | G19: =G3 -> 6.312002784e+35 | H19: =-G19 -> -6.312002784e+35 | I19: 0 | L19: 6 | M19: 0 | N19: 0 | O19: 0 | P19: 0 | Q19: 0 | R19: 1 | S19: -3.914184923 | T19: 0 | W19: LABOR | Y19: -3.543709504e+69 | Z19: 1.800555171e+69 | AA19: -4.628790996e+70 | AB19: -2.202213075e+73 | AC19: -2.997998358e+73 | AD19: -1.516837514e+74 | AE19: -1.042495626e+75 | AF19: -1.246229523e+75 | AG19: =AF19/U5 -> -2.830340352e+10
A20: 7 | B20: 0 | C20: 0 | D20: 0 | E20: 0 | F20: 0 | G20: 0 | H20: =H3 -> 1.612596979e+35 | I20: =-H20 -> -1.612596979e+35 | L20: 7 | M20: 0 | N20: 0 | O20: 0 | P20: 0 | Q20: 0 | R20: 0 | S20: 1 | T20: -6.116947342 | W20: NPK | Y20: -3.544554265e+66 | Z20: 3.10827132e+69 | AA20: -7.990636164e+70 | AB20: -3.801657987e+73 | AC20: -5.175414012e+73 | AD20: -2.618731031e+74 | AE20: -1.799807574e+75 | AF20: -2.151528199e+75 | AG20: =AF20/U6 -> -103947.7581
A21: 8 | B21: 0 | C21: 0 | D21: 0 | E21: 0 | F21: 0 | G21: 0 | H21: 0 | I21: =I3 -> 2.636277361e+34 | L21: 8 | M21: 0 | N21: 0 | O21: 0 | P21: 0 | Q21: 0 | R21: 0 | S21: 0 | T21: 1 | AG21: =AVERAGE(AG18:AG20) -> -9434738137
B25: 1 | C25: 2 | D25: 3 | E25: 4 | F25: 5 | G25: 6 | H25: 7 | I25: 8 | M25: 1 | N25: 2 | O25: 3 | P25: 4 | Q25: 5 | R25: 6 | S25: 7 | T25: 8
A26: 1 | B26: =1/B3 -> 2.467097781e-44 | C26: 0 | D26: 0 | E26: 0 | F26: 0 | G26: 0 | H26: 0 | I26: 0 | L26: 1 | M26: =MINVERSE(M14:T21) -> 1 | N26: 4373.067337 | O26: 2151.645549 | P26: 59259.01631 | Q26: 27228896.16 | R26: 64216474.01 | S26: 251355154.4 | T26: 1537526243
A27: 2 | B27: 0 | C27: =1/C3 -> 1.078878472e-40 | D27: 0 | E27: 0 | F27: 0 | G27: 0 | H27: 0 | I27: 0 | L27: 2 | M27: 0 | N27: 1 | O27: 0.4920220484 | P27: 13.55090415 | Q27: 6226.498258 | R27: 14684.53812 | S27: 57477.9977 | T27: 351589.8853
A28: 3 | B28: 0 | C28: 0 | D28: =1/D3 -> 5.308319959e-41 | E28: 0 | F28: 0 | G28: 0 | H28: 0 | I28: 0 | L28: 3 | M28: 0 | N28: 0 | O28: 1 | P28: 27.54125387 | Q28: 12654.91715 | R28: 29845.28471 | S28: 116819.9634 | T28: 714581.5647
A29: 4 | B29: 0 | C29: 0 | D29: 0 | E29: =1/E3 -> 1.461977876e-39 | F29: 0 | G29: 0 | H29: 0 | I29: 0 | L29: 4 | M29: 0 | N29: 0 | O29: 0 | P29: 1 | Q29: 459.4895064 | R29: 1083.657442 | S29: 4241.63562 | T29: 25945.86173
A30: 5 | B30: 0 | C30: 0 | D30: 0 | E30: 0 | F30: =1/F3 -> 6.717634927e-37 | G30: 0 | H30: 0 | I30: 0 | L30: 5 | M30: 0 | N30: 0 | O30: 0 | P30: 0 | Q30: 1 | R30: 2.358394319 | S30: 9.231191486 | T30: 56.46671222
A31: 6 | B31: 0 | C31: 0 | D31: 0 | E31: 0 | F31: 0 | G31: =1/G3 -> 1.584283205e-36 | H31: 0 | I31: 0 | L31: 6 | M31: 0 | N31: 0 | O31: 0 | P31: 0 | Q31: 0 | R31: 1 | S31: 3.914184923 | T31: 23.94286306
A32: 7 | B32: 0 | C32: 0 | D32: 0 | E32: 0 | F32: 0 | G32: 0 | H32: =1/H3 -> 6.201177435e-36 | I32: 0 | L32: 7 | M32: 0 | N32: 0 | O32: 0 | P32: 0 | Q32: 0 | R32: 0 | S32: 1 | T32: 6.116947342
A33: 8 | B33: 0 | C33: 0 | D33: 0 | E33: 0 | F33: 0 | G33: 0 | H33: 0 | I33: =1/I3 -> 3.793227582e-35 | L33: 8 | M33: 0 | N33: 0 | O33: 0 | P33: 0 | Q33: 0 | R33: 0 | S33: 0 | T33: 1
A37: INF | B37: POST
A38: 1 | B38: 500
A39: N | B39: PI-I | C39: PI-II
A40: 0.1 | B40: 1.019425767 | C40: -0.01942576729
A41: 0.2 | B41: 1.039677789 | C41: -0.03967778873
A42: 0.3 | B42: 1.060793968 | C42: -0.06079396759
A43: 0.4 | B43: 1.082813598 | C43: -0.08281359773
A44: 0.5 | B44: 1.105777395 | C44: -0.1057773953
A45: 0.6 | B45: 1.129727532 | C45: -0.1297275317
A46: 0.7 | B46: 1.154707669 | C46: -0.1547076687
A47: 0.8 | B47: 1.180762995 | C47: -0.180762995
A48: 0.9 | B48: 1.207940266 | C48: -0.2079402663
A49: 1 | B49: 1.236287847 | C49: -0.2362878472
A50: 1.1 | B50: 1.265855757 | C50: -0.2658557573
A51: 1.2 | B51: 1.296695721 | C51: -0.2966957209
A52: 1.3 | B52: 1.328861221 | C52: -0.3288612209
A53: 1.4 | B53: 1.362407557 | C53: -0.3624075571
A54: 1.5 | B54: 1.397391911 | C54: -0.3973919108
A55: 1.6 | B55: 1.433873414 | C55: -0.4338734141
A56: 1.7 | B56: 1.471913226 | C56: -0.4719132261
A57: 1.8 | B57: 1.511574616 | C57: -0.5115746156
A58: 1.9 | B58: 1.552923051 | C58: -0.5529230515
A59: 2 | B59: 1.5960263 | C59: -0.5960263003
A60: 2.1 | B60: 1.640954533 | C60: -0.6409545327
A61: 2.2 | B61: 1.687780438 | C61: -0.6877804384
A62: 2.3 | B62: 1.73657935 | C62: -0.7365793503
A63: 2.4 | B63: 1.787429378 | C63: -0.7874293785
A64: 2.5 | B64: 1.840411554 | C64: -0.8404115542
A65: 2.6 | B65: 1.895609985 | C65: -0.8956099846
A66: 2.7 | B66: 1.953112018 | C66: -0.9531120184
A67: 2.8 | B67: 2.013008423 | C67: -1.013008423
A68: 2.9 | B68: 2.075393572 | C68: -1.075393572
A69: 3 | B69: 2.140365648 | C69: -1.140365648
A70: 3.1 | B70: 2.208026857 | C70: -1.208026857
A71: 3.2 | B71: 2.27848365 | C71: -1.27848365
A72: 3.3 | B72: 2.351846969 | C72: -1.351846969
A73: 3.4 | B73: 2.428232496 | C73: -1.428232496
A74: 3.5 | B74: 2.507760924 | C74: -1.507760924
A75: 3.6 | B75: 2.590558235 | C75: -1.590558235
A76: 3.7 | B76: 2.676756003 | C76: -1.676756003
A77: 3.8 | B77: 2.766491702 | C77: -1.766491702
A78: 3.9 | B78: 2.859909034 | C78: -1.859909034
A79: 4 | B79: 2.957158281 | C79: -1.957158281
A80: 4.1 | B80: 3.05839666 | C80: -2.05839666
A81: 4.2 | B81: 3.163788704 | C81: -2.163788704
A82: 4.3 | B82: 3.273506665 | C82: -2.273506665
A83: 4.4 | B83: 3.387730927 | C83: -2.387730927
A84: 4.5 | B84: 3.506650443 | C84: -2.506650443
A85: 4.6 | B85: 3.630463198 | C85: -2.630463198
A86: 4.7 | B86: 3.75937668 | C86: -2.75937668
A87: 4.8 | B87: 3.893608391 | C87: -2.893608391
A88: 4.9 | B88: 4.033386369 | C88: -3.033386369
A89: 5 | B89: 4.178949735 | C89: -3.178949735
A90: 5.1 | B90: 4.330549276 | C90: -3.330549276
A91: 5.2 | B91: 4.488448045 | C91: -3.488448045
A92: 5.3 | B92: 4.652921993 | C92: -3.652921993
A93: 5.4 | B93: 4.824260632 | C93: -3.824260632
A94: 5.5 | B94: 5.00276773 | C94: -4.00276773
A95: 5.6 | B95: 5.188762038 | C95: -4.188762038
A96: 5.7 | B96: 5.382578048 | C96: -4.382578048
A97: 5.8 | B97: 5.5845668 | C97: -4.5845668
A98: 5.9 | B98: 5.795096711 | C98: -4.795096711
A99: 6 | B99: 6.014554458 | C99: -5.014554458
A100: 6.1 | B100: 6.243345899 | C100: -5.243345899
A101: 6.2 | B101: 6.481897039 | C101: -5.481897039
A102: 6.3 | B102: 6.730655042 | C102: -5.730655042
A103: 6.4 | B103: 6.9900893 | C103: -5.9900893
A104: 6.5 | B104: 7.260692544 | C104: -6.260692544
A105: 6.6 | B105: 7.54298202 | C105: -6.54298202
A106: 6.7 | B106: 7.837500719 | C106: -6.837500719
A107: 6.8 | B107: 8.14481867 | C107: -7.14481867
A108: 6.9 | B108: 8.465534295 | C108: -7.465534295
A109: 7 | B109: 8.800275836 | C109: -7.800275836
A110: 7.1 | B110: 9.149702851 | C110: -8.149702851
A111: 7.2 | B111: 9.514507787 | C111: -8.514507787
A112: 7.3 | B112: 9.895417629 | C112: -8.895417629
A113: 7.4 | B113: 10.29319564 | C113: -9.293195641
A114: 7.5 | B114: 10.70864318 | C114: -9.708643182
A115: 7.6 | B115: 11.14260162 | C115: -10.14260162
A116: 7.7 | B116: 11.59595437 | C116: -10.59595437
A117: 7.8 | B117: 12.06962895 | C117: -11.06962895
A118: 7.9 | B118: 12.56459928 | C118: -11.56459928
A119: 8 | B119: 13.08188794 | C119: -12.08188794
A120: 8.1 | B120: 13.6225687 | C120: -12.6225687
A121: 8.2 | B121: 14.18776901 | C121: -13.18776901
A122: 8.3 | B122: 14.77867281 | C122: -13.77867281
A123: 8.4 | B123: 15.39652329 | C123: -14.39652329
A124: 8.5 | B124: 16.04262594 | C124: -15.04262594
A125: 8.6 | B125: 16.71835164 | C125: -15.71835164
A126: 8.7 | B126: 17.42514005 | C126: -16.42514005
A127: 8.8 | B127: 18.16450299 | C127: -17.16450299
A128: 8.9 | B128: 18.93802816 | C128: -17.93802816
A129: 9 | B129: 19.74738293 | C129: -18.74738293
A130: 9.1 | B130: 20.5943184 | C130: -19.5943184
A131: 9.2 | B131: 21.48067365 | C131: -20.48067365
A132: 9.3 | B132: 22.40838014 | C132: -21.40838014
A133: 9.4 | B133: 23.37946645 | C133: -22.37946645
A134: 9.5 | B134: 24.39606319 | C134: -23.39606319
A135: 9.6 | B135: 25.46040813 | C135: -24.46040813
A136: 9.7 | B136: 26.57485167 | C136: -25.57485167
A137: 9.8 | B137: 27.74186255 | C137: -26.74186255
A138: 9.9 | B138: 28.96403385 | C138: -27.96403385
A139: 10 | B139: 30.2440893 | C139: -29.2440893
A140: 10.1 | B140: 31.58488989 | C140: -30.58488989
A141: 10.2 | B141: 32.98944088 | C141: -31.98944088
A142: 10.3 | B142: 34.46089908 | C142: -33.46089908
A143: 10.4 | B143: 36.00258058 | C143: -35.00258058
A144: 10.5 | B144: 37.61796884 | C144: -36.61796884
A145: 10.6 | B145: 39.31072317 | C145: -38.31072317
A146: 10.7 | B146: 41.08468768 | C146: -40.08468768
A147: 10.8 | B147: 42.94390067 | C147: -41.94390067
A148: 10.9 | B148: 44.89260451 | C148: -43.89260451
A149: 11 | B149: 46.935256 | C149: -45.935256
A150: 11.1 | B150: 49.07653729 | C150: -48.07653729
A151: 11.2 | B151: 51.32136732 | C151: -50.32136732
A152: 11.3 | B152: 53.67491389 | C152: -52.67491389
A153: 11.4 | B153: 56.14260626 | C153: -55.14260626
A154: 11.5 | B154: 58.73014854 | C154: -57.73014854
A155: 11.6 | B155: 61.44353359 | C155: -60.44353359
A156: 11.7 | B156: 64.28905777 | C156: -63.28905777
A157: 11.8 | B157: 67.27333633 | C157: -66.27333633
A158: 11.9 | B158: 70.4033197 | C158: -69.4033197
A159: 12 | B159: 73.68631049 | C159: -72.68631049
A160: 12.1 | B160: 77.12998144 | C160: -76.12998144
A161: 12.2 | B161: 80.74239429 | C161: -79.74239429
A162: 12.3 | B162: 84.53201951 | C162: -83.53201951
A163: 12.4 | B163: 88.50775717 | C163: -87.50775717
A164: 12.5 | B164: 92.67895879 | C164: -91.67895879
A165: 12.6 | B165: 97.05545031 | C165: -96.05545031
A166: 12.7 | B166: 101.6475563 | C166: -100.6475563
A167: 12.8 | B167: 106.4661252 | C167: -105.4661252
A168: 12.9 | B168: 111.5225561 | C168: -110.5225561
A169: 13 | B169: 116.8288271 | C169: -115.8288271
A170: 13.1 | B170: 122.397524 | C170: -121.397524
A171: 13.2 | B171: 128.241872 | C171: -127.241872
A172: 13.3 | B172: 134.3757679 | C172: -133.3757679
A173: 13.4 | B173: 140.8138144 | C173: -139.8138144
A174: 13.5 | B174: 147.571356 | C174: -146.571356
A175: 13.6 | B175: 154.664517 | C175: -153.664517
A176: 13.7 | B176: 162.1102406 | C176: -161.1102406
A177: 13.8 | B177: 169.9263315 | C177: -168.9263315
A178: 13.9 | B178: 178.131499 | C178: -177.131499
A179: 14 | B179: 186.7454034 | C179: -185.7454034
A180: 14.1 | B180: 195.7887046 | C180: -194.7887046
A181: 14.2 | B181: 205.2831127 | C181: -204.2831127
A182: 14.3 | B182: 215.2514415 | C182: -214.2514415
A183: 14.4 | B183: 225.717665 | C183: -224.717665
A184: 14.5 | B184: 236.7069762 | C184: -235.7069762
A185: 14.6 | B185: 248.2458494 | C185: -247.2458494
A186: 14.7 | B186: 260.3621053 | C186: -259.3621053
A187: 14.8 | B187: 273.0849795 | C187: -272.0849795
A188: 14.9 | B188: 286.4451949 | C188: -285.4451949
A189: 15 | B189: 300.4750372 | C189: -299.4750372
A190: 15.1 | B190: 315.2084343 | C190: -314.2084343
A191: 15.2 | B191: 330.6810403 | C191: -329.6810403
A192: 15.3 | B192: 346.9303235 | C192: -345.9303235
A193: 15.4 | B193: 363.9956581 | C193: -362.9956581
A194: 15.5 | B194: 381.9184221 | C194: -380.9184221
A195: 15.6 | B195: 400.7420988 | C195: -399.7420988
A196: 15.7 | B196: 420.5123842 | C196: -419.5123842
A197: 15.8 | B197: 441.2772996 | C197: -440.2772996
A198: 15.9 | B198: 463.0873101 | C198: -462.0873101
A199: 16 | B199: 485.9954489 | C199: -484.9954489
A200: 16.1 | B200: 510.0574484 | C200: -509.0574484
A201: 16.2 | B201: 535.3318772 | C201: -534.3318772
A202: 16.3 | B202: 561.8802847 | C202: -560.8802847
A203: 16.4 | B203: 589.7673529 | C203: -588.7673529
A204: 16.5 | B204: 619.061056 | C204: -618.061056
A205: 16.6 | B205: 649.8328276 | C205: -648.8328276
A206: 16.7 | B206: 682.1577374 | C206: -681.1577374
A207: 16.8 | B207: 716.1146759 | C207: -715.1146759
... 332 more rows

Sheet Farm15
A1: YEARDUM | B1: 1 | C1: 2 | D1: 3 | E1: 4 | F1: 5 | G1: 6 | H1: 7 | I1: 8 | J1: MULT | M1: 1 | N1: 2 | O1: 3 | P1: 4 | Q1: 5 | R1: 6 | S1: 7 | T1: 8 | X1: 1 | Y1: 2 | Z1: 3 | AA1: 4 | AB1: 5 | AC1: 6 | AD1: 7 | AE1: 8
A2: FMERCODE | B2: 1 | C2: 1 | D2: 1 | E2: 1 | F2: 1 | G2: 1 | H2: 1 | I2: 1 | J2: 500 | K2: =J2/10 -> 50
A3: PROD | B3: =B7:I10^K2 -> 0.01546647583 | C3: 0.01546647583 | D3: 8.993000526e-05 | E3: 1.644631822 | F3: 1.644631822 | G3: 0.2180653753 | H3: 2.570906033e-22 | I3: 8.759000212e-09
A4: AREA | B4: 7.178979877e-27 | C4: 7.178979877e-27 | D4: 7.178979877e-27 | E4: 7.178979877e-27 | F4: 7.178979877e-27 | G4: 7.178979877e-27 | H4: 7.178979877e-27 | I4: 7.178979877e-27 | J4: =AG15 -> 0.0005291094471 | L4: AREA | M4: =MMULT(B4:I6,B26:I33) -> 4.641639088e-25 | N4: 4.641639088e-25 | O4: 7.982852727e-23 | P4: 4.365098487e-27 | Q4: 4.365098487e-27 | R4: 3.292122771e-26 | S4: 2.792392949e-05 | T4: 8.196117939e-19 | U4: =SUM(N4:T4) -> 2.792392949e-05 | W4: AREA | X4: =MMULT(M4:T6,M26:T33) -> 4.641639088e-25 | Y4: 9.283278175e-25 | Z4: 2.394855818e-22 | AA4: 1.746039395e-26 | AB4: 2.182549243e-26 | AC4: 1.975273662e-25 | AD4: 0.0001954675064 | AE4: 6.556894351e-18
A5: LABOR | B5: 6.376215002e+58 | C5: 1.606938044e+60 | D5: 1.291114435e+66 | E5: 1.125899907e+65 | F5: 1.291114435e+66 | G5: 1.606938044e+60 | H5: 4.97929223e+55 | I5: 1.606938044e+60 | J5: =AG21 -> 0.9994704214 | L5: LABOR | M5: 4.12260367e+60 | N5: 1.038981383e+62 | O5: 1.435688157e+70 | P5: 6.845908561e+64 | Q5: 7.850477036e+65 | R5: 7.369065546e+60 | S5: 1.936784996e+77 | T5: 1.834613546e+68 | U5: =SUM(N5:T5) -> 1.936785141e+77 | W5: LABOR | X5: 4.12260367e+60 | Y5: 1.080207419e+62 | Z5: 1.435690015e+70 | AA5: 8.535078051e+65 | AB5: 1.638555509e+66 | AC5: 1.235786348e+67 | AD5: 1.048199391e+88 | AE5: 3.076633954e+74
A6: NPK | B6: 8.23242323e+74 | C6: 8.23242323e+74 | D6: 1.180677875e+74 | E6: 1.125899907e+65 | F6: 1.291114435e+66 | G6: 2.601615746e+67 | H6: 1.906383031e+72 | I6: 6.328384522e+67 | L6: NPK | M6: 5.322753108e+76 | N6: 5.322753108e+76 | O6: 1.312885362e+78 | P6: 6.845908561e+64 | Q6: 7.850477036e+65 | R6: 1.19304394e+68 | S6: 7.415218631e+93 | T6: 7.225007842e+75 | U6: 7.415218631e+93 | W6: NPK | X6: 5.322753108e+76 | Y6: 1.064550622e+77 | Z6: 1.962139809e+79 | AA6: 1.072916388e+75 | AB6: 1.072916389e+75 | AC6: 8.091850704e+75 | AD6: 6.870958415e+96 | AE6: 2.016735774e+83
A7: PROD | B7: 0.92 | C7: 0.92 | D7: 0.83 | E7: 1.01 | F7: 1.01 | G7: 0.97 | H7: 0.37 | I7: 0.69
A8: AREA | B8: 0.3 | C8: 0.3 | D8: 0.3 | E8: 0.3 | F8: 0.3 | G8: 0.3 | H8: 0.3 | I8: 0.3
A9: LABOR | B9: 15 | C9: 16 | D9: 21 | E9: 20 | F9: 21 | G9: 16 | H9: 13 | I9: 16
A10: NPK | B10: 31.5 | C10: 31.5 | D10: 30.3 | E10: 20 | F10: 21 | G10: 22.3 | H10: 27.9 | I10: 22.7
W12: AREA | Y12: =Y4-X4 -> 4.641639088e-25 | Z12: 2.38557254e-22 | AA12: -2.394681214e-22 | AB12: 4.365098487e-27 | AC12: 1.757018738e-25 | AD12: 0.0001954675064 | AE12: -0.0001954675064 | AF12: =SUM(Y12:AE12) -> 6.559423144e-18 | AG12: =AF12/U4 -> 2.349032985e-13
B13: 1 | C13: 2 | D13: 3 | E13: 4 | F13: 5 | G13: 6 | H13: 7 | I13: 8 | M13: 1 | N13: 2 | O13: 3 | P13: 4 | Q13: 5 | R13: 6 | S13: 7 | T13: 8 | W13: LABOR | Y13: 1.038981383e+62 | Z13: 1.435690004e+70 | AA13: -1.435604664e+70 | AB13: 7.850477036e+65 | AC13: 1.071930797e+67 | AD13: 1.048199391e+88 | AE13: -1.048199391e+88 | AF13: =SUM(Y13:AE13) -> 3.074313893e+74 | AG13: =AF13/U5 -> 0.001587328314
A14: 1 | B14: =B3 -> 0.01546647583 | C14: =-B14 -> -0.01546647583 | D14: 0 | E14: 0 | F14: 0 | G14: 0 | H14: 0 | I14: 0 | L14: 1 | M14: =MMULT(B14:I21,B26:I33) -> 1 | N14: -1 | O14: 0 | P14: 0 | Q14: 0 | R14: 0 | S14: 0 | T14: 0 | W14: NPK | Y14: 5.322753108e+76 | Z14: 1.951494303e+79 | AA14: -1.962032518e+79 | AB14: 7.85047687e+65 | AC14: 7.018934315e+75 | AD14: 6.870958415e+96 | AE14: -6.870958415e+96 | AF14: 2.020451533e+83 | AG14: =AF14/U6 -> 2.724736294e-11
A15: 2 | B15: 0 | C15: =C3 -> 0.01546647583 | D15: =-C15 -> -0.01546647583 | E15: 0 | F15: 0 | G15: 0 | H15: 0 | I15: 0 | L15: 2 | M15: 0 | N15: 1 | O15: -171.9834864 | P15: 0 | Q15: 0 | R15: 0 | S15: 0 | T15: 0 | AG15: =AVERAGE(AG12:AG14) -> 0.0005291094471
A16: 3 | B16: 0 | C16: 0 | D16: =D3 -> 8.993000526e-05 | E16: =-D16 -> -8.993000526e-05 | F16: 0 | G16: 0 | H16: 0 | I16: 0 | L16: 3 | M16: 0 | N16: 0 | O16: 1 | P16: -5.46809347e-05 | Q16: 0 | R16: 0 | S16: 0 | T16: 0
A17: 4 | B17: 0 | C17: 0 | D17: 0 | E17: =E3 -> 1.644631822 | F17: =-E17 -> -1.644631822 | G17: 0 | H17: 0 | I17: 0 | L17: 4 | M17: 0 | N17: 0 | O17: 0 | P17: 1 | Q17: -1 | R17: 0 | S17: 0 | T17: 0
A18: 5 | B18: 0 | C18: 0 | D18: 0 | E18: 0 | F18: =F3 -> 1.644631822 | G18: =-F18 -> -1.644631822 | H18: 0 | I18: 0 | L18: 5 | M18: 0 | N18: 0 | O18: 0 | P18: 0 | Q18: 1 | R18: -7.541920946 | S18: 0 | T18: 0 | W18: AREA | Y18: =N4-Y12 -> 0 | Z18: -1.587287267e-22 | AA18: 2.394724865e-22 | AB18: 0 | AC18: -1.427806461e-25 | AD18: -0.0001675435769 | AE18: 0.0001954675064 | AF18: 2.792392949e-05 | AG18: =AF18/U4 -> 1
A19: 6 | B19: 0 | C19: 0 | D19: 0 | E19: 0 | F19: 0 | G19: =G3 -> 0.2180653753 | H19: =-G19 -> -0.2180653753 | I19: 0 | L19: 6 | M19: 0 | N19: 0 | O19: 0 | P19: 0 | Q19: 0 | R19: 1 | S19: -8.482043784e+20 | T19: 0 | W19: LABOR | Y19: 0 | Z19: -1.846976305e+64 | AA19: 1.43561151e+70 | AB19: 0 | AC19: -1.07193006e+67 | AD19: -1.048199391e+88 | AE19: 1.048199391e+88 | AF19: 1.933708102e+77 | AG19: =AF19/U5 -> 0.9984112643
A20: 7 | B20: 0 | C20: 0 | D20: 0 | E20: 0 | F20: 0 | G20: 0 | H20: =H3 -> 2.570906033e-22 | I20: =-H20 -> -2.570906033e-22 | L20: 7 | M20: 0 | N20: 0 | O20: 0 | P20: 0 | Q20: 0 | R20: 0 | S20: 1 | T20: -2.935159231e-14 | W20: NPK | Y20: 0 | Z20: -1.820205767e+79 | AA20: 1.962032518e+79 | AB20: 1.663529905e+58 | AC20: -7.018934196e+75 | AD20: -6.863543197e+96 | AE20: 6.870958415e+96 | AF20: 7.415218631e+93 | AG20: =AF20/U6 -> 1
A21: 8 | B21: 0 | C21: 0 | D21: 0 | E21: 0 | F21: 0 | G21: 0 | H21: 0 | I21: =I3 -> 8.759000212e-09 | L21: 8 | M21: 0 | N21: 0 | O21: 0 | P21: 0 | Q21: 0 | R21: 0 | S21: 0 | T21: 1 | AG21: =AVERAGE(AG18:AG20) -> 0.9994704214
B25: 1 | C25: 2 | D25: 3 | E25: 4 | F25: 5 | G25: 6 | H25: 7 | I25: 8 | M25: 1 | N25: 2 | O25: 3 | P25: 4 | Q25: 5 | R25: 6 | S25: 7 | T25: 8
A26: 1 | B26: =1/B3 -> 64.65597017 | C26: 0 | D26: 0 | E26: 0 | F26: 0 | G26: 0 | H26: 0 | I26: 0 | L26: 1 | M26: =MINVERSE(M14:T21) -> 1 | N26: 1 | O26: 171.9834864 | P26: 0.009404217787 | Q26: 0.009404217787 | R26: 0.0709258671 | S26: 6.015963102e+19 | T26: 1765780.963
A27: 2 | B27: 0 | C27: =1/C3 -> 64.65597017 | D27: 0 | E27: 0 | F27: 0 | G27: 0 | H27: 0 | I27: 0 | L27: 2 | M27: 0 | N27: 1 | O27: 171.9834864 | P27: 0.009404217787 | Q27: 0.009404217787 | R27: 0.0709258671 | S27: 6.015963102e+19 | T27: 1765780.963
A28: 3 | B28: 0 | C28: 0 | D28: =1/D3 -> 11119.75916 | E28: 0 | F28: 0 | G28: 0 | H28: 0 | I28: 0 | L28: 3 | M28: 0 | N28: 0 | O28: 1 | P28: 5.46809347e-05 | Q28: 5.46809347e-05 | R28: 0.0004123992867 | S28: 3.497988807e+17 | T28: 10267.15414
A29: 4 | B29: 0 | C29: 0 | D29: 0 | E29: =1/E3 -> 0.6080388247 | F29: 0 | G29: 0 | H29: 0 | I29: 0 | L29: 4 | M29: 0 | N29: 0 | O29: 0 | P29: 1 | Q29: 1 | R29: 7.541920946 | S29: 6.397090368e+21 | T29: 187764788.4
A30: 5 | B30: 0 | C30: 0 | D30: 0 | E30: 0 | F30: =1/F3 -> 0.6080388247 | G30: 0 | H30: 0 | I30: 0 | L30: 5 | M30: 0 | N30: 0 | O30: 0 | P30: 0 | Q30: 1 | R30: 7.541920946 | S30: 6.397090368e+21 | T30: 187764788.4
A31: 6 | B31: 0 | C31: 0 | D31: 0 | E31: 0 | F31: 0 | G31: =1/G3 -> 4.585780748 | H31: 0 | I31: 0 | L31: 6 | M31: 0 | N31: 0 | O31: 0 | P31: 0 | Q31: 0 | R31: 1 | S31: 8.482043784e+20 | T31: 24896149.11
A32: 7 | B32: 0 | C32: 0 | D32: 0 | E32: 0 | F32: 0 | G32: 0 | H32: =1/H3 -> 3.889679309e+21 | I32: 0 | L32: 7 | M32: 0 | N32: 0 | O32: 0 | P32: 0 | Q32: 0 | R32: 0 | S32: 1 | T32: 2.935159231e-14
A33: 8 | B33: 0 | C33: 0 | D33: 0 | E33: 0 | F33: 0 | G33: 0 | H33: 0 | I33: =1/I3 -> 114168281.3 | L33: 8 | M33: 0 | N33: 0 | O33: 0 | P33: 0 | Q33: 0 | R33: 0 | S33: 0 | T33: 1
A37: INF | B37: POST
A38: 1 | B38: 500
A39: N | B39: PI-I | C39: PI-II
A40: 0.1 | B40: 1.017305332 | C40: -0.01730533199
A41: 0.2 | B41: 1.033743007 | C41: -0.03374300671
A42: 0.3 | B42: 1.049218702 | C42: -0.04921870231
A43: 0.4 | B43: 1.063638979 | C43: -0.06363897886
A44: 0.5 | B44: 1.076912605 | C44: -0.07691260496
A45: 0.6 | B45: 1.088951983 | C45: -0.08895198261
A46: 0.7 | B46: 1.099674639 | C46: -0.09967463898
A47: 0.8 | B47: 1.109004747 | C47: -0.1090047472
A48: 0.9 | B48: 1.116874632 | C48: -0.1168746318
A49: 1 | B49: 1.12322621 | C49: -0.1232262097
A50: 1.1 | B50: 1.128012316 | C50: -0.1280123162
A51: 1.2 | B51: 1.131197864 | C51: -0.1311978644
A52: 1.3 | B52: 1.13276079 | C52: -0.1327607895
A53: 1.4 | B53: 1.132692737 | C53: -0.1326927369
A54: 1.5 | B54: 1.13099946 | C54: -0.1309994599
A55: 1.6 | B55: 1.127700905 | C55: -0.1277009052
A56: 1.7 | B56: 1.122830975 | C56: -0.1228309754
A57: 1.8 | B57: 1.116436974 | C57: -0.1164369742
A58: 1.9 | B58: 1.108578751 | C58: -0.1085787506
A59: 2 | B59: 1.099327572 | C59: -0.09932757212
A60: 2.1 | B60: 1.08876477 | C60: -0.08876476959
A61: 2.2 | B61: 1.076980201 | C61: -0.07698020077
A62: 2.3 | B62: 1.064070589 | C62: -0.06407058909
A63: 2.4 | B63: 1.050137794 | C63: -0.05013779377
A64: 2.5 | B64: 1.035287068 | C64: -0.0352870678
A65: 2.6 | B65: 1.019625356 | C65: -0.01962535636
A66: 2.7 | B66: 1.003259683 | C66: -0.003259682597
A67: 2.8 | B67: 0.9862956599 | C67: 0.01370434013
A68: 2.9 | B68: 0.9688361612 | C68: 0.03116383884
A69: 3 | B69: 0.950980167 | C69: 0.04901983295
A70: 3.1 | B70: 0.9328218047 | C70: 0.06717819527
A71: 3.2 | B71: 0.9144495824 | C71: 0.08555041762
A72: 3.3 | B72: 0.8959458155 | C72: 0.1040541845
A73: 3.4 | B73: 0.877386236 | C73: 0.122613764
A74: 3.5 | B74: 0.85883977 | C74: 0.14116023
A75: 3.6 | B75: 0.8403684664 | C75: 0.1596315336
A76: 3.7 | B76: 0.8220275572 | C76: 0.1779724428
A77: 3.8 | B77: 0.803865628 | C77: 0.196134372
A78: 3.9 | B78: 0.7859248786 | C78: 0.2140751214
A79: 4 | B79: 0.768241454 | C79: 0.231758546
A80: 4.1 | B80: 0.7508458261 | C80: 0.2491541739
A81: 4.2 | B81: 0.733763211 | C81: 0.266236789
A82: 4.3 | B82: 0.7170140051 | C82: 0.2829859949
A83: 4.4 | B83: 0.7006142303 | C83: 0.2993857697
A84: 4.5 | B84: 0.6845759743 | C84: 0.3154240257
A85: 4.6 | B85: 0.6689078213 | C85: 0.3310921787
A86: 4.7 | B86: 0.6536152633 | C86: 0.3463847367
A87: 4.8 | B87: 0.63870109 | C87: 0.36129891
A88: 4.9 | B88: 0.6241657516 | C88: 0.3758342484
A89: 5 | B89: 0.6100076946 | C89: 0.3899923054
A90: 5.1 | B90: 0.5962236683 | C90: 0.4037763317
A91: 5.2 | B91: 0.5828090017 | C91: 0.4171909983
A92: 5.3 | B92: 0.5697578531 | C92: 0.4302421469
A93: 5.4 | B93: 0.5570634309 | C93: 0.4429365691
A94: 5.5 | B94: 0.5447181895 | C94: 0.4552818105
A95: 5.6 | B95: 0.5327140007 | C95: 0.4672859993
A96: 5.7 | B96: 0.521042302 | C96: 0.478957698
A97: 5.8 | B97: 0.5096942255 | C97: 0.4903057745
A98: 5.9 | B98: 0.498660707 | C98: 0.501339293
A99: 6 | B99: 0.4879325796 | C99: 0.5120674204
A100: 6.1 | B100: 0.4775006516 | C100: 0.5224993484
A101: 6.2 | B101: 0.4673557711 | C101: 0.5326442289
A102: 6.3 | B102: 0.4574888802 | C102: 0.5425111198
A103: 6.4 | B103: 0.4478910574 | C103: 0.5521089426
A104: 6.5 | B104: 0.4385535528 | C104: 0.5614464472
A105: 6.6 | B105: 0.4294678146 | C105: 0.5705321854
A106: 6.7 | B106: 0.4206255098 | C106: 0.5793744902
A107: 6.8 | B107: 0.4120185394 | C107: 0.5879814606
A108: 6.9 | B108: 0.4036390485 | C108: 0.5963609515
A109: 7 | B109: 0.395479433 | C109: 0.604520567
A110: 7.1 | B110: 0.3875323429 | C110: 0.6124676571
A111: 7.2 | B111: 0.3797906828 | C111: 0.6202093172
A112: 7.3 | B112: 0.3722476108 | C112: 0.6277523892
A113: 7.4 | B113: 0.3648965348 | C113: 0.6351034652
A114: 7.5 | B114: 0.3577311083 | C114: 0.6422688917
A115: 7.6 | B115: 0.3507452245 | C115: 0.6492547755
A116: 7.7 | B116: 0.3439330102 | C116: 0.6560669898
A117: 7.8 | B117: 0.3372888184 | C117: 0.6627111816
A118: 7.9 | B118: 0.3308072213 | C118: 0.6691927787
A119: 8 | B119: 0.324483002 | C119: 0.675516998
A120: 8.1 | B120: 0.3183111475 | C120: 0.6816888525
A121: 8.2 | B121: 0.3122868402 | C121: 0.6877131598
A122: 8.3 | B122: 0.3064054505 | C122: 0.6935945495
A123: 8.4 | B123: 0.300662529 | C123: 0.699337471
A124: 8.5 | B124: 0.2950537989 | C124: 0.7049462011
A125: 8.6 | B125: 0.2895751488 | C125: 0.7104248512
A126: 8.7 | B126: 0.2842226254 | C126: 0.7157773746
A127: 8.8 | B127: 0.278992427 | C127: 0.721007573
A128: 8.9 | B128: 0.2738808964 | C128: 0.7261191036
A129: 9 | B129: 0.2688845151 | C129: 0.7311154849
A130: 9.1 | B130: 0.2639998966 | C130: 0.7360001034
A131: 9.2 | B131: 0.2592237812 | C131: 0.7407762188
A132: 9.3 | B132: 0.2545530299 | C132: 0.7454469701
A133: 9.4 | B133: 0.2499846195 | C133: 0.7500153805
A134: 9.5 | B134: 0.2455156371 | C134: 0.7544843629
A135: 9.6 | B135: 0.2411432759 | C135: 0.7588567241
A136: 9.7 | B136: 0.2368648299 | C136: 0.7631351701
A137: 9.8 | B137: 0.23267769 | C137: 0.76732231
A138: 9.9 | B138: 0.2285793399 | C138: 0.7714206601
A139: 10 | B139: 0.2245673517 | C139: 0.7754326483
A140: 10.1 | B140: 0.2206393824 | C140: 0.7793606176
A141: 10.2 | B141: 0.2167931704 | C141: 0.7832068296
A142: 10.3 | B142: 0.2130265322 | C142: 0.7869734678
A143: 10.4 | B143: 0.2093373585 | C143: 0.7906626415
A144: 10.5 | B144: 0.2057236121 | C144: 0.7942763879
A145: 10.6 | B145: 0.2021833241 | C145: 0.7978166759
A146: 10.7 | B146: 0.1987145916 | C146: 0.8012854084
A147: 10.8 | B147: 0.1953155749 | C147: 0.8046844251
A148: 10.9 | B148: 0.1919844948 | C148: 0.8080155052
A149: 11 | B149: 0.1887196305 | C149: 0.8112803695
A150: 11.1 | B150: 0.1855193171 | C150: 0.8144806829
A151: 11.2 | B151: 0.1823819433 | C151: 0.8176180567
A152: 11.3 | B152: 0.1793059497 | C152: 0.8206940503
A153: 11.4 | B153: 0.1762898262 | C153: 0.8237101738
A154: 11.5 | B154: 0.1733321106 | C154: 0.8266678894
A155: 11.6 | B155: 0.1704313866 | C155: 0.8295686134
A156: 11.7 | B156: 0.1675862819 | C156: 0.8324137181
A157: 11.8 | B157: 0.1647954667 | C157: 0.8352045333
A158: 11.9 | B158: 0.1620576522 | C158: 0.8379423478
A159: 12 | B159: 0.1593715887 | C159: 0.8406284113
A160: 12.1 | B160: 0.1567360646 | C160: 0.8432639354
A161: 12.2 | B161: 0.1541499046 | C161: 0.8458500954
A162: 12.3 | B162: 0.1516119685 | C162: 0.8483880315
A163: 12.4 | B163: 0.1491211502 | C163: 0.8508788498
A164: 12.5 | B164: 0.146676376 | C164: 0.853323624
A165: 12.6 | B165: 0.1442766036 | C165: 0.8557233964
A166: 12.7 | B166: 0.1419208212 | C166: 0.8580791788
A167: 12.8 | B167: 0.1396080459 | C167: 0.8603919541
A168: 12.9 | B168: 0.1373373234 | C168: 0.8626626766
A169: 13 | B169: 0.1351077262 | C169: 0.8648922738
A170: 13.1 | B170: 0.1329183531 | C170: 0.8670816469
A171: 13.2 | B171: 0.1307683285 | C171: 0.8692316715
A172: 13.3 | B172: 0.1286568009 | C172: 0.8713431991
A173: 13.4 | B173: 0.1265829424 | C173: 0.8734170576
A174: 13.5 | B174: 0.1245459481 | C174: 0.8754540519
A175: 13.6 | B175: 0.1225450348 | C175: 0.8774549652
A176: 13.7 | B176: 0.1205794406 | C176: 0.8794205594
A177: 13.8 | B177: 0.1186484243 | C177: 0.8813515757
A178: 13.9 | B178: 0.1167512643 | C178: 0.8832487357
A179: 14 | B179: 0.1148872584 | C179: 0.8851127416
A180: 14.1 | B180: 0.1130557225 | C180: 0.8869442775
A181: 14.2 | B181: 0.1112559909 | C181: 0.8887440091
A182: 14.3 | B182: 0.1094874149 | C182: 0.8905125851
A183: 14.4 | B183: 0.1077493625 | C183: 0.8922506375
A184: 14.5 | B184: 0.1060412182 | C184: 0.8939587818
A185: 14.6 | B185: 0.1043623819 | C185: 0.8956376181
A186: 14.7 | B186: 0.1027122688 | C186: 0.8972877312
A187: 14.8 | B187: 0.1010903086 | C187: 0.8989096914
A188: 14.9 | B188: 0.09949594552 | C188: 0.9005040545
A189: 15 | B189: 0.09792863726 | C189: 0.9020713627
A190: 15.1 | B190: 0.09638785499 | C190: 0.903612145
A191: 15.2 | B191: 0.09487308275 | C191: 0.9051269172
A192: 15.3 | B192: 0.0933838171 | C192: 0.9066161829
A193: 15.4 | B193: 0.09191956671 | C193: 0.9080804333
A194: 15.5 | B194: 0.09047985202 | C194: 0.909520148
A195: 15.6 | B195: 0.08906420483 | C195: 0.9109357952
A196: 15.7 | B196: 0.08767216803 | C196: 0.912327832
A197: 15.8 | B197: 0.08630329517 | C197: 0.9136967048
A198: 15.9 | B198: 0.08495715023 | C198: 0.9150428498
A199: 16 | B199: 0.08363330725 | C199: 0.9163666927
A200: 16.1 | B200: 0.08233135007 | C200: 0.9176686499
A201: 16.2 | B201: 0.08105087202 | C201: 0.918949128
A202: 16.3 | B202: 0.07979147565 | C202: 0.9202085244
A203: 16.4 | B203: 0.07855277245 | C203: 0.9214472276
A204: 16.5 | B204: 0.07733438261 | C204: 0.9226656174
A205: 16.6 | B205: 0.07613593479 | C205: 0.9238640652
A206: 16.7 | B206: 0.07495706581 | C206: 0.9250429342
A207: 16.8 | B207: 0.07379742051 | C207: 0.9262025795
... 332 more rows

Sheet Farm16
A1: YEARDUM | B1: 1 | C1: 2 | D1: 3 | E1: 4 | F1: 5 | G1: 6 | H1: 7 | I1: 8 | J1: MULT | M1: 1 | N1: 2 | O1: 3 | P1: 4 | Q1: 5 | R1: 6 | S1: 7 | T1: 8 | X1: 1 | Y1: 2 | Z1: 3 | AA1: 4 | AB1: 5 | AC1: 6 | AD1: 7 | AE1: 8
A2: FMERCODE | B2: 1 | C2: 1 | D2: 1 | E2: 1 | F2: 1 | G2: 1 | H2: 1 | I2: 1 | J2: 500 | K2: =J2/10 -> 50
A3: PROD | B3: =B7:I10^K2 -> 1083.657442 | C3: 2.073924998e+16 | D3: 3.575963799e+18 | E3: 1.74137037e+13 | F3: 1.65811132e+17 | G3: 1.220089813e+18 | H3: 4.391890959e+12 | I3: 6.811762746e+14
A4: AREA | B4: 8.082812775e-12 | C4: 8.082812775e-12 | D4: 8.082812775e-12 | E4: 8.082812775e-12 | F4: 8.082812775e-12 | G4: 8.082812775e-12 | H4: 8.082812775e-12 | I4: 8.082812775e-12 | J4: =AG15 -> -1.439727051e+12 | L4: AREA | M4: =MMULT(B4:I6,B26:I33) -> 7.458826438e-15 | N4: 3.89735057e-28 | O4: 2.260317282e-30 | P4: 4.641639088e-25 | Q4: 4.874710568e-29 | R4: 6.624768678e-30 | S4: 1.840394684e-24 | T4: 1.186596345e-26 | U4: =SUM(N4:T4) -> 2.316871924e-24 | W4: AREA | X4: =MMULT(M4:T6,M26:T33) -> 7.458826438e-15 | Y4: 7.794701141e-28 | Z4: 6.780951846e-30 | AA4: 1.856655635e-24 | AB4: 2.437355284e-28 | AC4: 3.974861207e-29 | AD4: 1.288276279e-23 | AE4: 9.492770756e-26
A5: LABOR | B5: 3.749262535e+76 | C5: 2.279825291e+72 | D5: 3.69988485e+71 | E5: 3.69988485e+71 | F5: 3.69988485e+71 | G5: 9.753934409e+78 | H5: 8.66323405e+63 | I5: 3.69988485e+71 | J5: =AG21 -> 1.439727051e+12 | L5: LABOR | M5: 3.459822626e+73 | N5: 1.099280491e+56 | O5: 1.034653889e+53 | P5: 2.124697258e+58 | Q5: 2.231385074e+54 | R5: 7.994439679e+60 | S5: 1.972552172e+51 | T5: 5.431611446e+56 | U5: =SUM(N5:T5) -> 8.016342078e+60 | W5: LABOR | X5: 3.459822626e+73 | Y5: 1.807920017e+60 | Z5: 1.048536206e+58 | AA5: 2.153226321e+63 | AB5: 2.261368986e+59 | AC5: 8.025171855e+60 | AD5: 2.229433863e+66 | AE5: 1.437429805e+64
A6: NPK | B6: 1.488105851e+82 | C6: 1.453665622e+81 | D6: 1.068308196e+106 | E6: 3.69900307e+74 | F6: 1.453665622e+81 | G6: 6.742917605e+68 | H6: 1.65811132e+67 | I6: 1.515650247e+68 | L6: NPK | M6: 1.373225333e+79 | N6: 7.00924876e+64 | O6: 2.98746927e+87 | P6: 2.124190887e+61 | Q6: 8.76699655e+63 | R6: 5.526574794e+50 | S6: 3.775392731e+54 | T6: 2.225048498e+53 | U6: 2.98746927e+87 | W6: NPK | X6: 1.373225333e+79 | Y6: 7.876236676e+65 | Z6: 2.98746927e+87 | AA6: 6.134870643e+92 | AB6: 6.442922035e+88 | AC6: 8.75597997e+87 | AD6: 2.432456101e+93 | AE6: 1.568328545e+91
A7: PROD | B7: 1.15 | C7: 2.12 | D7: 2.35 | E7: 1.84 | F7: 2.21 | G7: 2.3 | H7: 1.79 | I7: 1.98
A8: AREA | B8: 0.6 | C8: 0.6 | D8: 0.6 | E8: 0.6 | F8: 0.6 | G8: 0.6 | H8: 0.6 | I8: 0.6
A9: LABOR | B9: 34 | C9: 28 | D9: 27 | E9: 27 | F9: 27 | G9: 38 | H9: 19 | I9: 27
A10: NPK | B10: 44 | C10: 42 | D10: 132 | E10: 31 | F10: 42 | G10: 23.8 | H10: 22.1 | I10: 23.1
W12: AREA | Y12: =Y4-X4 -> -7.458826438e-15 | Z12: -7.726891622e-28 | AA12: 1.856648854e-24 | AB12: -1.8564119e-24 | AC12: -2.039869163e-28 | AD12: 1.288272304e-23 | AE12: -1.278783508e-23 | AF12: =SUM(Y12:AE12) -> -7.458826438e-15 | AG12: =AF12/U4 -> -3219352076
B13: 1 | C13: 2 | D13: 3 | E13: 4 | F13: 5 | G13: 6 | H13: 7 | I13: 8 | M13: 1 | N13: 2 | O13: 3 | P13: 4 | Q13: 5 | R13: 6 | S13: 7 | T13: 8 | W13: LABOR | Y13: -3.459822626e+73 | Z13: -1.797434655e+60 | AA13: 2.153215836e+63 | AB13: -2.153000184e+63 | AC13: 7.799034957e+60 | AD13: 2.229425837e+66 | AE13: -2.215059565e+66 | AF13: =SUM(Y13:AE13) -> -3.459822624e+73 | AG13: =AF13/U5 -> -4.315961807e+12
A14: 1 | B14: =B3 -> 1083.657442 | C14: =-B14 -> -1083.657442 | D14: 0 | E14: 0 | F14: 0 | G14: 0 | H14: 0 | I14: 0 | L14: 1 | M14: =MMULT(B14:I21,B26:I33) -> 1 | N14: -5.225152513e-14 | O14: 0 | P14: 0 | Q14: 0 | R14: 0 | S14: 0 | T14: 0 | W14: NPK | Y14: -1.373225333e+79 | Z14: 2.98746927e+87 | AA14: 6.134840768e+92 | AB14: -6.134226351e+92 | AC14: -5.567324038e+88 | AD14: 2.432447345e+93 | AE14: -2.416772816e+93 | AF14: 1.568328545e+91 | AG14: =AF14/U6 -> 5249.689298
A15: 2 | B15: 0 | C15: =C3 -> 2.073924998e+16 | D15: =-C15 -> -2.073924998e+16 | E15: 0 | F15: 0 | G15: 0 | H15: 0 | I15: 0 | L15: 2 | M15: 0 | N15: 1 | O15: -0.005799625261 | P15: 0 | Q15: 0 | R15: 0 | S15: 0 | T15: 0 | AG15: =AVERAGE(AG12:AG14) -> -1.439727051e+12
A16: 3 | B16: 0 | C16: 0 | D16: =D3 -> 3.575963799e+18 | E16: =-D16 -> -3.575963799e+18 | F16: 0 | G16: 0 | H16: 0 | I16: 0 | L16: 3 | M16: 0 | N16: 0 | O16: 1 | P16: -205353.4309 | Q16: 0 | R16: 0 | S16: 0 | T16: 0
A17: 4 | B17: 0 | C17: 0 | D17: 0 | E17: =E3 -> 1.74137037e+13 | F17: =-E17 -> -1.74137037e+13 | G17: 0 | H17: 0 | I17: 0 | L17: 4 | M17: 0 | N17: 0 | O17: 0 | P17: 1 | Q17: -0.0001050213185 | R17: 0 | S17: 0 | T17: 0
A18: 5 | B18: 0 | C18: 0 | D18: 0 | E18: 0 | F18: =F3 -> 1.65811132e+17 | G18: =-F18 -> -1.65811132e+17 | H18: 0 | I18: 0 | L18: 5 | M18: 0 | N18: 0 | O18: 0 | P18: 0 | Q18: 1 | R18: -0.1359007594 | S18: 0 | T18: 0 | W18: AREA | Y18: =N4-Y12 -> 7.458826438e-15 | Z18: 7.749494795e-28 | AA18: -1.392484945e-24 | AB18: 1.856460647e-24 | AC18: 2.10611685e-28 | AD18: -1.104232836e-23 | AE18: 1.279970105e-23 | AF18: 7.45882644e-15 | AG18: =AF18/U4 -> 3219352077
A19: 6 | B19: 0 | C19: 0 | D19: 0 | E19: 0 | F19: 0 | G19: =G3 -> 1.220089813e+18 | H19: =-G19 -> -1.220089813e+18 | I19: 0 | L19: 6 | M19: 0 | N19: 0 | O19: 0 | P19: 0 | Q19: 0 | R19: 1 | S19: -277805.124 | T19: 0 | W19: LABOR | Y19: 3.459822626e+73 | Z19: 1.797434758e+60 | AA19: -2.153194589e+63 | AB19: 2.153000186e+63 | AC19: 1.954047223e+59 | AD19: -2.229425837e+66 | AE19: 2.215059565e+66 | AF19: 3.459822624e+73 | AG19: =AF19/U5 -> 4.315961807e+12
A20: 7 | B20: 0 | C20: 0 | D20: 0 | E20: 0 | F20: 0 | G20: 0 | H20: =H3 -> 4.391890959e+12 | I20: =-H20 -> -4.391890959e+12 | L20: 7 | M20: 0 | N20: 0 | O20: 0 | P20: 0 | Q20: 0 | R20: 0 | S20: 1 | T20: -0.006447510171 | W20: NPK | Y20: 1.373225333e+79 | Z20: 0 | AA20: -6.134840768e+92 | AB20: 6.134226351e+92 | AC20: 5.567324038e+88 | AD20: -2.432447345e+93 | AE20: 2.416772816e+93 | AF20: -1.568029799e+91 | AG20: =AF20/U6 -> -5248.689298
A21: 8 | B21: 0 | C21: 0 | D21: 0 | E21: 0 | F21: 0 | G21: 0 | H21: 0 | I21: =I3 -> 6.811762746e+14 | L21: 8 | M21: 0 | N21: 0 | O21: 0 | P21: 0 | Q21: 0 | R21: 0 | S21: 0 | T21: 1 | AG21: =AVERAGE(AG18:AG20) -> 1.439727051e+12
B25: 1 | C25: 2 | D25: 3 | E25: 4 | F25: 5 | G25: 6 | H25: 7 | I25: 8 | M25: 1 | N25: 2 | O25: 3 | P25: 4 | Q25: 5 | R25: 6 | S25: 7 | T25: 8
A26: 1 | B26: =1/B3 -> 0.0009228008424 | C26: 0 | D26: 0 | E26: 0 | F26: 0 | G26: 0 | H26: 0 | I26: 0 | L26: 1 | M26: =MINVERSE(M14:T21) -> 1 | N26: 5.225152513e-14 | O26: 3.030392651e-16 | P26: 6.223015278e-11 | Q26: 6.535492693e-15 | R26: 8.881784197e-16 | S26: 2.46740516e-10 | T26: 1.590861987e-12
A27: 2 | B27: 0 | C27: =1/C3 -> 4.821775141e-17 | D27: 0 | E27: 0 | F27: 0 | G27: 0 | H27: 0 | I27: 0 | L27: 2 | M27: 0 | N27: 1 | O27: 0.005799625261 | P27: 1190.972945 | Q27: 0.125077549 | R27: 0.01699813388 | S27: 4722.168691 | T27: 30.44623067
A28: 3 | B28: 0 | C28: 0 | D28: =1/D3 -> 2.796448891e-19 | E28: 0 | F28: 0 | G28: 0 | H28: 0 | I28: 0 | L28: 3 | M28: 0 | N28: 0 | O28: 1 | P28: 205353.4309 | Q28: 21.56648806 | R28: 2.930902104 | S28: 814219.6226 | T28: 5249.689298
A29: 4 | B29: 0 | C29: 0 | D29: 0 | E29: =1/E3 -> 5.742603741e-14 | F29: 0 | G29: 0 | H29: 0 | I29: 0 | L29: 4 | M29: 0 | N29: 0 | O29: 0 | P29: 1 | Q29: 0.0001050213185 | R29: 1.427247693e-05 | S29: 3.964967223 | T29: 0.0255641665
A30: 5 | B30: 0 | C30: 0 | D30: 0 | E30: 0 | F30: =1/F3 -> 6.030958163e-18 | G30: 0 | H30: 0 | I30: 0 | L30: 5 | M30: 0 | N30: 0 | O30: 0 | P30: 0 | Q30: 1 | R30: 0.1359007594 | S30: 37753.92731 | T30: 243.4188303
A31: 6 | B31: 0 | C31: 0 | D31: 0 | E31: 0 | F31: 0 | G31: =1/G3 -> 8.196117939e-19 | H31: 0 | I31: 0 | L31: 6 | M31: 0 | N31: 0 | O31: 0 | P31: 0 | Q31: 0 | R31: 1 | S31: 277805.124 | T31: 1791.151363
A32: 7 | B32: 0 | C32: 0 | D32: 0 | E32: 0 | F32: 0 | G32: 0 | H32: =1/H3 -> 2.276923561e-13 | I32: 0 | L32: 7 | M32: 0 | N32: 0 | O32: 0 | P32: 0 | Q32: 0 | R32: 0 | S32: 1 | T32: 0.006447510171
A33: 8 | B33: 0 | C33: 0 | D33: 0 | E33: 0 | F33: 0 | G33: 0 | H33: 0 | I33: =1/I3 -> 1.468048782e-15 | L33: 8 | M33: 0 | N33: 0 | O33: 0 | P33: 0 | Q33: 0 | R33: 0 | S33: 0 | T33: 1
A37: INF | B37: POST
A38: 1 | B38: 500
A39: N | B39: PI-I | C39: PI-II
A40: 0.1 | B40: 0.9966479157 | C40: 0.003352084339
A41: 0.2 | B41: 0.9928246584 | C41: 0.007175341628
A42: 0.3 | B42: 0.9885312304 | C42: 0.01146876956
A43: 0.4 | B43: 0.9837724757 | C43: 0.01622752432
A44: 0.5 | B44: 0.9785566044 | C44: 0.02144339564
A45: 0.6 | B45: 0.9728943732 | C45: 0.02710562677
A46: 0.7 | B46: 0.9667978982 | C46: 0.0332021018
A47: 0.8 | B47: 0.9602791038 | C47: 0.03972089625
A48: 0.9 | B48: 0.9533478459 | C48: 0.0466521541
A49: 1 | B49: 0.9460097794 | C49: 0.05399022059
A50: 1.1 | B50: 0.9382640719 | C50: 0.06173592811
A51: 1.2 | B51: 0.9301010912 | C51: 0.06989890879
A52: 1.3 | B52: 0.921500204 | C52: 0.07849979599
A53: 1.4 | B53: 0.9124278197 | C53: 0.08757218026
A54: 1.5 | B54: 0.9028357947 | C54: 0.09716420528
A55: 1.6 | B55: 0.8926602775 | C55: 0.1073397225
A56: 1.7 | B56: 0.8818210347 | C56: 0.1181789653
A57: 1.8 | B57: 0.8702212505 | C57: 0.1297787495
A58: 1.9 | B58: 0.8577477516 | C58: 0.1422522484
A59: 2 | B59: 0.8442715761 | C59: 0.1557284239
A60: 2.1 | B60: 0.8296487816 | C60: 0.1703512184
A61: 2.2 | B61: 0.8137213834 | C61: 0.1862786166
A62: 2.3 | B62: 0.7963183126 | C62: 0.2036816874
A63: 2.4 | B63: 0.7772563015 | C63: 0.2227436985
A64: 2.5 | B64: 0.7563406198 | C64: 0.2436593802
A65: 2.6 | B65: 0.7333656093 | C65: 0.2666343907
A66: 2.7 | B66: 0.7081149831 | C66: 0.2918850169
A67: 2.8 | B67: 0.6803618774 | C67: 0.3196381226
A68: 2.9 | B68: 0.6498686561 | C68: 0.3501313439
A69: 3 | B69: 0.6163864807 | C69: 0.3836135193
A70: 3.1 | B70: 0.5796546648 | C70: 0.4203453352
A71: 3.2 | B71: 0.5393998332 | C71: 0.4606001668
A72: 3.3 | B72: 0.495334911 | C72: 0.504665089
A73: 3.4 | B73: 0.447157961 | C73: 0.552842039
A74: 3.5 | B74: 0.3945508892 | C74: 0.6054491108
A75: 3.6 | B75: 0.337178033 | C75: 0.662821967
A76: 3.7 | B76: 0.2746846439 | C76: 0.7253153561
A77: 3.8 | B77: 0.2066952715 | C77: 0.7933047285
A78: 3.9 | B78: 0.1328120548 | C78: 0.8671879452
A79: 4 | B79: 0.0526129217 | C79: 0.9473870783
A80: 4.1 | B80: -0.03435030416 | C80: 1.034350304
A81: 4.2 | B81: -0.1285538912 | C81: 1.128553891
A82: 4.3 | B82: -0.230504288 | C82: 1.230504288
A83: 4.4 | B83: -0.3407403171 | C83: 1.340740317
A84: 4.5 | B84: -0.4598354824 | C84: 1.459835482
A85: 4.6 | B85: -0.5884003978 | C85: 1.588400398
A86: 4.7 | B86: -0.7270853467 | C86: 1.727085347
A87: 4.8 | B87: -0.8765829826 | C87: 1.876582983
A88: 4.9 | B88: -1.037631181 | C88: 2.037631181
A89: 5 | B89: -1.211016053 | C89: 2.211016053
A90: 5.1 | B90: -1.397575136 | C90: 2.397575136
A91: 5.2 | B91: -1.598200768 | C91: 2.598200768
A92: 5.3 | B92: -1.813843666 | C92: 2.813843666
A93: 5.4 | B93: -2.045516717 | C93: 3.045516717
A94: 5.5 | B94: -2.294298994 | C94: 3.294298994
A95: 5.6 | B95: -2.561340026 | C95: 3.561340026
A96: 5.7 | B96: -2.847864316 | C96: 3.847864316
A97: 5.8 | B97: -3.155176145 | C97: 4.155176145
A98: 5.9 | B98: -3.484664671 | C98: 4.484664671
A99: 6 | B99: -3.837809332 | C99: 4.837809332
A100: 6.1 | B100: -4.216185601 | C100: 5.216185601
A101: 6.2 | B101: -4.621471078 | C101: 5.621471078
A102: 6.3 | B102: -5.055451971 | C102: 6.055451971
A103: 6.4 | B103: -5.520029973 | C103: 6.520029973
A104: 6.5 | B104: -6.017229574 | C104: 7.017229574
A105: 6.6 | B105: -6.549205809 | C105: 7.549205809
A106: 6.7 | B106: -7.118252509 | C106: 8.118252509
A107: 6.8 | B107: -7.726811041 | C107: 8.726811041
A108: 6.9 | B108: -8.377479612 | C108: 9.377479612
A109: 7 | B109: -9.073023128 | C109: 10.07302313
A110: 7.1 | B110: -9.816383683 | C110: 10.81638368
A111: 7.2 | B111: -10.61069168 | C111: 11.61069168
A112: 7.3 | B112: -11.45927768 | C112: 12.45927768
A113: 7.4 | B113: -12.36568489 | C113: 13.36568489
A114: 7.5 | B114: -13.33368258 | C114: 14.33368258
A115: 7.6 | B115: -14.36728014 | C115: 15.36728014
A116: 7.7 | B116: -15.4707422 | C116: 16.4707422
A117: 7.8 | B117: -16.64860451 | C117: 17.64860451
A118: 7.9 | B118: -17.90569093 | C118: 18.90569093
A119: 8 | B119: -19.24713139 | C119: 20.24713139
A120: 8.1 | B120: -20.67838103 | C120: 21.67838103
A121: 8.2 | B121: -22.20524041 | C121: 23.20524041
A122: 8.3 | B122: -23.83387711 | C122: 24.83387711
A123: 8.4 | B123: -25.57084853 | C123: 26.57084853
A124: 8.5 | B124: -27.42312619 | C124: 28.42312619
A125: 8.6 | B125: -29.39812143 | C125: 30.39812143
A126: 8.7 | B126: -31.50371285 | C126: 32.50371285
A127: 8.8 | B127: -33.74827523 | C127: 34.74827523
A128: 8.9 | B128: -36.14071039 | C128: 37.14071039
A129: 9 | B129: -38.69047992 | C129: 39.69047992
A130: 9.1 | B130: -41.40763982 | C130: 42.40763982
A131: 9.2 | B131: -44.30287742 | C131: 45.30287742
A132: 9.3 | B132: -47.38755044 | C132: 48.38755044
A133: 9.4 | B133: -50.67372853 | C133: 51.67372853
A134: 9.5 | B134: -54.17423731 | C134: 55.17423731
A135: 9.6 | B135: -57.90270514 | C135: 58.90270514
A136: 9.7 | B136: -61.87361272 | C136: 62.87361272
A137: 9.8 | B137: -66.10234579 | C137: 67.10234579
A138: 9.9 | B138: -70.60525104 | C138: 71.60525104
A139: 10 | B139: -75.39969536 | C139: 76.39969536
A140: 10.1 | B140: -80.50412888 | C140: 81.50412888
A141: 10.2 | B141: -85.9381517 | C141: 86.9381517
A142: 10.3 | B142: -91.72258483 | C142: 92.72258483
A143: 10.4 | B143: -97.87954541 | C143: 98.87954541
A144: 10.5 | B144: -104.4325265 | C144: 105.4325265
A145: 10.6 | B145: -111.406482 | C145: 112.406482
A146: 10.7 | B146: -118.827916 | C146: 119.827916
A147: 10.8 | B147: -126.724979 | C147: 127.724979
A148: 10.9 | B148: -135.1275682 | C148: 136.1275682
A149: 11 | B149: -144.0674357 | C149: 145.0674357
A150: 11.1 | B150: -153.5783018 | C150: 154.5783018
A151: 11.2 | B151: -163.6959764 | C151: 164.6959764
A152: 11.3 | B152: -174.4584869 | C152: 175.4584869
A153: 11.4 | B153: -185.9062144 | C153: 186.9062144
A154: 11.5 | B154: -198.0820382 | C154: 199.0820382
A155: 11.6 | B155: -211.0314891 | C155: 212.0314891
A156: 11.7 | B156: -224.8029115 | C156: 225.8029115
A157: 11.8 | B157: -239.4476362 | C157: 240.4476362
A158: 11.9 | B158: -255.0201632 | C158: 256.0201632
A159: 12 | B159: -271.578356 | C159: 272.578356
A160: 12.1 | B160: -289.1836472 | C160: 290.1836472
A161: 12.2 | B161: -307.9012571 | C161: 308.9012571
A162: 12.3 | B162: -327.8004253 | C162: 328.8004253
A163: 12.4 | B163: -348.9546567 | C163: 349.9546567
A164: 12.5 | B164: -371.4419823 | C164: 372.4419823
A165: 12.6 | B165: -395.3452355 | C165: 396.3452355
A166: 12.7 | B166: -420.7523461 | C166: 421.7523461
A167: 12.8 | B167: -447.7566509 | C167: 448.7566509
A168: 12.9 | B168: -476.4572248 | C168: 477.4572248
A169: 13 | B169: -506.9592301 | C169: 507.9592301
A170: 13.1 | B170: -539.3742891 | C170: 540.3742891
A171: 13.2 | B171: -573.8208773 | C171: 574.8208773
A172: 13.3 | B172: -610.424742 | C172: 611.424742
A173: 13.4 | B173: -649.3193458 | C173: 650.3193458
A174: 13.5 | B174: -690.6463365 | C174: 691.6463365
A175: 13.6 | B175: -734.5560465 | C175: 735.5560465
A176: 13.7 | B176: -781.2080218 | C176: 782.2080218
A177: 13.8 | B177: -830.7715834 | C177: 831.7715834
A178: 13.9 | B178: -883.4264225 | C178: 884.4264225
A179: 14 | B179: -939.363232 | C179: 940.363232
A180: 14.1 | B180: -998.7843764 | C180: 999.7843764
A181: 14.2 | B181: -1061.904602 | C181: 1062.904602
A182: 14.3 | B182: -1128.95179 | C182: 1129.95179
A183: 14.4 | B183: -1200.167757 | C183: 1201.167757
A184: 14.5 | B184: -1275.809099 | C184: 1276.809099
A185: 14.6 | B185: -1356.148097 | C185: 1357.148097
A186: 14.7 | B186: -1441.473661 | C186: 1442.473661
A187: 14.8 | B187: -1532.09235 | C187: 1533.09235
A188: 14.9 | B188: -1628.329437 | C188: 1629.329437
A189: 15 | B189: -1730.530052 | C189: 1731.530052
A190: 15.1 | B190: -1839.060385 | C190: 1840.060385
A191: 15.2 | B191: -1954.308965 | C191: 1955.308965
A192: 15.3 | B192: -2076.688016 | C192: 2077.688016
A193: 15.4 | B193: -2206.634899 | C193: 2207.634899
A194: 15.5 | B194: -2344.613634 | C194: 2345.613634
A195: 15.6 | B195: -2491.116517 | C195: 2492.116517
A196: 15.7 | B196: -2646.665841 | C196: 2647.665841
A197: 15.8 | B197: -2811.81571 | C197: 2812.81571
A198: 15.9 | B198: -2987.153972 | C198: 2988.153972
A199: 16 | B199: -3173.304264 | C199: 3174.304264
A200: 16.1 | B200: -3370.92818 | C200: 3371.92818
A201: 16.2 | B201: -3580.727576 | C201: 3581.727576
A202: 16.3 | B202: -3803.447008 | C202: 3804.447008
A203: 16.4 | B203: -4039.876319 | C203: 4040.876319
A204: 16.5 | B204: -4290.853384 | C204: 4291.853384
A205: 16.6 | B205: -4557.267021 | C205: 4558.267021
A206: 16.7 | B206: -4840.060075 | C206: 4841.060075
A207: 16.8 | B207: -5140.232687 | C207: 5141.232687
... 332 more rows

Sheet Farm17
A1: YEARDUM | B1: 1 | C1: 2 | D1: 3 | E1: 4 | F1: 5 | G1: 6 | H1: 7 | I1: 8 | J1: MULT | M1: 1 | N1: 2 | O1: 3 | P1: 4 | Q1: 5 | R1: 6 | S1: 7 | T1: 8 | X1: 1 | Y1: 2 | Z1: 3 | AA1: 4 | AB1: 5 | AC1: 6 | AD1: 7 | AE1: 8
A2: FMERCODE | B2: 1 | C2: 1 | D2: 1 | E2: 1 | F2: 1 | G2: 1 | H2: 1 | I2: 1 | J2: 500 | K2: =J2/10 -> 50
A3: PROD | B3: =B7:I10^K2 -> 4.912297917e+51 | C3: 6.840048788e+38 | D3: 6.834078428e+60 | E3: 5.643625242e+62 | F3: 9.21439243e+64 | G3: 5.706295563e+64 | H3: 1.815622789e+50 | I3: 2.253634858e+57
A4: AREA | B4: 2.359126129e+30 | C4: 2.359126129e+30 | D4: 2.359126129e+30 | E4: 3.246516786e+27 | F4: 3.246516786e+27 | G4: 3.246516786e+27 | H4: 3.246516786e+27 | I4: 3.246516786e+27 | J4: =AG15 -> 2.685464652e-08 | L4: AREA | M4: =MMULT(B4:I6,B26:I33) -> 4.802489932e-22 | N4: 3.448990208e-09 | O4: 3.4520033e-31 | P4: 5.752537858e-36 | Q4: 3.523310746e-38 | R4: 5.689359674e-38 | S4: 1.788100924e-23 | T4: 1.440569121e-30 | U4: =SUM(N4:T4) -> 3.448990208e-09 | W4: AREA | X4: =MMULT(M4:T6,M26:T33) -> 4.802489932e-22 | Y4: 6.897980415e-09 | Z4: 1.03560099e-30 | AA4: 1.254623509e-32 | AB4: 7.687833435e-35 | AC4: 1.241982274e-34 | AD4: 3.905196882e-20 | AE4: 3.147631013e-27
A5: LABOR | B5: 1.906383031e+122 | C5: 2.279825291e+122 | D5: 7.888609052e+119 | E5: 1.125899907e+115 | F5: 5.280652116e+116 | G5: 1.881045257e+118 | H5: 3.318945458e+112 | I5: 8.281797452e+107 | J5: =AG21 -> 0.9999999731 | L5: LABOR | M5: 3.88083757e+70 | N5: 3.333054137e+83 | O5: 1.15430473e+59 | P5: 1.994994101e+52 | Q5: 5.730873909e+51 | R5: 3.296438532e+53 | S5: 1.82799284e+62 | T5: 3.674862156e+50 | U5: =SUM(N5:T5) -> 3.333054137e+83 | W5: LABOR | X5: 3.88083757e+70 | Y5: 6.120143952e+83 | Z5: 6.137033654e+61 | AA5: 7.431565463e+59 | AB5: 4.551686241e+57 | AC5: 7.350285982e+57 | AD5: 2.310111139e+72 | AE5: 1.861122451e+65
A6: NPK | B6: 7.308181138e+122 | C6: 2.407105048e+126 | D6: 3.009444338e+136 | E6: 2.923102392e+133 | F6: 7.079735881e+130 | G6: 1.744049898e+139 | H6: 1.322096739e+150 | I6: 2.618186318e+132 | L6: NPK | M6: 1.487731661e+71 | N6: 3.519134325e+87 | O6: 4.403584725e+75 | P6: 5.179476429e+70 | Q6: 7.683345304e+65 | R6: 3.05636096e+74 | S6: 7.281780922e+99 | T6: 1.161761547e+75 | U6: 7.281780922e+99 | W6: NPK | X6: 1.487731661e+71 | Y6: 3.520202765e+87 | Z6: 4.403584726e+75 | AA6: 5.337646125e+73 | AB6: 3.269205803e+71 | AC6: 3.061639997e+74 | AD6: 7.281780922e+99 | AE6: 5.866508206e+92
A7: PROD | B7: 10.81 | C7: 5.98 | D7: 16.47 | E7: 17.99 | F7: 19.92 | G7: 19.73 | H7: 10.12 | I7: 14.03
A8: AREA | B8: 4.05 | C8: 4.05 | D8: 4.05 | E8: 3.55 | F8: 3.55 | G8: 3.55 | H8: 3.55 | I8: 3.55
A9: LABOR | B9: 279 | C9: 280 | D9: 250 | E9: 200 | F9: 216 | G9: 232 | H9: 178 | I9: 144
A10: NPK | B10: 286.6 | C10: 337 | D10: 536.5 | E10: 467 | F10: 414 | G10: 609.3 | H10: 1005.6 | I10: 445
W12: AREA | Y12: =Y4-X4 -> 6.897980415e-09 | Z12: -6.897980415e-09 | AA12: -1.023054755e-30 | AB12: -1.246935675e-32 | AC12: 4.731989301e-35 | AD12: 3.905196882e-20 | AE12: -3.905196567e-20 | AF12: =SUM(Y12:AE12) -> -4.805887893e-22 | AG12: =AF12/U4 -> -1.393418828e-13
B13: 1 | C13: 2 | D13: 3 | E13: 4 | F13: 5 | G13: 6 | H13: 7 | I13: 8 | M13: 1 | N13: 2 | O13: 3 | P13: 4 | Q13: 5 | R13: 6 | S13: 7 | T13: 8 | W13: LABOR | Y13: 6.120143952e+83 | Z13: -6.120143952e+83 | AA13: -6.062718e+61 | AB13: -7.3860486e+59 | AC13: 2.798599741e+57 | AD13: 2.310111139e+72 | AE13: -2.310110953e+72 | AF13: =SUM(Y13:AE13) -> -3.882213715e+70 | AG13: =AF13/U5 -> -1.164761674e-13
A14: 1 | B14: =B3 -> 4.912297917e+51 | C14: =-B14 -> -4.912297917e+51 | D14: 0 | E14: 0 | F14: 0 | G14: 0 | H14: 0 | I14: 0 | L14: 1 | M14: =MMULT(B14:I21,B26:I33) -> 1 | N14: -7.181670876e+12 | O14: 0 | P14: 0 | Q14: 0 | R14: 0 | S14: 0 | T14: 0 | W14: NPK | Y14: 3.520202765e+87 | Z14: -3.520202765e+87 | AA14: -4.350208264e+75 | AB14: -5.304954067e+73 | AC14: 3.058370791e+74 | AD14: 7.281780922e+99 | AE14: -7.281780335e+99 | AF14: 5.866508208e+92 | AG14: =AF14/U6 -> 8.056419537e-08
A15: 2 | B15: 0 | C15: =C3 -> 6.840048788e+38 | D15: =-C15 -> -6.840048788e+38 | E15: 0 | F15: 0 | G15: 0 | H15: 0 | I15: 0 | L15: 2 | M15: 0 | N15: 1 | O15: -1.000873616e-22 | P15: 0 | Q15: 0 | R15: 0 | S15: 0 | T15: 0 | AG15: =AVERAGE(AG12:AG14) -> 2.685464652e-08
A16: 3 | B16: 0 | C16: 0 | D16: =D3 -> 6.834078428e+60 | E16: =-D16 -> -6.834078428e+60 | F16: 0 | G16: 0 | H16: 0 | I16: 0 | L16: 3 | M16: 0 | N16: 0 | O16: 1 | P16: -0.01210937675 | Q16: 0 | R16: 0 | S16: 0 | T16: 0
A17: 4 | B17: 0 | C17: 0 | D17: 0 | E17: =E3 -> 5.643625242e+62 | F17: =-E17 -> -5.643625242e+62 | G17: 0 | H17: 0 | I17: 0 | L17: 4 | M17: 0 | N17: 0 | O17: 0 | P17: 1 | Q17: -0.00612479367 | R17: 0 | S17: 0 | T17: 0
A18: 5 | B18: 0 | C18: 0 | D18: 0 | E18: 0 | F18: =F3 -> 9.21439243e+64 | G18: =-F18 -> -9.21439243e+64 | H18: 0 | I18: 0 | L18: 5 | M18: 0 | N18: 0 | O18: 0 | P18: 0 | Q18: 1 | R18: -1.614776579 | S18: 0 | T18: 0 | W18: AREA | Y18: =N4-Y12 -> -3.448990208e-09 | Z18: 6.897980415e-09 | AA18: 1.023060508e-30 | AB18: 1.246939199e-32 | AC18: -4.726299941e-35 | AD18: -3.903408781e-20 | AE18: 3.905196567e-20 | AF18: 3.448990208e-09 | AG18: =AF18/U4 -> 1
A19: 6 | B19: 0 | C19: 0 | D19: 0 | E19: 0 | F19: 0 | G19: =G3 -> 5.706295563e+64 | H19: =-G19 -> -5.706295563e+64 | I19: 0 | L19: 6 | M19: 0 | N19: 0 | O19: 0 | P19: 0 | Q19: 0 | R19: 1 | S19: -3.142886065e+14 | T19: 0 | W19: LABOR | Y19: -2.787089815e+83 | Z19: 6.120143952e+83 | AA19: 6.062718002e+61 | AB19: 7.386048658e+59 | AC19: -2.798270097e+57 | AD19: -2.310111139e+72 | AE19: 2.310110953e+72 | AF19: 3.333054137e+83 | AG19: =AF19/U5 -> 1
A20: 7 | B20: 0 | C20: 0 | D20: 0 | E20: 0 | F20: 0 | G20: 0 | H20: =H3 -> 1.815622789e+50 | I20: =-H20 -> -1.815622789e+50 | L20: 7 | M20: 0 | N20: 0 | O20: 0 | P20: 0 | Q20: 0 | R20: 0 | S20: 1 | T20: -8.056419533e-08 | W20: NPK | Y20: -1.068439914e+84 | Z20: 3.520202765e+87 | AA20: 4.350260059e+75 | AB20: 5.304954144e+73 | AC20: -2.00983116e+71 | AD20: -9.622427557e+88 | AE20: 7.281780335e+99 | AF20: 7.281780335e+99 | AG20: =AF20/U6 -> 0.9999999194
A21: 8 | B21: 0 | C21: 0 | D21: 0 | E21: 0 | F21: 0 | G21: 0 | H21: 0 | I21: =I3 -> 2.253634858e+57 | L21: 8 | M21: 0 | N21: 0 | O21: 0 | P21: 0 | Q21: 0 | R21: 0 | S21: 0 | T21: 1 | AG21: =AVERAGE(AG18:AG20) -> 0.9999999731
B25: 1 | C25: 2 | D25: 3 | E25: 4 | F25: 5 | G25: 6 | H25: 7 | I25: 8 | M25: 1 | N25: 2 | O25: 3 | P25: 4 | Q25: 5 | R25: 6 | S25: 7 | T25: 8
A26: 1 | B26: =1/B3 -> 2.035707152e-52 | C26: 0 | D26: 0 | E26: 0 | F26: 0 | G26: 0 | H26: 0 | I26: 0 | L26: 1 | M26: =MINVERSE(M14:T21) -> 1 | N26: 7.181670876e+12 | O26: 7.187944898e-10 | P26: 8.704153281e-12 | Q26: 5.331114292e-14 | R26: 8.608558499e-14 | S26: 27.05571855 | T26: 2.179722194e-06
A27: 2 | B27: 0 | C27: =1/C3 -> 1.461977876e-39 | D27: 0 | E27: 0 | F27: 0 | G27: 0 | H27: 0 | I27: 0 | L27: 2 | M27: 0 | N27: 1 | O27: 1.000873616e-22 | P27: 1.211995569e-24 | Q27: 7.42322279e-27 | R27: 1.19868463e-26 | S27: 3.767329221e-12 | T27: 3.035118473e-19
A28: 3 | B28: 0 | C28: 0 | D28: =1/D3 -> 1.463255083e-61 | E28: 0 | F28: 0 | G28: 0 | H28: 0 | I28: 0 | L28: 3 | M28: 0 | N28: 0 | O28: 1 | P28: 0.01210937675 | Q28: 7.416743405e-05 | R28: 0.0001197638354 | S28: 3.764040896e+10 | T28: 3032.46926
A29: 4 | B29: 0 | C29: 0 | D29: 0 | E29: =1/E3 -> 1.771910708e-63 | F29: 0 | G29: 0 | H29: 0 | I29: 0 | L29: 4 | M29: 0 | N29: 0 | O29: 0 | P29: 1 | Q29: 0.00612479367 | R29: 0.009890173371 | S29: 3.108368807e+12 | T29: 250423.2317
A30: 5 | B30: 0 | C30: 0 | D30: 0 | E30: 0 | F30: =1/F3 -> 1.085258749e-65 | G30: 0 | H30: 0 | I30: 0 | L30: 5 | M30: 0 | N30: 0 | O30: 0 | P30: 0 | Q30: 1 | R30: 1.614776579 | S30: 5.07505881e+14 | T30: 40886802.93
A31: 6 | B31: 0 | C31: 0 | D31: 0 | E31: 0 | F31: 0 | G31: =1/G3 -> 1.75245041e-65 | H31: 0 | I31: 0 | L31: 6 | M31: 0 | N31: 0 | O31: 0 | P31: 0 | Q31: 0 | R31: 1 | S31: 3.142886065e+14 | T31: 25320408.69
A32: 7 | B32: 0 | C32: 0 | D32: 0 | E32: 0 | F32: 0 | G32: 0 | H32: =1/H3 -> 5.507751974e-51 | I32: 0 | L32: 7 | M32: 0 | N32: 0 | O32: 0 | P32: 0 | Q32: 0 | R32: 0 | S32: 1 | T32: 8.056419533e-08
A33: 8 | B33: 0 | C33: 0 | D33: 0 | E33: 0 | F33: 0 | G33: 0 | H33: 0 | I33: =1/I3 -> 4.437276059e-58 | L33: 8 | M33: 0 | N33: 0 | O33: 0 | P33: 0 | Q33: 0 | R33: 0 | S33: 0 | T33: 1
A37: INF | B37: POST
A38: 1 | B38: 500
A39: N | B39: PI-I | C39: PI-II
A40: 0.1 | B40: 0.9942280886 | C40: 0.005771911366
A41: 0.2 | B41: 0.9865540626 | C41: 0.01344593739
A42: 0.3 | B42: 0.9768912817 | C42: 0.02310871831
A43: 0.4 | B43: 0.965172204 | C43: 0.03482779603
A44: 0.5 | B44: 0.9513524422 | C44: 0.0486475578
A45: 0.6 | B45: 0.9354145727 | C45: 0.06458542734
A46: 0.7 | B46: 0.9173714403 | C46: 0.08262855968
A47: 0.8 | B47: 0.8972686908 | C47: 0.1027313092
A48: 0.9 | B48: 0.8751862706 | C48: 0.1248137294
A49: 1 | B49: 0.8512386773 | C49: 0.1487613227
A50: 1.1 | B50: 0.82557381 | C50: 0.17442619
A51: 1.2 | B51: 0.7983703681 | C51: 0.2016296319
A52: 1.3 | B52: 0.7698338543 | C52: 0.2301661457
A53: 1.4 | B53: 0.7401913582 | C53: 0.2598086418
A54: 1.5 | B54: 0.709685399 | C54: 0.290314601
A55: 1.6 | B55: 0.6785671837 | C55: 0.3214328163
A56: 1.7 | B56: 0.647089684 | C56: 0.352910316
A57: 1.8 | B57: 0.6155009305 | C57: 0.3844990695
A58: 1.9 | B58: 0.5840378898 | C58: 0.4159621102
A59: 2 | B59: 0.5529212141 | C59: 0.4470787859
A60: 2.1 | B60: 0.5223510638 | C60: 0.4776489362
A61: 2.2 | B61: 0.4925041032 | C61: 0.5074958968
A62: 2.3 | B62: 0.4635316759 | C62: 0.5364683241
A63: 2.4 | B63: 0.4355590851 | C63: 0.5644409149
A64: 2.5 | B64: 0.408685848 | C64: 0.591314152
A65: 2.6 | B65: 0.3829867533 | C65: 0.6170132467
A66: 2.7 | B66: 0.3585135365 | C66: 0.6414864635
A67: 2.8 | B67: 0.3352969905 | C67: 0.6647030095
A68: 2.9 | B68: 0.3133493407 | C68: 0.6866506593
A69: 3 | B69: 0.2926667392 | C69: 0.7073332608
A70: 3.1 | B70: 0.2732317584 | C70: 0.7267682416
A71: 3.2 | B71: 0.2550157936 | C71: 0.7449842064
A72: 3.3 | B72: 0.2379813066 | C72: 0.7620186934
A73: 3.4 | B73: 0.2220838702 | C73: 0.7779161298
A74: 3.5 | B74: 0.2072739889 | C74: 0.7927260111
A75: 3.6 | B75: 0.1934986867 | C75: 0.8065013133
A76: 3.7 | B76: 0.1807028675 | C76: 0.8192971325
A77: 3.8 | B77: 0.1688304558 | C77: 0.8311695442
A78: 3.9 | B78: 0.157825338 | C78: 0.842174662
A79: 4 | B79: 0.14763212 | C79: 0.85236788
A80: 4.1 | B80: 0.1381967248 | C80: 0.8618032752
A81: 4.2 | B81: 0.1294668495 | C81: 0.8705331505
A82: 4.3 | B82: 0.1213923023 | C82: 0.8786076977
A83: 4.4 | B83: 0.1139252383 | C83: 0.8860747617
A84: 4.5 | B84: 0.1070203111 | C84: 0.8929796889
A85: 4.6 | B85: 0.1006347553 | C85: 0.8993652447
A86: 4.7 | B86: 0.09472841343 | C86: 0.9052715866
A87: 4.8 | B87: 0.08926371939 | C87: 0.9107362806
A88: 4.9 | B88: 0.08420564702 | C88: 0.915794353
A89: 5 | B89: 0.07952163344 | C89: 0.9204783666
A90: 5.1 | B90: 0.07518148323 | C90: 0.9248185168
A91: 5.2 | B91: 0.07115725963 | C91: 0.9288427404
A92: 5.3 | B92: 0.06742316711 | C92: 0.9325768329
A93: 5.4 | B93: 0.06395542929 | C93: 0.9360445707
A94: 5.5 | B94: 0.06073216502 | C94: 0.939267835
A95: 5.6 | B95: 0.05773326493 | C95: 0.9422667351
A96: 5.7 | B96: 0.0549402704 | C96: 0.9450597296
A97: 5.8 | B97: 0.05233625599 | C97: 0.947663744
A98: 5.9 | B98: 0.04990571655 | C98: 0.9500942834
A99: 6 | B99: 0.04763445949 | C99: 0.9523655405
A100: 6.1 | B100: 0.04550950276 | C100: 0.9544904972
A101: 6.2 | B101: 0.04351897865 | C101: 0.9564810214
A102: 6.3 | B102: 0.04165204356 | C102: 0.9583479564
A103: 6.4 | B103: 0.03989879378 | C103: 0.9601012062
A104: 6.5 | B104: 0.03825018698 | C104: 0.961749813
A105: 6.6 | B105: 0.03669796943 | C105: 0.9633020306
A106: 6.7 | B106: 0.03523460855 | C106: 0.9647653915
A107: 6.8 | B107: 0.03385323069 | C107: 0.9661467693
A108: 6.9 | B108: 0.03254756377 | C108: 0.9674524362
A109: 7 | B109: 0.03131188447 | C109: 0.9686881155
A110: 7.1 | B110: 0.03014096981 | C110: 0.9698590302
A111: 7.2 | B111: 0.02903005264 | C111: 0.9709699474
A112: 7.3 | B112: 0.02797478099 | C112: 0.972025219
A113: 7.4 | B113: 0.02697118081 | C113: 0.9730288192
A114: 7.5 | B114: 0.02601562191 | C114: 0.9739843781
A115: 7.6 | B115: 0.02510478695 | C115: 0.974895213
A116: 7.7 | B116: 0.02423564303 | C116: 0.975764357
A117: 7.8 | B117: 0.02340541589 | C117: 0.9765945841
A118: 7.9 | B118: 0.02261156639 | C118: 0.9773884336
A119: 8 | B119: 0.02185176907 | C119: 0.9781482309
A120: 8.1 | B120: 0.02112389265 | C120: 0.9788761073
A121: 8.2 | B121: 0.02042598233 | C121: 0.9795740177
A122: 8.3 | B122: 0.01975624369 | C122: 0.9802437563
A123: 8.4 | B123: 0.01911302802 | C123: 0.980886972
A124: 8.5 | B124: 0.01849481907 | C124: 0.9815051809
A125: 8.6 | B125: 0.01790022097 | C125: 0.982099779
A126: 8.7 | B126: 0.01732794729 | C126: 0.9826720527
A127: 8.8 | B127: 0.01677681108 | C127: 0.9832231889
A128: 8.9 | B128: 0.0162457159 | C128: 0.9837542841
A129: 9 | B129: 0.01573364762 | C129: 0.9842663524
A130: 9.1 | B130: 0.01523966703 | C130: 0.984760333
A131: 9.2 | B131: 0.01476290311 | C131: 0.9852370969
A132: 9.3 | B132: 0.01430254697 | C132: 0.985697453
A133: 9.4 | B133: 0.01385784629 | C133: 0.9861421537
A134: 9.5 | B134: 0.01342810036 | C134: 0.9865718996
A135: 9.6 | B135: 0.01301265554 | C135: 0.9869873445
A136: 9.7 | B136: 0.01261090117 | C136: 0.9873890988
A137: 9.8 | B137: 0.01222226582 | C137: 0.9877777342
A138: 9.9 | B138: 0.01184621395 | C138: 0.988153786
A139: 10 | B139: 0.01148224287 | C139: 0.9885177571
A140: 10.1 | B140: 0.01112987995 | C140: 0.9888701201
A141: 10.2 | B141: 0.0107886801 | C141: 0.9892113199
A142: 10.3 | B142: 0.01045822356 | C142: 0.9895417764
A143: 10.4 | B143: 0.01013811379 | C143: 0.9898618862
A144: 10.5 | B144: 0.009827975638 | C144: 0.9901720244
A145: 10.6 | B145: 0.009527453617 | C145: 0.9904725464
A146: 10.7 | B146: 0.009236210404 | C146: 0.9907637896
A147: 10.8 | B147: 0.008953925435 | C147: 0.9910460746
A148: 10.9 | B148: 0.008680293641 | C148: 0.9913197064
A149: 11 | B149: 0.008415024311 | C149: 0.9915849757
A150: 11.1 | B150: 0.008157840046 | C150: 0.99184216
A151: 11.2 | B151: 0.007908475814 | C151: 0.9920915242
A152: 11.3 | B152: 0.007666678094 | C152: 0.9923333219
A153: 11.4 | B153: 0.007432204095 | C153: 0.9925677959
A154: 11.5 | B154: 0.00720482104 | C154: 0.992795179
A155: 11.6 | B155: 0.006984305522 | C155: 0.9930156945
A156: 11.7 | B156: 0.006770442915 | C156: 0.9932295571
A157: 11.8 | B157: 0.006563026831 | C157: 0.9934369732
A158: 11.9 | B158: 0.006361858631 | C158: 0.9936381414
A159: 12 | B159: 0.006166746974 | C159: 0.993833253
A160: 12.1 | B160: 0.005977507406 | C160: 0.9940224926
A161: 12.2 | B161: 0.005793961984 | C161: 0.994206038
A162: 12.3 | B162: 0.005615938928 | C162: 0.9943840611
A163: 12.4 | B163: 0.005443272304 | C163: 0.9945567277
A164: 12.5 | B164: 0.005275801734 | C164: 0.9947241983
A165: 12.6 | B165: 0.005113372122 | C165: 0.9948866279
A166: 12.7 | B166: 0.00495583341 | C166: 0.9950441666
A167: 12.8 | B167: 0.004803040347 | C167: 0.9951969597
A168: 12.9 | B168: 0.004654852275 | C168: 0.9953451477
A169: 13 | B169: 0.004511132933 | C169: 0.9954888671
A170: 13.1 | B170: 0.004371750274 | C170: 0.9956282497
A171: 13.2 | B171: 0.004236576293 | C171: 0.9957634237
A172: 13.3 | B172: 0.00410548687 | C172: 0.9958945131
A173: 13.4 | B173: 0.00397836162 | C173: 0.9960216384
A174: 13.5 | B174: 0.003855083753 | C174: 0.9961449162
A175: 13.6 | B175: 0.003735539944 | C175: 0.9962644601
A176: 13.7 | B176: 0.003619620211 | C176: 0.9963803798
A177: 13.8 | B177: 0.003507217797 | C177: 0.9964927822
A178: 13.9 | B178: 0.003398229062 | C178: 0.9966017709
A179: 14 | B179: 0.003292553381 | C179: 0.9967074466
A180: 14.1 | B180: 0.003190093042 | C180: 0.996809907
A181: 14.2 | B181: 0.003090753158 | C181: 0.9969092468
A182: 14.3 | B182: 0.002994441572 | C182: 0.9970055584
A183: 14.4 | B183: 0.002901068778 | C183: 0.9970989312
A184: 14.5 | B184: 0.002810547839 | C184: 0.9971894522
A185: 14.6 | B185: 0.002722794309 | C185: 0.9972772057
A186: 14.7 | B186: 0.002637726157 | C186: 0.9973622738
A187: 14.8 | B187: 0.002555263703 | C187: 0.9974447363
A188: 14.9 | B188: 0.002475329542 | C188: 0.9975246705
A189: 15 | B189: 0.002397848481 | C189: 0.9976021515
A190: 15.1 | B190: 0.002322747481 | C190: 0.9976772525
A191: 15.2 | B191: 0.002249955589 | C191: 0.9977500444
A192: 15.3 | B192: 0.002179403881 | C192: 0.9978205961
A193: 15.4 | B193: 0.002111025409 | C193: 0.9978889746
A194: 15.5 | B194: 0.002044755143 | C194: 0.9979552449
A195: 15.6 | B195: 0.001980529918 | C195: 0.9980194701
A196: 15.7 | B196: 0.00191828838 | C196: 0.9980817116
A197: 15.8 | B197: 0.001857970943 | C197: 0.9981420291
A198: 15.9 | B198: 0.001799519734 | C198: 0.9982004803
A199: 16 | B199: 0.001742878549 | C199: 0.9982571215
A200: 16.1 | B200: 0.001687992806 | C200: 0.9983120072
A201: 16.2 | B201: 0.0016348095 | C201: 0.9983651905
A202: 16.3 | B202: 0.001583277163 | C202: 0.9984167228
A203: 16.4 | B203: 0.001533345818 | C203: 0.9984666542
A204: 16.5 | B204: 0.001484966942 | C204: 0.9985150331
A205: 16.6 | B205: 0.001438093421 | C205: 0.9985619066
A206: 16.7 | B206: 0.001392679518 | C206: 0.9986073205
A207: 16.8 | B207: 0.001348680829 | C207: 0.9986513192
... 332 more rows

Sheet Farm18
A1: YEARDUM | B1: 1 | C1: 2 | D1: 3 | E1: 4 | F1: 5 | G1: 6 | H1: 7 | I1: 8 | J1: MULT | M1: 1 | N1: 2 | O1: 3 | P1: 4 | Q1: 5 | R1: 6 | S1: 7 | T1: 8 | X1: 1 | Y1: 2 | Z1: 3 | AA1: 4 | AB1: 5 | AC1: 6 | AD1: 7 | AE1: 8
A2: FMERCODE | B2: 1 | C2: 1 | D2: 1 | E2: 1 | F2: 1 | G2: 1 | H2: 1 | I2: 1 | J2: 500 | K2: =J2/10 -> 50
A3: PROD | B3: =B7:I10^K2 -> 1.524848793e+66 | C3: 8.089276253e+62 | D3: 9.387978046e+66 | E3: 2.044209529e+65 | F3: 1.524848793e+66 | G3: 1.566916762e+71 | H3: 6.613271491e+67 | I3: 4.345296856e+74
A4: AREA | B4: 1.042640222e+37 | C4: 1.042640222e+37 | D4: 1.042640222e+37 | E4: 1.042640222e+37 | F4: 1.042640222e+37 | G4: 1.798465043e+42 | H4: 1.798465043e+42 | I4: 1.798465043e+42 | J4: =AG15 -> -1.465388471e-05 | L4: AREA | M4: =MMULT(B4:I6,B26:I33) -> 6.83766303e-30 | N4: 1.288916572e-26 | O4: 1.110612122e-30 | P4: 5.100456716e-29 | Q4: 6.83766303e-30 | R4: 1.147773185e-29 | S4: 2.71947862e-26 | T4: 4.138877279e-33 | U4: =SUM(N4:T4) -> 4.015438663e-26 | W4: AREA | X4: =MMULT(M4:T6,M26:T33) -> 6.83766303e-30 | Y4: 2.577833145e-26 | Z4: 3.331836366e-30 | AA4: 2.040182686e-28 | AB4: 3.418831515e-29 | AC4: 1.147806456e-29 | AD4: 5.439036069e-26 | AE4: 1.241675181e-32
A5: LABOR | B5: 1.93228563e+124 | C5: 6.581147984e+122 | D5: 1.787476545e+126 | E5: 1.392128038e+124 | F5: 1.112368761e+129 | G5: 1.056992361e+132 | H5: 2.429675369e+129 | I5: 3.018008518e+130 | J5: =AG21 -> 1.000014654 | L5: LABOR | M5: 1.267198189e+58 | N5: 8.135644992e+59 | O5: 1.904005886e+59 | P5: 6.810104436e+58 | Q5: 7.294944689e+62 | R5: 6.7456829e+60 | S5: 3.673938643e+61 | T5: 6.945459927e+55 | U5: =SUM(N5:T5) -> 7.740516738e+62 | W5: LABOR | X5: 1.267198189e+58 | Y5: 2.470056711e+61 | Z5: 1.925289458e+59 | AA5: 8.909941819e+60 | AB5: 7.306889341e+62 | AC5: 6.752793617e+60 | AD5: 1.603648403e+64 | AE5: 2.510107704e+57
A6: NPK | B6: 1.706470472e+133 | C6: 1.612596979e+135 | D6: 9.519567606e+136 | E6: 6.004806697e+137 | F6: 2.015821871e+137 | G6: 2.215159922e+146 | H6: 1.486248505e+143 | I6: 6.173425811e+139 | L6: NPK | M6: 1.119107992e+67 | N6: 1.993499701e+72 | O6: 1.014016816e+70 | P6: 2.937471239e+72 | Q6: 1.321981484e+71 | R6: 1.413706188e+75 | S6: 2.247372585e+75 | T6: 1.420714399e+65 | U6: 3.666152082e+75 | W6: NPK | X6: 1.119107992e+67 | Y6: 2.014595167e+72 | Z6: 1.031375843e+70 | AA6: 3.411127859e+72 | AB6: 5.894933311e+71 | AC6: 1.413706193e+75 | AD6: 3.351814881e+78 | AE6: 5.10125515e+71
A7: PROD | B7: 21.07 | C7: 18.12 | D7: 21.85 | E7: 20.24 | F7: 21.07 | G7: 26.54 | H7: 22.72 | I7: 31.1
A8: AREA | B8: 5.5 | C8: 5.5 | D8: 5.5 | E8: 5.5 | F8: 5.5 | G8: 7 | H8: 7 | I8: 7
A9: LABOR | B9: 306 | C9: 286 | D9: 335 | E9: 304 | F9: 381 | G9: 437 | H9: 387 | I9: 407
A10: NPK | B10: 462 | C10: 506 | D10: 549 | E10: 569.6 | F10: 557.3 | G10: 845.1 | H10: 730.2 | I10: 624.9
W12: AREA | Y12: =Y4-X4 -> 2.577149378e-26 | Z12: -2.577499961e-26 | AA12: 2.006864323e-28 | AB12: -1.698299535e-28 | AC12: -2.271025059e-29 | AD12: 5.437888262e-26 | AE12: -5.439034827e-26 | AF12: =SUM(Y12:AE12) -> -6.825246278e-30 | AG12: =AF12/U4 -> -0.0001699751098
B13: 1 | C13: 2 | D13: 3 | E13: 4 | F13: 5 | G13: 6 | H13: 7 | I13: 8 | M13: 1 | N13: 2 | O13: 3 | P13: 4 | Q13: 5 | R13: 6 | S13: 7 | T13: 8 | W13: LABOR | Y13: 2.468789513e+61 | Z13: -2.450803817e+61 | AA13: 8.717412873e+60 | AB13: 7.217789923e+62 | AC13: -7.239361405e+62 | AD13: 1.602973123e+64 | AE13: -1.603648151e+64 | AF13: =SUM(Y13:AE13) -> -1.016187419e+58 | AG13: =AF13/U5 -> -1.312815996e-05
A14: 1 | B14: =B3 -> 1.524848793e+66 | C14: =-B14 -> -1.524848793e+66 | D14: 0 | E14: 0 | F14: 0 | G14: 0 | H14: 0 | I14: 0 | L14: 1 | M14: =MMULT(B14:I21,B26:I33) -> 1 | N14: -1885.024996 | O14: 0 | P14: 0 | Q14: 0 | R14: 0 | S14: 0 | T14: 0 | W14: NPK | Y14: 2.014583976e+72 | Z14: -2.004281408e+72 | AA14: 3.400814101e+72 | AB14: -2.821634528e+72 | AC14: 1.4131167e+75 | AD14: 3.350401174e+78 | AE14: -3.35181437e+78 | AF14: 5.101143239e+71 | AG14: =AF14/U6 -> 0.0001391416157
A15: 2 | B15: 0 | C15: =C3 -> 8.089276253e+62 | D15: =-C15 -> -8.089276253e+62 | E15: 0 | F15: 0 | G15: 0 | H15: 0 | I15: 0 | L15: 2 | M15: 0 | N15: 1 | O15: -8.616633116e-05 | P15: 0 | Q15: 0 | R15: 0 | S15: 0 | T15: 0 | AG15: =AVERAGE(AG12:AG14) -> -1.465388471e-05
A16: 3 | B16: 0 | C16: 0 | D16: =D3 -> 9.387978046e+66 | E16: =-D16 -> -9.387978046e+66 | F16: 0 | G16: 0 | H16: 0 | I16: 0 | L16: 3 | M16: 0 | N16: 0 | O16: 1 | P16: -45.92473478 | Q16: 0 | R16: 0 | S16: 0 | T16: 0
A17: 4 | B17: 0 | C17: 0 | D17: 0 | E17: =E3 -> 2.044209529e+65 | F17: =-E17 -> -2.044209529e+65 | G17: 0 | H17: 0 | I17: 0 | L17: 4 | M17: 0 | N17: 0 | O17: 0 | P17: 1 | Q17: -0.1340598188 | R17: 0 | S17: 0 | T17: 0
A18: 5 | B18: 0 | C18: 0 | D18: 0 | E18: 0 | F18: =F3 -> 1.524848793e+66 | G18: =-F18 -> -1.524848793e+66 | H18: 0 | I18: 0 | L18: 5 | M18: 0 | N18: 0 | O18: 0 | P18: 0 | Q18: 1 | R18: -9.731523909e-06 | S18: 0 | T18: 0 | W18: AREA | Y18: =N4-Y12 -> -1.288232806e-26 | Z18: 2.577611022e-26 | AA18: -1.496818651e-28 | AB18: 1.766676165e-28 | AC18: 3.418798244e-29 | AD18: -2.718409643e-26 | AE18: 5.439035241e-26 | AF18: 4.016121188e-26 | AG18: =AF18/U4 -> 1.000169975
A19: 6 | B19: 0 | C19: 0 | D19: 0 | E19: 0 | F19: 0 | G19: =G3 -> 1.566916762e+71 | H19: =-G19 -> -1.566916762e+71 | I19: 0 | L19: 6 | M19: 0 | N19: 0 | O19: 0 | P19: 0 | Q19: 0 | R19: 1 | S19: -2369.351937 | T19: 0 | W19: LABOR | Y19: -2.387433063e+61 | Z19: 2.469843875e+61 | AA19: -8.649311829e+60 | AB19: 7.715476633e+60 | AC19: 7.306818234e+62 | AD19: -1.599299185e+64 | AE19: 1.603648158e+64 | AF19: 7.740618357e+62 | AG19: =AF19/U5 -> 1.000013128
A20: 7 | B20: 0 | C20: 0 | D20: 0 | E20: 0 | F20: 0 | G20: 0 | H20: =H3 -> 6.613271491e+67 | I20: =-H20 -> -6.613271491e+67 | L20: 7 | M20: 0 | N20: 0 | O20: 0 | P20: 0 | Q20: 0 | R20: 0 | S20: 1 | T20: -1.521937789e-07 | W20: NPK | Y20: -2.108427431e+70 | Z20: 2.014421577e+72 | AA20: -4.633428623e+71 | AB20: 2.953832677e+72 | AC20: 5.894875944e+71 | AD20: -3.348153802e+78 | AE20: 3.35181437e+78 | AF20: 3.665641968e+75 | AG20: =AF20/U6 -> 0.9998608584
A21: 8 | B21: 0 | C21: 0 | D21: 0 | E21: 0 | F21: 0 | G21: 0 | H21: 0 | I21: =I3 -> 4.345296856e+74 | L21: 8 | M21: 0 | N21: 0 | O21: 0 | P21: 0 | Q21: 0 | R21: 0 | S21: 0 | T21: 1 | AG21: =AVERAGE(AG18:AG20) -> 1.000014654
B25: 1 | C25: 2 | D25: 3 | E25: 4 | F25: 5 | G25: 6 | H25: 7 | I25: 8 | M25: 1 | N25: 2 | O25: 3 | P25: 4 | Q25: 5 | R25: 6 | S25: 7 | T25: 8
A26: 1 | B26: =1/B3 -> 6.55802729e-67 | C26: 0 | D26: 0 | E26: 0 | F26: 0 | G26: 0 | H26: 0 | I26: 0 | L26: 1 | M26: =MINVERSE(M14:T21) -> 1 | N26: 1885.024996 | O26: 0.162425688 | P26: 7.459356645 | Q26: 1 | R26: 9.731523909e-06 | S26: 0.02305740503 | T26: 3.509193604e-09
A27: 2 | B27: 0 | C27: =1/C3 -> 1.236204536e-63 | D27: 0 | E27: 0 | F27: 0 | G27: 0 | H27: 0 | I27: 0 | L27: 2 | M27: 0 | N27: 1 | O27: 8.616633116e-05 | P27: 0.003957165906 | Q27: 0.0005304969442 | R27: 5.162543697e-09 | S27: 1.223188291e-05 | T27: 1.861616483e-12
A28: 3 | B28: 0 | C28: 0 | D28: =1/D3 -> 1.065192095e-67 | E28: 0 | F28: 0 | G28: 0 | H28: 0 | I28: 0 | L28: 3 | M28: 0 | N28: 0 | O28: 1 | P28: 45.92473478 | Q28: 6.156661623 | R28: 5.991369978e-05 | S28: 0.1419566406 | T28: 2.160491759e-08
A29: 4 | B29: 0 | C29: 0 | D29: 0 | E29: =1/E3 -> 4.891866444e-66 | F29: 0 | G29: 0 | H29: 0 | I29: 0 | L29: 4 | M29: 0 | N29: 0 | O29: 0 | P29: 1 | Q29: 0.1340598188 | R29: 1.304606332e-06 | S29: 0.003091071539 | T29: 4.704418585e-10
A30: 5 | B30: 0 | C30: 0 | D30: 0 | E30: 0 | F30: =1/F3 -> 6.55802729e-67 | G30: 0 | H30: 0 | I30: 0 | L30: 5 | M30: 0 | N30: 0 | O30: 0 | P30: 0 | Q30: 1 | R30: 9.731523909e-06 | S30: 0.02305740503 | T30: 3.509193604e-09
A31: 6 | B31: 0 | C31: 0 | D31: 0 | E31: 0 | F31: 0 | G31: =1/G3 -> 6.381959937e-72 | H31: 0 | I31: 0 | L31: 6 | M31: 0 | N31: 0 | O31: 0 | P31: 0 | Q31: 0 | R31: 1 | S31: 2369.351937 | T31: 0.000360600625
A32: 7 | B32: 0 | C32: 0 | D32: 0 | E32: 0 | F32: 0 | G32: 0 | H32: =1/H3 -> 1.512110914e-68 | I32: 0 | L32: 7 | M32: 0 | N32: 0 | O32: 0 | P32: 0 | Q32: 0 | R32: 0 | S32: 1 | T32: 1.521937789e-07
A33: 8 | B33: 0 | C33: 0 | D33: 0 | E33: 0 | F33: 0 | G33: 0 | H33: 0 | I33: =1/I3 -> 2.301338742e-75 | L33: 8 | M33: 0 | N33: 0 | O33: 0 | P33: 0 | Q33: 0 | R33: 0 | S33: 0 | T33: 1
A37: INF | B37: POST
A38: 1 | B38: 500
A39: N | B39: PI-I | C39: PI-II
A40: 0.1 | B40: 0.96391221 | C40: 0.03608778997
A41: 0.2 | B41: 0.9291577791 | C41: 0.07084222092
A42: 0.3 | B42: 0.8956880598 | C42: 0.1043119402
A43: 0.4 | B43: 0.8634560581 | C43: 0.1365439419
A44: 0.5 | B44: 0.8324163853 | C44: 0.1675836147
A45: 0.6 | B45: 0.8025252109 | C45: 0.1974747891
A46: 0.7 | B46: 0.7737402166 | C46: 0.2262597834
A47: 0.8 | B47: 0.7460205514 | C47: 0.2539794486
A48: 0.9 | B48: 0.7193267876 | C48: 0.2806732124
A49: 1 | B49: 0.6936208777 | C49: 0.3063791223
A50: 1.1 | B50: 0.6688661125 | C50: 0.3311338875
A51: 1.2 | B51: 0.6450270797 | C51: 0.3549729203
A52: 1.3 | B52: 0.6220696244 | C52: 0.3779303756
A53: 1.4 | B53: 0.5999608093 | C53: 0.4000391907
A54: 1.5 | B54: 0.5786688767 | C54: 0.4213311233
A55: 1.6 | B55: 0.5581632109 | C55: 0.4418367891
A56: 1.7 | B56: 0.5384143022 | C56: 0.4615856978
A57: 1.8 | B57: 0.5193937109 | C57: 0.4806062891
A58: 1.9 | B58: 0.5010740326 | C58: 0.4989259674
A59: 2 | B59: 0.4834288647 | C59: 0.5165711353
A60: 2.1 | B60: 0.4664327731 | C60: 0.5335672269
A61: 2.2 | B61: 0.4500612602 | C61: 0.5499387398
A62: 2.3 | B62: 0.4342907337 | C62: 0.5657092663
A63: 2.4 | B63: 0.4190984761 | C63: 0.5809015239
A64: 2.5 | B64: 0.4044626148 | C64: 0.5955373852
A65: 2.6 | B65: 0.3903620938 | C65: 0.6096379062
A66: 2.7 | B66: 0.376776645 | C66: 0.623223355
A67: 2.8 | B67: 0.3636867617 | C67: 0.6363132383
A68: 2.9 | B68: 0.3510736714 | C68: 0.6489263286
A69: 3 | B69: 0.3389193104 | C69: 0.6610806896
A70: 3.1 | B70: 0.3272062991 | C70: 0.6727937009
A71: 3.2 | B71: 0.315917917 | C71: 0.684082083
A72: 3.3 | B72: 0.3050380801 | C72: 0.6949619199
A73: 3.4 | B73: 0.2945513173 | C73: 0.7054486827
A74: 3.5 | B74: 0.2844427488 | C74: 0.7155572512
A75: 3.6 | B75: 0.2746980644 | C75: 0.7253019356
A76: 3.7 | B76: 0.2653035026 | C76: 0.7346964974
A77: 3.8 | B77: 0.2562458312 | C77: 0.7437541688
A78: 3.9 | B78: 0.2475123267 | C78: 0.7524876733
A79: 4 | B79: 0.2390907565 | C79: 0.7609092435
A80: 4.1 | B80: 0.23096936 | C80: 0.76903064
A81: 4.2 | B81: 0.2231368313 | C81: 0.7768631687
A82: 4.3 | B82: 0.2155823021 | C82: 0.7844176979
A83: 4.4 | B83: 0.2082953251 | C83: 0.7917046749
A84: 4.5 | B84: 0.201265858 | C84: 0.798734142
A85: 4.6 | B85: 0.1944842485 | C85: 0.8055157515
A86: 4.7 | B86: 0.187941219 | C86: 0.812058781
A87: 4.8 | B87: 0.1816278527 | C87: 0.8183721473
A88: 4.9 | B88: 0.1755355794 | C88: 0.8244644206
A89: 5 | B89: 0.1696561622 | C89: 0.8303438378
A90: 5.1 | B90: 0.1639816848 | C90: 0.8360183152
A91: 5.2 | B91: 0.158504539 | C91: 0.841495461
A92: 5.3 | B92: 0.1532174128 | C92: 0.8467825872
A93: 5.4 | B93: 0.1481132785 | C93: 0.8518867215
A94: 5.5 | B94: 0.1431853822 | C94: 0.8568146178
A95: 5.6 | B95: 0.1384272326 | C95: 0.8615727674
A96: 5.7 | B96: 0.1338325907 | C96: 0.8661674093
A97: 5.8 | B97: 0.1293954602 | C97: 0.8706045398
A98: 5.9 | B98: 0.1251100777 | C98: 0.8748899223
A99: 6 | B99: 0.1209709036 | C99: 0.8790290964
A100: 6.1 | B100: 0.1169726131 | C100: 0.8830273869
A101: 6.2 | B101: 0.1131100877 | C101: 0.8868899123
A102: 6.3 | B102: 0.1093784074 | C102: 0.8906215926
A103: 6.4 | B103: 0.1057728421 | C103: 0.8942271579
A104: 6.5 | B104: 0.1022888447 | C104: 0.8977111553
A105: 6.6 | B105: 0.09892204352 | C105: 0.9010779565
A106: 6.7 | B106: 0.0956682352 | C106: 0.9043317648
A107: 6.8 | B107: 0.09252337819 | C107: 0.9074766218
A108: 6.9 | B108: 0.08948358616 | C108: 0.9105164138
A109: 7 | B109: 0.08654512185 | C109: 0.9134548781
A110: 7.1 | B110: 0.08370439105 | C110: 0.916295609
A111: 7.2 | B111: 0.0809579369 | C111: 0.9190420631
A112: 7.3 | B112: 0.0783024344 | C112: 0.9216975656
A113: 7.4 | B113: 0.07573468511 | C113: 0.9242653149
A114: 7.5 | B114: 0.07325161208 | C114: 0.9267483879
A115: 7.6 | B115: 0.07085025497 | C115: 0.929149745
A116: 7.7 | B116: 0.06852776542 | C116: 0.9314722346
A117: 7.8 | B117: 0.0662814025 | C117: 0.9337185975
A118: 7.9 | B118: 0.06410852848 | C118: 0.9358914715
A119: 8 | B119: 0.06200660463 | C119: 0.9379933954
A120: 8.1 | B120: 0.05997318732 | C120: 0.9400268127
A121: 8.2 | B121: 0.05800592416 | C121: 0.9419940758
A122: 8.3 | B122: 0.05610255041 | C122: 0.9438974496
A123: 8.4 | B123: 0.05426088544 | C123: 0.9457391146
A124: 8.5 | B124: 0.0524788294 | C124: 0.9475211706
A125: 8.6 | B125: 0.05075435998 | C125: 0.94924564
A126: 8.7 | B126: 0.04908552937 | C126: 0.9509144706
A127: 8.8 | B127: 0.04747046123 | C127: 0.9525295388
A128: 8.9 | B128: 0.04590734793 | C128: 0.9540926521
A129: 9 | B129: 0.04439444777 | C129: 0.9556055522
A130: 9.1 | B130: 0.04293008239 | C130: 0.9570699176
A131: 9.2 | B131: 0.0415126343 | C131: 0.9584873657
A132: 9.3 | B132: 0.04014054443 | C132: 0.9598594556
A133: 9.4 | B133: 0.03881230986 | C133: 0.9611876901
A134: 9.5 | B134: 0.03752648163 | C134: 0.9624735184
A135: 9.6 | B135: 0.03628166259 | C135: 0.9637183374
A136: 9.7 | B136: 0.03507650539 | C136: 0.9649234946
A137: 9.8 | B137: 0.03390971056 | C137: 0.9660902894
A138: 9.9 | B138: 0.03278002462 | C138: 0.9672199754
A139: 10 | B139: 0.03168623831 | C139: 0.9683137617
